Workbook

Sheet ACS_Notes (hidden)
A1: NOTES:
A4: Data are based on a sample and are subject to sampling variability. The degree of uncertainty for an estimate arising from sampling variability is represented through the use of a margin of error. The value shown here is the 90 percent margin of error. The margin of error can be interpreted roughly as providing a 90 percent probability that the interval defined by the estimate minus the margin of error and the estimate plus the margin of error (the lower and upper confidence bounds) contains the true value. In addition to sampling variability, the ACS estimates are subject to nonsampling error (for a discussion of nonsampling variability, see Accuracy of the Data). The effect of nonsampling error is not represented in these tables.
A8: In addition to sampling variability, the ACS estimates are subject to nonsampling error (for a discussion of nonsampling variability, see Accuracy of the Data. The link is located at the end of this worksheet.). The effect of nonsampling error is not represented in these tables.
A11: While the 2005-2009 American Community Survey (ACS) data generally reflect the November 2008 Office of Management and Budget (OMB) definitions of metropolitan and micropolitan statistical areas; in certain instances the names, codes, and boundaries of the principal cities shown in ACS tables may differ from the OMB definitions due to differences in the effective dates of the geographic entities.
A15: Estimates of urban and rural population, housing units, and characteristics reflect boundaries of urban areas defined based on Census 2000 data. Boundaries for urban areas have not been updated since Census 2000. As a result, data for urban and rural areas from the ACS do not necessarily reflect the results of ongoing urbanization.
A17: Explanation of Symbols:
A19: 1. An '**' entry in the margin of error column indicates that either no sample observations or too few sample observations were available to compute a standard error and thus the margin of error. A statistical test is not appropriate.
A21: 2. An '-' entry in the estimate column indicates that either no sample observations or too few sample observations were available to compute an estimate, or a ratio of medians cannot be calculated because one or both of the median estimates falls in the lowest interval or upper interval of an open-ended distribution.
A23: 3. An '-' following a median estimate means the median falls in the lowest interval of an open-ended distribution.
A24: 4. An '+' following a median estimate means the median falls in the upper interval of an open-ended distribution.
A25: 5. An '***' entry in the margin of error column indicates that the median falls in the lowest interval or upper interval of an open-ended distribution. A statistical test is not appropriate.
A26: 6. An '*****' entry in the margin of error column indicates that the estimate is controlled. A statistical test for sampling variability is not appropriate.
A28: Accuracy of Data

Sheet StartInstruction
A1: Demographic Profiles for Municipalities in Rockingham County
A3: To view or print a Demographic Profile follow the steps below
A6: Step 1. | C6: Select the municipality you wish to
C7: Profile from the drop down box below.
A12: Step 2. | C12: Click one of the profile topic buttons below to review or print
C13: the information for the selected geography.
C14: Don't forget to adjust the axis on charts as necessary.
N28: Updated: | P28: 2023-12-07
N30: Next Update: | P30: Spring 2024 Annual Employment Date

Sheet ACS_B08303 (hidden)
B1: B08303: TRAVEL TIME TO WORK
B2: Universe: Workers 16 years and over who did not work at home
B3: Data Set: 2008-2010 American Community Survey 3-Year Estimates
C5: Atkinson | E5: Auburn | G5: Brentwood | I5: Candia | K5: Chester | M5: Danville | O5: Deerfield | Q5: Derry | S5: East Kingston | U5: Epping | W5: Exeter | Y5: Fremont | AA5: Greenland | AC5: Hampstead | AE5: Hampton | AG5: Hampton Falls | AI5: Kensington | AK5: Kingston | AM5: Londonderry | AO5: New Castle | AQ5: Newfields | AS5: Newington | AU5: Newmarket | AW5: Newton | AY5: North Hampton | BA5: Northwood | BC5: Nottingham | BE5: Plaistow | BG5: Portsmouth | BI5: Raymond | BK5: Rye | BM5: Salem | BO5: Sandown | BQ5: Seabrook | BS5: South Hampton | BU5: Stratham | BW5: Windham
C6: Esitimate | D6: Margin Of Error | E6: Esitimate | F6: Margin Of Error | G6: Esitimate | H6: Margin Of Error | I6: Esitimate | J6: Margin Of Error | K6: Esitimate | L6: Margin Of Error | M6: Esitimate | N6: Margin Of Error | O6: Esitimate | P6: Margin Of Error | Q6: Esitimate | R6: Margin Of Error | S6: Esitimate | T6: Margin Of Error | U6: Esitimate | V6: Margin Of Error | W6: Esitimate | X6: Margin Of Error | Y6: Esitimate | Z6: Margin Of Error | AA6: Esitimate | AB6: Margin Of Error | AC6: Esitimate | AD6: Margin Of Error | AE6: Esitimate | AF6: Margin Of Error | AG6: Esitimate | AH6: Margin Of Error | AI6: Esitimate | AJ6: Margin Of Error | AK6: Esitimate | AL6: Margin Of Error | AM6: Esitimate | AN6: Margin Of Error | AO6: Esitimate | AP6: Margin Of Error | AQ6: Esitimate | AR6: Margin Of Error | AS6: Esitimate | AT6: Margin Of Error | AU6: Esitimate | AV6: Margin Of Error | AW6: Esitimate | AX6: Margin Of Error | AY6: Esitimate | AZ6: Margin Of Error | BA6: Esitimate | BB6: Margin Of Error | BC6: Esitimate | BD6: Margin Of Error | BE6: Esitimate | BF6: Margin Of Error | BG6: Esitimate | BH6: Margin Of Error | BI6: Esitimate | BJ6: Margin Of Error | BK6: Esitimate | BL6: Margin Of Error | BM6: Esitimate | BN6: Margin Of Error | BO6: Esitimate | BP6: Margin Of Error | BQ6: Esitimate | BR6: Margin Of Error | BS6: Esitimate | BT6: Margin Of Error | BU6: Esitimate | BV6: Margin Of Error | BW6: Esitimate | BX6: Margin Of Error
B7: Population Older than 16 not working at hom | C7: 3500 | D7: 408 | E7: 2738 | F7: 393 | G7: 1684 | H7: 175 | I7: 2179 | J7: 257 | K7: 2668 | L7: 277 | M7: 2251 | N7: 337 | O7: 2318 | P7: 294 | Q7: 15905 | R7: 903 | S7: 880 | T7: 201 | U7: 3276 | V7: 406 | W7: 7354 | X7: 522 | Y7: 2662 | Z7: 251 | AA7: 1732 | AB7: 188 | AC7: 3945 | AD7: 382 | AE7: 7067 | AF7: 426 | AG7: 1032 | AH7: 169 | AI7: 991 | AJ7: 145 | AK7: 2825 | AL7: 481 | AM7: 11995 | AN7: 574 | AO7: 245 | AP7: 78 | AQ7: 985 | AR7: 312 | AS7: 454 | AT7: 176 | AU7: 5065 | AV7: 332 | AW7: 2646 | AX7: 221 | AY7: 1705 | AZ7: 244 | BA7: 2247 | BB7: 322 | BC7: 2183 | BD7: 244 | BE7: 3870 | BF7: 364 | BG7: 10534 | BH7: 634 | BI7: 5203 | BJ7: 402 | BK7: 2095 | BL7: 293 | BM7: 15528 | BN7: 724 | BO7: 2919 | BP7: 409 | BQ7: 3514 | BR7: 449 | BS7: 486 | BT7: 149 | BU7: 3411 | BV7: 417 | BW7: 5911 | BX7: 424
B8: Less than 5 minutes | C8: 26138 | D8: 1637 | E8: 1399 | F8: 370 | G8: 1544 | H8: 459 | I8: 1916 | J8: 383 | K8: 1271 | L8: 254 | M8: 2370 | N8: 425 | O8: 5316 | P8: 761 | Q8: 2734 | R8: 409 | S8: 5515 | T8: 696 | U8: 3396 | V8: 575 | W8: 677 | X8: 219
B9: 5 to 9 minutes | C9: 57 | D9: 43 | E9: 17 | F9: 29 | G9: 51 | H9: 50 | I9: 69 | J9: 48 | K9: 26 | L9: 26 | M9: 51 | N9: 48 | O9: 102 | P9: 65 | Q9: 390 | R9: 242 | S9: 77 | T9: 33 | U9: 97 | V9: 80 | W9: 272 | X9: 141 | Y9: 15 | Z9: 17 | AA9: 96 | AB9: 67 | AC9: 182 | AD9: 117 | AE9: 404 | AF9: 157 | AG9: 15 | AH9: 18 | AI9: 12 | AJ9: 10 | AK9: 50 | AL9: 59 | AM9: 157 | AN9: 83 | AO9: 9 | AP9: 15 | AQ9: 14 | AR9: 10 | AS9: 27 | AT9: 14 | AU9: 103 | AV9: 72 | AW9: 62 | AX9: 47 | AY9: 200 | AZ9: 133 | BA9: 25 | BB9: 28 | BC9: 0 | BD9: 17 | BE9: 135 | BF9: 80 | BG9: 437 | BH9: 171 | BI9: 136 | BJ9: 122 | BK9: 29 | BL9: 28 | BM9: 473 | BN9: 239 | BO9: 112 | BP9: 99 | BQ9: 44 | BR9: 55 | BS9: 10 | BT9: 8 | BU9: 173 | BV9: 158 | BW9: 114 | BX9: 77
B10: 10 to 14 minutes | C10: 152 | D10: 76 | E10: 196 | F10: 126 | G10: 133 | H10: 83 | I10: 48 | J10: 42 | K10: 128 | L10: 71 | M10: 73 | N10: 84 | O10: 89 | P10: 55 | Q10: 1604 | R10: 464 | S10: 41 | T10: 27 | U10: 173 | V10: 115 | W10: 1286 | X10: 304 | Y10: 249 | Z10: 149 | AA10: 182 | AB10: 78 | AC10: 226 | AD10: 126 | AE10: 1033 | AF10: 235 | AG10: 116 | AH10: 60 | AI10: 64 | AJ10: 30 | AK10: 393 | AL10: 200 | AM10: 835 | AN10: 172 | AO10: 46 | AP10: 30 | AQ10: 43 | AR10: 32 | AS10: 41 | AT10: 22 | AU10: 264 | AV10: 118 | AW10: 220 | AX10: 173 | AY10: 189 | AZ10: 97 | BA10: 123 | BB10: 82 | BC10: 125 | BD10: 156 | BE10: 463 | BF10: 238 | BG10: 2121 | BH10: 348 | BI10: 364 | BJ10: 143 | BK10: 231 | BL10: 119 | BM10: 1254 | BN10: 249 | BO10: 240 | BP10: 132 | BQ10: 601 | BR10: 345 | BS10: 11 | BT10: 8 | BU10: 176 | BV10: 127 | BW10: 242 | BX10: 125
B11: 15 to 19 minutes | C11: 735 | D11: 437 | E11: 168 | F11: 92 | G11: 192 | H11: 113 | I11: 126 | J11: 84 | K11: 102 | L11: 55 | M11: 51 | N11: 52 | O11: 165 | P11: 98 | Q11: 1372 | R11: 295 | S11: 46 | T11: 20 | U11: 398 | V11: 210 | W11: 1119 | X11: 279 | Y11: 148 | Z11: 92 | AA11: 211 | AB11: 79 | AC11: 240 | AD11: 127 | AE11: 811 | AF11: 192 | AG11: 190 | AH11: 60 | AI11: 216 | AJ11: 94 | AK11: 205 | AL11: 110 | AM11: 1640 | AN11: 341 | AO11: 68 | AP11: 30 | AQ11: 232 | AR11: 163 | AS11: 44 | AT11: 27 | AU11: 262 | AV11: 120 | AW11: 135 | AX11: 125 | AY11: 156 | AZ11: 66 | BA11: 122 | BB11: 82 | BC11: 183 | BD11: 109 | BE11: 347 | BF11: 153 | BG11: 2236 | BH11: 336 | BI11: 359 | BJ11: 135 | BK11: 276 | BL11: 131 | BM11: 1756 | BN11: 351 | BO11: 182 | BP11: 102 | BQ11: 406 | BR11: 163 | BS11: 49 | BT11: 42 | BU11: 469 | BV11: 183 | BW11: 509 | BX11: 187
B12: 20 to 24 minutes | C12: 496 | D12: 192 | E12: 641 | F12: 238 | G12: 178 | H12: 85 | I12: 176 | J12: 93 | K12: 255 | L12: 123 | M12: 49 | N12: 45 | O12: 66 | P12: 49 | Q12: 1701 | R12: 425 | S12: 84 | T12: 35 | U12: 694 | V12: 266 | W12: 1053 | X12: 308 | Y12: 186 | Z12: 91 | AA12: 381 | AB12: 96 | AC12: 373 | AD12: 118 | AE12: 898 | AF12: 209 | AG12: 170 | AH12: 61 | AI12: 147 | AJ12: 40 | AK12: 287 | AL12: 128 | AM12: 1336 | AN12: 310 | AO12: 28 | AP12: 35 | AQ12: 145 | AR12: 94 | AS12: 35 | AT12: 22 | AU12: 771 | AV12: 197 | AW12: 286 | AX12: 132 | AY12: 228 | AZ12: 93 | BA12: 118 | BB12: 71 | BC12: 76 | BD12: 52 | BE12: 416 | BF12: 160 | BG12: 1344 | BH12: 246 | BI12: 784 | BJ12: 230 | BK12: 477 | BL12: 184 | BM12: 1760 | BN12: 344 | BO12: 62 | BP12: 63 | BQ12: 352 | BR12: 149 | BS12: 54 | BT12: 21 | BU12: 763 | BV12: 249 | BW12: 676 | BX12: 209
B13: 25 to 29 minutes | C13: 284 | D13: 134 | E13: 447 | F13: 166 | G13: 192 | H13: 101 | I13: 342 | J13: 124 | K13: 314 | L13: 136 | M13: 229 | N13: 101 | O13: 119 | P13: 59 | Q13: 1873 | R13: 409 | S13: 118 | T13: 50 | U13: 419 | V13: 171 | W13: 632 | X13: 209 | Y13: 250 | Z13: 99 | AA13: 436 | AB13: 124 | AC13: 870 | AD13: 367 | AE13: 1161 | AF13: 255 | AG13: 137 | AH13: 55 | AI13: 126 | AJ13: 54 | AK13: 232 | AL13: 134 | AM13: 1828 | AN13: 356 | AO13: 16 | AP13: 18 | AQ13: 173 | AR13: 48 | AS13: 120 | AT13: 80 | AU13: 1130 | AV13: 243 | AW13: 311 | AX13: 111 | AY13: 184 | AZ13: 87 | BA13: 207 | BB13: 143 | BC13: 167 | BD13: 86 | BE13: 501 | BF13: 263 | BG13: 1357 | BH13: 256 | BI13: 381 | BJ13: 129 | BK13: 336 | BL13: 175 | BM13: 2092 | BN13: 398 | BO13: 277 | BP13: 179 | BQ13: 636 | BR13: 237 | BS13: 95 | BT13: 67 | BU13: 742 | BV13: 312 | BW13: 673 | BX13: 214
B14: 30 to 34 minutes | C14: 140 | D14: 74 | E14: 255 | F14: 108 | G14: 161 | H14: 74 | I14: 351 | J14: 173 | K14: 264 | L14: 163 | M14: 318 | N14: 172 | O14: 178 | P14: 84 | Q14: 1085 | R14: 307 | S14: 45 | T14: 25 | U14: 139 | V14: 92 | W14: 719 | X14: 238 | Y14: 142 | Z14: 71 | AA14: 86 | AB14: 52 | AC14: 139 | AD14: 78 | AE14: 528 | AF14: 193 | AG14: 61 | AH14: 24 | AI14: 79 | AJ14: 34 | AK14: 116 | AL14: 111 | AM14: 996 | AN14: 231 | AO14: 17 | AP14: 18 | AQ14: 46 | AR14: 20 | AS14: 84 | AT14: 82 | AU14: 414 | AV14: 167 | AW14: 209 | AX14: 97 | AY14: 194 | AZ14: 85 | BA14: 96 | BB14: 54 | BC14: 177 | BD14: 131 | BE14: 447 | BF14: 156 | BG14: 651 | BH14: 168 | BI14: 534 | BJ14: 195 | BK14: 200 | BL14: 110 | BM14: 1626 | BN14: 413 | BO14: 216 | BP14: 105 | BQ14: 207 | BR14: 116 | BS14: 42 | BT14: 21 | BU14: 86 | BV14: 69 | BW14: 691 | BX14: 245
B15: 35 to 39 minutes | C15: 445 | D15: 146 | E15: 226 | F15: 115 | G15: 219 | H15: 88 | I15: 285 | J15: 97 | K15: 363 | L15: 145 | M15: 376 | N15: 187 | O15: 456 | P15: 162 | Q15: 2220 | R15: 526 | S15: 166 | T15: 81 | U15: 622 | V15: 320 | W15: 755 | X15: 231 | Y15: 456 | Z15: 151 | AA15: 140 | AB15: 78 | AC15: 354 | AD15: 117 | AE15: 686 | AF15: 153 | AG15: 76 | AH15: 40 | AI15: 107 | AJ15: 40 | AK15: 208 | AL15: 111 | AM15: 1600 | AN15: 285 | AO15: 3 | AP15: 5 | AQ15: 85 | AR15: 28 | AS15: 29 | AT15: 23 | AU15: 874 | AV15: 192 | AW15: 430 | AX15: 172 | AY15: 100 | AZ15: 61 | BA15: 364 | BB15: 137 | BC15: 362 | BD15: 145 | BE15: 487 | BF15: 195 | BG15: 559 | BH15: 161 | BI15: 1025 | BJ15: 286 | BK15: 140 | BL15: 107 | BM15: 2226 | BN15: 385 | BO15: 614 | BP15: 201 | BQ15: 456 | BR15: 243 | BS15: 45 | BT15: 32 | BU15: 182 | BV15: 107 | BW15: 1070 | BX15: 340
B16: 40 to 44 minutes | C16: 106 | D16: 157 | E16: 170 | F16: 105 | G16: 151 | H16: 66 | I16: 106 | J16: 62 | K16: 280 | L16: 190 | M16: 74 | N16: 45 | O16: 303 | P16: 122 | Q16: 752 | R16: 273 | S16: 57 | T16: 27 | U16: 91 | V16: 73 | W16: 203 | X16: 103 | Y16: 142 | Z16: 98 | AA16: 39 | AB16: 40 | AC16: 245 | AD16: 93 | AE16: 316 | AF16: 214 | AG16: 16 | AH16: 17 | AI16: 24 | AJ16: 14 | AK16: 94 | AL16: 91 | AM16: 447 | AN16: 160 | AO16: 15 | AP16: 15 | AQ16: 18 | AR16: 13 | AS16: 14 | AT16: 17 | AU16: 144 | AV16: 79 | AW16: 187 | AX16: 81 | AY16: 0 | AZ16: 12 | BA16: 206 | BB16: 95 | BC16: 236 | BD16: 97 | BE16: 114 | BF16: 80 | BG16: 188 | BH16: 109 | BI16: 305 | BJ16: 156 | BK16: 48 | BL16: 40 | BM16: 877 | BN16: 316 | BO16: 297 | BP16: 151 | BQ16: 99 | BR16: 75 | BS16: 10 | BT16: 8 | BU16: 15 | BV16: 30 | BW16: 314 | BX16: 146
B17: 45 to 59 minutes | C17: 306 | D17: 143 | E17: 122 | F17: 72 | G17: 81 | H17: 52 | I17: 352 | J17: 400 | K17: 249 | L17: 104 | M17: 179 | N17: 95 | O17: 199 | P17: 92 | Q17: 930 | R17: 307 | S17: 69 | T17: 38 | U17: 0 | V17: 17 | W17: 137 | X17: 74 | Y17: 176 | Z17: 96 | AA17: 76 | AB17: 65 | AC17: 218 | AD17: 109 | AE17: 159 | AF17: 80 | AG17: 13 | AH17: 13 | AI17: 46 | AJ17: 18 | AK17: 322 | AL17: 171 | AM17: 393 | AN17: 138 | AO17: 13 | AP17: 20 | AQ17: 52 | AR17: 62 | AS17: 2 | AT17: 4 | AU17: 132 | AV17: 102 | AW17: 133 | AX17: 63 | AY17: 0 | AZ17: 12 | BA17: 256 | BB17: 112 | BC17: 301 | BD17: 139 | BE17: 135 | BF17: 88 | BG17: 212 | BH17: 145 | BI17: 328 | BJ17: 130 | BK17: 46 | BL17: 36 | BM17: 778 | BN17: 223 | BO17: 286 | BP17: 126 | BQ17: 114 | BR17: 67 | BS17: 19 | BT17: 15 | BU17: 135 | BV17: 89 | BW17: 233 | BX17: 105
B18: 60 to 89 minutes | C18: 404 | D18: 164 | E18: 279 | F18: 178 | G18: 153 | H18: 71 | I18: 170 | J18: 102 | K18: 242 | L18: 82 | M18: 530 | N18: 215 | O18: 399 | P18: 137 | Q18: 1866 | R18: 370 | S18: 70 | T18: 35 | U18: 294 | V18: 150 | W18: 567 | X18: 181 | Y18: 545 | Z18: 160 | AA18: 34 | AB18: 28 | AC18: 563 | AD18: 223 | AE18: 393 | AF18: 116 | AG18: 52 | AH18: 36 | AI18: 79 | AJ18: 28 | AK18: 458 | AL18: 265 | AM18: 1248 | AN18: 278 | AO18: 6 | AP18: 8 | AQ18: 59 | AR18: 26 | AS18: 46 | AT18: 45 | AU18: 514 | AV18: 193 | AW18: 246 | AX18: 88 | AY18: 183 | AZ18: 88 | BA18: 355 | BB18: 123 | BC18: 365 | BD18: 147 | BE18: 381 | BF18: 177 | BG18: 513 | BH18: 146 | BI18: 619 | BJ18: 186 | BK18: 133 | BL18: 95 | BM18: 1287 | BN18: 310 | BO18: 212 | BP18: 123 | BQ18: 357 | BR18: 178 | BS18: 104 | BT18: 84 | BU18: 366 | BV18: 241 | BW18: 600 | BX18: 214
B19: 90 or more minutes | C19: 299 | D19: 144 | E19: 137 | F19: 87 | G19: 148 | H19: 81 | I19: 98 | J19: 67 | K19: 338 | L19: 137 | M19: 210 | N19: 109 | O19: 94 | P19: 45 | Q19: 1359 | R19: 332 | S19: 97 | T19: 70 | U19: 120 | V19: 93 | W19: 459 | X19: 148 | Y19: 247 | Z19: 115 | AA19: 51 | AB19: 34 | AC19: 343 | AD19: 141 | AE19: 488 | AF19: 165 | AG19: 95 | AH19: 54 | AI19: 62 | AJ19: 27 | AK19: 392 | AL19: 171 | AM19: 1028 | AN19: 211 | AO19: 14 | AP19: 14 | AQ19: 85 | AR19: 36 | AS19: 7 | AT19: 7 | AU19: 334 | AV19: 156 | AW19: 393 | AX19: 222 | AY19: 198 | AZ19: 98 | BA19: 325 | BB19: 196 | BC19: 97 | BD19: 58 | BE19: 256 | BF19: 123 | BG19: 509 | BH19: 160 | BI19: 226 | BJ19: 118 | BK19: 134 | BL19: 82 | BM19: 753 | BN19: 163 | BO19: 171 | BP19: 114 | BQ19: 125 | BR19: 87 | BS19: 36 | BT19: 17 | BU19: 217 | BV19: 111 | BW19: 520 | BX19: 199
C20: 76 | D20: 62 | E20: 80 | F20: 65 | G20: 25 | H20: 25 | I20: 56 | J20: 43 | K20: 107 | L20: 60 | M20: 111 | N20: 90 | O20: 148 | P20: 82 | Q20: 753 | R20: 247 | S20: 10 | T20: 11 | U20: 229 | V20: 139 | W20: 152 | X20: 110 | Y20: 106 | Z20: 76 | AA20: 0 | AB20: 12 | AC20: 192 | AD20: 121 | AE20: 190 | AF20: 80 | AG20: 91 | AH20: 62 | AI20: 29 | AJ20: 18 | AK20: 68 | AL20: 68 | AM20: 487 | AN20: 177 | AO20: 10 | AP20: 14 | AQ20: 33 | AR20: 20 | AS20: 5 | AT20: 5 | AU20: 123 | AV20: 73 | AW20: 34 | AX20: 26 | AY20: 73 | AZ20: 46 | BA20: 50 | BB20: 42 | BC20: 94 | BD20: 81 | BE20: 188 | BF20: 81 | BG20: 407 | BH20: 184 | BI20: 142 | BJ20: 79 | BK20: 45 | BL20: 39 | BM20: 646 | BN20: 202 | BO20: 250 | BP20: 164 | BQ20: 117 | BR20: 93 | BS20: 11 | BT20: 9 | BU20: 87 | BV20: 66 | BW20: 269 | BX20: 133

Sheet Updates
A1: Important Notes
A2: Date | C2: Task
A3: 2023-12-07 | C3: Updated 2018-2022 Amreican Community Survey Data. Updated CPI Adjustement Factor factor 1.19 for 2013-2017 and 1.27 for 2008-2012
A4: 2023-10-26 | C4: Updated Employment and Wage Information for 2022.
A5: 2023-10-17 | C5: Updated historical data 2008-2012 and 2013-2017 ACS Data; fixed an error in the Poverty and Owner Housing Cost worksheets. Added 10 Year Disability Comparison Worksheet.
A6: 2023-01-25 | C6: Updated Permit Data and appropriate worksheets.
A7: 2022-12-04 | C7: Updated 2017-2020 Amreican Community Survey Data
A8: 2022-11-01 | C8: Updated NH Population Estimates through 2030
A9: 2022-10-05 | C9: Updated Employment and Wage Information for 2021. Updated CPI Adjustment factor 1.08 for 2012-2016 and 1.15 for 2007-2011
A10: 2022-03-14 | C10: Updated CPI Adjustement factor to adjust 2010 (1.19) and 2015 (1.09) dollars to 2020 dollars. Updated 2016-2020 ACS data
A11: 2022-02-17 | C11: Updated Permit Data and all appropriate charts.
A12: 2021-11-02 | C12: Updated 2020 Annual Wage and Employment count
A13: 2021-09-08 | C13: Updated with 2020 Decennial Population data
A14: 2020-12-18 | C14: Updated 2015-2019 Amreican Community Survey Data and added 2019 NH Permit data.
A15: 2020-09-10 | C15: Updated historical data 2005-2009 and 2010-2014 ACS Data
A16: 2020-07-10 | C16: Updated 2019 Unemployment Rate and Labor Force Data to Employment, Wages, LaborForce & Unemp. Worksheet for large communities.
A17: 2019-12-31 | C17: Updated Visual Basic Code changing the footer font from Gotham Medium to Verdana.
A18: 2019-12-27 | C18: Updated with 2014-2018 ACS Data. Updated 2018 Permit data. Updated CPI Adjustment Factor (1.02437673) to the 2009-2013 and 2014-2018 Income Comparison Table. This factor was provided by Census
A19: 2019-11-27 | C19: Updated the 2009-2013 ACS data for comparison purposes. Updated charts to new color scheme
A20: 2019-01-08 | C20: Updated the location of the 2008-2012 data and the ACS_Tbl_B11001_B11002_B25010 worksheet. This fixed an error on the PopulationCharacteristics worksheet
A21: 2018-12-19 | C21: Updated 2017 Annual Employment and Wage data; updated Housing and Employment worksheet. Updated 2017 Permit data
A22: 2018-12-13 | C22: Updated the 2008-2012 ACS data for comparison purposes. Updated CPI Adjustment Factor (1.0676) to the 2008-2012 and 2013-2017 Income Comparison Table. This factor was provided by Census.
A23: 2018-12-06 | C23: Updated labels in workbook to reflect 2013-2017 data set and 2008-2012 comparison data set. Updated footer text. Updated 2013-2017 ACS
A24: 2018-08-16 | C24: Updated Chart formats
A25: 2018-05-09 | C25: Updated 2017 Unemployment Rate and Labor Force Data to Employment, Wages, LaborForce & Unemp. Worksheet for large communities.
A26: 2017-12-18 | C26: Updated 2016 NH Permit Data
A27: 2017-12-12 | C27: Updated Charts with 2012-2016 data; updated code to reflect additional data points in various tables. Updated CPI Adjustment Factor (1.06686838) to the 2007-2011 and 2012-2016 Income Comparison Table. This factor was provided by Census.
A28: 2017-11-16 | C28: Updated the 2007-2011 ACS data for comparison purposes.
A29: 2017-10-12 | C29: Updated 2016 Annual Employment and Wage data; updated Housing and Employment worksheet
A30: 2017-05-15 | C30: Updated 2016 Unemployment Rate and Labor Force Data to Employment, Wages, LaborForce & Unemp. Worksheet for large communities.
A31: 2017-01-05 | C31: Verified Charts; Added 2015 Permit Data; Updated Housing and Permit data
A32: 2016-12-29 | C32: Updated the 2006-2010 ACS data for comparison purposes.
A33: 2016-12-23 | C33: Updated Town Comparisons: Employment and Housing with 2015 data
A34: 2016-12-20 | C34: Updated Charts with 2011-2015 data; updated code to reflect additional data points in various tables. Updated CPI Adjustment Factor (1.08710584) to the 2006-2010 and 2011-2015 Income Comparison Table. This factor was provided by Census.
A35: 2016-12-16 | C35: Updated 2011-2015 ACS data
A36: 2016-10-31 | C36: Updated 2015 Annual Employment and Wage data
A37: 2016-08-09 | C37: Updated Labor Force and Unemployment data for the specific towns: Concord; Derry; Dover; Hudson; Londonderry; Manchester; Merrimack; Nashua; Rochester; and Salem
A38: 2016-01-14 | C38: Fixed error in School Attainment worksheet - Graduate or Professional Degree data.
A39: 2016-01-07 | C39: Fixed formula in Poverty worksheet; fixed Non-Family Persons per Household data; fixed legend of Rental Cost Charts.
A40: 2015-12-23 | C40: Fixed Table ACS_B25074
A41: 2015-12-16 | C41: Updated Code to correct an error on the OwnerHousingCost worksheet; updated column names on CntyDataLink.
A42: 2015-12-11 | C42: Updated Code to correct an error on the RentalHousingCost worksheet; updated column names on CntyDataLink.
A43: 2015-12-10 | C43: Updated 2010-2014 ACS data
A44: 2015-12-07 | C44: Updated Permit Data and all appropriate charts.
A45: 2015-12-03 | C45: Updated Color scheme on charts and added correct logo to the charts; updated RentalHousingCost and OwnerCost worksheet to eliminate a printed page. Charts were moved and reduced in size. Updated the CPI Adjustment Factor (1.1034264) to the 2005-2009 and 2010-2014 Income Comparison Table. This factor was provided by Census.
A46: 2015-10-06 | C46: Added County Comparison Employment and Housing data. Added Visual basic code to automatically update footer. Visual basic code will run when Ctrl-j is selected.
A47: 2015-09-29 | C47: Updated Employment Information
A48: 2015-09-18 | C48: Updated RentalHousingCost worksheet to accommodate changes to Table B25074. Updated Charts and code to allow for prior 5 year estimates to be update
A49: 2015-09-01 | C49: Updated Code to include Prior 5 Year Estimates.
A50: 2015-08-18 | C50: Updated Owner Cost Chart and data. Added Table B25106. Housing Cost burden by Income. Updated 2006-2010 ACS Estimate data.
A51: 2015-08-06 | C51: Corrected the Employment vs. Housing worksheet.
A52: 2015-03-17 | C52: Added Labor Force Data
A53: 2014-12-30 | C53: Corrected Rental Cost formula.
A54: 2014-12-17 | C54: Corrected and verified household pie charts. All Permit data and employment data has been updated through 2013.
A55: 2011-10-14 | C55: Reformatted the code in the worksheet and corrected an error in the Income Comparison Sheet
A56: 2010-12-21 | C56: Added Margin of Error information on all applicable ACS Sheets
A57: 2010-12-07 | C57: Created a calculated Table B19001 in anticipation for the 5 year data. Table C19001 will not be provided

Sheet HHIncomeByAge (hidden)
C2: =CntyDataLink!A55 -> Chester
C3: INCOME CHARACTERISTICS
C21: =HHIncomeByAge!C2 -> Chester | D21: Household Income in 2022
G22: Households by Age of Householder
D23: Households | E23: Margin of Error Households | G23: Under 25 | H23: Margin of Error Under 25 | J23: 25 to 44 | K23: Margin of Error 25 to 44 | M23: 45 to 64 | N23: Margin of Error 45 to 64 | P23: 65 & Over | Q23: Margin of Error 65 & Over | S23: Family Households | T23: MOE Family HH | U23: Non-Family HH | V23: MOE Non-Family HH
C24: Less Than $10,000 | D24: =CntyDataLink!$D$116 -> 19 | E24: =CntyDataLink!$E$116 -> 21 | G24: =CntyDataLink!$AN$116 -> 0 | H24: =CntyDataLink!$AO$116 -> 17 | J24: =CntyDataLink!$BV$116 -> 0 | K24: =CntyDataLink!$BW$116 -> 17 | M24: =CntyDataLink!$DD$116 -> 19 | N24: =CntyDataLink!$DE$116 -> 21 | P24: =CntyDataLink!$EL$116 -> 0 | Q24: =CntyDataLink!$EM$116 -> 17 | S24: =CntyDataLink!$D$160 -> 0 | T24: =CntyDataLink!$E$160 -> 17 | U24: =CntyDataLink!$AN$160 -> 19 | V24: =CntyDataLink!$AO$160 -> 21
C25: $10,000 to $14,999 | D25: =CntyDataLink!$F$116 -> 0 | E25: =CntyDataLink!$G$116 -> 17 | G25: =CntyDataLink!$AP$116 -> 0 | H25: =CntyDataLink!$AQ$116 -> 17 | J25: =CntyDataLink!$BX$116 -> 0 | K25: =CntyDataLink!$BY$116 -> 17 | M25: =CntyDataLink!$DF$116 -> 0 | N25: =CntyDataLink!$DG$116 -> 17 | P25: =CntyDataLink!$EN$116 -> 0 | Q25: =CntyDataLink!$EO$116 -> 17 | S25: =CntyDataLink!$F$160 -> 0 | T25: =CntyDataLink!$G$160 -> 17 | U25: =CntyDataLink!$AP$160 -> 0 | V25: =CntyDataLink!$AQ$160 -> 17
C26: $15,000 to $19,999 | D26: =CntyDataLink!$H$116 -> 11 | E26: =CntyDataLink!$I$116 -> 18 | G26: =CntyDataLink!$AR$116 -> 0 | H26: =CntyDataLink!$AS$116 -> 17 | J26: =CntyDataLink!$BZ$116 -> 0 | K26: =CntyDataLink!$CA$116 -> 17 | M26: =CntyDataLink!$DH$116 -> 0 | N26: =CntyDataLink!$DI$116 -> 17 | P26: =CntyDataLink!$EP$116 -> 11 | Q26: =CntyDataLink!$EQ$116 -> 18 | S26: =CntyDataLink!$H$160 -> 0 | T26: =CntyDataLink!$I$160 -> 17 | U26: =CntyDataLink!$AR$160 -> 11 | V26: =CntyDataLink!$AS$160 -> 18
C27: $20,000 to $24,999 | D27: =CntyDataLink!$J$116 -> 7 | E27: =CntyDataLink!$K$116 -> 12 | G27: =CntyDataLink!$AT$116 -> 0 | H27: =CntyDataLink!$AU$116 -> 17 | J27: =CntyDataLink!$CB$116 -> 0 | K27: =CntyDataLink!$CC$116 -> 17 | M27: =CntyDataLink!$DJ$116 -> 7 | N27: =CntyDataLink!$DK$116 -> 12 | P27: =CntyDataLink!$ER$116 -> 0 | Q27: =CntyDataLink!$ES$116 -> 17 | S27: =CntyDataLink!$J$160 -> 0 | T27: =CntyDataLink!$K$160 -> 17 | U27: =CntyDataLink!$AT$160 -> 7 | V27: =CntyDataLink!$AU$160 -> 12
C28: $25,000 to $29,999 | D28: =CntyDataLink!$L$116 -> 23 | E28: =CntyDataLink!$M$116 -> 27 | G28: =CntyDataLink!$AV$116 -> 0 | H28: =CntyDataLink!$AW$116 -> 17 | J28: =CntyDataLink!$CD$116 -> 0 | K28: =CntyDataLink!$CE$116 -> 17 | M28: =CntyDataLink!$DL$116 -> 0 | N28: =CntyDataLink!$DM$116 -> 17 | P28: =CntyDataLink!$ET$116 -> 23 | Q28: =CntyDataLink!$EU$116 -> 27 | S28: =CntyDataLink!$L$160 -> 30 | T28: =CntyDataLink!$M$160 -> 33 | U28: =CntyDataLink!$AV$160 -> 13 | V28: =CntyDataLink!$AW$160 -> 21
C29: $30,000 to $34,999 | D29: =CntyDataLink!$N$116 -> 72 | E29: =CntyDataLink!$O$116 -> 90 | G29: =CntyDataLink!$AX$116 -> 0 | H29: =CntyDataLink!$AY$116 -> 17 | J29: =CntyDataLink!$CF$116 -> 0 | K29: =CntyDataLink!$CG$116 -> 17 | M29: =CntyDataLink!$DN$116 -> 0 | N29: =CntyDataLink!$DO$116 -> 17 | P29: =CntyDataLink!$EV$116 -> 72 | Q29: =CntyDataLink!$EW$116 -> 90 | S29: =CntyDataLink!$N$160 -> 72 | T29: =CntyDataLink!$O$160 -> 90 | U29: =CntyDataLink!$AX$160 -> 0 | V29: =CntyDataLink!$AY$160 -> 17
C30: $35,000 to $39,999 | D30: =CntyDataLink!$P$116 -> 0 | E30: =CntyDataLink!$Q$116 -> 17 | G30: =CntyDataLink!$AZ$116 -> 0 | H30: =CntyDataLink!$BA$116 -> 17 | J30: =CntyDataLink!$CH$116 -> 0 | K30: =CntyDataLink!$CI$116 -> 17 | M30: =CntyDataLink!$DP$116 -> 0 | N30: =CntyDataLink!$DQ$116 -> 17 | P30: =CntyDataLink!$EX$116 -> 0 | Q30: =CntyDataLink!$EY$116 -> 17 | S30: =CntyDataLink!$P$160 -> 0 | T30: =CntyDataLink!$Q$160 -> 17 | U30: =CntyDataLink!$AZ$160 -> 0 | V30: =CntyDataLink!$BA$160 -> 17
C31: $40,000 to $44,999 | D31: =CntyDataLink!$R$116 -> 28 | E31: =CntyDataLink!$S$116 -> 26 | G31: =CntyDataLink!$BB$116 -> 0 | H31: =CntyDataLink!$BC$116 -> 17 | J31: =CntyDataLink!$CJ$116 -> 0 | K31: =CntyDataLink!$CK$116 -> 17 | M31: =CntyDataLink!$DR$116 -> 9 | N31: =CntyDataLink!$DS$116 -> 14 | P31: =CntyDataLink!$EZ$116 -> 19 | Q31: =CntyDataLink!$FA$116 -> 22 | S31: =CntyDataLink!$R$160 -> 19 | T31: =CntyDataLink!$S$160 -> 21 | U31: =CntyDataLink!$BB$160 -> 9 | V31: =CntyDataLink!$BC$160 -> 15
C32: $45,000 to $49,999 | D32: =CntyDataLink!$T$116 -> 45 | E32: =CntyDataLink!$U$116 -> 45 | G32: =CntyDataLink!$BD$116 -> 0 | H32: =CntyDataLink!$BE$116 -> 17 | J32: =CntyDataLink!$CL$116 -> 0 | K32: =CntyDataLink!$CM$116 -> 17 | M32: =CntyDataLink!$DT$116 -> 45 | N32: =CntyDataLink!$DU$116 -> 45 | P32: =CntyDataLink!$FB$116 -> 0 | Q32: =CntyDataLink!$FC$116 -> 17 | S32: =CntyDataLink!$T$160 -> 10 | T32: =CntyDataLink!$U$160 -> 17 | U32: =CntyDataLink!$BD$160 -> 35 | V32: =CntyDataLink!$BE$160 -> 41
C33: $50,000 to $59,999 | D33: =CntyDataLink!$V$116 -> 16 | E33: =CntyDataLink!$W$116 -> 19 | G33: =CntyDataLink!$BF$116 -> 0 | H33: =CntyDataLink!$BG$116 -> 17 | J33: =CntyDataLink!$CN$116 -> 0 | K33: =CntyDataLink!$CO$116 -> 17 | M33: =CntyDataLink!$DV$116 -> 5 | N33: =CntyDataLink!$DW$116 -> 7 | P33: =CntyDataLink!$FD$116 -> 11 | Q33: =CntyDataLink!$FE$116 -> 18 | S33: =CntyDataLink!$V$160 -> 12 | T33: =CntyDataLink!$W$160 -> 19 | U33: =CntyDataLink!$BF$160 -> 16 | V33: =CntyDataLink!$BG$160 -> 19
C34: $60,000 to $74,999 | D34: =CntyDataLink!$X$116 -> 57 | E34: =CntyDataLink!$Y$116 -> 42 | G34: =CntyDataLink!$BH$116 -> 8 | H34: =CntyDataLink!$BI$116 -> 15 | J34: =CntyDataLink!$CP$116 -> 20 | K34: =CntyDataLink!$CQ$116 -> 30 | M34: =CntyDataLink!$DX$116 -> 0 | N34: =CntyDataLink!$DY$116 -> 17 | P34: =CntyDataLink!$FF$116 -> 29 | Q34: =CntyDataLink!$FG$116 -> 27 | S34: =CntyDataLink!$X$160 -> 37 | T34: =CntyDataLink!$Y$160 -> 32 | U34: =CntyDataLink!$BH$160 -> 0 | V34: =CntyDataLink!$BI$160 -> 17
C35: $75,000 to $99,999 | D35: =CntyDataLink!$Z$116 -> 211 | E35: =CntyDataLink!$AA$116 -> 95 | G35: =CntyDataLink!$BJ$116 -> 0 | H35: =CntyDataLink!$BK$116 -> 17 | J35: =CntyDataLink!$CR$116 -> 6 | K35: =CntyDataLink!$CS$116 -> 10 | M35: =CntyDataLink!$DZ$116 -> 122 | N35: =CntyDataLink!$EA$116 -> 70 | P35: =CntyDataLink!$FH$116 -> 83 | Q35: =CntyDataLink!$FI$116 -> 63 | S35: =CntyDataLink!$Z$160 -> 147 | T35: =CntyDataLink!$AA$160 -> 74 | U35: =CntyDataLink!$BJ$160 -> 77 | V35: =CntyDataLink!$BK$160 -> 73
C36: $100,000 to $124,999 | D36: =CntyDataLink!$AB$116 -> 259 | E36: =CntyDataLink!$AC$116 -> 120 | G36: =CntyDataLink!$BL$116 -> 0 | H36: =CntyDataLink!$BM$116 -> 17 | J36: =CntyDataLink!$CT$116 -> 51 | K36: =CntyDataLink!$CU$116 -> 36 | M36: =CntyDataLink!$EB$116 -> 173 | N36: =CntyDataLink!$EC$116 -> 116 | P36: =CntyDataLink!$FJ$116 -> 35 | Q36: =CntyDataLink!$FK$116 -> 29 | S36: =CntyDataLink!$AB$160 -> 251 | T36: =CntyDataLink!$AC$160 -> 123 | U36: =CntyDataLink!$BL$160 -> 11 | V36: =CntyDataLink!$BM$160 -> 18
C37: $125,000 to $149,999 | D37: =CntyDataLink!$AD$116 -> 227 | E37: =CntyDataLink!$AE$116 -> 106 | G37: =CntyDataLink!$BN$116 -> 0 | H37: =CntyDataLink!$BO$116 -> 17 | J37: =CntyDataLink!$CV$116 -> 67 | K37: =CntyDataLink!$CW$116 -> 45 | M37: =CntyDataLink!$ED$116 -> 123 | N37: =CntyDataLink!$EE$116 -> 86 | P37: =CntyDataLink!$FL$116 -> 37 | Q37: =CntyDataLink!$FM$116 -> 37 | S37: =CntyDataLink!$AD$160 -> 227 | T37: =CntyDataLink!$AE$160 -> 106 | U37: =CntyDataLink!$BN$160 -> 0 | V37: =CntyDataLink!$BO$160 -> 17
C38: $150,000 to $199,999 | D38: =CntyDataLink!$AF$116 -> 319 | E38: =CntyDataLink!$AG$116 -> 126 | G38: =CntyDataLink!$BP$116 -> 0 | H38: =CntyDataLink!$BQ$116 -> 17 | J38: =CntyDataLink!$CX$116 -> 50 | K38: =CntyDataLink!$CY$116 -> 30 | M38: =CntyDataLink!$EF$116 -> 237 | N38: =CntyDataLink!$EG$116 -> 113 | P38: =CntyDataLink!$FN$116 -> 32 | Q38: =CntyDataLink!$FO$116 -> 33 | S38: =CntyDataLink!$AF$160 -> 257 | T38: =CntyDataLink!$AG$160 -> 97 | U38: =CntyDataLink!$BP$160 -> 62 | V38: =CntyDataLink!$BQ$160 -> 80
C39: $200,000 or More | D39: =CntyDataLink!$AH$116 -> 442 | E39: =CntyDataLink!$AI$116 -> 102 | G39: =CntyDataLink!$BR$116 -> 0 | H39: =CntyDataLink!$BS$116 -> 17 | J39: =CntyDataLink!$CZ$116 -> 98 | K39: =CntyDataLink!$DA$116 -> 51 | M39: =CntyDataLink!$EH$116 -> 319 | N39: =CntyDataLink!$EI$116 -> 85 | P39: =CntyDataLink!$FP$116 -> 25 | Q39: =CntyDataLink!$FQ$116 -> 29 | S39: =CntyDataLink!$AH$160 -> 414 | T39: =CntyDataLink!$AI$160 -> 109 | U39: =CntyDataLink!$BR$160 -> 0 | V39: =CntyDataLink!$BS$160 -> 17
C41: Total Households | D41: =CntyDataLink!$B$116 -> 1736 | E41: =CntyDataLink!$C$116 -> 141 | G41: =CntyDataLink!$AL$116 -> 8 | H41: =CntyDataLink!$AM$116 -> 15 | J41: =CntyDataLink!$BT$116 -> 292 | K41: =CntyDataLink!$BU$116 -> 70 | M41: =CntyDataLink!$DB$116 -> 1059 | N41: =CntyDataLink!$DC$116 -> 131 | P41: =CntyDataLink!$EJ$116 -> 377 | Q41: =CntyDataLink!$EK$116 -> 131 | S41: =CntyDataLink!$B$160 -> 1476 | T41: =CntyDataLink!$C$160 -> 123 | U41: =CntyDataLink!$AL$160 -> 260 | V41: =CntyDataLink!$AM$160 -> 115
C42: Median Household Inc | D42: =CntyDataLink!$FR$116 -> 135326 | E42: =CntyDataLink!$FS$116 -> 20032 | G42: =CntyDataLink!$FT$116 -> - | H42: =CntyDataLink!$FU$116 -> ** | J42: =CntyDataLink!$FV$116 -> 168214 | K42: =CntyDataLink!$FW$116 -> 67121 | M42: =CntyDataLink!$FX$116 -> 158401 | N42: =CntyDataLink!$FY$116 -> 24191 | P42: =CntyDataLink!$FZ$116 -> 78345 | Q42: =CntyDataLink!$GA$116 -> 13543 | S42: =CntyDataLink!$AJ$160 -> 141875 | T42: =CntyDataLink!$AK$160 -> 19490 | U42: =CntyDataLink!BT$160 -> 78243 | V42: =CntyDataLink!$BU$160 -> 30714
C44: Source: 2018-2022 American Community Survey Table B19001; B19037; B19101; B19102; B19112; B19113; B19049
C45: Data from the American Community Survey are estimates
C47: =C2 -> Chester
C48: INCOME CHARACTERISTICS
C80: Source: 2018-2022 American Community Survey Tables B19001; B19102 | P80: Data from the American Community Survey are estimates

Sheet PopulationCharacteristics (hidden)
B2: =CntyDataLink!$A35 -> Chester
G3: Land Area: | I3: =((CntyDataLink!F35*10.764)/43560)/640 -> 25.90942299 | K3: Water Area: | L3: =((CntyDataLink!G35*10.764)/43560)/640 -> 0.1110079972
B4: POPULATION CHARACTERISTICS
B19: Population | C19: ="Source: US Census; Office of Planning and Development, NH BEA; "& L20&", "&P20&", and "&S20&" American Community Survey Table B01001" -> Source: US Census; Office of Planning and Development, NH BEA; 2008-2012, 2013-2017, and 2018-2022 American Community Survey Table B01001 | N19: Population by Age | P19: ="Source: "& L20&", "&P20&", and "&S20&" American Community Survey Tables B01001 and B01002" -> Source: 2008-2012, 2013-2017, and 2018-2022 American Community Survey Tables B01001 and B01002
L20: 2008-2012 | P20: 2013-2017 | S20: 2018-2022
C21: 1990 | D21: 2000 | E21: 2010 | F21: 2020 | G21: 2018-2022 | H21: 2025 | I21: 2030 | L21: Estimate | N21: Margin of Error | O21: Percent Change | P21: Estimate | Q21: Margin of Error | R21: Percent Change | S21: Estimate | T21: Margin of Error | V21: Percent Change | W21: Statistically Significant Change
C22: =CntyDataLink!$F$20 -> 2691 | D22: =CntyDataLink!$G$20 -> 3792 | E22: =CntyDataLink!$H$20 -> 4768 | F22: =CntyDataLink!$I$20 -> 5232 | G22: =CntyDataLink!$B$132 -> 25708 | H22: =CntyDataLink!$J$20 -> 5442 | I22: =CntyDataLink!$K$20 -> 5624 | K22: Under 15 yrs. | L22: =CntyDataLinkPrior10YearEstimate!$D$132 -> 5108 | N22: =CntyDataLinkPrior10YearEstimate!$E$132 -> 533.3357292 | O22: =L22/SUM($L$22:$L$29) -> 0.2111878282 | P22: =CntyDataLinkPrior5YearEstimates!$D$132 -> 4381 | Q22: =CntyDataLinkPrior5YearEstimates!$E$132 -> 372.6861951 | R22: =P22/SUM($P$22:$P$29) -> 0.1763403639 | S22: =CntyDataLink!$D$132 -> 4135 | T22: =CntyDataLink!$E$132 -> 383.25318 | U22: =S22/SUM($S$22:$S$29) -> 0.1608448732 | V22: =(S22-P22)/P22 -> -0.05615156357 | W22: =StatisticallySignificantCalcs!$A3 -> Y
K23: 15 to 24 yrs. | L23: =CntyDataLinkPrior10YearEstimate!$F$132 -> 3469 | N23: =CntyDataLinkPrior10YearEstimate!$G$132 -> 380.8805587 | O23: =L23/SUM($L$22:$L$29) -> 0.1434241535 | P23: =CntyDataLinkPrior5YearEstimates!$F$132 -> 3469 | Q23: =CntyDataLinkPrior5YearEstimates!$G$132 -> 306.0751542 | R23: 0.1396312993 | S23: =CntyDataLink!$F$132 -> 4139 | T23: =CntyDataLink!$G$132 -> 461.5809788 | U23: 0.1610004668 | V23: 0.1931392332 | W23: =StatisticallySignificantCalcs!$A4 -> Y
B24: Percent Change | K24: 25 to 34 yrs. | L24: =CntyDataLinkPrior10YearEstimate!$H$132 -> 2137 | N24: =CntyDataLinkPrior10YearEstimate!$I$132 -> 326.6848634 | O24: =L24/SUM($L$22:$L$29) -> 0.08835324761 | P24: =CntyDataLinkPrior5YearEstimates!$H$132 -> 2515 | Q24: =CntyDataLinkPrior5YearEstimates!$I$132 -> 289.1556674 | R24: 0.1012316857 | S24: =CntyDataLink!$H$132 -> 2510 | T24: =CntyDataLink!$I$132 -> 341.7016242 | U24: 0.09763497744 | V24: -0.001988071571 | W24: =StatisticallySignificantCalcs!$A5 -> Y
D25: =C21&"-2020" -> 1990-2020 | E25: =D21&"-2020" -> 2000-2020 | F25: =E21&"-2020" -> 2010-2020 | G25: =F21&"-2030" -> 2020-2030 | H25: =G21&"-"&H21 -> 2018-2022-2025 | I25: =H21&"-"&I21 -> 2025-2030 | K25: 35 to 44 yrs. | L25: =CntyDataLinkPrior10YearEstimate!$J$132 -> 3804 | N25: =CntyDataLinkPrior10YearEstimate!$K$132 -> 405.5638051 | O25: 0.157274569 | P25: =CntyDataLinkPrior5YearEstimates!$J$132 -> 3068 | Q25: =CntyDataLinkPrior5YearEstimates!$K$132 -> 279.8553198 | R25: 0.1234905812 | S25: =CntyDataLink!$J$132 -> 3142 | T25: =CntyDataLink!$K$132 -> 337.4433286 | U25: 0.1222187646 | V25: 0.02411994785 | W25: =StatisticallySignificantCalcs!$A6 -> Y
D26: =(D22-C22)/C22 -> 0.4091415831 | E26: 0.2573839662 | F26: 0.09731543624 | G26: 3.913608563 | H26: -0.7883149214 | I26: 0.03344358692 | K26: 45 to 54 yrs. | L26: =CntyDataLinkPrior10YearEstimate!$L$132 -> 4834 | N26: =CntyDataLinkPrior10YearEstimate!$M$132 -> 385.9805695 | O26: 0.1998594286 | P26: =CntyDataLinkPrior5YearEstimates!$L$132 -> 4483 | Q26: =CntyDataLinkPrior5YearEstimates!$M$132 -> 335.1029692 | R26: 0.1804459829 | S26: =CntyDataLink!$L$132 -> 4005 | T26: =CntyDataLink!$M$132 -> 441.2278323 | U26: 0.1557880815 | V26: -0.1066250279 | W26: =StatisticallySignificantCalcs!$A7 -> Y
K27: 55 to 64 yrs. | L27: =CntyDataLinkPrior10YearEstimate!$N$132 -> 2934 | N27: =CntyDataLinkPrior10YearEstimate!$O$132 -> 336.4387017 | O27: 0.1213048332 | P27: =CntyDataLinkPrior5YearEstimates!$N$132 -> 3941 | Q27: =CntyDataLinkPrior5YearEstimates!$O$132 -> 334.2080191 | R27: 0.1586298503 | S27: =CntyDataLink!$N$132 -> 3840 | T27: =CntyDataLink!$O$132 -> 374.3460965 | U27: 0.149369846 | V27: -0.02562801319 | W27: =StatisticallySignificantCalcs!$A8 -> Y
K28: 65 to 74 yrs. | L28: =CntyDataLinkPrior10YearEstimate!$P$132 -> 1387 | N28: =CntyDataLinkPrior10YearEstimate!$Q$132 -> 256.2401218 | O28: 0.05734485467 | P28: =CntyDataLinkPrior5YearEstimates!$P$132 -> 2178 | Q28: =CntyDataLinkPrior5YearEstimates!$Q$132 -> 221.9909908 | R28: 0.08766704234 | S28: =CntyDataLink!$P$132 -> 2609 | T28: =CntyDataLink!$Q$132 -> 391.5903472 | U28: 0.1014859188 | V28: 0.1978879706 | W28: =StatisticallySignificantCalcs!$A9 -> Y
K29: Over 74 yrs. | L29: =CntyDataLinkPrior10YearEstimate!$R$132 -> 514 | N29: =CntyDataLinkPrior10YearEstimate!$S$132 -> 139.3664235 | O29: 0.02125108529 | P29: =CntyDataLinkPrior5YearEstimates!$R$132 -> 809 | Q29: =CntyDataLinkPrior5YearEstimates!$S$132 -> 150.3362897 | R29: 0.03256319433 | S29: =CntyDataLink!$R$132 -> 1328 | T29: =CntyDataLink!$S$132 -> 253.4462468 | U29: 0.05165707173 | V29: 0.6415327565 | W29: =StatisticallySignificantCalcs!$A10 -> Y
K30: Median Age (years) | L30: =CntyDataLinkPrior10YearEstimate!$AX$132 -> 39.7 | N30: =CntyDataLinkPrior10YearEstimate!$AY$132 -> 1 | P30: =CntyDataLinkPrior5YearEstimates!$AX132 -> 42.1 | Q30: =CntyDataLinkPrior5YearEstimates!$AY$132 -> 1.4 | S30: =CntyDataLink!$AX$132 -> 42.2 | T30: =CntyDataLink!$AY$132 -> 1.4
B32: Population By Race | M32: Statistically Significant Change
M33: =IF(L36="","-",StatisticallySignificantCalcs!A20) -> Y
C34: =L20 -> 2008-2012 | F34: =P20 -> 2013-2017 | I34: =S20 -> 2018-2022 | L34: Statistically Significant Change
C35: Estimate | D35: Margin of Error | F35: Estimate | G35: Margin of Error | I35: Estimate | J35: Margin of Error | L35: 2012-2022 | M35: 2017-2022
B36: White | C36: =CntyDataLinkPrior10YearEstimate!$AL$132 -> 22879 | D36: =CntyDataLinkPrior10YearEstimate!$AM$132 -> 326 | E36: =IF(C$36="-","-",VALUE(C36/$C$41)) -> 0.9459213627 | F36: =CntyDataLinkPrior5YearEstimates!$AL$132 -> 23401 | G36: =CntyDataLinkPrior5YearEstimates!$AM$132 -> 296 | H36: =IF(F$36="-","-",VALUE(F36/$F$41)) -> 0.9419175656 | I36: =CntyDataLink!$AL$132 -> 23497 | J36: =CntyDataLink!$AM$132 -> 424 | K36: =IF(I$36="-","-",VALUE(I36/$I$41)) -> 0.9139956434 | L36: =StatisticallySignificantCalcs!A20 -> Y | M36: =StatisticallySignificantCalcs!J20 -> N
B37: Black | C37: =CntyDataLinkPrior10YearEstimate!$AN132 -> 103 | D37: =CntyDataLinkPrior10YearEstimate!$AO$132 -> 77 | E37: =IF(C$37="-","-",VALUE(C37/$C$41)) -> 0.004258485964 | F37: =CntyDataLinkPrior5YearEstimates!$AN132 -> 196 | G37: =CntyDataLinkPrior5YearEstimates!$AO$132 -> 134 | H37: =IF(F$37="-","-",VALUE(F37/$F$41)) -> 0.007889228788 | I37: =CntyDataLink!$AN$132 -> 347 | J37: =CntyDataLink!$AO$132 -> 157 | K37: =IF(I$37="-","-",VALUE(I37/$I$41)) -> 0.01349774389 | L37: =StatisticallySignificantCalcs!A21 -> Y | M37: =StatisticallySignificantCalcs!J21 -> N
B38: American Indian | C38: =CntyDataLinkPrior10YearEstimate!$AP$132 -> 13 | D38: =CntyDataLinkPrior10YearEstimate!$AQ$132 -> 22 | E38: =IF(C$38="-","-",VALUE(C38/$C$41)) -> 0.0005374788109 | F38: =CntyDataLinkPrior5YearEstimates!$AP$132 -> 0 | G38: =CntyDataLinkPrior5YearEstimates!$AQ$132 -> 20 | H38: =IF(F$38="-","-",VALUE(F38/$F$41)) -> 0 | I38: =CntyDataLink!$AP$132 -> 21 | J38: =CntyDataLink!$AQ$132 -> 35 | K38: =IF(I$38="-","-",VALUE(I38/$I$41)) -> 0.0008168663451 | L38: =StatisticallySignificantCalcs!A22 -> N | M38: =StatisticallySignificantCalcs!J22 -> N
B39: Asian &Pacific Is. | C39: =CntyDataLinkPrior10YearEstimate!$AR$132 -> 525 | D39: =CntyDataLinkPrior10YearEstimate!$AS$132 -> 292.6174978 | E39: =IF(C$39="-","-",VALUE(C39/$C$41)) -> 0.02170587506 | F39: =CntyDataLinkPrior5YearEstimates!$AR$132 -> 237 | G39: =CntyDataLinkPrior5YearEstimates!$AS$132 -> 130.5411812 | H39: =IF(F$39="-","-",VALUE(F39/$F$41)) -> 0.009539526646 | I39: =CntyDataLink!$AR$132 -> 476 | J39: =CntyDataLink!$AS$132 -> 225.6213642 | K39: =IF(I$39="-","-",VALUE(I39/$I$41)) -> 0.01851563716 | L39: =StatisticallySignificantCalcs!A23 -> N | M39: =StatisticallySignificantCalcs!J23 -> N
B40: Other* | C40: =CntyDataLinkPrior10YearEstimate!$AT$132 -> 268 | D40: =CntyDataLinkPrior10YearEstimate!$AU$132 -> 162.0771421 | E40: =IF(C$40="-","-",VALUE(C40/$C$41)) -> 0.01108033241 | F40: =CntyDataLinkPrior5YearEstimates!$AT$132 -> 198 | G40: =CntyDataLinkPrior5YearEstimates!$AU$132 -> 92.34717104 | H40: =IF(F$40="-","-",VALUE(F40/$F$41)) -> 0.007969731122 | I40: =CntyDataLink!$AT$132 -> 410 | J40: =CntyDataLink!$AU$132 -> 177.1327186 | K40: =IF(I$40="-","-",VALUE(I40/$I$41)) -> 0.01594834293 | L40: =StatisticallySignificantCalcs!A24 -> N | M40: =StatisticallySignificantCalcs!J24 -> Y
B41: Total Population | C41: =CntyDataLinkPrior10YearEstimate!$B$132 -> 24187 | D41: =CntyDataLinkPrior10YearEstimate!$C$132 -> 29 | F41: =CntyDataLinkPrior5YearEstimates!$B$132 -> 24844 | G41: =CntyDataLinkPrior5YearEstimates!$C$132 -> 24 | I41: =CntyDataLink!$B$132 -> 25708 | J41: =CntyDataLink!$C$132 -> 19
B42: Hispanic | C42: =CntyDataLinkPrior10YearEstimate!$AV$132 -> 399 | D42: =CntyDataLinkPrior10YearEstimate!$AW$132 -> 192 | E42: =IF(C$42="-","-",VALUE(C42/$C$41)) -> 0.01649646504 | F42: =CntyDataLinkPrior5YearEstimates!$AV132 -> 812 | G42: =CntyDataLinkPrior5YearEstimates!$AW$132 -> 240 | H42: =IF(F$42="-","-",VALUE(F42/$F$41)) -> 0.03268394783 | I42: =CntyDataLink!$AV$132 -> 957 | J42: =CntyDataLink!$AW$132 -> 376 | K42: =IF(I$42="-","-",VALUE(I42/$I$41)) -> 0.0372257663 | L42: =StatisticallySignificantCalcs!A26 -> Y | M42: =StatisticallySignificantCalcs!J26 -> Y
B44: * | C44: Other includes population of 2 or more races
B46: ="Source: "& L20&", "&P20&", and "&S20&" American Community Survey Table B03002" -> Source: 2008-2012, 2013-2017, and 2018-2022 American Community Survey Table B03002
C48: Households and Families
D49: =C34 -> 2008-2012 | G49: =F34 -> 2013-2017 | J49: =I34 -> 2018-2022 | N49: Percent Change | P49: Percent Change
D50: Estimate | E50: Margin of Error | G50: Estimate | H50: Margin of Error | J50: Estimate | K50: Margin of Error | N50: =L35 -> 2012-2022 | P50: =M35 -> 2017-2022
C51: Total Households | D51: =CntyDataLinkPrior10YearEstimate!$T$132 -> 8507 | E51: =CntyDataLinkPrior10YearEstimate!$U$132 -> 211 | G51: =CntyDataLinkPrior5YearEstimates!$T$132 -> 8919 | H51: =CntyDataLinkPrior5YearEstimates!$U$132 -> 226 | J51: =CntyDataLink!$T$132 -> 9369 | K51: =CntyDataLink!$U$132 -> 363 | N51: =(J51-D51)/D51 -> 0.1013283179 | P51: =(J51-G51)/G51 -> 0.05045408678
C52: Persons per Household | D52: =CntyDataLinkPrior10YearEstimate!$BD$132 -> 2.841542259 | E52: =CntyDataLinkPrior10YearEstimate!$BE$132 -> 0.07062047906 | G52: =CntyDataLinkPrior5YearEstimates!$BD$132 -> 2.784392869 | H52: =CntyDataLinkPrior5YearEstimates!$BE$132 -> 0.07060984388 | J52: =CntyDataLink!$BD$132 -> 2.742768705 | K52: =CntyDataLink!$BE$132 -> 0.106293956 | N52: -0.03476054375 | P52: -0.01494909871
C53: Family Households | D53: =CntyDataLinkPrior10YearEstimate!$V$132 -> 6858 | E53: =CntyDataLinkPrior10YearEstimate!$U$132 -> 211 | G53: =CntyDataLinkPrior5YearEstimates!$V$132 -> 6982 | H53: =CntyDataLinkPrior5YearEstimates!$U$132 -> 226 | J53: =CntyDataLink!$V$132 -> 7239 | K53: =CntyDataLink!$U$132 -> 363 | N53: 0.05555555556 | P53: 0.03680893727
C54: Persons per Family Household | D54: =CntyDataLinkPrior10YearEstimate!$BF$132 -> 3.240594926 | E54: =CntyDataLinkPrior10YearEstimate!$BG$132 -> 0.1046156129 | G54: =CntyDataLinkPrior5YearEstimates!$BF$132 -> 3.188914351 | H54: =CntyDataLinkPrior5YearEstimates!$BG$132 -> 0.1103659123 | J54: =CntyDataLink!$BF$132 -> 3.194778284 | K54: =CntyDataLink!$BG$132 -> 0.142656809 | N54: -0.01413834262 | P54: 0.001838849357
C55: Married-Couple Family Hh | D55: =CntyDataLinkPrior10YearEstimate!$X$132 -> 5954 | E55: =CntyDataLinkPrior10YearEstimate!$Y$132 -> 259 | G55: =CntyDataLinkPrior5YearEstimates!$X$132 -> 5595 | H55: =CntyDataLinkPrior5YearEstimates!$Y$132 -> 236 | J55: =CntyDataLink!$X$132 -> 5908 | K55: =CntyDataLink!$Y$132 -> 290 | N55: -0.007725898556 | P55: 0.05594280608
C56: Single-Parent Family Hh | D56: =CntyDataLinkPrior10YearEstimate!$Z$132 -> 904 | E56: =CntyDataLinkPrior10YearEstimate!$AA$132 -> 200 | G56: =CntyDataLinkPrior5YearEstimates!$Z$132 -> 1387 | H56: =CntyDataLinkPrior5YearEstimates!$AA$132 -> 201 | J56: =CntyDataLink!$Z$132 -> 1331 | K56: =CntyDataLink!$AA$132 -> 324 | N56: 0.4723451327 | P56: -0.04037490988
C57: Non-Family Households* | D57: =CntyDataLinkPrior10YearEstimate!$AF$132 -> 1649 | E57: =CntyDataLinkPrior10YearEstimate!$AG$132 -> 255 | G57: =CntyDataLinkPrior5YearEstimates!$AF$132 -> 1937 | H57: =CntyDataLinkPrior5YearEstimates!$AG$132 -> 240 | J57: =CntyDataLink!$AF$132 -> 2130 | K57: =CntyDataLink!$AG$132 -> 422 | N57: 0.2916919345 | P57: 0.09963861642
C58: Persons per Non-Family Hh | D58: =CntyDataLinkPrior10YearEstimate!$BH$132 -> 1.181928441 | E58: =CntyDataLinkPrior10YearEstimate!$BI$132 -> 0.2674623021 | G58: =CntyDataLinkPrior5YearEstimates!$BH$132 -> 1.326277749 | H58: =CntyDataLinkPrior5YearEstimates!$BI$132 -> 0.2704224547 | J58: =CntyDataLink!$BH$132 -> 1.20657277 | K58: =CntyDataLink!$BI$132 -> 0.3406739395 | N58: 0.020850948 | P58: -0.09025634278
B61: As a result of changes in the American Community Survey, direct comparisons between the data should be made with caution.
B63: ="Source: "&L20&", "&P20&", and "&S20&" American Community Survey Table B11001" -> Source: 2008-2012, 2013-2017, and 2018-2022 American Community Survey Table B11001
B64: POPULATION CHARACTERISTICS

Sheet SchoolEnrolEduAttain (hidden)
C2: =CntyDataLink!A50 -> Chester
C3: SOCIAL CHARACTERISTICS
C21: School Enrollment | F21: 2008-2012 | I21: 2013-2017 | L21: 2018-2022 | P21: Statistically Significant Change
F22: Estimate | G22: Margin of Error | H22: Percent of Population | I22: Estimate | J22: Margin of Error | K22: Percent of Population | L22: Estimate | M22: Margin of Error | N22: Percent of Population | P22: 2012-2022 | Q22: 2018-2022
C23: Population 3 years and over | F23: =CntyDataLinkPrior10YearEstimate!$B$140 -> 24208 | G23: =CntyDataLinkPrior10YearEstimate!$C$140 -> 150 | I23: =CntyDataLinkPrior5YearEstimates!$B$140 -> 24208 | J23: =CntyDataLinkPrior5YearEstimates!$C$140 -> 150 | L23: =CntyDataLink!$B$140 -> 24940 | M23: =CntyDataLink!$C$140 -> 150 | P23: =StatisticallySignificantCalcs!$A$45 -> Y | Q23: =StatisticallySignificantCalcs!$J$45 -> Y
C24: Population 3 years & over enrolled in school | F24: =CntyDataLinkPrior10YearEstimate!$D$140 -> 6559 | G24: =CntyDataLinkPrior10YearEstimate!$E$140 -> 364 | H24: =F24/$F$23 -> 0.2709434898 | I24: =CntyDataLinkPrior5YearEstimates!$D$140 -> 6559 | J24: =CntyDataLinkPrior5YearEstimates!$E$140 -> 364 | K24: =I24/$I$23 -> 0.2709434898 | L24: =CntyDataLink!$D$140 -> 6343 | M24: =CntyDataLink!$E$140 -> 492 | N24: =L24/$L$23 -> 0.2543303929 | P24: =StatisticallySignificantCalcs!$A$46 -> N | Q24: =StatisticallySignificantCalcs!$J$46 -> N
C25: Preprimary (Nursery, Preschool, Kindergarten) | F25: =CntyDataLinkPrior10YearEstimate!$F$140 -> 652 | G25: =CntyDataLinkPrior10YearEstimate!$G$140 -> 136.6199107 | H25: 0.02693324521 | I25: =CntyDataLinkPrior5YearEstimates!$F$140 -> 368 | J25: =CntyDataLinkPrior5YearEstimates!$G$140 -> 101 | K25: =I25/$I$23 -> 0.01520158625 | L25: =CntyDataLink!$F$140 -> 680 | M25: =CntyDataLink!$G$140 -> 164.7573974 | N25: 0.02726543705 | P25: =StatisticallySignificantCalcs!$A$47 -> N | Q25: =StatisticallySignificantCalcs!$J$47 -> Y
C26: Nursery school and Preschool | F26: =CntyDataLinkPrior10YearEstimate!$H$140 -> 368 | G26: =CntyDataLinkPrior10YearEstimate!$I$140 -> 101 | H26: 0.01520158625 | I26: =CntyDataLinkPrior5YearEstimates!$H$140 -> 284 | J26: =CntyDataLinkPrior5YearEstimates!$I$140 -> 92 | K26: 0.01173165896 | L26: =CntyDataLink!$H$140 -> 502 | M26: =CntyDataLink!$I$140 -> 136 | N26: 0.02012830794 | P26: =StatisticallySignificantCalcs!$A$48 -> N | Q26: =StatisticallySignificantCalcs!$J$48 -> Y
C27: Kindergarten | F27: =CntyDataLinkPrior10YearEstimate!$J$140 -> 284 | G27: =CntyDataLinkPrior10YearEstimate!$K$140 -> 92 | H27: 0.01173165896 | I27: =CntyDataLinkPrior5YearEstimates!$J$140 -> 1369 | J27: =CntyDataLinkPrior5YearEstimates!$K$140 -> 229 | K27: 0.05655155321 | L27: =CntyDataLink!$J$140 -> 178 | M27: =CntyDataLink!$K$140 -> 93 | N27: 0.00713712911 | P27: =StatisticallySignificantCalcs!$A$49 -> N | Q27: =StatisticallySignificantCalcs!$J$49 -> Y
C28: Elementary through High school | F28: =CntyDataLinkPrior10YearEstimate!$P$140 -> 4504 | G28: =CntyDataLinkPrior10YearEstimate!$Q$140 -> 373.2479069 | H28: 0.186054197 | I28: =CntyDataLinkPrior5YearEstimates!$P$140 -> 1118 | J28: =CntyDataLinkPrior5YearEstimates!$Q$140 -> 238 | K28: 0.04618307997 | L28: =CntyDataLink!$P$140 -> 4101 | M28: =CntyDataLink!$Q$140 -> 409.88413 | N28: 0.1644346431 | P28: =StatisticallySignificantCalcs!$A$50 -> N | Q28: =StatisticallySignificantCalcs!$J$50 -> Y
C29: Elementary school (grades 1-8) | F29: =CntyDataLinkPrior10YearEstimate!$L$140 -> 2643 | G29: =CntyDataLinkPrior10YearEstimate!$M$140 -> 296.2853354 | H29: 0.1091787839 | I29: =CntyDataLinkPrior5YearEstimates!$L$140 -> 1274 | J29: =CntyDataLinkPrior5YearEstimates!$M$140 -> 188 | K29: 0.05262723067 | L29: =CntyDataLink!$L$140 -> 2136 | M29: =CntyDataLink!$M$140 -> 268.1510768 | N29: 0.08564554932 | P29: =StatisticallySignificantCalcs!$A$51 -> Y | Q29: =StatisticallySignificantCalcs!$J$51 -> Y
C30: High school (grades 9-12) | F30: =CntyDataLinkPrior10YearEstimate!$N$140 -> 1861 | G30: =CntyDataLinkPrior10YearEstimate!$O$140 -> 227 | H30: 0.07687541309 | I30: =CntyDataLinkPrior5YearEstimates!$N$140 -> 1861 | J30: =CntyDataLinkPrior5YearEstimates!$O$140 -> 227 | K30: 0.07687541309 | L30: =CntyDataLink!$N$140 -> 1965 | M30: =CntyDataLink!$O$140 -> 310 | N30: 0.07878909383 | P30: =StatisticallySignificantCalcs!$A$52 -> N | Q30: =StatisticallySignificantCalcs!$J$52 -> N
C31: College or Graduate School | F31: =CntyDataLinkPrior10YearEstimate!$R$140 -> 1403 | G31: =CntyDataLinkPrior10YearEstimate!$S$140 -> 254.4484231 | H31: 0.05795604759 | I31: =CntyDataLinkPrior5YearEstimates!$R$140 -> 285 | J31: =CntyDataLinkPrior5YearEstimates!$S$140 -> 90 | K31: 0.01177296761 | L31: =CntyDataLink!$R$140 -> 1562 | M31: =CntyDataLink!$S$140 -> 295.1694429 | N31: 0.06263031275 | P31: =StatisticallySignificantCalcs!$A$53 -> N | Q31: =StatisticallySignificantCalcs!$J$53 -> Y
C33: ="Source: "&F21&", "& I21&" and "&L21&" American Community Survey Table B14001" -> Source: 2008-2012, 2013-2017 and 2018-2022 American Community Survey Table B14001
C50: Educational Attainment | F50: =F21 -> 2008-2012 | I50: =I21 -> 2013-2017 | L50: =L21 -> 2018-2022 | P50: Statistically Significant Change
F51: Estimate | G51: Margin of Error | H51: Percent of Population | I51: Estimate | J51: Margin of Error | K51: Percent of Population | L51: Estimate | M51: Margin of Error | N51: Percent of Population | P51: =P22 -> 2012-2022 | Q51: =Q22 -> 2018-2022
C52: Population 25 years and over | F52: =CntyDataLinkPrior10YearEstimate!$V$140 -> 15610 | G52: =CntyDataLinkPrior10YearEstimate!$W$140 -> 299 | I52: =CntyDataLinkPrior5YearEstimates!$V$140 -> 16994 | J52: =CntyDataLinkPrior5YearEstimates!$W$140 -> 287 | L52: =CntyDataLink!$V$140 -> 17434 | M52: =CntyDataLink!$W$140 -> 439 | P52: =StatisticallySignificantCalcs!A54 -> N | Q52: =StatisticallySignificantCalcs!$J$54 -> N
C53: Less than 9th Grade | F53: =CntyDataLinkPrior10YearEstimate!$X$140 -> 119 | G53: =CntyDataLinkPrior10YearEstimate!$Y$140 -> 180.7899333 | H53: =F53/$F$52 -> 0.007623318386 | I53: =CntyDataLinkPrior5YearEstimates!$X$140 -> 145 | J53: =CntyDataLinkPrior5YearEstimates!$Y$140 -> 84.37416666 | K53: =I53/$I$52 -> 0.008532423208 | L53: =CntyDataLink!$X$140 -> 147 | M53: =CntyDataLink!$Y$140 -> 126.6214832 | N53: =L53/$L$52 -> 0.008431799931 | P53: =StatisticallySignificantCalcs!A55 -> N | Q53: =StatisticallySignificantCalcs!$J$55 -> N
C54: 9th to 12th Grade, no Diploma | F54: =CntyDataLinkPrior10YearEstimate!$Z$140 -> 485 | G54: =CntyDataLinkPrior10YearEstimate!$AA$140 -> 142.6674455 | H54: =F54/$F$52 -> 0.03106982703 | I54: =CntyDataLinkPrior5YearEstimates!$Z$140 -> 704 | J54: =CntyDataLinkPrior5YearEstimates!$AA$140 -> 165.1060265 | K54: 0.04142638578 | L54: =CntyDataLink!$Z$140 -> 281 | M54: =CntyDataLink!$AA$140 -> 88.82567196 | N54: 0.01611793048 | P54: =StatisticallySignificantCalcs!A56 -> Y | Q54: =StatisticallySignificantCalcs!$J$56 -> Y
C55: High School Graduate | F55: =CntyDataLinkPrior10YearEstimate!$AB$140 -> 3941 | G55: =CntyDataLinkPrior10YearEstimate!$AC$140 -> 411.9465985 | H55: 0.2524663677 | I55: =CntyDataLinkPrior5YearEstimates!$AB$140 -> 4022 | J55: =CntyDataLinkPrior5YearEstimates!$AC$140 -> 338.017751 | K55: 0.2366717665 | L55: =CntyDataLink!$AB$140 -> 3705 | M55: =CntyDataLink!$AC$140 -> 378.5498646 | N55: 0.2125157738 | P55: =StatisticallySignificantCalcs!A57 -> N | Q55: =StatisticallySignificantCalcs!$J$57 -> N
C56: Some College, No Degree | F56: =CntyDataLinkPrior10YearEstimate!$AD$140 -> 2791 | G56: =CntyDataLinkPrior10YearEstimate!$AE$140 -> 388.0180408 | H56: 0.1787956438 | I56: =CntyDataLinkPrior5YearEstimates!$AD$140 -> 3181 | J56: =CntyDataLinkPrior5YearEstimates!$AE$140 -> 293.6630722 | K56: 0.1871837119 | L56: =CntyDataLink!$AD$140 -> 3058 | M56: =CntyDataLink!$AE$140 -> 445.0999888 | N56: 0.1754043822 | P56: =StatisticallySignificantCalcs!A58 -> N | Q56: =StatisticallySignificantCalcs!$J$58 -> N
C57: Associate Degree | F57: =CntyDataLinkPrior10YearEstimate!$AF$140 -> 1891 | G57: =CntyDataLinkPrior10YearEstimate!$AG$140 -> 324.0061728 | H57: 0.1211402947 | I57: =CntyDataLinkPrior5YearEstimates!$AF$140 -> 1798 | J57: =CntyDataLinkPrior5YearEstimates!$AG$140 -> 195.1332878 | K57: 0.1058020478 | L57: =CntyDataLink!$AF$140 -> 1893 | M57: =CntyDataLink!$AG$140 -> 333.2641595 | N57: 0.1085809338 | P57: =StatisticallySignificantCalcs!A59 -> N | Q57: =StatisticallySignificantCalcs!$J$59 -> N
C58: Bachelor's Degree | F58: =CntyDataLinkPrior10YearEstimate!$AH$140 -> 3969 | G58: =CntyDataLinkPrior10YearEstimate!$AI$140 -> 374.3501035 | H58: 0.2542600897 | I58: =CntyDataLinkPrior5YearEstimates!$AH$140 -> 4657 | J58: =CntyDataLinkPrior5YearEstimates!$AI$140 -> 323.2104578 | K58: 0.2740378957 | L58: =CntyDataLink!$AH$140 -> 5335 | M58: =CntyDataLink!$AI$140 -> 433.8767106 | N58: 0.3060112424 | P58: =StatisticallySignificantCalcs!A60 -> Y | Q58: =StatisticallySignificantCalcs!$J$60 -> Y
C59: Graduate or Professional Degree | F59: =CntyDataLinkPrior10YearEstimate!$AJ$140 -> 1371 | G59: =CntyDataLinkPrior10YearEstimate!$AK$140 -> 236.5544335 | H59: 0.08782831518 | I59: =CntyDataLinkPrior5YearEstimates!$AJ$140 -> 2470 | J59: =CntyDataLinkPrior5YearEstimates!$AK$140 -> 261.1570409 | K59: 0.145345416 | L59: =CntyDataLink!$AJ$140 -> 2986 | M59: =CntyDataLink!$AK$140 -> 338.1064921 | N59: 0.1712745211 | P59: =StatisticallySignificantCalcs!A61 -> Y | Q59: =StatisticallySignificantCalcs!$J$61 -> Y
C61: Percent of High School Graduate or Higher | H61: =SUM(F55:F59)/F52 -> 0.8944907111 | K61: =SUM(I55:I59)/I52 -> 0.9490408379 | N61: =SUM(L55:L59)/L52 -> 0.9737868533
C62: Percent of Bachelor's Degree or Higher | H62: =SUM(F58:F59)/F52 -> 0.3420884049 | K62: =SUM(I58:I59)/I52 -> 0.4193833118 | N62: =SUM(L58:L59)/L52 -> 0.4772857635
C64: ="Source: "&F21&", "&I21&" and "&L21&" American Community Survey Table B15002" -> Source: 2008-2012, 2013-2017 and 2018-2022 American Community Survey Table B15002 | H64: Data from the American Community Survey are estimates
C66: As a result of changes in the American Community Survey, direct comparisons between the data should be made with caution.
C67: be made with caution.

Sheet HousingCharacteristics (hidden)
B2: =CntyDataLink!$A35 -> Chester
B4: HOUSING CHARACTERISTICS
D27: ="Source: "& " "&D69&", "&G69&" and "&J69& " American Community Survey Table B25024; B25032" -> Source: 2008-2012, 2013-2017 and 2018-2022 American Community Survey Table B25024; B25032
B28: Units by Tenure & Vacancy
C30: 2008-2012 | F30: 2013-2017 | I30: 2018-2022 | L30: Percent Change | O30: Statistically Significant Change
C31: Estimate | D31: Margin of Error | E31: % | F31: Estimate | G31: Margin of Error | H31: % | I31: Estimate | J31: Margin of Error | K31: % | L31: 2012-2022 | M31: 2017-2022 | O31: =L31 -> 2012-2022 | P31: =M31 -> 2017-2022
B32: Total Units | C32: =CntyDataLinkPrior10YearEstimate!$B$108 -> 3668 | D32: =CntyDataLinkPrior5YearEstimates!$C$108 -> 142 | F32: =CntyDataLinkPrior5YearEstimates!$B$108 -> 3763 | G32: =CntyDataLinkPrior5YearEstimates!$C$108 -> 142 | I32: =CntyDataLink!$B$108 -> 3807 | J32: =CntyDataLink!$C$108 -> 274 | L32: =IF(I32="-","-",(I32-C32)/C32) -> 0.0378953108 | M32: =IF(I32="-","-",(I32-F32)/F32) -> 0.0116927983 | O32: =StatisticallySignificantCalcs!$A62 -> N | P32: =StatisticallySignificantCalcs!$J62 -> N
B33: Occupied Units | C33: =CntyDataLinkPrior10YearEstimate!$D$108 -> 3415 | D33: =CntyDataLinkPrior5YearEstimates!$E$108 -> 133 | E33: =ROUND(C33/C32,2)*100&"% of Total" -> 93% of Total | F33: =CntyDataLinkPrior5YearEstimates!$D$108 -> 3590 | G33: =CntyDataLinkPrior5YearEstimates!$E$108 -> 133 | H33: =ROUND(F33/F32,2)*100&"% of Total" -> 95% of Total | I33: =CntyDataLink!$D$108 -> 3675 | J33: =CntyDataLink!$E$108 -> 239 | K33: =ROUND(I33/I32,2)*100&"% of Total" -> 97% of Total | L33: =IF(I33="-","-",(I33-C33)/C33) -> 0.07613469985 | M33: 0.02367688022 | O33: =StatisticallySignificantCalcs!$A63 -> N | P33: =StatisticallySignificantCalcs!$J63 -> N
B34: Owner Occupied | C34: =CntyDataLinkPrior10YearEstimate!$F$108 -> 2853 | D34: =CntyDataLinkPrior5YearEstimates!$G$108 -> 184 | E34: =ROUND(C34/C33,2)*100&"% of Occ." -> 84% of Occ. | F34: =CntyDataLinkPrior5YearEstimates!$F$108 -> 2833 | G34: =CntyDataLinkPrior5YearEstimates!$G$108 -> 184 | H34: =ROUND(F34/F33,2)*100&"% of Occ." -> 79% of Occ. | I34: =CntyDataLink!$F$108 -> 2918 | J34: =CntyDataLink!$G$108 -> 291 | K34: =ROUND(I34/I33,2)*100&"% of Occ." -> 79% of Occ. | L34: =IF(I34="-","-",(I34-C34)/C34) -> 0.0227830354 | M34: 0.03000352983 | O34: =StatisticallySignificantCalcs!$A64 -> N | P34: =StatisticallySignificantCalcs!$J64 -> N
B35: Renter Occupied | C35: =CntyDataLinkPrior10YearEstimate!$H$108 -> 562 | D35: =CntyDataLinkPrior5YearEstimates!$I$108 -> 171 | E35: =ROUND(C35/C33,2)*100&"% of Occ." -> 16% of Occ. | F35: =CntyDataLinkPrior5YearEstimates!$H$108 -> 757 | G35: =CntyDataLinkPrior5YearEstimates!$I$108 -> 171 | H35: =ROUND(F35/F33,2)*100&"% of Occ." -> 21% of Occ. | I35: =CntyDataLink!$H$108 -> 757 | J35: =CntyDataLink!$I$108 -> 197 | K35: =ROUND(I35/I33,2)*100&"% of Occ." -> 21% of Occ. | L35: =IF(I35="-","-",(I35-C35)/C35) -> 0.346975089 | M35: 0 | O35: =StatisticallySignificantCalcs!$A65 -> N | P35: =StatisticallySignificantCalcs!$J65 -> N
B36: Vacant Units | C36: =CntyDataLinkPrior10YearEstimate!$J$108 -> 253 | D36: =CntyDataLinkPrior5YearEstimates!$K$108 -> 96 | E36: =ROUND(C36/C32,2)*100&"% of Total" -> 7% of Total | F36: =CntyDataLinkPrior5YearEstimates!$J$108 -> 173 | G36: =CntyDataLinkPrior5YearEstimates!$K$108 -> 96 | H36: =ROUND(F36/F32,2)*100&"% of Total" -> 5% of Total | I36: =CntyDataLink!$J$108 -> 132 | J36: =CntyDataLink!$K$108 -> 112 | K36: =ROUND(I36/I32,2)*100&"% of Total" -> 3% of Total | L36: =IF(I36="-",I36,VALUE((I36-C36)/C36)) -> -0.4782608696 | M36: -0.2369942197 | O36: =StatisticallySignificantCalcs!$A66 -> N | P36: =StatisticallySignificantCalcs!$J66 -> N
B37: Vacant For Sale | C37: =CntyDataLinkPrior10YearEstimate!$P$108 -> 0 | D37: =CntyDataLinkPrior5YearEstimates!$Q$108 -> 41 | E37: =ROUND(C37/(C$36),3)*100&"% Vac." -> 0% Vac. | F37: =CntyDataLinkPrior5YearEstimates!$P$108 -> 26 | G37: =CntyDataLinkPrior5YearEstimates!$Q$108 -> 41 | H37: =ROUND(F37/(F$36),3)*100&"% Vac." -> 15% Vac. | I37: =CntyDataLink!$P$108 -> 0 | J37: =CntyDataLink!$Q$108 -> 17 | K37: =ROUND(I37/(I$36),3)*100&"% Vac." -> 0% Vac. | L37: =IF(I37="-",I37,VALUE((I37-C37)/C37)) ->  | M37: -1 | O37: =StatisticallySignificantCalcs!$A67 -> N | P37: =StatisticallySignificantCalcs!$J67 -> N
B38: Vacant For Rent | C38: =CntyDataLinkPrior10YearEstimate!$L$108 -> 31 | D38: =CntyDataLinkPrior5YearEstimates!$M$108 -> 53 | E38: =ROUND(C38/(C$36),3)*100&"% Vac." -> 12.3% Vac. | F38: =CntyDataLinkPrior5YearEstimates!$L$108 -> 32 | G38: =CntyDataLinkPrior5YearEstimates!$M$108 -> 53 | H38: =ROUND(F38/(F$36),3)*100&"% Vac." -> 18.5% Vac. | I38: =CntyDataLink!$L$108 -> 0 | J38: =CntyDataLink!$M$108 -> 17 | K38: =ROUND(I38/(I$36),3)*100&"% Vac." -> 0% Vac. | L38: =IF(I38="-",I38,VALUE((I38-C38)/C38)) -> -1 | M38: -1 | O38: =StatisticallySignificantCalcs!$A68 -> N | P38: =StatisticallySignificantCalcs!$J68 -> N
B39: Vacant Seasonal | C39: =CntyDataLinkPrior10YearEstimate!$T$108 -> 222 | D39: =CntyDataLinkPrior5YearEstimates!$U$108 -> 59 | E39: =ROUND(C39/(C$36),3)*100&"% Vac." -> 87.7% Vac. | F39: =CntyDataLinkPrior5YearEstimates!$T$108 -> 91 | G39: =CntyDataLinkPrior5YearEstimates!$U$108 -> 59 | H39: =ROUND(F39/(F$36),3)*100&"% Vac." -> 52.6% Vac. | I39: =CntyDataLink!$T$108 -> 100 | J39: =CntyDataLink!$U$108 -> 101 | K39: =ROUND(I39/(I$36),3)*100&"% Vac." -> 75.8% Vac. | L39: =IF(I39="-",I39,VALUE((I39-C39)/C39)) -> -0.5495495495 | M39: 0.0989010989 | O39: =StatisticallySignificantCalcs!$A69 -> Y | P39: =StatisticallySignificantCalcs!$J69 -> N
B41: Data from the American Community Survey are estimates
B44: HOUSING CHARACTERISTICS
D65: ="Source: "& " "&D69&", "&G69&" and "&J69& " American Community Survey Table B25024; B25032" -> Source: 2008-2012, 2013-2017 and 2018-2022 American Community Survey Table B25024; B25032
C67: Units by Type
D69: =C30 -> 2008-2012 | G69: =F30 -> 2013-2017 | J69: 2018-2022 | M69: Percent Change | O69: Statistically Significant Change
D70: Estimate | E70: Margin of Error | F70: % of Total | G70: Estimate | H70: Margin of Error | I70: % of Total | J70: Estimate | K70: Margin of Error | L70: % of Total | M70: =L31 -> 2012-2022 | N70: =M31 -> 2017-2022 | O70: =L31 -> 2012-2022 | P70: =M31 -> 2017-2022
C71: Total Units | D71: =CntyDataLinkPrior10YearEstimate!$B$108 -> 3668 | E71: =CntyDataLinkPrior10YearEstimate!$C$108 -> 132 | G71: =CntyDataLinkPrior5YearEstimates!$B$108 -> 3763 | H71: =CntyDataLinkPrior5YearEstimates!$C$108 -> 142 | J71: =CntyDataLink!$B$108 -> 3807 | K71: =CntyDataLink!$C$108 -> 274 | O71: =StatisticallySignificantCalcs!$A70 -> N | P71: =StatisticallySignificantCalcs!$J70 -> N
C72: Single Family Units | D72: =CntyDataLinkPrior10YearEstimate!$AT$108 -> 2452 | E72: =CntyDataLinkPrior10YearEstimate!$AU$108 -> 180 | F72: =IF(D72="-","-",($D$72/$D$71)) -> 0.6684841876 | G72: =CntyDataLinkPrior5YearEstimates!$AT$108 -> 2523 | H72: =CntyDataLinkPrior5YearEstimates!$AU$108 -> 157 | I72: =IF(G72="-","-",($G$72/$G$71)) -> 0.6704756843 | J72: =CntyDataLink!$AT$108 -> 2436 | K72: =CntyDataLink!$AU$108 -> 295 | L72: =IF(J72="-","-",($J$72/$J$71)) -> 0.6398739165 | M72: =IF(J72="-","-",($J72-$D72)/$D72) -> -0.006525285481 | N72: =IF(J72="-","-",($J72-$G72)/$G72) -> -0.03448275862 | O72: =StatisticallySignificantCalcs!$A71 -> N | P72: =StatisticallySignificantCalcs!$J71 -> N
C73: SF Owner Occ. | D73: =CntyDataLinkPrior10YearEstimate!$AF$108 -> 2169 | E73: =CntyDataLinkPrior10YearEstimate!$AG$108 -> 168 | G73: =CntyDataLinkPrior5YearEstimates!$AF$108 -> 2335 | H73: =CntyDataLinkPrior5YearEstimates!$AG$108 -> 157 | J73: =CntyDataLink!$AF$108 -> 2244 | K73: =CntyDataLink!$AG$108 -> 266 | O73: =StatisticallySignificantCalcs!$A72 -> N | P73: =StatisticallySignificantCalcs!$J72 -> N
C74: SF Renter Occ. | D74: =CntyDataLinkPrior10YearEstimate!$AN$108 -> 61 | E74: =CntyDataLinkPrior10YearEstimate!$AO$108 -> 50 | G74: =CntyDataLinkPrior5YearEstimates!$AN$108 -> 97 | H74: =CntyDataLinkPrior5YearEstimates!$AO$108 -> 73 | J74: =CntyDataLink!$AN$108 -> 108 | K74: =CntyDataLink!$AO$108 -> 91 | O74: =StatisticallySignificantCalcs!$A73 -> N | P74: =StatisticallySignificantCalcs!$J73 -> N
C75: Multi-family Units | D75: =CntyDataLinkPrior10YearEstimate!$AV$108 -> 993 | E75: =CntyDataLinkPrior10YearEstimate!$AW$108 -> 211.5632293 | F75: =IF(D75="-","-",$D$75/$D$71) -> 0.2707197383 | G75: =CntyDataLinkPrior5YearEstimates!$AV$108 -> 1049 | H75: =CntyDataLinkPrior5YearEstimates!$AW$108 -> 227.1761431 | I75: =IF(G75="-","-",$G$75/$G$71) -> 0.2787669413 | J75: =CntyDataLink!$AV$108 -> 912 | K75: =CntyDataLink!$AW$108 -> 235.9237165 | L75: =IF(J75="-","-",$J$75/$J$71) -> 0.2395587076 | M75: =IF(J75="-","-",($J75-$D75)/$D75) -> -0.08157099698 | N75: =IF(J75="-","-",($J75-$G75)/$G75) -> -0.130600572 | O75: =StatisticallySignificantCalcs!$A74 -> N | P75: =StatisticallySignificantCalcs!$J74 -> N
C76: MF Owner Occ. | D76: =CntyDataLinkPrior10YearEstimate!$AH$108 -> 461 | E76: =CntyDataLinkPrior10YearEstimate!$AI$108 -> 126.4041139 | G76: =CntyDataLinkPrior5YearEstimates!$AH$108 -> 338 | H76: =CntyDataLinkPrior5YearEstimates!$AI$108 -> 113.0928822 | J76: =CntyDataLink!$AH$108 -> 263 | K76: =CntyDataLink!$AI$108 -> 102.8202315 | O76: =StatisticallySignificantCalcs!$A75 -> Y | P76: =StatisticallySignificantCalcs!$J75 -> N
C77: MF Renter Occ. | D77: =CntyDataLinkPrior10YearEstimate!$AP$108 -> 501 | E77: =CntyDataLinkPrior10YearEstimate!$AQ$108 -> 160.059364 | G77: =CntyDataLinkPrior5YearEstimates!$AP$108 -> 629 | H77: =CntyDataLinkPrior5YearEstimates!$AQ$108 -> 193.9716474 | J77: =CntyDataLink!$AP$108 -> 649 | K77: =CntyDataLink!$AQ$108 -> 214.9255685 | O77: =StatisticallySignificantCalcs!$A76 -> N | P77: =StatisticallySignificantCalcs!$J76 -> N
C78: Mobile Home & Other | D78: =CntyDataLinkPrior10YearEstimate!$AX$108 -> 223 | E78: =CntyDataLinkPrior10YearEstimate!$AY$108 -> 79.62411695 | F78: =IF(D78="-","-",($D$78/$D$71)) -> 0.06079607415 | G78: =CntyDataLinkPrior5YearEstimates!$AX$108 -> 191 | H78: =CntyDataLinkPrior5YearEstimates!$AY$108 -> 67.91170739 | I78: =IF(G78="-","-",($G$78/$G$71)) -> 0.05075737444 | J78: =CntyDataLink!$AX$108 -> 459 | K78: =CntyDataLink!$AY$108 -> 214.6741717 | L78: =IF(J78="-","-",($J$78/$J$71)) -> 0.1205673759 | M78: =IF(J78="-","-",($J78-$D78)/$D78) -> 1.058295964 | N78: =IF(J78="-","-",($J78-$G78)/$G78) -> 1.403141361 | O78: =StatisticallySignificantCalcs!$A77 -> Y | P78: =StatisticallySignificantCalcs!$J77 -> Y
B80: Data from the American Community Survey are estimates
B83: Units by Number of Bedrooms
D84: ="Source: "& " "&D69&", "&G69&" and "&J69& " American Community Survey Table B25041" -> Source: 2008-2012, 2013-2017 and 2018-2022 American Community Survey Table B25041
C86: =C30 -> 2008-2012 | G86: =F30 -> 2013-2017 | K86: =I30 -> 2018-2022 | O86: Statistically Significant Change
B87: Bedrooms | C87: Estimate | D87: Margin of Error | E87: % of Total | G87: Estimate | H87: Margin of Error | I87: % of Total | K87: Estimate | L87: Margin of Error | M87: % of Total | O87: =O31 -> 2012-2022 | P87: =P31 -> 2017-2022
B88: No Bedrooms | C88: =CntyDataLinkPrior10YearEstimate!$BR$108 -> 15 | D88: =CntyDataLinkPrior10YearEstimate!$BS$108 -> 26 | E88: =C88/SUM($C$88:$C$92) -> 0.004089422028 | G88: =CntyDataLinkPrior5YearEstimates!$BR$108 -> 12 | H88: =CntyDataLinkPrior5YearEstimates!$BS$108 -> 20 | I88: =G88/SUM($G$88:$G$92) -> 0.003188944991 | K88: =CntyDataLink!$BT$108 -> 8 | L88: =CntyDataLink!$BU$108 -> 12 | M88: =K88/SUM($K$88:$K$92) -> 0.002101392172 | O88: =StatisticallySignificantCalcs!$A78 -> N | P88: =StatisticallySignificantCalcs!$J78 -> N
B89: 1 Bedroom | C89: =CntyDataLinkPrior10YearEstimate!$BT$108 -> 503 | D89: =CntyDataLinkPrior10YearEstimate!$BU$108 -> 156 | E89: =C89/SUM($C$88:$C$92) -> 0.137131952 | G89: =CntyDataLinkPrior5YearEstimates!$BT$108 -> 489 | H89: =CntyDataLinkPrior5YearEstimates!$BU$108 -> 128 | I89: =G89/SUM($G$88:$G$92) -> 0.1299495084 | K89: =CntyDataLink!$BV$108 -> 556 | L89: =CntyDataLink!$BW$108 -> 158 | M89: =K89/SUM($K$88:$K$92) -> 0.146046756 | O89: =StatisticallySignificantCalcs!$A79 -> Y | P89: =StatisticallySignificantCalcs!$J79 -> N
B90: 2 Bedrooms | C90: =CntyDataLinkPrior10YearEstimate!$BV$108 -> 1086 | D90: =CntyDataLinkPrior10YearEstimate!$BW$108 -> 189 | E90: =C90/SUM($C$88:$C$92) -> 0.2960741549 | G90: =CntyDataLinkPrior5YearEstimates!$BV$108 -> 1219 | H90: =CntyDataLinkPrior5YearEstimates!$BW$108 -> 178 | I90: =G90/SUM($G$88:$G$92) -> 0.323943662 | K90: =CntyDataLink!$BX$108 -> 1356 | L90: =CntyDataLink!$BY$108 -> 276 | M90: =K90/SUM($K$88:$K$92) -> 0.3561859732 | O90: =StatisticallySignificantCalcs!$A80 -> Y | P90: =StatisticallySignificantCalcs!$J80 -> N
B91: 3 Bedrooms | C91: =CntyDataLinkPrior10YearEstimate!$BX$108 -> 1302 | D91: =CntyDataLinkPrior10YearEstimate!$BY$108 -> 168 | E91: =C91/SUM($C$88:$C$92) -> 0.3549618321 | G91: =CntyDataLinkPrior5YearEstimates!$BX$108 -> 1108 | H91: =CntyDataLinkPrior5YearEstimates!$BY$108 -> 138 | I91: =G91/SUM($G$88:$G$92) -> 0.2944459208 | K91: =CntyDataLink!$BZ$108 -> 1156 | L91: =CntyDataLink!$CA$108 -> 261 | M91: =K91/SUM($K$88:$K$92) -> 0.3036511689 | O91: =StatisticallySignificantCalcs!$A81 -> Y | P91: =StatisticallySignificantCalcs!$J81 -> N
B92: 4+ Bedrooms | C92: =CntyDataLinkPrior10YearEstimate!$BZ$108 -> 762 | D92: =CntyDataLinkPrior10YearEstimate!$CA$108 -> 158.1423409 | E92: =C92/SUM($C$88:$C$92) -> 0.207742639 | G92: =CntyDataLinkPrior5YearEstimates!$BZ$108 -> 935 | H92: =CntyDataLinkPrior5YearEstimates!$CA$108 -> 131.8483978 | I92: =G92/SUM($G$88:$G$92) -> 0.2484719639 | K92: =CntyDataLink!$CB$108 -> 731 | L92: =CntyDataLink!$CC$108 -> 153.8440769 | M92: =K92/SUM($K$88:$K$92) -> 0.1920147097 | O92: =StatisticallySignificantCalcs!$A82 -> Y | P92: =StatisticallySignificantCalcs!$J82 -> Y
B94: As a result of changes in the American Community Survey, direct comparisons between the 2009-2013 and 2018-2022 data should be made with caution.
B95: Data from the American Community Survey are estimates
B97: Units by Year Built
B98: ="Source: "&K86& " American Community Survey Table B25034" -> Source: 2018-2022 American Community Survey Table B25034
D100: Year Built | G100: Units | I100: % of Total | K100: Margin of Error
F101: 2020 or later | G101: =CntyDataLink!$AZ$108 -> 0 | I101: =G101/SUM($G$101:$G$110) -> 0 | K101: =CntyDataLink!$BA$108 -> 17
F102: 2010 through 2019 | G102: =CntyDataLink!$BB$108 -> 256 | I102: 0.06724454951 | K102: =CntyDataLink!$BC$108 -> 126
F103: 2000 through 2009 | G103: =CntyDataLink!$BD$108 -> 560 | I103: 0.1470974521 | K103: =CntyDataLink!$BE$108 -> 151
F104: 1990 through 1999 | G104: =CntyDataLink!$BF$108 -> 455 | I104: 0.1195166798 | K104: =CntyDataLink!$BG$108 -> 121
F105: 1980 through 1989 | G105: =CntyDataLink!$BH$108 -> 1020 | I105: 0.267927502 | K105: =CntyDataLink!$BI$108 -> 241
F106: 1970 through 1979 | G106: =CntyDataLink!$BJ$108 -> 537 | I106: 0.1410559496 | K106: =CntyDataLink!$BK$108 -> 168
F107: 1960 through 1969 | G107: =CntyDataLink!$BL$108 -> 310 | I107: 0.08142894668 | K107: =CntyDataLink!$BM$108 -> 110
F108: 1950 through 1959 | G108: =CntyDataLink!$BN$108 -> 175 | I108: 0.04596795377 | K108: =CntyDataLink!$BO$108 -> 74
F109: 1940 through 1949 | G109: =CntyDataLink!$BP$108 -> 240 | I109: 0.06304176517 | K109: =CntyDataLink!$BQ$108 -> 220
F110: 1939 and earlier | G110: =CntyDataLink!$BR$108 -> 254 | I110: 0.06671920147 | K110: =CntyDataLink!$BS$108 -> 120
B112: Data from the American Community Survey are estimates

Sheet CntyDataLink (hidden)
A1: 1 | B1: =A1+1 -> 2 | C1: 3 | D1: 4 | E1: 5 | F1: 6 | G1: 7 | H1: 8 | I1: 9 | J1: 10 | K1: 11 | L1: 12 | M1: 13 | N1: 14 | O1: 15 | P1: 16 | Q1: 17 | R1: 18 | S1: 19 | T1: 20 | U1: 21 | V1: 22 | W1: 23 | X1: 24 | Y1: 25 | Z1: 26 | AA1: 27 | AB1: 28 | AC1: 29 | AD1: 30 | AE1: 31 | AF1: 32 | AG1: 33 | AH1: 34 | AI1: 35 | AJ1: 36 | AK1: 37 | AL1: 38 | AM1: 39 | AN1: 40 | AO1: 41 | AP1: 42 | AQ1: 43 | AR1: 44 | AS1: 45 | AT1: 46 | AU1: 47 | AV1: 48 | AW1: 49 | AX1: 50 | AY1: 51 | AZ1: 52 | BA1: 53 | BB1: 54 | BC1: 55 | BD1: 56 | BE1: 57 | BF1: 58 | BG1: 59 | BH1: 60 | BI1: 61 | BJ1: 62 | BK1: 63 | BL1: 64 | BM1: 65 | BN1: =BM1+1 -> 66 | BO1: 67 | BP1: 68 | BQ1: 69 | BR1: 70 | BS1: 71 | BT1: 72 | BU1: 73 | BV1: 74 | BW1: 75 | BX1: 76 | BY1: 77 | BZ1: 78 | CA1: 79 | CB1: 80 | CC1: 81 | CD1: 82 | CE1: 83 | CF1: 84 | CG1: 85 | CH1: 86 | CI1: 87 | CJ1: 88 | CK1: 89 | CL1: 90 | CM1: 91 | CN1: 92 | CO1: 93 | CP1: 94 | CQ1: 95 | CR1: 96 | CS1: 97 | CT1: 98 | CU1: 99 | CV1: 100 | CW1: 101 | CX1: 102 | CY1: 103 | CZ1: 104 | DA1: 105 | DB1: 106 | DC1: 107 | DD1: 108 | DE1: 109 | DF1: 110 | DG1: 111 | DH1: 112 | DI1: 113 | DJ1: 114 | DK1: 115 | DL1: 116 | DM1: 117 | DN1: 118 | DO1: 119 | DP1: 120 | DQ1: 121 | DR1: 122 | DS1: 123 | DT1: 124 | DU1: 125 | DV1: 126 | DW1: 127 | DX1: 128 | DY1: 129 | DZ1: =DY1+1 -> 130 | EA1: 131 | EB1: 132 | EC1: 133 | ED1: 134 | EE1: 135 | EF1: 136 | EG1: 137 | EH1: 138 | EI1: 139 | EJ1: 140 | EK1: 141 | EL1: 142 | EM1: 143 | EN1: 144 | EO1: 145 | EP1: 146 | EQ1: 147 | ER1: 148 | ES1: 149 | ET1: 150 | EU1: 151 | EV1: 152 | EW1: 153 | EX1: 154 | EY1: 155 | EZ1: 156 | FA1: 157 | FB1: 158 | FC1: 159 | FD1: 160 | FE1: 161 | FF1: 162 | FG1: 163 | FH1: 164 | FI1: 165 | FJ1: 166 | FK1: 167 | FL1: 168 | FM1: 169 | FN1: 170 | FO1: 171 | FP1: 172 | FQ1: 173 | FR1: 174 | FS1: 175 | FT1: 176 | FU1: 177 | FV1: 178 | FW1: 179 | FX1: 180 | FY1: 181 | FZ1: 182 | GA1: 183 | GB1: 184 | GC1: 185 | GD1: 186 | GE1: 187 | GF1: 188 | GG1: 189 | GH1: 190 | GI1: 191 | GJ1: 192 | GK1: 193 | GL1: =GK1+1 -> 194 | GM1: 195 | GN1: 196 | GO1: 197 | GP1: 198 | GQ1: 199 | GR1: 200 | GS1: 201 | GT1: 202 | GU1: 203 | GV1: 204 | GW1: 205 | GX1: 206 | GY1: 207 | GZ1: 208 | HA1: 209 | HB1: 210 | HC1: 211 | HD1: 212 | HE1: 213 | HF1: 214 | HG1: 215 | HH1: 216 | HI1: 217 | HJ1: 218 | HK1: 219 | HL1: 220 | HM1: 221 | HN1: 222 | HO1: 223 | HP1: 224 | HQ1: 225 | HR1: 226 | HS1: 227 | HT1: 228 | HU1: 229 | HV1: 230 | HW1: 231 | HX1: 232 | HY1: 233 | HZ1: 234 | IA1: 235 | IB1: 236 | IC1: 237 | ID1: 238 | IE1: 239 | IF1: 240 | IG1: 241 | IH1: 242 | II1: 243 | IJ1: 244 | IK1: 245 | IL1: 246 | IM1: 247 | IN1: 248 | IO1: 249 | IP1: 250 | IQ1: 251 | IR1: 252 | IS1: 253 | IT1: 254 | IU1: 255
A3: Census 1990 Data - Query Name: DPCnty90Census
A4: TownName | B4: Cnty_Code | C4: Census_Cnty_Code | D4: LandAcres | E4: WaterAcres | F4: HousingUnits90Cen | G4: Persons90Cen | H4: Families90Cen | I4: Households90cen | J4: MalePop90cen | K4: FemalePop90cen | L4: WhitePop | M4: BlackPop | N4: AmerIndianPop | O4: AsianPIPop | P4: OtherRacePop | Q4: HispanicOrPop | R4: AgeUnder15_90cen | S4: Age15to24_90cen | T4: Age25to34_90cen | U4: Age35to44_90cen | V4: Age45to54_90cen | W4: Age55to64_90cen | X4: Age65to74_90cen | Y4: Age75andOver_90cen | Z4: PersonsInHH90cen | AA4: PersonsInFamHH90cen | AB4: PersonsInGC | AC4: PersonsPerHH90cen | AD4: PersonsPerFam90Cen | AE4: SinglePersonHH90cen | AF4: MarriedCoupleHH90cen | AG4: SingleParentHH90cen | AH4: NonFamilyHH90cen | AI4: TotalHousingUnits | AJ4: OccupiedHousingUnits | AK4: VacantHousingUnits | AL4: OwnerOccHU | AM4: RenterOccHU | AN4: VacantForRent90 | AO4: VacantForSale90 | AP4: VacantSeasonalRec | AQ4: SingFamHU90cen | AR4: MultiFamHU90cen | AS4: MobileHom90cen | AT4: SingFamOwnHU90cen | AU4: MultiFamOwnHU90cen | AV4: MobileHomOwnHU90cen | AW4: SingFamRntrHU90cen | AX4: MultiFamRntrHU90cen | AY4: MobileHomRntrHU90cen | AZ4: HU<5yrs90cen | BA4: HU5to20yrs90cen | BB4: HU20to50yrs90cen | BC4: HU>50yrs90cen | BD4: Units0Bedroom90cen | BE4: Units1Bedroom90cen | BF4: Units2Bedroom90cen | BG4: Units3Bedroom90cen | BH4: Units4+Bedroom90cen | BI4: HI<5K | BJ4: HI5Kto10K | BK4: HI10Kto15K | BL4: HI15Kto25K | BM4: HI25Kto35K | BN4: HI35Kto50K | BO4: HI50Kto75K | BP4: HI75Kto100K | BQ4: HI>100K | BR4: MedHI | BS4: HH<25HI<5K | BT4: HH<25HI5Kto10K | BU4: HH<25HI10Kto15K | BV4: HH<25HI15Kto25K | BW4: HH<25HI25Kto35K | BX4: HH<25HI35Kto50K | BY4: HH<25HI50Kto75K | BZ4: HH<25HI75Kto100K | CA4: HH<25HI>100K | CB4: HH25to34HI<5K | CC4: HH25to34HI5Kto10K | CD4: HH25to34HI10Kto15K | CE4: HH25to34HI15Kto25K | CF4: HH25to34HI25Kto35K | CG4: HH25to34HI35Kto50K | CH4: HH25to34HI50Kto75K | CI4: HH25to34HI75Kto100K | CJ4: HH25to34HI>100K | CK4: HH35to44HI<5K | CL4: HH35to44HI5Kto10K | CM4: HH35to44HI10Kto15K | CN4: HH35to44HI15Kto25K | CO4: HH35to44HI25Kto35K | CP4: HH35to44HI35Kto50K | CQ4: HH35to44HI50Kto75K | CR4: HH35to44HI75Kto100K | CS4: HH35to44HI>100K | CT4: HH45to54HI<5K | CU4: HH45to54HI5Kto10K | CV4: HH45to54HI10Kto15K | CW4: HH45to54HI15Kto25K | CX4: HH45to54HI25Kto35K | CY4: HH45to54HI35Kto50K | CZ4: HH45to54HI50Kto75K | DA4: HH45to54HI75Kto100K | DB4: HH45to54HI>100K | DC4: HH55to64HI<5K | DD4: HH55to64HI5Kto10K | DE4: HH55to64HI10Kto15K | DF4: HH55to64HI15Kto25K | DG4: HH55to64HI25Kto35K | DH4: HH55to64HI35Kto50K | DI4: HH55to64HI50Kto75K | DJ4: HH55to64HI75Kto100K | DK4: HH55to64HI>100K | DL4: HH65to74HI<5K | DM4: HH65to74HI5Kto10K | DN4: HH65to74HI10Kto15K | DO4: HH65to74HI15Kto25K | DP4: HH65to74HI25Kto35K | DQ4: HH65to74HI35Kto50K | DR4: HH65to74HI50Kto75K | DS4: HH65to74HI75Kto100K | DT4: HH65to74HI>100K | DU4: HH>75HI<5K | DV4: HH>75HI5Kto10K | DW4: HH>75HI10Kto15K | DX4: HH>75HI15Kto25K | DY4: HH>75HI25Kto35K | DZ4: HH>75HI35Kto50K | EA4: HH>75HI50Kto75K | EB4: HH>75HI75Kto100K | EC4: HH>75HI>100K | ED4: SchoolEnrollment1thru12 | EE4: Pop25andOver | EF4: HSGradorHigher | EG4: CollGradorHigher | EH4: NativePop | EI4: ForeignBornPop | EJ4: BornStateOfRes | EK4: NativePop2 | EL4: ForeignBornPop2 | EM4: DroveAlone | EN4: CarPooled | EO4: PublicTranspt | EP4: Walked | EQ4: OtherMeans | ER4: WorkedAtHome | ES4: HHInc<10K | ET4: HHInc10to15K | EU4: HHInc15to25K | EV4: HHInc25to35K | EW4: HHInc35to50K | EX4: HHInc50to75K | EY4: HHInc75to100K | EZ4: HHInc100to150K | FA4: HHInc>150K
B5: =VLOOKUP(DropDownList!$A$47,CntyQuery!$A$4:$FA$46,B1) -> 15025 | C5: =VLOOKUP(DropDownList!$A$47,CntyQuery!$A$4:$FA$46,C1) -> 12100 | D5: =VLOOKUP(DropDownList!$A$47,CntyQuery!$A$4:$FA$46,D1) -> 16661.66 | E5: =VLOOKUP(DropDownList!$A$47,CntyQuery!$A$4:$FA$46,E1) -> 56.09 | F5: =VLOOKUP(DropDownList!$A$47,CntyQuery!$A$4:$FA$46,F1) -> 924 | G5: =VLOOKUP(DropDownList!$A$47,CntyQuery!$A$4:$FA$46,G1) -> 2691 | H5: =VLOOKUP(DropDownList!$A$47,CntyQuery!$A$4:$FA$46,H1) -> 703 | I5: =VLOOKUP(DropDownList!$A$47,CntyQuery!$A$4:$FA$46,I1) -> 862 | J5: =VLOOKUP(DropDownList!$A$47,CntyQuery!$A$4:$FA$46,J1) -> 1351 | K5: =VLOOKUP(DropDownList!$A$47,CntyQuery!$A$4:$FA$46,K1) -> 1340 | L5: =VLOOKUP(DropDownList!$A$47,CntyQuery!$A$4:$FA$46,L1) -> 2659 | M5: =VLOOKUP(DropDownList!$A$47,CntyQuery!$A$4:$FA$46,M1) -> 6 | N5: =VLOOKUP(DropDownList!$A$47,CntyQuery!$A$4:$FA$46,N1) -> 6 | O5: =VLOOKUP(DropDownList!$A$47,CntyQuery!$A$4:$FA$46,O1) -> 18 | P5: =VLOOKUP(DropDownList!$A$47,CntyQuery!$A$4:$FA$46,P1) -> 2 | Q5: =VLOOKUP(DropDownList!$A$47,CntyQuery!$A$4:$FA$46,Q1) -> 14 | R5: =VLOOKUP(DropDownList!$A$47,CntyQuery!$A$4:$FA$46,R1) -> 626 | S5: =VLOOKUP(DropDownList!$A$47,CntyQuery!$A$4:$FA$46,S1) -> 366 | T5: =VLOOKUP(DropDownList!$A$47,CntyQuery!$A$4:$FA$46,T1) -> 453 | U5: =VLOOKUP(DropDownList!$A$47,CntyQuery!$A$4:$FA$46,U1) -> 563 | V5: =VLOOKUP(DropDownList!$A$47,CntyQuery!$A$4:$FA$46,V1) -> 331 | W5: =VLOOKUP(DropDownList!$A$47,CntyQuery!$A$4:$FA$46,W1) -> 194 | X5: =VLOOKUP(DropDownList!$A$47,CntyQuery!$A$4:$FA$46,X1) -> 90 | Y5: =VLOOKUP(DropDownList!$A$47,CntyQuery!$A$4:$FA$46,Y1) -> 68 | Z5: =VLOOKUP(DropDownList!$A$47,CntyQuery!$A$4:$FA$46,Z1) -> 2650 | AA5: =VLOOKUP(DropDownList!$A$47,CntyQuery!$A$4:$FA$46,AA1) -> 2431 | AB5: =VLOOKUP(DropDownList!$A$47,CntyQuery!$A$4:$FA$46,AB1) -> 41 | AC5: =VLOOKUP(DropDownList!$A$47,CntyQuery!$A$4:$FA$46,AC1) -> 3.07424594 | AD5: =VLOOKUP(DropDownList!$A$47,CntyQuery!$A$4:$FA$46,AD1) -> 3.458036984 | AE5: =VLOOKUP(DropDownList!$A$47,CntyQuery!$A$4:$FA$46,AE1) -> 111 | AF5: =VLOOKUP(DropDownList!$A$47,CntyQuery!$A$4:$FA$46,AF1) -> 631 | AG5: =VLOOKUP(DropDownList!$A$47,CntyQuery!$A$4:$FA$46,AG1) -> 72 | AH5: =VLOOKUP(DropDownList!$A$47,CntyQuery!$A$4:$FA$46,AH1) -> 48 | AI5: =VLOOKUP(DropDownList!$A$47,CntyQuery!$A$4:$FA$46,AI1) -> 924 | AJ5: =VLOOKUP(DropDownList!$A$47,CntyQuery!$A$4:$FA$46,AJ1) -> 862 | AK5: =VLOOKUP(DropDownList!$A$47,CntyQuery!$A$4:$FA$46,AK1) -> 62 | AL5: =VLOOKUP(DropDownList!$A$47,CntyQuery!$A$4:$FA$46,AL1) -> 778 | AM5: =VLOOKUP(DropDownList!$A$47,CntyQuery!$A$4:$FA$46,AM1) -> 84 | AN5: =VLOOKUP(DropDownList!$A$47,CntyQuery!$A$4:$FA$46,AN1) -> 1 | AO5: =VLOOKUP(DropDownList!$A$47,CntyQuery!$A$4:$FA$46,AO1) -> 18 | AP5: =VLOOKUP(DropDownList!$A$47,CntyQuery!$A$4:$FA$46,AP1) -> 6 | AQ5: =VLOOKUP(DropDownList!$A$47,CntyQuery!$A$4:$FA$46,AQ1) -> 800 | AR5: =VLOOKUP(DropDownList!$A$47,CntyQuery!$A$4:$FA$46,AR1) -> 90 | AS5: =VLOOKUP(DropDownList!$A$47,CntyQuery!$A$4:$FA$46,AS1) -> 34 | AT5: =VLOOKUP(DropDownList!$A$47,CntyQuery!$A$4:$FA$46,AT1) -> 710 | AU5: =VLOOKUP(DropDownList!$A$47,CntyQuery!$A$4:$FA$46,AU1) -> 46 | AV5: =VLOOKUP(DropDownList!$A$47,CntyQuery!$A$4:$FA$46,AV1) -> 34 | AW5: =VLOOKUP(DropDownList!$A$47,CntyQuery!$A$4:$FA$46,AW1) -> 39 | AX5: =VLOOKUP(DropDownList!$A$47,CntyQuery!$A$4:$FA$46,AX1) -> 39 | AY5: =VLOOKUP(DropDownList!$A$47,CntyQuery!$A$4:$FA$46,AY1) -> 6 | AZ5: =VLOOKUP(DropDownList!$A$47,CntyQuery!$A$4:$FA$46,AZ1) -> 212 | BA5: =VLOOKUP(DropDownList!$A$47,CntyQuery!$A$4:$FA$46,BA1) -> 302 | BB5: =VLOOKUP(DropDownList!$A$47,CntyQuery!$A$4:$FA$46,BB1) -> 187 | BC5: =VLOOKUP(DropDownList!$A$47,CntyQuery!$A$4:$FA$46,BC1) -> 223 | BD5: =VLOOKUP(DropDownList!$A$47,CntyQuery!$A$4:$FA$46,BD1) -> 0 | BE5: =VLOOKUP(DropDownList!$A$47,CntyQuery!$A$4:$FA$46,BE1) -> 55 | BF5: =VLOOKUP(DropDownList!$A$47,CntyQuery!$A$4:$FA$46,BF1) -> 197 | BG5: =VLOOKUP(DropDownList!$A$47,CntyQuery!$A$4:$FA$46,BG1) -> 475 | BH5: =VLOOKUP(DropDownList!$A$47,CntyQuery!$A$4:$FA$46,BH1) -> 197 | BI5: =VLOOKUP(DropDownList!$A$47,CntyQuery!$A$4:$FA$46,BI1) -> 14 | BJ5: =VLOOKUP(DropDownList!$A$47,CntyQuery!$A$4:$FA$46,BJ1) -> 24 | BK5: =VLOOKUP(DropDownList!$A$47,CntyQuery!$A$4:$FA$46,BK1) -> 33 | BL5: =VLOOKUP(DropDownList!$A$47,CntyQuery!$A$4:$FA$46,BL1) -> 92 | BM5: =VLOOKUP(DropDownList!$A$47,CntyQuery!$A$4:$FA$46,BM1) -> 94 | BN5: =VLOOKUP(DropDownList!$A$47,CntyQuery!$A$4:$FA$46,BN1) -> 215 | BO5: =VLOOKUP(DropDownList!$A$47,CntyQuery!$A$4:$FA$46,BO1) -> 262 | BP5: =VLOOKUP(DropDownList!$A$47,CntyQuery!$A$4:$FA$46,BP1) -> 102 | BQ5: =VLOOKUP(DropDownList!$A$47,CntyQuery!$A$4:$FA$46,BQ1) -> 36 | BR5: =VLOOKUP(DropDownList!$A$47,CntyQuery!$A$4:$FA$46,BR1) -> 46429 | BS5: =VLOOKUP(DropDownList!$A$47,CntyQuery!$A$4:$FA$46,BS1) -> 0 | BT5: =VLOOKUP(DropDownList!$A$47,CntyQuery!$A$4:$FA$46,BT1) -> 0 | BU5: =VLOOKUP(DropDownList!$A$47,CntyQuery!$A$4:$FA$46,BU1) -> 0 | BV5: =VLOOKUP(DropDownList!$A$47,CntyQuery!$A$4:$FA$46,BV1) -> 0 | BW5: =VLOOKUP(DropDownList!$A$47,CntyQuery!$A$4:$FA$46,BW1) -> 0 | BX5: =VLOOKUP(DropDownList!$A$47,CntyQuery!$A$4:$FA$46,BX1) -> 0 | BY5: =VLOOKUP(DropDownList!$A$47,CntyQuery!$A$4:$FA$46,BY1) -> 0 | BZ5: =VLOOKUP(DropDownList!$A$47,CntyQuery!$A$4:$FA$46,BZ1) -> 0 | CA5: =VLOOKUP(DropDownList!$A$47,CntyQuery!$A$4:$FA$46,CA1) -> 0 | CB5: =VLOOKUP(DropDownList!$A$47,CntyQuery!$A$4:$FA$46,CB1) -> 0 | CC5: =VLOOKUP(DropDownList!$A$47,CntyQuery!$A$4:$FA$46,CC1) -> 6 | CD5: =VLOOKUP(DropDownList!$A$47,CntyQuery!$A$4:$FA$46,CD1) -> 0 | CE5: =VLOOKUP(DropDownList!$A$47,CntyQuery!$A$4:$FA$46,CE1) -> 10 | CF5: =VLOOKUP(DropDownList!$A$47,CntyQuery!$A$4:$FA$46,CF1) -> 18 | CG5: =VLOOKUP(DropDownList!$A$47,CntyQuery!$A$4:$FA$46,CG1) -> 73 | CH5: =VLOOKUP(DropDownList!$A$47,CntyQuery!$A$4:$FA$46,CH1) -> 77 | CI5: =VLOOKUP(DropDownList!$A$47,CntyQuery!$A$4:$FA$46,CI1) -> 27 | CJ5: =VLOOKUP(DropDownList!$A$47,CntyQuery!$A$4:$FA$46,CJ1) -> 0 | CK5: =VLOOKUP(DropDownList!$A$47,CntyQuery!$A$4:$FA$46,CK1) -> 0 | CL5: =VLOOKUP(DropDownList!$A$47,CntyQuery!$A$4:$FA$46,CL1) -> 0 | CM5: =VLOOKUP(DropDownList!$A$47,CntyQuery!$A$4:$FA$46,CM1) -> 12 | CN5: =VLOOKUP(DropDownList!$A$47,CntyQuery!$A$4:$FA$46,CN1) -> 39 | CO5: =VLOOKUP(DropDownList!$A$47,CntyQuery!$A$4:$FA$46,CO1) -> 27 | CP5: =VLOOKUP(DropDownList!$A$47,CntyQuery!$A$4:$FA$46,CP1) -> 48 | CQ5: =VLOOKUP(DropDownList!$A$47,CntyQuery!$A$4:$FA$46,CQ1) -> 89 | CR5: =VLOOKUP(DropDownList!$A$47,CntyQuery!$A$4:$FA$46,CR1) -> 17 | CS5: =VLOOKUP(DropDownList!$A$47,CntyQuery!$A$4:$FA$46,CS1) -> 28 | CT5: =VLOOKUP(DropDownList!$A$47,CntyQuery!$A$4:$FA$46,CT1) -> 7 | CU5: =VLOOKUP(DropDownList!$A$47,CntyQuery!$A$4:$FA$46,CU1) -> 9 | CV5: =VLOOKUP(DropDownList!$A$47,CntyQuery!$A$4:$FA$46,CV1) -> 6 | CW5: =VLOOKUP(DropDownList!$A$47,CntyQuery!$A$4:$FA$46,CW1) -> 14 | CX5: =VLOOKUP(DropDownList!$A$47,CntyQuery!$A$4:$FA$46,CX1) -> 6 | CY5: =VLOOKUP(DropDownList!$A$47,CntyQuery!$A$4:$FA$46,CY1) -> 54 | CZ5: =VLOOKUP(DropDownList!$A$47,CntyQuery!$A$4:$FA$46,CZ1) -> 51 | DA5: =VLOOKUP(DropDownList!$A$47,CntyQuery!$A$4:$FA$46,DA1) -> 40 | DB5: =VLOOKUP(DropDownList!$A$47,CntyQuery!$A$4:$FA$46,DB1) -> 0 | DC5: =VLOOKUP(DropDownList!$A$47,CntyQuery!$A$4:$FA$46,DC1) -> 0 | DD5: =VLOOKUP(DropDownList!$A$47,CntyQuery!$A$4:$FA$46,DD1) -> 0 | DE5: =VLOOKUP(DropDownList!$A$47,CntyQuery!$A$4:$FA$46,DE1) -> 0 | DF5: =VLOOKUP(DropDownList!$A$47,CntyQuery!$A$4:$FA$46,DF1) -> 13 | DG5: =VLOOKUP(DropDownList!$A$47,CntyQuery!$A$4:$FA$46,DG1) -> 29 | DH5: =VLOOKUP(DropDownList!$A$47,CntyQuery!$A$4:$FA$46,DH1) -> 33 | DI5: =VLOOKUP(DropDownList!$A$47,CntyQuery!$A$4:$FA$46,DI1) -> 20 | DJ5: =VLOOKUP(DropDownList!$A$47,CntyQuery!$A$4:$FA$46,DJ1) -> 18 | DK5: =VLOOKUP(DropDownList!$A$47,CntyQuery!$A$4:$FA$46,DK1) -> 8 | DL5: =VLOOKUP(DropDownList!$A$47,CntyQuery!$A$4:$FA$46,DL1) -> 0 | DM5: =VLOOKUP(DropDownList!$A$47,CntyQuery!$A$4:$FA$46,DM1) -> 9 | DN5: =VLOOKUP(DropDownList!$A$47,CntyQuery!$A$4:$FA$46,DN1) -> 0 | DO5: =VLOOKUP(DropDownList!$A$47,CntyQuery!$A$4:$FA$46,DO1) -> 9 | DP5: =VLOOKUP(DropDownList!$A$47,CntyQuery!$A$4:$FA$46,DP1) -> 0 | DQ5: =VLOOKUP(DropDownList!$A$47,CntyQuery!$A$4:$FA$46,DQ1) -> 0 | DR5: =VLOOKUP(DropDownList!$A$47,CntyQuery!$A$4:$FA$46,DR1) -> 16 | DS5: =VLOOKUP(DropDownList!$A$47,CntyQuery!$A$4:$FA$46,DS1) -> 0 | DT5: =VLOOKUP(DropDownList!$A$47,CntyQuery!$A$4:$FA$46,DT1) -> 0 | DU5: =VLOOKUP(DropDownList!$A$47,CntyQuery!$A$4:$FA$46,DU1) -> 7 | DV5: =VLOOKUP(DropDownList!$A$47,CntyQuery!$A$4:$FA$46,DV1) -> 0 | DW5: =VLOOKUP(DropDownList!$A$47,CntyQuery!$A$4:$FA$46,DW1) -> 15 | DX5: =VLOOKUP(DropDownList!$A$47,CntyQuery!$A$4:$FA$46,DX1) -> 7 | DY5: =VLOOKUP(DropDownList!$A$47,CntyQuery!$A$4:$FA$46,DY1) -> 14 | DZ5: =VLOOKUP(DropDownList!$A$47,CntyQuery!$A$4:$FA$46,DZ1) -> 7 | EA5: =VLOOKUP(DropDownList!$A$47,CntyQuery!$A$4:$FA$46,EA1) -> 9 | EB5: =VLOOKUP(DropDownList!$A$47,CntyQuery!$A$4:$FA$46,EB1) -> 0 | EC5: =VLOOKUP(DropDownList!$A$47,CntyQuery!$A$4:$FA$46,EC1) -> 0 | ED5: =VLOOKUP(DropDownList!$A$47,CntyQuery!$A$4:$FA$46,ED1) -> 505 | EE5: =VLOOKUP(DropDownList!$A$47,CntyQuery!$A$4:$FA$46,EE1) -> 1767 | EF5: =VLOOKUP(DropDownList!$A$47,CntyQuery!$A$4:$FA$46,EF1) -> 1522 | EG5: =VLOOKUP(DropDownList!$A$47,CntyQuery!$A$4:$FA$46,EG1) -> 476 | EH5: =VLOOKUP(DropDownList!$A$47,CntyQuery!$A$4:$FA$46,EH1) -> 2643 | EI5: =VLOOKUP(DropDownList!$A$47,CntyQuery!$A$4:$FA$46,EI1) -> 48 | EJ5: =VLOOKUP(DropDownList!$A$47,CntyQuery!$A$4:$FA$46,EJ1) -> 826 | EK5: =VLOOKUP(DropDownList!$A$47,CntyQuery!$A$4:$FA$46,EK1) -> 2643 | EL5: =VLOOKUP(DropDownList!$A$47,CntyQuery!$A$4:$FA$46,EL1) -> 48 | EM5: =VLOOKUP(DropDownList!$A$47,CntyQuery!$A$4:$FA$46,EM1) -> 1163 | EN5: =VLOOKUP(DropDownList!$A$47,CntyQuery!$A$4:$FA$46,EN1) -> 152 | EO5: =VLOOKUP(DropDownList!$A$47,CntyQuery!$A$4:$FA$46,EO1) -> 9 | EP5: =VLOOKUP(DropDownList!$A$47,CntyQuery!$A$4:$FA$46,EP1) -> 35 | EQ5: =VLOOKUP(DropDownList!$A$47,CntyQuery!$A$4:$FA$46,EQ1) -> 14 | ER5: =VLOOKUP(DropDownList!$A$47,CntyQuery!$A$4:$FA$46,ER1) -> 82 | ES5: =VLOOKUP(DropDownList!$A$47,CntyQuery!$A$4:$FA$46,ES1) -> 38 | ET5: =VLOOKUP(DropDownList!$A$47,CntyQuery!$A$4:$FA$46,ET1) -> 33 | EU5: =VLOOKUP(DropDownList!$A$47,CntyQuery!$A$4:$FA$46,EU1) -> 92 | EV5: =VLOOKUP(DropDownList!$A$47,CntyQuery!$A$4:$FA$46,EV1) -> 94 | EW5: =VLOOKUP(DropDownList!$A$47,CntyQuery!$A$4:$FA$46,EW1) -> 215 | EX5: =VLOOKUP(DropDownList!$A$47,CntyQuery!$A$4:$FA$46,EX1) -> 262 | EY5: =VLOOKUP(DropDownList!$A$47,CntyQuery!$A$4:$FA$46,EY1) -> 102 | EZ5: =VLOOKUP(DropDownList!$A$47,CntyQuery!$A$4:$FA$46,EZ1) -> 27 | FA5: =VLOOKUP(DropDownList!$A$47,CntyQuery!$A$4:$FA$46,FA1) -> 9
A8: Census 1990 Data - Query Name: TownSTF1Qry1
A9: NAME | B9: COUSUBFP | C9: Census_Cnty_Code | D9: FIPS | E9: LandAcres | F9: WaterAcres | G9: HousingUnits90Cen | H9: P01Persons90Cen | I9: P02Families90Cen | J9: P03Households90cen | K9: P05MalePop90cen | L9: P05FemalePop90cen | M9: P06WhitePop | N9: P06BlackPop | O9: P06AmerIndianPop | P9: P06AsianPIPop | Q9: P06OtherRacePop | R9: P08HispanicOrPop | S9: P11AgeUnder15_90cen | T9: P11Age15to24_90cen | U9: P11Age25to34_90cen | V9: P11Age35to44_90cen | W9: P11Age45to54_90cen | X9: P11Age55to64_90cen | Y9: P11Age65to74_90cen | Z9: P11Age75andOver_90cen | AA9: P15PersonsInHH90cen | AB9: P15PersonsInFamHH90cen | AC9: P15PersonsInGC | AD9: PersonsPerHH90cen | AE9: PersonsPerFam90Cen | AF9: P16SinglePersonHH90cen | AG9: P16MarriedCoupleHH90cen | AH9: P16SingleParentHH90cen | AI9: P16NonFamilyHH90cen | AJ9: H01TotalHousingUnits | AK9: H02OccupiedHousingUnits | AL9: H02VacantHousingUnits | AM9: H03OwnerOccHU | AN9: H03RenterOccHU | AO9: H05VacantForRent90 | AP9: H05VacantForSale90 | AQ9: H05VacantSeasonalRec | AR9: H23OOHUVal<15k | AS9: H23OOHUVal15to19k | AT9: H23OOHUVal20to24k | AU9: H23OOHUVal25to29k | AV9: H23OOHUVal30to34k | AW9: H23OOHUVal35to39k | AX9: H23OOHUVal40to44k | AY9: H23OOHUVal45to49k | AZ9: H23OOHUVal50to59k | BA9: H23OOHUVal60to74k | BB9: H23OOHUVal75to99k | BC9: H23OOHUVal100to124k | BD9: H23OOHUVal125to149k | BE9: H23OOHUVal150to174k | BF9: H23OOHUVal175to199k | BG9: H23OOHUVal200to249k | BH9: H23OOHUVal250to299k | BI9: H23OOHUVal300to399k | BJ9: H23OOHUVal400to499k | BK9: H23OOHUVal500kOrMore | BL9: H23BOOHUMedVal | BM9: H41SingFamHU90cen | BN9: H41MultiFamHU90cen | BO9: H41MobileHom90cen | BP9: H43SingFamOwnHU90cen | BQ9: H43MultiFamOwnHU90cen | BR9: H43MobileHomOwnHU90cen | BS9: H43SingFamRntrHU90cen | BT9: H43MultiFamRntrHU90cen | BU9: H43MobileHomRntrHU90cen | BV9: H41HU1UnitDet | BW9: H41HU1UnitAtt | BX9: H41HU2Unit | BY9: H41HU3to4Unit | BZ9: H41HU5to9Unit | CA9: H41HU10to19Unit | CB9: H41HU20to49Unit | CC9: H41HU50PlusUnit | CD9: H41HUMobilH | CE9: H41HUOther
B10: =VLOOKUP(DropDownList!$B$47,CntyQuery!$A$51:$CE$93,B$1) -> 805 | C10: =VLOOKUP(DropDownList!$B$47,CntyQuery!$A$51:$CE$93,C$1) -> 15025 | D10: =VLOOKUP(DropDownList!$B$47,CntyQuery!$A$51:$CE$93,D$1) -> 12100 | E10: =VLOOKUP(DropDownList!$B$47,CntyQuery!$A$51:$CE$93,E$1) -> 16661.66 | F10: =VLOOKUP(DropDownList!$B$47,CntyQuery!$A$51:$CE$93,F$1) -> 56.09 | G10: =VLOOKUP(DropDownList!$B$47,CntyQuery!$A$51:$CE$93,G$1) -> 924 | H10: =VLOOKUP(DropDownList!$B$47,CntyQuery!$A$51:$CE$93,H$1) -> 2691 | I10: =VLOOKUP(DropDownList!$B$47,CntyQuery!$A$51:$CE$93,I$1) -> 703 | J10: =VLOOKUP(DropDownList!$B$47,CntyQuery!$A$51:$CE$93,J$1) -> 862 | K10: =VLOOKUP(DropDownList!$B$47,CntyQuery!$A$51:$CE$93,K$1) -> 1351 | L10: =VLOOKUP(DropDownList!$B$47,CntyQuery!$A$51:$CE$93,L$1) -> 1340 | M10: =VLOOKUP(DropDownList!$B$47,CntyQuery!$A$51:$CE$93,M$1) -> 2659 | N10: =VLOOKUP(DropDownList!$B$47,CntyQuery!$A$51:$CE$93,N$1) -> 6 | O10: =VLOOKUP(DropDownList!$B$47,CntyQuery!$A$51:$CE$93,O$1) -> 6 | P10: =VLOOKUP(DropDownList!$B$47,CntyQuery!$A$51:$CE$93,P$1) -> 18 | Q10: =VLOOKUP(DropDownList!$B$47,CntyQuery!$A$51:$CE$93,Q$1) -> 2 | R10: =VLOOKUP(DropDownList!$B$47,CntyQuery!$A$51:$CE$93,R$1) -> 14 | S10: =VLOOKUP(DropDownList!$B$47,CntyQuery!$A$51:$CE$93,S$1) -> 626 | T10: =VLOOKUP(DropDownList!$B$47,CntyQuery!$A$51:$CE$93,T$1) -> 366 | U10: =VLOOKUP(DropDownList!$B$47,CntyQuery!$A$51:$CE$93,U$1) -> 453 | V10: =VLOOKUP(DropDownList!$B$47,CntyQuery!$A$51:$CE$93,V$1) -> 563 | W10: =VLOOKUP(DropDownList!$B$47,CntyQuery!$A$51:$CE$93,W$1) -> 331 | X10: =VLOOKUP(DropDownList!$B$47,CntyQuery!$A$51:$CE$93,X$1) -> 194 | Y10: =VLOOKUP(DropDownList!$B$47,CntyQuery!$A$51:$CE$93,Y$1) -> 90 | Z10: =VLOOKUP(DropDownList!$B$47,CntyQuery!$A$51:$CE$93,Z$1) -> 68 | AA10: =VLOOKUP(DropDownList!$B$47,CntyQuery!$A$51:$CE$93,AA$1) -> 2650 | AB10: =VLOOKUP(DropDownList!$B$47,CntyQuery!$A$51:$CE$93,AB$1) -> 2431 | AC10: =VLOOKUP(DropDownList!$B$47,CntyQuery!$A$51:$CE$93,AC$1) -> 41 | AD10: =VLOOKUP(DropDownList!$B$47,CntyQuery!$A$51:$CE$93,AD$1) -> 3.07424594 | AE10: =VLOOKUP(DropDownList!$B$47,CntyQuery!$A$51:$CE$93,AE$1) -> 3.458036984 | AF10: =VLOOKUP(DropDownList!$B$47,CntyQuery!$A$51:$CE$93,AF$1) -> 111 | AG10: =VLOOKUP(DropDownList!$B$47,CntyQuery!$A$51:$CE$93,AG$1) -> 631 | AH10: =VLOOKUP(DropDownList!$B$47,CntyQuery!$A$51:$CE$93,AH$1) -> 72 | AI10: =VLOOKUP(DropDownList!$B$47,CntyQuery!$A$51:$CE$93,AI$1) -> 48 | AJ10: =VLOOKUP(DropDownList!$B$47,CntyQuery!$A$51:$CE$93,AJ$1) -> 924 | AK10: =VLOOKUP(DropDownList!$B$47,CntyQuery!$A$51:$CE$93,AK$1) -> 862 | AL10: =VLOOKUP(DropDownList!$B$47,CntyQuery!$A$51:$CE$93,AL$1) -> 62 | AM10: =VLOOKUP(DropDownList!$B$47,CntyQuery!$A$51:$CE$93,AM$1) -> 778 | AN10: =VLOOKUP(DropDownList!$B$47,CntyQuery!$A$51:$CE$93,AN$1) -> 84 | AO10: =VLOOKUP(DropDownList!$B$47,CntyQuery!$A$51:$CE$93,AO$1) -> 1 | AP10: =VLOOKUP(DropDownList!$B$47,CntyQuery!$A$51:$CE$93,AP$1) -> 18 | AQ10: =VLOOKUP(DropDownList!$B$47,CntyQuery!$A$51:$CE$93,AQ$1) -> 6 | AR10: =VLOOKUP(DropDownList!$B$47,CntyQuery!$A$51:$CE$93,AR$1) -> 2 | AS10: =VLOOKUP(DropDownList!$B$47,CntyQuery!$A$51:$CE$93,AS$1) -> 0 | AT10: =VLOOKUP(DropDownList!$B$47,CntyQuery!$A$51:$CE$93,AT$1) -> 1 | AU10: =VLOOKUP(DropDownList!$B$47,CntyQuery!$A$51:$CE$93,AU$1) -> 0 | AV10: =VLOOKUP(DropDownList!$B$47,CntyQuery!$A$51:$CE$93,AV$1) -> 1 | AW10: =VLOOKUP(DropDownList!$B$47,CntyQuery!$A$51:$CE$93,AW$1) -> 1 | AX10: =VLOOKUP(DropDownList!$B$47,CntyQuery!$A$51:$CE$93,AX$1) -> 1 | AY10: =VLOOKUP(DropDownList!$B$47,CntyQuery!$A$51:$CE$93,AY$1) -> 1 | AZ10: =VLOOKUP(DropDownList!$B$47,CntyQuery!$A$51:$CE$93,AZ$1) -> 6 | BA10: =VLOOKUP(DropDownList!$B$47,CntyQuery!$A$51:$CE$93,BA$1) -> 12 | BB10: =VLOOKUP(DropDownList!$B$47,CntyQuery!$A$51:$CE$93,BB$1) -> 28 | BC10: =VLOOKUP(DropDownList!$B$47,CntyQuery!$A$51:$CE$93,BC$1) -> 72 | BD10: =VLOOKUP(DropDownList!$B$47,CntyQuery!$A$51:$CE$93,BD$1) -> 138 | BE10: =VLOOKUP(DropDownList!$B$47,CntyQuery!$A$51:$CE$93,BE$1) -> 94 | BF10: =VLOOKUP(DropDownList!$B$47,CntyQuery!$A$51:$CE$93,BF$1) -> 62 | BG10: =VLOOKUP(DropDownList!$B$47,CntyQuery!$A$51:$CE$93,BG$1) -> 62 | BH10: =VLOOKUP(DropDownList!$B$47,CntyQuery!$A$51:$CE$93,BH$1) -> 19 | BI10: =VLOOKUP(DropDownList!$B$47,CntyQuery!$A$51:$CE$93,BI$1) -> 12 | BJ10: =VLOOKUP(DropDownList!$B$47,CntyQuery!$A$51:$CE$93,BJ$1) -> 8 | BK10: =VLOOKUP(DropDownList!$B$47,CntyQuery!$A$51:$CE$93,BK$1) -> 2 | BL10: =VLOOKUP(DropDownList!$B$47,CntyQuery!$A$51:$CE$93,BL$1) -> 149600 | BM10: =VLOOKUP(DropDownList!$B$47,CntyQuery!$A$51:$CE$93,BM$1) -> 800 | BN10: =VLOOKUP(DropDownList!$B$47,CntyQuery!$A$51:$CE$93,BN$1) -> 90 | BO10: =VLOOKUP(DropDownList!$B$47,CntyQuery!$A$51:$CE$93,BO$1) -> 34 | BP10: =VLOOKUP(DropDownList!$B$47,CntyQuery!$A$51:$CE$93,BP$1) -> 710 | BQ10: =VLOOKUP(DropDownList!$B$47,CntyQuery!$A$51:$CE$93,BQ$1) -> 46 | BR10: =VLOOKUP(DropDownList!$B$47,CntyQuery!$A$51:$CE$93,BR$1) -> 22 | BS10: =VLOOKUP(DropDownList!$B$47,CntyQuery!$A$51:$CE$93,BS$1) -> 39 | BT10: =VLOOKUP(DropDownList!$B$47,CntyQuery!$A$51:$CE$93,BT$1) -> 39 | BU10: =VLOOKUP(DropDownList!$B$47,CntyQuery!$A$51:$CE$93,BU$1) -> 6 | BV10: =VLOOKUP(DropDownList!$B$47,CntyQuery!$A$51:$CE$93,BV$1) -> 800 | BW10: =VLOOKUP(DropDownList!$B$47,CntyQuery!$A$51:$CE$93,BW$1) -> 44 | BX10: =VLOOKUP(DropDownList!$B$47,CntyQuery!$A$51:$CE$93,BX$1) -> 24 | BY10: =VLOOKUP(DropDownList!$B$47,CntyQuery!$A$51:$CE$93,BY$1) -> 10 | BZ10: =VLOOKUP(DropDownList!$B$47,CntyQuery!$A$51:$CE$93,BZ$1) -> 11 | CA10: =VLOOKUP(DropDownList!$B$47,CntyQuery!$A$51:$CE$93,CA$1) -> 1 | CB10: =VLOOKUP(DropDownList!$B$47,CntyQuery!$A$51:$CE$93,CB$1) -> 0 | CC10: =VLOOKUP(DropDownList!$B$47,CntyQuery!$A$51:$CE$93,CC$1) -> 0 | CD10: =VLOOKUP(DropDownList!$B$47,CntyQuery!$A$51:$CE$93,CD$1) -> 27 | CE10: =VLOOKUP(DropDownList!$B$47,CntyQuery!$A$51:$CE$93,CE$1) -> 7
A13: Census 1990 Data - Query Name: TownSTF3Qry1
A14: NAME | B14: FIPS | C14: COUSUBFP | D14: LandAcres | E14: WaterAcres | F14: HousingUnits90Cen | G14: P01Persons90Cen | H14: P02Families90Cen | I14: P03Households90cen | J14: H25HU<5yrs90cen | K14: H25HU5to20yrs90cen | L14: H25HU20to50yrs90cen | M14: H25HU>50yrs90cen | N14: H31Units0Bedroom90cen | O14: H31Units1Bedroom90cen | P14: H31Units2Bedroom90cen | Q14: H31Units3Bedroom90cen | R14: H31Units4Bedroom90cen | S14: H31Units5+Bedroom90cen | T14: P80HI<5K | U14: P80HI5Kto10K | V14: P80HI10Kto15K | W14: P80HI15Kto25K | X14: P80HI25Kto35K | Y14: P80HI35Kto50K | Z14: P80HI50Kto75K | AA14: P80HI75Kto100K | AB14: P80HI>100K | AC14: P80AMedHI | AD14: P86HH<25HI<5K | AE14: P86HH<25HI5Kto10K | AF14: P86HH<25HI10Kto15K | AG14: P86HH<25HI15Kto25K | AH14: P86HH<25HI25Kto35K | AI14: P86HH<25HI35Kto50K | AJ14: P86HH<25HI50Kto75K | AK14: P86HH<25HI75Kto100K | AL14: P86HH<25HI>100K | AM14: P86HH25to34HI<5K | AN14: P86HH25to34HI5Kto10K | AO14: P86HH25to34HI10Kto15K | AP14: P86HH25to34HI15Kto25K | AQ14: P86HH25to34HI25Kto35K | AR14: P86HH25to34HI35Kto50K | AS14: P86HH25to34HI50Kto75K | AT14: P86HH25to34HI75Kto100K | AU14: P86HH25to34HI>100K | AV14: P86HH35to44HI<5K | AW14: P86HH35to44HI5Kto10K | AX14: P86HH35to44HI10Kto15K | AY14: P86HH35to44HI15Kto25K | AZ14: P86HH35to44HI25Kto35K | BA14: P86HH35to44HI35Kto50K | BB14: P86HH35to44HI50Kto75K | BC14: P86HH35to44HI75Kto100K | BD14: P86HH35to44HI>100K | BE14: P86HH45to54HI<5K | BF14: P86HH45to54HI5Kto10K | BG14: P86HH45to54HI10Kto15K | BH14: P86HH45to54HI15Kto25K | BI14: P86HH45to54HI25Kto35K | BJ14: P86HH45to54HI35Kto50K | BK14: P86HH45to54HI50Kto75K | BL14: P86HH45to54HI75Kto100K | BM14: P86HH45to54HI>100K | BN14: P86HH55to64HI<5K | BO14: P86HH55to64HI5Kto10K | BP14: P86HH55to64HI10Kto15K | BQ14: P86HH55to64HI15Kto25K | BR14: P86HH55to64HI25Kto35K | BS14: P86HH55to64HI35Kto50K | BT14: P86HH55to64HI50Kto75K | BU14: P86HH55to64HI75Kto100K | BV14: P86HH55to64HI>100K | BW14: P86HH65to74HI<5K | BX14: P86HH65to74HI5Kto10K | BY14: P86HH65to74HI10Kto15K | BZ14: P86HH65to74HI15Kto25K | CA14: P86HH65to74HI25Kto35K | CB14: P86HH65to74HI35Kto50K | CC14: P86HH65to74HI50Kto75K | CD14: P86HH65to74HI75Kto100K | CE14: P86HH65to74HI>100K | CF14: P86HH>75HI<5K | CG14: P86HH>75HI5Kto10K | CH14: P86HH>75HI10Kto15K | CI14: P86HH>75HI15Kto25K | CJ14: P86HH>75HI25Kto35K | CK14: P86HH>75HI35Kto50K | CL14: P86HH>75HI50Kto75K | CM14: P86HH>75HI75Kto100K | CN14: P86HH>75HI>100K | CO14: P54SchlEnrlPrePrim | CP14: P54SchlEnrlElemThrHS | CQ14: P54SchlEnrlCollege | CR14: P54NotEnrlInSch | CS14: P57Pop25andOver | CT14: P57LessThan9thGrade | CU14: P579thto12thNoDip | CV14: P57HSGrad | CW14: P57SomeCollege | CX14: P57AssocDeg | CY14: P57BachelDeg | CZ14: P57GradorProfDeg | DA14: P57HSGradorHigher | DB14: P57CollGradorHigher | DC14: P42NativePop | DD14: P42ForeignBornPop | DE14: P42BornStateOfRes | DF14: P37NativePop2 | DG14: P37ForeignBornPop2 | DH14: P49DroveAlone | DI14: P49CarPooled | DJ14: P49PublicTranspt | DK14: P49Walked | DL14: P49OtherMeans | DM14: P49WorkedAtHome | DN14: P80HHInc<10K | DO14: P80HHInc10to15K | DP14: P80HHInc15to25K | DQ14: P80HHInc25to35K | DR14: P80HHInc35to50K | DS14: P80HHInc50to75K | DT14: P80HHInc75to100K | DU14: P80HHInc100to150K | DV14: P80HHInc>150K | DW14: H25YearStBlt89to90 | DX14: H25YearStBlt85to88 | DY14: H25YearStBlt80to84 | DZ14: H25YearStBlt70to79 | EA14: H25YearStBlt60to69 | EB14: H25YearStBlt50to59 | EC14: H25YearStBlt40to49 | ED14: H25YearStBlt39earlier | EE14: P107FamInc<10K | EF14: P107FamInc10to15K | EG14: P107FamInc15to25K | EH14: P107FamInc25to35K | EI14: P107FamInc35to50K | EJ14: P107FamInc50to75K | EK14: P107FamInc75to100K | EL14: P107FamInc100to150K | EM14: P107FamInc>150K | EN14: P107AMedFamInc | EO14: P110NonFamInc<10K | EP14: P110NonFamInc10to15K | EQ14: P110NonFamInc15to25K | ER14: P110NonFamInc25to35K | ES14: P110NonFamInc35to50K | ET14: P110NonFamInc50to75K | EU14: P110NonFamInc75to100K | EV14: P110NonFamInc100to150K | EW14: P110NonFamInc>150K | EX14: P110AMedNonFamInc | EY14: H16HU1Room | EZ14: H16HU2Room | FA14: H16HU3Room | FB14: H16HU4Room | FC14: H16HU5Room | FD14: H16HU6Room | FE14: H16HU7Room | FF14: H16HU8Room | FG14: H16HU9+Room | FH14: H43GrossRnt<100 | FI14: H43GrossRnt100to149 | FJ14: H43GrossRnt150to199 | FK14: H43GrossRnt200to249 | FL14: H43GrossRnt250to299 | FM14: H43GrossRnt300to349 | FN14: H43GrossRnt350to399 | FO14: H43GrossRnt400to449 | FP14: H43GrossRnt450to499 | FQ14: H43GrossRnt500to549 | FR14: H43GrossRnt550to599 | FS14: H43GrossRnt600to649 | FT14: H43GrossRnt650to699 | FU14: H43GrossRnt700to749 | FV14: H43GrossRnt750to999 | FW14: H43GrossRnt1000Plus | FX14: H43NoCashRent | FY14: H43MedGrossRent | FZ14: H51GrossRnt<20PctHHInc | GA14: H51GrossRnt20to24PctHHInc | GB14: H51GrossRnt25to29PctHHInc | GC14: H51GrossRnt30to34PctHHInc | GD14: H51GrossRnt35PctOrMoreHHInc | GE14: H51GrossRntAsPctHHIncNotComp | GF14: H52HUwMtgMoOwnCst<200 | GG14: H52HUwMtgMoOwnCst200to299 | GH14: H52HUwMtgMoOwnCst300to399 | GI14: H52HUwMtgMoOwnCst400to499 | GJ14: H52HUwMtgMoOwnCst500to599 | GK14: H52HUwMtgMoOwnCst600to699 | GL14: H52HUwMtgMoOwnCst700to799 | GM14: H52HUwMtgMoOwnCst800to899 | GN14: H52HUwMtgMoOwnCst900to999 | GO14: H52HUwMtgMoOwnCst1000to1249 | GP14: H52HUwMtgMoOwnCst1250to1499 | GQ14: H52HUwMtgMoOwnCst1500to1999 | GR14: H52HUwMtgMoOwnCst2000More | GS14: H52HUwNoMtgMoOwnCst<100 | GT14: H52HUwNoMtgMoOwnCst100to149 | GU14: H52HUwNoMtgMoOwnCst150to199 | GV14: H52HUwNoMtgMoOwnCst200to249 | GW14: H52HUwNoMtgMoOwnCst250to299 | GX14: H52HUwNoMtgMoOwnCst300to349 | GY14: H52HUwNoMtgMoOwnCst350to399 | GZ14: H52HUwNoMtgMoOwnCst400More | HA14: H52AMedMoOwnCstWMortg | HB14: H52AMedMoOwnCstWNoMortg | HC14: H58HUwMtgMOC<20pHHInc | HD14: H58HUwMtgMOC20to24pHHInc | HE14: H58HUwMtgMOC25to29pHHInc | HF14: H58HUwMtgMOC30to34pHHInc | HG14: H58wMtgMOC>35pHHInc | HH14: H58HUwMtgMOCNotComp | HI14: H58HUwNoMtgMOC<20pHHInc | HJ14: H58HUwNoMtgMOC20to24pHHInc | HK14: H58HUwNoMtgMOC25to29pHHInc | HL14: H58HUwNoMtgMOC30to34pHHInc | HM14: H58wNoMtgMOC>35pHHInc | HN14: H58HUwNoMtgMOCNotComp | HO14: H61OOHUVal<15k | HP14: H61OOHUVal15to19k | HQ14: H61OOHUVal20to24k | HR14: H61OOHUVal25to29k | HS14: H61OOHUVal30to34k | HT14: H61OOHUVal35to39k | HU14: H61OOHUVal40to44k | HV14: H61OOHUVal45to49k | HW14: H61OOHUVal50to59k | HX14: H61OOHUVal60to74k | HY14: H61OOHUVal75to99k | HZ14: H61OOHUVal100to124k | IA14: H61OOHUVal125to149k | IB14: H61OOHUVal150to174k | IC14: H61OOHUVal175to199k | ID14: H61OOHUVal200to249k | IE14: H61OOHUVal250to299k | IF14: H61OOHUVal300to399k | IG14: H61OOHUVal400to499k | IH14: H61OOHUVal500kOrMore | II14: H61aOOHUMedVal
A18: Other Demo Data - Query Name: QryAllTowns-ACSDemographicSheet
A19: TOWN_NAME | B19: FIPS | C19: TOWNCNTY | D19: COUSUB | E19: POP80 | F19: POP90CDCEN | G19: POP2000CEN | H19: POP2010CEN | I19: POP2020CEN | J19: POP2025-Proj | K19: POP2030-Proj | L19: POP2035-Proj | M19: SF80 | N19: MF80 | O19: MH80 | P19: SF81 | Q19: MF81 | R19: MH81 | S19: SF82 | T19: MF82 | U19: MH82 | V19: SF83 | W19: MF83 | X19: MH83 | Y19: SF84_OSP | Z19: MF84_OSP | AA19: MH84_OSP | AB19: SF85_OSP | AC19: MF85_OSP | AD19: MH85_OSP | AE19: SF86_OSP | AF19: MF86_OSP | AG19: MH86_OSP | AH19: SF87_OSP | AI19: MF87_OSP | AJ19: MH87_OSP | AK19: SF88_OSP | AL19: MF88_OSP | AM19: MH88_OSP | AN19: SF89_OSP | AO19: MF89_OSP | AP19: MH89_OSP | AQ19: SF90_OSP | AR19: MF90_OSP | AS19: MH90_OSP | AT19: SF91_OSP | AU19: MF91_OSP | AV19: MH91_OSP | AW19: SF92_OSP | AX19: MF92_OSP | AY19: MH92_OSP | AZ19: SF93_OSP | BA19: MF93_OSP | BB19: MH93_OSP | BC19: SF94_OSP | BD19: MF94_OSP | BE19: MH94_OSP | BF19: SF95_OSP | BG19: MF95_OSP | BH19: MH95_OSP | BI19: SF96_OSP | BJ19: MF96_OSP | BK19: MH96_OSP | BL19: SF97_OSP | BM19: MF97_OSP | BN19: MH97_OSP | BO19: SF98_OSP | BP19: MF98_OSP | BQ19: MH98_OSP | BR19: SF99_OSP | BS19: MF99_OSP | BT19: MH99_OSP | BU19: SF00_OSP | BV19: MF00_OSP | BW19: MH00_OSP | BX19: SF01_OSP | BY19: MF01_OSP | BZ19: MH01_OSP | CA19: SF02_OSP | CB19: MF02_OSP | CC19: MH02_OSP | CD19: SF03_OSP | CE19: MF03_OSP | CF19: MH03_OSP | CG19: SF04_OSP | CH19: MF04_OSP | CI19: MH04_OSP | CJ19: SF05_OSP | CK19: MF05_OSP | CL19: MH05_OSP | CM19: SF06_OSP | CN19: MF06_OSP | CO19: MH06_OSP | CP19: SF07_OSP | CQ19: MF07_OSP | CR19: MH07_OSP | CS19: SF08_OSP | CT19: MF08_OSP | CU19: MH08_OSP | CV19: SF09_OSP | CW19: MF09_OSP | CX19: MH09_OSP | CY19: SF10_OSP | CZ19: MF10_OSP | DA19: MH10_OSP | DB19: SF11_OSP | DC19: MF11_OSP | DD19: MH11_OSP | DE19: SF12_OSP | DF19: MF12_OSP | DG19: MH12_OSP | DH19: SF13_OSP | DI19: MF13_OSP | DJ19: MH13_OSP | DK19: SF14_OSP | DL19: MF14_OSP | DM19: MH14_OSP | DN19: SF15_OSP | DO19: MF15_OSP | DP19: MH15_OSP | DQ19: SF16_OSP | DR19: MF16_OSP | DS19: MH16_OSP | DT19: SF17_OSP | DU19: MF17_OSP | DV19: MH17_OSP | DW19: SF18_OSP | DX19: MF18_OSP | DY19: MH18_OSP | DZ19: SF19_OSP | EA19: MF19_OSP | EB19: MH19_OSP | EC19: SF20_OSP | ED19: MF20_OSP | EE19: MH20_OSP | EF19: SF20 Census_OSP | EG19: MF20 Census OSP | EH19: MH20 Census_OSP | EI19: SF21_OSP | EJ19: MF21_OSP | EK19: MH21_OSP | EL19: COMMENTS | EM19: CNTY_CODE
A20: =VLOOKUP(DropDownList!$B$47,CntyQuery!$A$118:$FZ$154,A$1) -> Chester | B20: =VLOOKUP(DropDownList!$B$47,CntyQuery!$A$118:$FZ$154,B$1) -> 15025 | C20: =VLOOKUP(DropDownList!$B$47,CntyQuery!$A$118:$FZ$154,C$1) -> 805 | D20: =VLOOKUP(DropDownList!$B$47,CntyQuery!$A$118:$FZ$154,D$1) -> 12100 | E20: =VLOOKUP(DropDownList!$B$47,CntyQuery!$A$118:$FZ$154,E$1) -> 2006 | F20: =VLOOKUP(DropDownList!$B$47,CntyQuery!$A$118:$FZ$154,F$1) -> 2691 | G20: =VLOOKUP(DropDownList!$B$47,CntyQuery!$A$118:$FZ$154,G$1) -> 3792 | H20: =VLOOKUP(DropDownList!$B$47,CntyQuery!$A$118:$FZ$154,H$1) -> 4768 | I20: =VLOOKUP(DropDownList!$B$47,CntyQuery!$A$118:$FZ$154,I$1) -> 5232 | J20: =VLOOKUP(DropDownList!$B$47,CntyQuery!$A$118:$FZ$154,J$1) -> 5442 | K20: =VLOOKUP(DropDownList!$B$47,CntyQuery!$A$118:$FZ$154,K$1) -> 5624 | L20: =VLOOKUP(DropDownList!$B$47,CntyQuery!$A$118:$FZ$154,L$1) -> 5753 | M20: =VLOOKUP(DropDownList!$B$47,CntyQuery!$A$118:$FZ$154,M$1) -> 8 | N20: =VLOOKUP(DropDownList!$B$47,CntyQuery!$A$118:$FZ$154,N$1) -> 0 | O20: =VLOOKUP(DropDownList!$B$47,CntyQuery!$A$118:$FZ$154,O$1) -> 0 | P20: =VLOOKUP(DropDownList!$B$47,CntyQuery!$A$118:$FZ$154,P$1) -> 7 | Q20: =VLOOKUP(DropDownList!$B$47,CntyQuery!$A$118:$FZ$154,Q$1) -> 4 | R20: =VLOOKUP(DropDownList!$B$47,CntyQuery!$A$118:$FZ$154,R$1) -> 0 | S20: =VLOOKUP(DropDownList!$B$47,CntyQuery!$A$118:$FZ$154,S$1) -> 7 | T20: =VLOOKUP(DropDownList!$B$47,CntyQuery!$A$118:$FZ$154,T$1) -> 0 | U20: =VLOOKUP(DropDownList!$B$47,CntyQuery!$A$118:$FZ$154,U$1) -> 0 | V20: =VLOOKUP(DropDownList!$B$47,CntyQuery!$A$118:$FZ$154,V$1) -> 0 | W20: =VLOOKUP(DropDownList!$B$47,CntyQuery!$A$118:$FZ$154,W$1) -> 0 | X20: =VLOOKUP(DropDownList!$B$47,CntyQuery!$A$118:$FZ$154,X$1) -> 0 | Y20: =VLOOKUP(DropDownList!$B$47,CntyQuery!$A$118:$FZ$154,Y$1) -> 0 | Z20: =VLOOKUP(DropDownList!$B$47,CntyQuery!$A$118:$FZ$154,Z$1) -> 0 | AA20: =VLOOKUP(DropDownList!$B$47,CntyQuery!$A$118:$FZ$154,AA$1) -> 0 | AB20: =VLOOKUP(DropDownList!$B$47,CntyQuery!$A$118:$FZ$154,AB$1) -> 49 | AC20: =VLOOKUP(DropDownList!$B$47,CntyQuery!$A$118:$FZ$154,AC$1) -> 0 | AD20: =VLOOKUP(DropDownList!$B$47,CntyQuery!$A$118:$FZ$154,AD$1) -> 0 | AE20: =VLOOKUP(DropDownList!$B$47,CntyQuery!$A$118:$FZ$154,AE$1) -> 56 | AF20: =VLOOKUP(DropDownList!$B$47,CntyQuery!$A$118:$FZ$154,AF$1) -> 0 | AG20: =VLOOKUP(DropDownList!$B$47,CntyQuery!$A$118:$FZ$154,AG$1) -> 0 | AH20: =VLOOKUP(DropDownList!$B$47,CntyQuery!$A$118:$FZ$154,AH$1) -> 76 | AI20: =VLOOKUP(DropDownList!$B$47,CntyQuery!$A$118:$FZ$154,AI$1) -> 2 | AJ20: =VLOOKUP(DropDownList!$B$47,CntyQuery!$A$118:$FZ$154,AJ$1) -> 0 | AK20: =VLOOKUP(DropDownList!$B$47,CntyQuery!$A$118:$FZ$154,AK$1) -> 28 | AL20: =VLOOKUP(DropDownList!$B$47,CntyQuery!$A$118:$FZ$154,AL$1) -> 0 | AM20: =VLOOKUP(DropDownList!$B$47,CntyQuery!$A$118:$FZ$154,AM$1) -> 0 | AN20: =VLOOKUP(DropDownList!$B$47,CntyQuery!$A$118:$FZ$154,AN$1) -> 24 | AO20: =VLOOKUP(DropDownList!$B$47,CntyQuery!$A$118:$FZ$154,AO$1) -> 0 | AP20: =VLOOKUP(DropDownList!$B$47,CntyQuery!$A$118:$FZ$154,AP$1) -> 0 | AQ20: =VLOOKUP(DropDownList!$B$47,CntyQuery!$A$118:$FZ$154,AQ$1) -> 8 | AR20: =VLOOKUP(DropDownList!$B$47,CntyQuery!$A$118:$FZ$154,AR$1) -> 0 | AS20: =VLOOKUP(DropDownList!$B$47,CntyQuery!$A$118:$FZ$154,AS$1) -> 0 | AT20: =VLOOKUP(DropDownList!$B$47,CntyQuery!$A$118:$FZ$154,AT$1) -> 23 | AU20: =VLOOKUP(DropDownList!$B$47,CntyQuery!$A$118:$FZ$154,AU$1) -> 0 | AV20: =VLOOKUP(DropDownList!$B$47,CntyQuery!$A$118:$FZ$154,AV$1) -> 1 | AW20: =VLOOKUP(DropDownList!$B$47,CntyQuery!$A$118:$FZ$154,AW$1) -> 36 | AX20: =VLOOKUP(DropDownList!$B$47,CntyQuery!$A$118:$FZ$154,AX$1) -> 0 | AY20: =VLOOKUP(DropDownList!$B$47,CntyQuery!$A$118:$FZ$154,AY$1) -> 0 | AZ20: =VLOOKUP(DropDownList!$B$47,CntyQuery!$A$118:$FZ$154,AZ$1) -> 30 | BA20: =VLOOKUP(DropDownList!$B$47,CntyQuery!$A$118:$FZ$154,BA$1) -> 0 | BB20: =VLOOKUP(DropDownList!$B$47,CntyQuery!$A$118:$FZ$154,BB$1) -> 0 | BC20: =VLOOKUP(DropDownList!$B$47,CntyQuery!$A$118:$FZ$154,BC$1) -> 47 | BD20: =VLOOKUP(DropDownList!$B$47,CntyQuery!$A$118:$FZ$154,BD$1) -> 0 | BE20: =VLOOKUP(DropDownList!$B$47,CntyQuery!$A$118:$FZ$154,BE$1) -> 0 | BF20: =VLOOKUP(DropDownList!$B$47,CntyQuery!$A$118:$FZ$154,BF$1) -> 38 | BG20: =VLOOKUP(DropDownList!$B$47,CntyQuery!$A$118:$FZ$154,BG$1) -> 0 | BH20: =VLOOKUP(DropDownList!$B$47,CntyQuery!$A$118:$FZ$154,BH$1) -> 0 | BI20: =VLOOKUP(DropDownList!$B$47,CntyQuery!$A$118:$FZ$154,BI$1) -> 33 | BJ20: =VLOOKUP(DropDownList!$B$47,CntyQuery!$A$118:$FZ$154,BJ$1) -> 0 | BK20: =VLOOKUP(DropDownList!$B$47,CntyQuery!$A$118:$FZ$154,BK$1) -> 0 | BL20: =VLOOKUP(DropDownList!$B$47,CntyQuery!$A$118:$FZ$154,BL$1) -> 30 | BM20: =VLOOKUP(DropDownList!$B$47,CntyQuery!$A$118:$FZ$154,BM$1) -> 0 | BN20: =VLOOKUP(DropDownList!$B$47,CntyQuery!$A$118:$FZ$154,BN$1) -> 0 | BO20: =VLOOKUP(DropDownList!$B$47,CntyQuery!$A$118:$FZ$154,BO$1) -> 44 | BP20: =VLOOKUP(DropDownList!$B$47,CntyQuery!$A$118:$FZ$154,BP$1) -> 0 | BQ20: =VLOOKUP(DropDownList!$B$47,CntyQuery!$A$118:$FZ$154,BQ$1) -> 0 | BR20: =VLOOKUP(DropDownList!$B$47,CntyQuery!$A$118:$FZ$154,BR$1) -> 85 | BS20: =VLOOKUP(DropDownList!$B$47,CntyQuery!$A$118:$FZ$154,BS$1) -> 0 | BT20: =VLOOKUP(DropDownList!$B$47,CntyQuery!$A$118:$FZ$154,BT$1) -> 0 | BU20: =VLOOKUP(DropDownList!$B$47,CntyQuery!$A$118:$FZ$154,BU$1) -> 91 | BV20: =VLOOKUP(DropDownList!$B$47,CntyQuery!$A$118:$FZ$154,BV$1) -> 0 | BW20: =VLOOKUP(DropDownList!$B$47,CntyQuery!$A$118:$FZ$154,BW$1) -> 0 | BX20: =VLOOKUP(DropDownList!$B$47,CntyQuery!$A$118:$FZ$154,BX$1) -> 79 | BY20: =VLOOKUP(DropDownList!$B$47,CntyQuery!$A$118:$FZ$154,BY$1) -> 0 | BZ20: =VLOOKUP(DropDownList!$B$47,CntyQuery!$A$118:$FZ$154,BZ$1) -> 0 | CA20: =VLOOKUP(DropDownList!$B$47,CntyQuery!$A$118:$FZ$154,CA$1) -> 47 | CB20: =VLOOKUP(DropDownList!$B$47,CntyQuery!$A$118:$FZ$154,CB$1) -> 0 | CC20: =VLOOKUP(DropDownList!$B$47,CntyQuery!$A$118:$FZ$154,CC$1) -> 0 | CD20: =VLOOKUP(DropDownList!$B$47,CntyQuery!$A$118:$FZ$154,CD$1) -> 29 | CE20: =VLOOKUP(DropDownList!$B$47,CntyQuery!$A$118:$FZ$154,CE$1) -> 0 | CF20: =VLOOKUP(DropDownList!$B$47,CntyQuery!$A$118:$FZ$154,CF$1) -> 0 | CG20: =VLOOKUP(DropDownList!$B$47,CntyQuery!$A$118:$FZ$154,CG$1) -> 21 | CH20: =VLOOKUP(DropDownList!$B$47,CntyQuery!$A$118:$FZ$154,CH$1) -> 12 | CI20: =VLOOKUP(DropDownList!$B$47,CntyQuery!$A$118:$FZ$154,CI$1) -> 1 | CJ20: =VLOOKUP(DropDownList!$B$47,CntyQuery!$A$118:$FZ$154,CJ$1) -> 10 | CK20: =VLOOKUP(DropDownList!$B$47,CntyQuery!$A$118:$FZ$154,CK$1) -> 0 | CL20: =VLOOKUP(DropDownList!$B$47,CntyQuery!$A$118:$FZ$154,CL$1) -> 0 | CM20: =VLOOKUP(DropDownList!$B$47,CntyQuery!$A$118:$FZ$154,CM$1) -> 10 | CN20: =VLOOKUP(DropDownList!$B$47,CntyQuery!$A$118:$FZ$154,CN$1) -> 4 | CO20: =VLOOKUP(DropDownList!$B$47,CntyQuery!$A$118:$FZ$154,CO$1) -> 4 | CP20: =VLOOKUP(DropDownList!$B$47,CntyQuery!$A$118:$FZ$154,CP$1) -> 8 | CQ20: =VLOOKUP(DropDownList!$B$47,CntyQuery!$A$118:$FZ$154,CQ$1) -> 0 | CR20: =VLOOKUP(DropDownList!$B$47,CntyQuery!$A$118:$FZ$154,CR$1) -> 0 | CS20: =VLOOKUP(DropDownList!$B$47,CntyQuery!$A$118:$FZ$154,CS$1) -> 2 | CT20: =VLOOKUP(DropDownList!$B$47,CntyQuery!$A$118:$FZ$154,CT$1) -> 2 | CU20: =VLOOKUP(DropDownList!$B$47,CntyQuery!$A$118:$FZ$154,CU$1) -> 1 | CV20: =VLOOKUP(DropDownList!$B$47,CntyQuery!$A$118:$FZ$154,CV$1) -> 2 | CW20: =VLOOKUP(DropDownList!$B$47,CntyQuery!$A$118:$FZ$154,CW$1) -> 2 | CX20: =VLOOKUP(DropDownList!$B$47,CntyQuery!$A$118:$FZ$154,CX$1) -> 1 | CY20: =VLOOKUP(DropDownList!$B$47,CntyQuery!$A$118:$FZ$154,CY$1) -> 9 | CZ20: =VLOOKUP(DropDownList!$B$47,CntyQuery!$A$118:$FZ$154,CZ$1) -> 0 | DA20: =VLOOKUP(DropDownList!$B$47,CntyQuery!$A$118:$FZ$154,DA$1) -> 0 | DB20: =VLOOKUP(DropDownList!$B$47,CntyQuery!$A$118:$FZ$154,DB$1) -> 14 | DC20: =VLOOKUP(DropDownList!$B$47,CntyQuery!$A$118:$FZ$154,DC$1) -> 0 | DD20: =VLOOKUP(DropDownList!$B$47,CntyQuery!$A$118:$FZ$154,DD$1) -> 0 | DE20: =VLOOKUP(DropDownList!$B$47,CntyQuery!$A$118:$FZ$154,DE$1) -> 21 | DF20: =VLOOKUP(DropDownList!$B$47,CntyQuery!$A$118:$FZ$154,DF$1) -> 0 | DG20: =VLOOKUP(DropDownList!$B$47,CntyQuery!$A$118:$FZ$154,DG$1) -> 0 | DH20: =VLOOKUP(DropDownList!$B$47,CntyQuery!$A$118:$FZ$154,DH$1) -> 19 | DI20: =VLOOKUP(DropDownList!$B$47,CntyQuery!$A$118:$FZ$154,DI$1) -> 6 | DJ20: =VLOOKUP(DropDownList!$B$47,CntyQuery!$A$118:$FZ$154,DJ$1) -> 0 | DK20: =VLOOKUP(DropDownList!$B$47,CntyQuery!$A$118:$FZ$154,DK$1) -> 23 | DL20: =VLOOKUP(DropDownList!$B$47,CntyQuery!$A$118:$FZ$154,DL$1) -> 4 | DM20: =VLOOKUP(DropDownList!$B$47,CntyQuery!$A$118:$FZ$154,DM$1) -> 0 | DN20: =VLOOKUP(DropDownList!$B$47,CntyQuery!$A$118:$FZ$154,DN$1) -> 17 | DO20: =VLOOKUP(DropDownList!$B$47,CntyQuery!$A$118:$FZ$154,DO$1) -> 16 | DP20: =VLOOKUP(DropDownList!$B$47,CntyQuery!$A$118:$FZ$154,DP$1) -> 0 | DQ20: =VLOOKUP(DropDownList!$B$47,CntyQuery!$A$118:$FZ$154,DQ$1) -> 28 | DR20: =VLOOKUP(DropDownList!$B$47,CntyQuery!$A$118:$FZ$154,DR$1) -> 16 | DS20: =VLOOKUP(DropDownList!$B$47,CntyQuery!$A$118:$FZ$154,DS$1) -> 0 | DT20: =VLOOKUP(DropDownList!$B$47,CntyQuery!$A$118:$FZ$154,DT$1) -> 30 | DU20: =VLOOKUP(DropDownList!$B$47,CntyQuery!$A$118:$FZ$154,DU$1) -> 18 | DV20: =VLOOKUP(DropDownList!$B$47,CntyQuery!$A$118:$FZ$154,DV$1) -> 0 | DW20: =VLOOKUP(DropDownList!$B$47,CntyQuery!$A$118:$FZ$154,DW$1) -> 15 | DX20: =VLOOKUP(DropDownList!$B$47,CntyQuery!$A$118:$FZ$154,DX$1) -> 4 | DY20: =VLOOKUP(DropDownList!$B$47,CntyQuery!$A$118:$FZ$154,DY$1) -> 0 | DZ20: =VLOOKUP(DropDownList!$B$47,CntyQuery!$A$118:$FZ$154,DZ$1) -> 11 | EA20: =VLOOKUP(DropDownList!$B$47,CntyQuery!$A$118:$FZ$154,EA$1) -> 2 | EB20: =VLOOKUP(DropDownList!$B$47,CntyQuery!$A$118:$FZ$154,EB$1) -> 0 | EC20: =VLOOKUP(DropDownList!$B$47,CntyQuery!$A$118:$FZ$154,EC$1) -> 13 | ED20: =VLOOKUP(DropDownList!$B$47,CntyQuery!$A$118:$FZ$154,ED$1) -> 0 | EE20: =VLOOKUP(DropDownList!$B$47,CntyQuery!$A$118:$FZ$154,EE$1) -> 0 | EF20: =VLOOKUP(DropDownList!$B$47,CntyQuery!$A$118:$FZ$154,EF$1) -> 0 | EG20: =VLOOKUP(DropDownList!$B$47,CntyQuery!$A$118:$FZ$154,EG$1) -> 0 | EH20: =VLOOKUP(DropDownList!$B$47,CntyQuery!$A$118:$FZ$154,EH$1) -> 0 | EI20: =VLOOKUP(DropDownList!$B$47,CntyQuery!$A$118:$FZ$154,EI$1) -> 22 | EJ20: =VLOOKUP(DropDownList!$B$47,CntyQuery!$A$118:$FZ$154,EJ$1) -> 1 | EK20: =VLOOKUP(DropDownList!$B$47,CntyQuery!$A$118:$FZ$154,EK$1) -> 0 | EL20: =VLOOKUP(DropDownList!$B$47,CntyQuery!$A$118:$FZ$154,EL$1) ->  | EM20: =VLOOKUP(DropDownList!$B$47,CntyQuery!$A$118:$FZ$154,EM$1) -> 8
A23: NH Employment Data | B23: Query Name: DPQryEmploymentByCnty
A24: AreaName | B24: COUNTYCODE | C24: TOTP & G2001 | D24: TOT2001 | E24: GOODPRO2001 | F24: SERVICEPROMAN2001 | G24: WAGEP & G2001 | H24: WAGETOT2001 | I24: WAGEGOODPRO2001 | J24: WAGESERVICEPRO2001 | K24: TOTP & G2002 | L24: TOT2002 | M24: GOODPRO2002 | N24: SERVICEPROMAN2002 | O24: WAGEP & G2002 | P24: WAGETOT2002 | Q24: WAGEGOODPRO2002 | R24: WAGESERVICEPRO2002 | S24: TOTP & G2003 | T24: TOT2003 | U24: GOODPRO2003 | V24: SERVICEPROMAN2003 | W24: WAGEP & G2003 | X24: WAGETOT2003 | Y24: WAGEGOODPRO2003 | Z24: WAGESERVICEPRO2003 | AA24: TOTP & G2004 | AB24: TOT2004 | AC24: GOODPRO2004 | AD24: SERVICEPROMAN2004 | AE24: WAGEP & G2004 | AF24: WAGETOT2004 | AG24: WAGEGOODPRO2004 | AH24: WAGESERVICEPRO2004 | AI24: TOTP & G2005 | AJ24: TOT2005 | AK24: GOODPRO2005 | AL24: SERVICEPROMAN2005 | AM24: WAGEP & G2005 | AN24: WAGETOT2005 | AO24: WAGEGOODPRO2005 | AP24: WAGESERVICEPRO2005 | AQ24: TOTP & G2006 | AR24: TOT2006 | AS24: GOODPRO2006 | AT24: SERVICEPROMAN2006 | AU24: WAGEP & G2006 | AV24: WAGETOT2006 | AW24: WAGEGOODPRO2006 | AX24: WAGESERVICEPRO2006 | AY24: TOTP & G2007 | AZ24: TOT2007 | BA24: GOODPRO2007 | BB24: SERVICEPROMAN2007 | BC24: WAGEP & G2007 | BD24: WAGETOT2007 | BE24: WAGEGOODPRO2007 | BF24: WAGESERVICEPRO2007 | BG24: TOTP & G2008 | BH24: TOT2008 | BI24: GOODPRO2008 | BJ24: SERVICEPROMAN2008 | BK24: WAGEP & G2008 | BL24: WAGETOT2008 | BM24: WAGEGOODPRO2008 | BN24: WAGESERVICEPRO2008 | BO24: TOTP & G2009 | BP24: TOT2009 | BQ24: GOODPRO2009 | BR24: SERVICEPROMAN2009 | BS24: WAGEP & G2009 | BT24: WAGETOT2009 | BU24: WAGEGOODPRO2009 | BV24: WAGESERVICEPRO2009 | BW24: TOTP & G2010 | BX24: TOT2010 | BY24: GOODPRO2010 | BZ24: SERVICEPROMAN2010 | CA24: WAGEP & G2010 | CB24: WAGETOT2010 | CC24: WAGEGOODPRO2010 | CD24: WAGESERVICEPRO2010 | CE24: TOTP & G2011 | CF24: TOT2011 | CG24: GOODPRO2011 | CH24: SERVICEPROMAN2011 | CI24: WAGEP & G2011 | CJ24: WAGETOT2011 | CK24: WAGEGOODPRO2011 | CL24: WAGESERVICEPRO2011 | CM24: TOTP & G2012 | CN24: TOT2012 | CO24: GOODPRO2012 | CP24: SERVICEPROMAN2012 | CQ24: WAGEP & G2012 | CR24: WAGETOT2012 | CS24: WAGEGOODPRO2012 | CT24: WAGESERVICEPRO2012 | CU24: TOTP & G2013 | CV24: TOT2013 | CW24: GOODPRO2013 | CX24: SERVICEPROMAN2013 | CY24: WAGEP & G2013 | CZ24: WAGETOT2013 | DA24: WAGEGOODPRO2013 | DB24: WAGESERVICEPRO2013 | DC24: TOTP & G2014 | DD24: TOT2014 | DE24: GOODPRO2014 | DF24: SERVICEPROMAN2014 | DG24: WAGEP & G2014 | DH24: WAGETOT2014 | DI24: WAGEGOODPRO2014 | DJ24: WAGESERVICEPRO2014 | DK24: TOTP & G2015 | DL24: TOT2015 | DM24: GOODPRO2015 | DN24: SERVICEPROMAN2015 | DO24: WAGEP & G2015 | DP24: WAGETOT2015 | DQ24: WAGEGOODPRO2015 | DR24: WAGESERVICEPRO2015 | DS24: TOTP & G2016 | DT24: TOT2016 | DU24: GOODPRO2016 | DV24: SERVICEPROMAN2016 | DW24: WAGEP & G2016 | DX24: WAGETOT2016 | DY24: WAGEGOODPRO2016 | DZ24: WAGESERVICEPRO2016 | EA24: TOTP & G2017 | EB24: TOT2017 | EC24: GOODPRO2017 | ED24: SERVICEPROMAN2017 | EE24: WAGEP & G2017 | EF24: WAGETOT2017 | EG24: WAGEGOODPRO2017 | EH24: WAGESERVICEPRO2017 | EI24: TOTP & G2018 | EJ24: TOT2018 | EK24: GOODPRO2018 | EL24: SERVICEPROMAN2018 | EM24: WAGEP & G2018 | EN24: WAGETOT2018 | EO24: WAGEGOODPRO2018 | EP24: WAGESERVICEPRO2018 | EQ24: TOTP & G2019 | ER24: TOT2019 | ES24: TOTGov2019 | ET24: GOODPRO2019 | EU24: SERVICEPROMAN2019 | EV24: WAGEP & G2019 | EW24: WAGETOT2019 | EX24: WAGEGov2019 | EY24: WAGEGOODPRO2019 | EZ24: WAGESERVICEPRO2019 | FA24: TOTP & G2020 | FB24: TOT2020 | FC24: TOTGov2020 | FD24: GOODPRO2020 | FE24: SERVICEPROMAN2020 | FF24: WAGEP & G2020 | FG24: WAGETOT2020 | FH24: WAGEGov2020 | FI24: WAGEGOODPRO2020 | FJ24: WAGESERVICEPRO2020 | FK24: TOTP & G2021 | FL24: TOT2021 | FM24: TOTGov2021 | FN24: GOODPRO2021 | FO24: SERVICEPROMAN2021 | FP24: WAGEP & G2021 | FQ24: WAGETOT2021 | FR24: WAGEGov2021 | FS24: WAGEGOODPRO2021 | FT24: WAGESERVICEPRO2021 | FU24: TOTP & G2022 | FV24: TOT2022 | FW24: TOTGov2022 | FX24: GOODPRO2022 | FY24: SERVICEPROMAN2022 | FZ24: WAGEP & G2022 | GA24: WAGETOT2022 | GB24: WAGEGov2022 | GC24: WAGEGOODPRO2022 | GD24: WAGESERVICEPRO2022 | GE24: COUNTYCODE
A25: =VLOOKUP(DropDownList!$B$47,CntyQuery!$A$170:$GZ$207,A$1) -> Chester | B25: =VLOOKUP(DropDownList!$B$47,CntyQuery!$A$170:$GZ$207,B$1) -> 8 | C25: =VLOOKUP(DropDownList!$B$47,CntyQuery!$A$170:$GZ$207,C$1) -> 376 | D25: =VLOOKUP(DropDownList!$B$47,CntyQuery!$A$170:$GZ$207,D$1) -> 267 | E25: =VLOOKUP(DropDownList!$B$47,CntyQuery!$A$170:$GZ$207,E$1) -> 84 | F25: =VLOOKUP(DropDownList!$B$47,CntyQuery!$A$170:$GZ$207,F$1) -> 183 | G25: =VLOOKUP(DropDownList!$B$47,CntyQuery!$A$170:$GZ$207,G$1) -> 781.39 | H25: =VLOOKUP(DropDownList!$B$47,CntyQuery!$A$170:$GZ$207,H$1) -> 909.65 | I25: =VLOOKUP(DropDownList!$B$47,CntyQuery!$A$170:$GZ$207,I$1) -> 1171.9 | J25: =VLOOKUP(DropDownList!$B$47,CntyQuery!$A$170:$GZ$207,J$1) -> 790.16 | K25: =VLOOKUP(DropDownList!$B$47,CntyQuery!$A$170:$GZ$207,K$1) -> 406 | L25: =VLOOKUP(DropDownList!$B$47,CntyQuery!$A$170:$GZ$207,L$1) -> 270 | M25: =VLOOKUP(DropDownList!$B$47,CntyQuery!$A$170:$GZ$207,M$1) -> 81 | N25: =VLOOKUP(DropDownList!$B$47,CntyQuery!$A$170:$GZ$207,N$1) -> 190 | O25: =VLOOKUP(DropDownList!$B$47,CntyQuery!$A$170:$GZ$207,O$1) -> 741.05 | P25: =VLOOKUP(DropDownList!$B$47,CntyQuery!$A$170:$GZ$207,P$1) -> 883.26 | Q25: =VLOOKUP(DropDownList!$B$47,CntyQuery!$A$170:$GZ$207,Q$1) -> 1090.94 | R25: =VLOOKUP(DropDownList!$B$47,CntyQuery!$A$170:$GZ$207,R$1) -> 794.8 | S25: =VLOOKUP(DropDownList!$B$47,CntyQuery!$A$170:$GZ$207,S$1) -> 436 | T25: =VLOOKUP(DropDownList!$B$47,CntyQuery!$A$170:$GZ$207,T$1) -> 280 | U25: =VLOOKUP(DropDownList!$B$47,CntyQuery!$A$170:$GZ$207,U$1) -> 72 | V25: =VLOOKUP(DropDownList!$B$47,CntyQuery!$A$170:$GZ$207,V$1) -> 208 | W25: =VLOOKUP(DropDownList!$B$47,CntyQuery!$A$170:$GZ$207,W$1) -> 575.23 | X25: =VLOOKUP(DropDownList!$B$47,CntyQuery!$A$170:$GZ$207,X$1) -> 655.07 | Y25: =VLOOKUP(DropDownList!$B$47,CntyQuery!$A$170:$GZ$207,Y$1) -> 862.13 | Z25: =VLOOKUP(DropDownList!$B$47,CntyQuery!$A$170:$GZ$207,Z$1) -> 582.97 | AA25: =VLOOKUP(DropDownList!$B$47,CntyQuery!$A$170:$GZ$207,AA$1) -> 437 | AB25: =VLOOKUP(DropDownList!$B$47,CntyQuery!$A$170:$GZ$207,AB$1) -> 278 | AC25: =VLOOKUP(DropDownList!$B$47,CntyQuery!$A$170:$GZ$207,AC$1) -> 77 | AD25: =VLOOKUP(DropDownList!$B$47,CntyQuery!$A$170:$GZ$207,AD$1) -> 201 | AE25: =VLOOKUP(DropDownList!$B$47,CntyQuery!$A$170:$GZ$207,AE$1) -> 621.3 | AF25: =VLOOKUP(DropDownList!$B$47,CntyQuery!$A$170:$GZ$207,AF$1) -> 706.42 | AG25: =VLOOKUP(DropDownList!$B$47,CntyQuery!$A$170:$GZ$207,AG$1) -> 1035.94 | AH25: =VLOOKUP(DropDownList!$B$47,CntyQuery!$A$170:$GZ$207,AH$1) -> 580.38 | AI25: =VLOOKUP(DropDownList!$B$47,CntyQuery!$A$170:$GZ$207,AI$1) -> 473 | AJ25: =VLOOKUP(DropDownList!$B$47,CntyQuery!$A$170:$GZ$207,AJ$1) -> 311 | AK25: =VLOOKUP(DropDownList!$B$47,CntyQuery!$A$170:$GZ$207,AK$1) -> 105 | AL25: =VLOOKUP(DropDownList!$B$47,CntyQuery!$A$170:$GZ$207,AL$1) -> 206 | AM25: =VLOOKUP(DropDownList!$B$47,CntyQuery!$A$170:$GZ$207,AM$1) -> 621.63 | AN25: =VLOOKUP(DropDownList!$B$47,CntyQuery!$A$170:$GZ$207,AN$1) -> 693.8 | AO25: =VLOOKUP(DropDownList!$B$47,CntyQuery!$A$170:$GZ$207,AO$1) -> 896.98 | AP25: =VLOOKUP(DropDownList!$B$47,CntyQuery!$A$170:$GZ$207,AP$1) -> 590.07 | AQ25: =VLOOKUP(DropDownList!$B$47,CntyQuery!$A$170:$GZ$207,AQ$1) -> 452 | AR25: =VLOOKUP(DropDownList!$B$47,CntyQuery!$A$170:$GZ$207,AR$1) -> 270 | AS25: =VLOOKUP(DropDownList!$B$47,CntyQuery!$A$170:$GZ$207,AS$1) -> 100 | AT25: =VLOOKUP(DropDownList!$B$47,CntyQuery!$A$170:$GZ$207,AT$1) -> 170 | AU25: =VLOOKUP(DropDownList!$B$47,CntyQuery!$A$170:$GZ$207,AU$1) -> 648.25 | AV25: =VLOOKUP(DropDownList!$B$47,CntyQuery!$A$170:$GZ$207,AV$1) -> 772.88 | AW25: =VLOOKUP(DropDownList!$B$47,CntyQuery!$A$170:$GZ$207,AW$1) -> 967.99 | AX25: =VLOOKUP(DropDownList!$B$47,CntyQuery!$A$170:$GZ$207,AX$1) -> 658.56 | AY25: =VLOOKUP(DropDownList!$B$47,CntyQuery!$A$170:$GZ$207,AY$1) -> 452 | AZ25: =VLOOKUP(DropDownList!$B$47,CntyQuery!$A$170:$GZ$207,AZ$1) -> 266 | BA25: =VLOOKUP(DropDownList!$B$47,CntyQuery!$A$170:$GZ$207,BA$1) -> 95 | BB25: =VLOOKUP(DropDownList!$B$47,CntyQuery!$A$170:$GZ$207,BB$1) -> 170 | BC25: =VLOOKUP(DropDownList!$B$47,CntyQuery!$A$170:$GZ$207,BC$1) -> 696.98 | BD25: =VLOOKUP(DropDownList!$B$47,CntyQuery!$A$170:$GZ$207,BD$1) -> 823 | BE25: =VLOOKUP(DropDownList!$B$47,CntyQuery!$A$170:$GZ$207,BE$1) -> 990.73 | BF25: =VLOOKUP(DropDownList!$B$47,CntyQuery!$A$170:$GZ$207,BF$1) -> 729.04 | BG25: =VLOOKUP(DropDownList!$B$47,CntyQuery!$A$170:$GZ$207,BG$1) -> 461 | BH25: =VLOOKUP(DropDownList!$B$47,CntyQuery!$A$170:$GZ$207,BH$1) -> 264 | BI25: =VLOOKUP(DropDownList!$B$47,CntyQuery!$A$170:$GZ$207,BI$1) -> 92 | BJ25: =VLOOKUP(DropDownList!$B$47,CntyQuery!$A$170:$GZ$207,BJ$1) -> 173 | BK25: =VLOOKUP(DropDownList!$B$47,CntyQuery!$A$170:$GZ$207,BK$1) -> 684.39 | BL25: =VLOOKUP(DropDownList!$B$47,CntyQuery!$A$170:$GZ$207,BL$1) -> 812.28 | BM25: =VLOOKUP(DropDownList!$B$47,CntyQuery!$A$170:$GZ$207,BM$1) -> 936.9 | BN25: =VLOOKUP(DropDownList!$B$47,CntyQuery!$A$170:$GZ$207,BN$1) -> 746.12 | BO25: =VLOOKUP(DropDownList!$B$47,CntyQuery!$A$170:$GZ$207,BO$1) -> 489 | BP25: =VLOOKUP(DropDownList!$B$47,CntyQuery!$A$170:$GZ$207,BP$1) -> 290 | BQ25: =VLOOKUP(DropDownList!$B$47,CntyQuery!$A$170:$GZ$207,BQ$1) -> 84 | BR25: =VLOOKUP(DropDownList!$B$47,CntyQuery!$A$170:$GZ$207,BR$1) -> 206 | BS25: =VLOOKUP(DropDownList!$B$47,CntyQuery!$A$170:$GZ$207,BS$1) -> 660.18 | BT25: =VLOOKUP(DropDownList!$B$47,CntyQuery!$A$170:$GZ$207,BT$1) -> 741.75 | BU25: =VLOOKUP(DropDownList!$B$47,CntyQuery!$A$170:$GZ$207,BU$1) -> 880.97 | BV25: =VLOOKUP(DropDownList!$B$47,CntyQuery!$A$170:$GZ$207,BV$1) -> 684.8 | BW25: =VLOOKUP(DropDownList!$B$47,CntyQuery!$A$170:$GZ$207,BW$1) -> 525 | BX25: =VLOOKUP(DropDownList!$B$47,CntyQuery!$A$170:$GZ$207,BX$1) -> 327 | BY25: =VLOOKUP(DropDownList!$B$47,CntyQuery!$A$170:$GZ$207,BY$1) -> 78 | BZ25: =VLOOKUP(DropDownList!$B$47,CntyQuery!$A$170:$GZ$207,BZ$1) -> 250 | CA25: =VLOOKUP(DropDownList!$B$47,CntyQuery!$A$170:$GZ$207,CA$1) -> 629.4 | CB25: =VLOOKUP(DropDownList!$B$47,CntyQuery!$A$170:$GZ$207,CB$1) -> 671.19 | CC25: =VLOOKUP(DropDownList!$B$47,CntyQuery!$A$170:$GZ$207,CC$1) -> 875.35 | CD25: =VLOOKUP(DropDownList!$B$47,CntyQuery!$A$170:$GZ$207,CD$1) -> 607.73 | CE25: =VLOOKUP(DropDownList!$B$47,CntyQuery!$A$170:$GZ$207,CE$1) -> 636 | CF25: =VLOOKUP(DropDownList!$B$47,CntyQuery!$A$170:$GZ$207,CF$1) -> 464 | CG25: =VLOOKUP(DropDownList!$B$47,CntyQuery!$A$170:$GZ$207,CG$1) -> 71 | CH25: =VLOOKUP(DropDownList!$B$47,CntyQuery!$A$170:$GZ$207,CH$1) -> 394 | CI25: =VLOOKUP(DropDownList!$B$47,CntyQuery!$A$170:$GZ$207,CI$1) -> 615.51 | CJ25: =VLOOKUP(DropDownList!$B$47,CntyQuery!$A$170:$GZ$207,CJ$1) -> 623.35 | CK25: =VLOOKUP(DropDownList!$B$47,CntyQuery!$A$170:$GZ$207,CK$1) -> 1012.04 | CL25: =VLOOKUP(DropDownList!$B$47,CntyQuery!$A$170:$GZ$207,CL$1) -> 553.54 | CM25: =VLOOKUP(DropDownList!$B$47,CntyQuery!$A$170:$GZ$207,CM$1) -> 456 | CN25: =VLOOKUP(DropDownList!$B$47,CntyQuery!$A$170:$GZ$207,CN$1) -> 289 | CO25: =VLOOKUP(DropDownList!$B$47,CntyQuery!$A$170:$GZ$207,CO$1) -> 74 | CP25: =VLOOKUP(DropDownList!$B$47,CntyQuery!$A$170:$GZ$207,CP$1) -> 215 | CQ25: =VLOOKUP(DropDownList!$B$47,CntyQuery!$A$170:$GZ$207,CQ$1) -> 717.21 | CR25: =VLOOKUP(DropDownList!$B$47,CntyQuery!$A$170:$GZ$207,CR$1) -> 793.28 | CS25: =VLOOKUP(DropDownList!$B$47,CntyQuery!$A$170:$GZ$207,CS$1) -> 933.95 | CT25: =VLOOKUP(DropDownList!$B$47,CntyQuery!$A$170:$GZ$207,CT$1) -> 745.25 | CU25: =VLOOKUP(DropDownList!$B$47,CntyQuery!$A$170:$GZ$207,CU$1) -> 396 | CV25: =VLOOKUP(DropDownList!$B$47,CntyQuery!$A$170:$GZ$207,CV$1) -> 242 | CW25: =VLOOKUP(DropDownList!$B$47,CntyQuery!$A$170:$GZ$207,CW$1) -> 72 | CX25: =VLOOKUP(DropDownList!$B$47,CntyQuery!$A$170:$GZ$207,CX$1) -> 170 | CY25: =VLOOKUP(DropDownList!$B$47,CntyQuery!$A$170:$GZ$207,CY$1) -> 712.57 | CZ25: =VLOOKUP(DropDownList!$B$47,CntyQuery!$A$170:$GZ$207,CZ$1) -> 768.11 | DA25: =VLOOKUP(DropDownList!$B$47,CntyQuery!$A$170:$GZ$207,DA$1) -> 941.7 | DB25: =VLOOKUP(DropDownList!$B$47,CntyQuery!$A$170:$GZ$207,DB$1) -> 694.15 | DC25: =VLOOKUP(DropDownList!$B$47,CntyQuery!$A$170:$GZ$207,DC$1) -> 347 | DD25: =VLOOKUP(DropDownList!$B$47,CntyQuery!$A$170:$GZ$207,DD$1) -> 197 | DE25: =VLOOKUP(DropDownList!$B$47,CntyQuery!$A$170:$GZ$207,DE$1) -> 72 | DF25: =VLOOKUP(DropDownList!$B$47,CntyQuery!$A$170:$GZ$207,DF$1) -> 125 | DG25: =VLOOKUP(DropDownList!$B$47,CntyQuery!$A$170:$GZ$207,DG$1) -> 846.84 | DH25: =VLOOKUP(DropDownList!$B$47,CntyQuery!$A$170:$GZ$207,DH$1) -> 1003.07 | DI25: =VLOOKUP(DropDownList!$B$47,CntyQuery!$A$170:$GZ$207,DI$1) -> 1009.66 | DJ25: =VLOOKUP(DropDownList!$B$47,CntyQuery!$A$170:$GZ$207,DJ$1) -> 999.26 | DK25: =VLOOKUP(DropDownList!$B$47,CntyQuery!$A$170:$GZ$207,DK$1) -> 365 | DL25: =VLOOKUP(DropDownList!$B$47,CntyQuery!$A$170:$GZ$207,DL$1) -> 207 | DM25: =VLOOKUP(DropDownList!$B$47,CntyQuery!$A$170:$GZ$207,DM$1) -> 69 | DN25: =VLOOKUP(DropDownList!$B$47,CntyQuery!$A$170:$GZ$207,DN$1) -> 137 | DO25: =VLOOKUP(DropDownList!$B$47,CntyQuery!$A$170:$GZ$207,DO$1) -> 870.6 | DP25: =VLOOKUP(DropDownList!$B$47,CntyQuery!$A$170:$GZ$207,DP$1) -> 1048.73 | DQ25: =VLOOKUP(DropDownList!$B$47,CntyQuery!$A$170:$GZ$207,DQ$1) -> 1238.76 | DR25: =VLOOKUP(DropDownList!$B$47,CntyQuery!$A$170:$GZ$207,DR$1) -> 952.85 | DS25: =VLOOKUP(DropDownList!$B$47,CntyQuery!$A$170:$GZ$207,DS$1) -> 384 | DT25: =VLOOKUP(DropDownList!$B$47,CntyQuery!$A$170:$GZ$207,DT$1) -> 220 | DU25: =VLOOKUP(DropDownList!$B$47,CntyQuery!$A$170:$GZ$207,DU$1) -> 77 | DV25: =VLOOKUP(DropDownList!$B$47,CntyQuery!$A$170:$GZ$207,DV$1) -> 143 | DW25: =VLOOKUP(DropDownList!$B$47,CntyQuery!$A$170:$GZ$207,DW$1) -> 841.89 | DX25: =VLOOKUP(DropDownList!$B$47,CntyQuery!$A$170:$GZ$207,DX$1) -> 998.11 | DY25: =VLOOKUP(DropDownList!$B$47,CntyQuery!$A$170:$GZ$207,DY$1) -> 1114.09 | DZ25: =VLOOKUP(DropDownList!$B$47,CntyQuery!$A$170:$GZ$207,DZ$1) -> 935.73 | EA25: =VLOOKUP(DropDownList!$B$47,CntyQuery!$A$170:$GZ$207,EA$1) -> 399 | EB25: =VLOOKUP(DropDownList!$B$47,CntyQuery!$A$170:$GZ$207,EB$1) -> 242 | EC25: =VLOOKUP(DropDownList!$B$47,CntyQuery!$A$170:$GZ$207,EC$1) -> 81 | ED25: =VLOOKUP(DropDownList!$B$47,CntyQuery!$A$170:$GZ$207,ED$1) -> 160 | EE25: =VLOOKUP(DropDownList!$B$47,CntyQuery!$A$170:$GZ$207,EE$1) -> 910.53 | EF25: =VLOOKUP(DropDownList!$B$47,CntyQuery!$A$170:$GZ$207,EF$1) -> 1056.72 | EG25: =VLOOKUP(DropDownList!$B$47,CntyQuery!$A$170:$GZ$207,EG$1) -> 1192.24 | EH25: =VLOOKUP(DropDownList!$B$47,CntyQuery!$A$170:$GZ$207,EH$1) -> 988.21 | EI25: =VLOOKUP(DropDownList!$B$47,CntyQuery!$A$170:$GZ$207,EI$1) -> 427 | EJ25: =VLOOKUP(DropDownList!$B$47,CntyQuery!$A$170:$GZ$207,EJ$1) -> 267 | EK25: =VLOOKUP(DropDownList!$B$47,CntyQuery!$A$170:$GZ$207,EK$1) -> 107 | EL25: =VLOOKUP(DropDownList!$B$47,CntyQuery!$A$170:$GZ$207,EL$1) -> 160 | EM25: =VLOOKUP(DropDownList!$B$47,CntyQuery!$A$170:$GZ$207,EM$1) -> 911.83 | EN25: =VLOOKUP(DropDownList!$B$47,CntyQuery!$A$170:$GZ$207,EN$1) -> 1048.24 | EO25: =VLOOKUP(DropDownList!$B$47,CntyQuery!$A$170:$GZ$207,EO$1) -> 1107.5 | EP25: =VLOOKUP(DropDownList!$B$47,CntyQuery!$A$170:$GZ$207,EP$1) -> 1008.76 | EQ25: =VLOOKUP(DropDownList!$B$47,CntyQuery!$A$170:$GZ$207,EQ$1) -> 428 | ER25: =VLOOKUP(DropDownList!$B$47,CntyQuery!$A$170:$GZ$207,ER$1) -> 260 | ES25: =VLOOKUP(DropDownList!$B$47,CntyQuery!$A$170:$GZ$207,ES$1) -> 7 | ET25: =VLOOKUP(DropDownList!$B$47,CntyQuery!$A$170:$GZ$207,ET$1) -> 112 | EU25: =VLOOKUP(DropDownList!$B$47,CntyQuery!$A$170:$GZ$207,EU$1) -> 148 | EV25: =VLOOKUP(DropDownList!$B$47,CntyQuery!$A$170:$GZ$207,EV$1) -> 892.11 | EW25: =VLOOKUP(DropDownList!$B$47,CntyQuery!$A$170:$GZ$207,EW$1) -> 1007.77 | EX25: =VLOOKUP(DropDownList!$B$47,CntyQuery!$A$170:$GZ$207,EX$1) -> 1780.83 | EY25: =VLOOKUP(DropDownList!$B$47,CntyQuery!$A$170:$GZ$207,EY$1) -> 1106.9 | EZ25: =VLOOKUP(DropDownList!$B$47,CntyQuery!$A$170:$GZ$207,EZ$1) -> 932.75 | FA25: =VLOOKUP(DropDownList!$B$47,CntyQuery!$A$170:$GZ$207,FA$1) -> 411 | FB25: =VLOOKUP(DropDownList!$B$47,CntyQuery!$A$170:$GZ$207,FB$1) -> 247 | FC25: =VLOOKUP(DropDownList!$B$47,CntyQuery!$A$170:$GZ$207,FC$1) -> 164 | FD25: =VLOOKUP(DropDownList!$B$47,CntyQuery!$A$170:$GZ$207,FD$1) -> 114 | FE25: =VLOOKUP(DropDownList!$B$47,CntyQuery!$A$170:$GZ$207,FE$1) -> 133 | FF25: =VLOOKUP(DropDownList!$B$47,CntyQuery!$A$170:$GZ$207,FF$1) -> 999.24 | FG25: =VLOOKUP(DropDownList!$B$47,CntyQuery!$A$170:$GZ$207,FG$1) -> 1135.98 | FH25: =VLOOKUP(DropDownList!$B$47,CntyQuery!$A$170:$GZ$207,FH$1) -> 793.01 | FI25: =VLOOKUP(DropDownList!$B$47,CntyQuery!$A$170:$GZ$207,FI$1) -> 1263.87 | FJ25: =VLOOKUP(DropDownList!$B$47,CntyQuery!$A$170:$GZ$207,FJ$1) -> 1025.98 | FK25: =VLOOKUP(DropDownList!$B$47,CntyQuery!$A$170:$GZ$207,FK$1) -> 426 | FL25: =VLOOKUP(DropDownList!$B$47,CntyQuery!$A$170:$GZ$207,FL$1) -> 255 | FM25: =VLOOKUP(DropDownList!$B$47,CntyQuery!$A$170:$GZ$207,FM$1) -> 170 | FN25: =VLOOKUP(DropDownList!$B$47,CntyQuery!$A$170:$GZ$207,FN$1) -> 99 | FO25: =VLOOKUP(DropDownList!$B$47,CntyQuery!$A$170:$GZ$207,FO$1) -> 156 | FP25: =VLOOKUP(DropDownList!$B$47,CntyQuery!$A$170:$GZ$207,FP$1) -> 995.21 | FQ25: =VLOOKUP(DropDownList!$B$47,CntyQuery!$A$170:$GZ$207,FQ$1) -> 1124.43 | FR25: =VLOOKUP(DropDownList!$B$47,CntyQuery!$A$170:$GZ$207,FR$1) -> 801.63 | FS25: =VLOOKUP(DropDownList!$B$47,CntyQuery!$A$170:$GZ$207,FS$1) -> 1277.48 | FT25: =VLOOKUP(DropDownList!$B$47,CntyQuery!$A$170:$GZ$207,FT$1) -> 1027.8 | FU25: =VLOOKUP(DropDownList!$B$47,CntyQuery!$A$170:$GZ$207,FU$1) -> 458 | FV25: =VLOOKUP(DropDownList!$B$47,CntyQuery!$A$170:$GZ$207,FV$1) -> 282 | FW25: =VLOOKUP(DropDownList!$B$47,CntyQuery!$A$170:$GZ$207,FW$1) -> 176 | FX25: =VLOOKUP(DropDownList!$B$47,CntyQuery!$A$170:$GZ$207,FX$1) -> 102 | FY25: =VLOOKUP(DropDownList!$B$47,CntyQuery!$A$170:$GZ$207,FY$1) -> 180 | FZ25: =VLOOKUP(DropDownList!$B$47,CntyQuery!$A$170:$GZ$207,FZ$1) -> 1029 | GA25: =VLOOKUP(DropDownList!$B$47,CntyQuery!$A$170:$GZ$207,GA$1) -> 1157 | GB25: =VLOOKUP(DropDownList!$B$47,CntyQuery!$A$170:$GZ$207,GB$1) -> 826 | GC25: =VLOOKUP(DropDownList!$B$47,CntyQuery!$A$170:$GZ$207,GC$1) -> 1299 | GD25: =VLOOKUP(DropDownList!$B$47,CntyQuery!$A$170:$GZ$207,GD$1) -> 1077 | GE25: =VLOOKUP(DropDownList!$B$47,CntyQuery!$A$170:$GZ$207,GE$1) -> 8
A28: Labor Force and Unemployment Rate | B28: Query Name: DPQryUnempByCnty
A29: PlaceName | B29: LaborForce1990 | C29: LaborForce1991 | D29: LaborForce1992 | E29: LaborForce1993 | F29: LaborForce1994 | G29: LaborForce1995 | H29: LaborForce1996 | I29: LaborForce1997 | J29: LaborForce1998 | K29: LaborForce1999 | L29: LaborForce2000 | M29: LaborForce2001 | N29: LaborForce2002 | O29: LaborForce2003 | P29: NumbEmployed1990 | Q29: NumbEmployed1991 | R29: NumbEmployed1992 | S29: NumbEmployed1993 | T29: NumbEmployed1994 | U29: NumbEmployed1995 | V29: NumbEmployed1996 | W29: NumbEmployed1997 | X29: NumbEmployed1998 | Y29: NumbEmployed1999 | Z29: NumbEmployed2000 | AA29: NumbEmployed2001 | AB29: NumbEmployed2002 | AC29: NumbEmployed2003 | AD29: UnempRate1990 | AE29: UnempRate1991 | AF29: UnempRate1992 | AG29: UnempRate1993 | AH29: UnempRate1994 | AI29: UnempRate1995 | AJ29: UnempRate1996 | AK29: UnempRate1997 | AL29: UnempRate1998 | AM29: UnempRate1999 | AN29: UnempRate2000 | AO29: UnempRate2001 | AP29: UnempRate2002 | AQ29: UnempRate2003 | AR29: NumbUnEmp1990 | AS29: NumbUnEmp1991 | AT29: NumbUnEmp1992 | AU29: NumbUnEmp1993 | AV29: NumbUnEmp1994 | AW29: NumbUnEmp1995 | AX29: NumbUnEmp1996 | AY29: NumbUnEmp1997 | AZ29: NumbUnEmp1998 | BA29: NumbUnEmp1999 | BB29: NumbUnEmp2000 | BC29: NumbUnEmp2001 | BD29: NumbUnEmp2002 | BE29: NumbUnEmp2003 | BF29: LaborForce2004 | BG29: NumbEmployed2004 | BH29: UnempRate2004 | BI29: NumbUnEmp2004 | BJ29: LaborForce2005 | BK29: NumbEmployed2005 | BL29: NumbUnEmp2005 | BM29: UnempRate2005 | BN29: LaborForce2006 | BO29: NumbEmployed2006 | BP29: NumbUnEmp2006 | BQ29: UnempRate2006 | BR29: LaborForce2007 | BS29: NumbEmployed2007 | BT29: NumbUnEmp2007 | BU29: UnempRate2007 | BV29: LaborForce2008 | BW29: NumbEmployed2008 | BX29: NumbUnEmp2008 | BY29: UnempRate2008 | BZ29: LaborForce2009 | CA29: NumbEmployed2009 | CB29: NumbUnEmp2009 | CC29: UnempRate2009 | CD29: LaborForce2010 | CE29: NumbEmployed2010 | CF29: NumbUnEmp2010 | CG29: UnempRate2010 | CH29: LaborForce2011 | CI29: NumbEmployed2011 | CJ29: NumbUnEmp2011 | CK29: UnempRate2011 | CL29: LaborForce2012 | CM29: NumbEmployed2012 | CN29: NumbUnEmp2012 | CO29: UnempRate2012 | CP29: LaborForce2013 | CQ29: NumbEmployed2013 | CR29: NumbUnEmp2013 | CS29: UnempRate2013 | CT29: LaborForce2014 | CU29: NumbEmployed2014 | CV29: NumbUnEmp2014 | CW29: UnempRate2014 | CX29: LaborForce2015 | CY29: NumbEmployed2015 | CZ29: NumbUnEmp2015 | DA29: UnempRate2015 | DB29: LaborForce2016 | DC29: NumbEmployed2016 | DD29: NumbUnEmp2016 | DE29: UnempRate2016 | DF29: LaborForce2017 | DG29: NumbEmployed2017 | DH29: NumbUnEmp2017 | DI29: UnempRate2017 | DJ29: LaborForce2018 | DK29: NumbEmployed2018 | DL29: NumbUnEmp2018 | DM29: UnempRate2018 | DN29: LaborForce2019 | DO29: NumbEmployed2019 | DP29: NumbUnEmp2019 | DQ29: UnempRate2019 | DR29: LaborForce2020 | DS29: NumbEmployed2020 | DT29: NumbUnEmp2020 | DU29: UnempRate2020 | DV29: LaborForce2021 | DW29: NumbEmployed2021 | DX29: NumbUnEmp2021 | DY29: UnempRate2021 | DZ29: Place-TownIDNumber
A30: =VLOOKUP(DropDownList!$B$47,CntyQuery!$A$170:$FJ$213,A$1) -> Chester | B30: =VLOOKUP(DropDownList!$B$47,CntyQuery!$A$220:$EF$229,B$1) ->  | C30: =VLOOKUP(DropDownList!$B$47,CntyQuery!$A$220:$EF$229,C$1) ->  | D30: =VLOOKUP(DropDownList!$B$47,CntyQuery!$A$220:$EF$229,D$1) ->  | E30: =VLOOKUP(DropDownList!$B$47,CntyQuery!$A$220:$EF$229,E$1) ->  | F30: =VLOOKUP(DropDownList!$B$47,CntyQuery!$A$220:$EF$229,F$1) ->  | G30: =VLOOKUP(DropDownList!$B$47,CntyQuery!$A$220:$EF$229,G$1) ->  | H30: =VLOOKUP(DropDownList!$B$47,CntyQuery!$A$220:$EF$229,H$1) ->  | I30: =VLOOKUP(DropDownList!$B$47,CntyQuery!$A$220:$EF$229,I$1) ->  | J30: =VLOOKUP(DropDownList!$B$47,CntyQuery!$A$220:$EF$229,J$1) ->  | K30: =VLOOKUP(DropDownList!$B$47,CntyQuery!$A$220:$EF$229,K$1) ->  | L30: =VLOOKUP(DropDownList!$B$47,CntyQuery!$A$220:$EF$229,L$1) ->  | M30: =VLOOKUP(DropDownList!$B$47,CntyQuery!$A$220:$EF$229,M$1) ->  | N30: =VLOOKUP(DropDownList!$B$47,CntyQuery!$A$220:$EF$229,N$1) ->  | O30: =VLOOKUP(DropDownList!$B$47,CntyQuery!$A$220:$EF$229,O$1) ->  | P30: =VLOOKUP(DropDownList!$B$47,CntyQuery!$A$220:$EF$229,P$1) ->  | Q30: =VLOOKUP(DropDownList!$B$47,CntyQuery!$A$220:$EF$229,Q$1) ->  | R30: =VLOOKUP(DropDownList!$B$47,CntyQuery!$A$220:$EF$229,R$1) ->  | S30: =VLOOKUP(DropDownList!$B$47,CntyQuery!$A$220:$EF$229,S$1) ->  | T30: =VLOOKUP(DropDownList!$B$47,CntyQuery!$A$220:$EF$229,T$1) ->  | U30: =VLOOKUP(DropDownList!$B$47,CntyQuery!$A$220:$EF$229,U$1) ->  | V30: =VLOOKUP(DropDownList!$B$47,CntyQuery!$A$220:$EF$229,V$1) ->  | W30: =VLOOKUP(DropDownList!$B$47,CntyQuery!$A$220:$EF$229,W$1) ->  | X30: =VLOOKUP(DropDownList!$B$47,CntyQuery!$A$220:$EF$229,X$1) ->  | Y30: =VLOOKUP(DropDownList!$B$47,CntyQuery!$A$220:$EF$229,Y$1) ->  | Z30: =VLOOKUP(DropDownList!$B$47,CntyQuery!$A$220:$EF$229,Z$1) ->  | AA30: =VLOOKUP(DropDownList!$B$47,CntyQuery!$A$220:$EF$229,AA$1) ->  | AB30: =VLOOKUP(DropDownList!$B$47,CntyQuery!$A$220:$EF$229,AB$1) ->  | AC30: =VLOOKUP(DropDownList!$B$47,CntyQuery!$A$220:$EF$229,AC$1) ->  | AD30: =VLOOKUP(DropDownList!$B$47,CntyQuery!$A$220:$EF$229,AD$1) ->  | AE30: =VLOOKUP(DropDownList!$B$47,CntyQuery!$A$220:$EF$229,AE$1) ->  | AF30: =VLOOKUP(DropDownList!$B$47,CntyQuery!$A$220:$EF$229,AF$1) ->  | AG30: =VLOOKUP(DropDownList!$B$47,CntyQuery!$A$220:$EF$229,AG$1) ->  | AH30: =VLOOKUP(DropDownList!$B$47,CntyQuery!$A$220:$EF$229,AH$1) ->  | AI30: =VLOOKUP(DropDownList!$B$47,CntyQuery!$A$220:$EF$229,AI$1) ->  | AJ30: =VLOOKUP(DropDownList!$B$47,CntyQuery!$A$220:$EF$229,AJ$1) ->  | AK30: =VLOOKUP(DropDownList!$B$47,CntyQuery!$A$220:$EF$229,AK$1) ->  | AL30: =VLOOKUP(DropDownList!$B$47,CntyQuery!$A$220:$EF$229,AL$1) ->  | AM30: =VLOOKUP(DropDownList!$B$47,CntyQuery!$A$220:$EF$229,AM$1) ->  | AN30: =VLOOKUP(DropDownList!$B$47,CntyQuery!$A$220:$EF$229,AN$1) ->  | AO30: =VLOOKUP(DropDownList!$B$47,CntyQuery!$A$220:$EF$229,AO$1) ->  | AP30: =VLOOKUP(DropDownList!$B$47,CntyQuery!$A$220:$EF$229,AP$1) ->  | AQ30: =VLOOKUP(DropDownList!$B$47,CntyQuery!$A$220:$EF$229,AQ$1) ->  | AR30: =VLOOKUP(DropDownList!$B$47,CntyQuery!$A$220:$EF$229,AR$1) ->  | AS30: =VLOOKUP(DropDownList!$B$47,CntyQuery!$A$220:$EF$229,AS$1) ->  | AT30: =VLOOKUP(DropDownList!$B$47,CntyQuery!$A$220:$EF$229,AT$1) ->  | AU30: =VLOOKUP(DropDownList!$B$47,CntyQuery!$A$220:$EF$229,AU$1) ->  | AV30: =VLOOKUP(DropDownList!$B$47,CntyQuery!$A$220:$EF$229,AV$1) ->  | AW30: =VLOOKUP(DropDownList!$B$47,CntyQuery!$A$220:$EF$229,AW$1) ->  | AX30: =VLOOKUP(DropDownList!$B$47,CntyQuery!$A$220:$EF$229,AX$1) ->  | AY30: =VLOOKUP(DropDownList!$B$47,CntyQuery!$A$220:$EF$229,AY$1) ->  | AZ30: =VLOOKUP(DropDownList!$B$47,CntyQuery!$A$220:$EF$229,AZ$1) ->  | BA30: =VLOOKUP(DropDownList!$B$47,CntyQuery!$A$220:$EF$229,BA$1) ->  | BB30: =VLOOKUP(DropDownList!$B$47,CntyQuery!$A$220:$EF$229,BB$1) ->  | BC30: =VLOOKUP(DropDownList!$B$47,CntyQuery!$A$220:$EF$229,BC$1) ->  | BD30: =VLOOKUP(DropDownList!$B$47,CntyQuery!$A$220:$EF$229,BD$1) ->  | BE30: =VLOOKUP(DropDownList!$B$47,CntyQuery!$A$220:$EF$229,BE$1) ->  | BF30: =VLOOKUP(DropDownList!$B$47,CntyQuery!$A$220:$EF$229,BF$1) ->  | BG30: =VLOOKUP(DropDownList!$B$47,CntyQuery!$A$220:$EF$229,BG$1) ->  | BH30: =VLOOKUP(DropDownList!$B$47,CntyQuery!$A$220:$EF$229,BH$1) ->  | BI30: =VLOOKUP(DropDownList!$B$47,CntyQuery!$A$220:$EF$229,BI$1) ->  | BJ30: =VLOOKUP(DropDownList!$B$47,CntyQuery!$A$220:$EF$229,BJ$1) ->  | BK30: =VLOOKUP(DropDownList!$B$47,CntyQuery!$A$220:$EF$229,BK$1) ->  | BL30: =VLOOKUP(DropDownList!$B$47,CntyQuery!$A$220:$EF$229,BL$1) ->  | BM30: =VLOOKUP(DropDownList!$B$47,CntyQuery!$A$220:$EF$229,BM$1) ->  | BN30: =VLOOKUP(DropDownList!$B$47,CntyQuery!$A$220:$EF$229,BN$1) ->  | BO30: =VLOOKUP(DropDownList!$B$47,CntyQuery!$A$220:$EF$229,BO$1) ->  | BP30: =VLOOKUP(DropDownList!$B$47,CntyQuery!$A$220:$EF$229,BP$1) ->  | BQ30: =VLOOKUP(DropDownList!$B$47,CntyQuery!$A$220:$EF$229,BQ$1) ->  | BR30: =VLOOKUP(DropDownList!$B$47,CntyQuery!$A$220:$EF$229,BR$1) ->  | BS30: =VLOOKUP(DropDownList!$B$47,CntyQuery!$A$220:$EF$229,BS$1) ->  | BT30: =VLOOKUP(DropDownList!$B$47,CntyQuery!$A$220:$EF$229,BT$1) ->  | BU30: =VLOOKUP(DropDownList!$B$47,CntyQuery!$A$220:$EF$229,BU$1) ->  | BV30: =VLOOKUP(DropDownList!$B$47,CntyQuery!$A$220:$EF$229,BV$1) ->  | BW30: =VLOOKUP(DropDownList!$B$47,CntyQuery!$A$220:$EF$229,BW$1) ->  | BX30: =VLOOKUP(DropDownList!$B$47,CntyQuery!$A$220:$EF$229,BX$1) ->  | BY30: =VLOOKUP(DropDownList!$B$47,CntyQuery!$A$220:$EF$229,BY$1) ->  | BZ30: =VLOOKUP(DropDownList!$B$47,CntyQuery!$A$220:$EF$229,BZ$1) ->  | CA30: =VLOOKUP(DropDownList!$B$47,CntyQuery!$A$220:$EF$229,CA$1) ->  | CB30: =VLOOKUP(DropDownList!$B$47,CntyQuery!$A$220:$EF$229,CB$1) ->  | CC30: =VLOOKUP(DropDownList!$B$47,CntyQuery!$A$220:$EF$229,CC$1) ->  | CD30: =VLOOKUP(DropDownList!$B$47,CntyQuery!$A$220:$EF$229,CD$1) ->  | CE30: =VLOOKUP(DropDownList!$B$47,CntyQuery!$A$220:$EF$229,CE$1) ->  | CF30: =VLOOKUP(DropDownList!$B$47,CntyQuery!$A$220:$EF$229,CF$1) ->  | CG30: =VLOOKUP(DropDownList!$B$47,CntyQuery!$A$220:$EF$229,CG$1) ->  | CH30: =VLOOKUP(DropDownList!$B$47,CntyQuery!$A$220:$EF$229,CH$1) ->  | CI30: =VLOOKUP(DropDownList!$B$47,CntyQuery!$A$220:$EF$229,CI$1) ->  | CJ30: =VLOOKUP(DropDownList!$B$47,CntyQuery!$A$220:$EF$229,CJ$1) ->  | CK30: =VLOOKUP(DropDownList!$B$47,CntyQuery!$A$220:$EF$229,CK$1) ->  | CL30: =VLOOKUP(DropDownList!$B$47,CntyQuery!$A$220:$EF$229,CL$1) ->  | CM30: =VLOOKUP(DropDownList!$B$47,CntyQuery!$A$220:$EF$229,CM$1) ->  | CN30: =VLOOKUP(DropDownList!$B$47,CntyQuery!$A$220:$EF$229,CN$1) ->  | CO30: =VLOOKUP(DropDownList!$B$47,CntyQuery!$A$220:$EF$229,CO$1) ->  | CP30: =VLOOKUP(DropDownList!$B$47,CntyQuery!$A$220:$EF$229,CP$1) ->  | CQ30: =VLOOKUP(DropDownList!$B$47,CntyQuery!$A$220:$EF$229,CQ$1) ->  | CR30: =VLOOKUP(DropDownList!$B$47,CntyQuery!$A$220:$EF$229,CR$1) ->  | CS30: =VLOOKUP(DropDownList!$B$47,CntyQuery!$A$220:$EF$229,CS$1) ->  | CT30: =VLOOKUP(DropDownList!$B$47,CntyQuery!$A$220:$EF$229,CT$1) ->  | CU30: =VLOOKUP(DropDownList!$B$47,CntyQuery!$A$220:$EF$229,CU$1) ->  | CV30: =VLOOKUP(DropDownList!$B$47,CntyQuery!$A$220:$EF$229,CV$1) ->  | CW30: =VLOOKUP(DropDownList!$B$47,CntyQuery!$A$220:$EF$229,CW$1) ->  | CX30: =VLOOKUP(DropDownList!$B$47,CntyQuery!$A$220:$EF$229,CX$1) ->  | CY30: =VLOOKUP(DropDownList!$B$47,CntyQuery!$A$220:$EF$229,CY$1) ->  | CZ30: =VLOOKUP(DropDownList!$B$47,CntyQuery!$A$220:$EF$229,CZ$1) ->  | DA30: =VLOOKUP(DropDownList!$B$47,CntyQuery!$A$220:$EF$229,DA$1) ->  | DB30: =VLOOKUP(DropDownList!$B$47,CntyQuery!$A$220:$EF$229,DB$1) ->  | DC30: =VLOOKUP(DropDownList!$B$47,CntyQuery!$A$220:$EF$229,DC$1) ->  | DD30: =VLOOKUP(DropDownList!$B$47,CntyQuery!$A$220:$EF$229,DD$1) ->  | DE30: =VLOOKUP(DropDownList!$B$47,CntyQuery!$A$220:$EF$229,DE$1) ->  | DF30: =VLOOKUP(DropDownList!$B$47,CntyQuery!$A$220:$EF$229,DF$1) ->  | DG30: =VLOOKUP(DropDownList!$B$47,CntyQuery!$A$220:$EF$229,DG$1) ->  | DH30: =VLOOKUP(DropDownList!$B$47,CntyQuery!$A$220:$EF$229,DH$1) ->  | DI30: =VLOOKUP(DropDownList!$B$47,CntyQuery!$A$220:$EF$229,DI$1) ->  | DJ30: =VLOOKUP(DropDownList!$B$47,CntyQuery!$A$220:$EF$229,DJ$1) ->  | DK30: =VLOOKUP(DropDownList!$B$47,CntyQuery!$A$220:$EF$229,DK$1) ->  | DL30: =VLOOKUP(DropDownList!$B$47,CntyQuery!$A$220:$EF$229,DL$1) ->  | DM30: =VLOOKUP(DropDownList!$B$47,CntyQuery!$A$220:$EF$229,DM$1) ->  | DN30: =VLOOKUP(DropDownList!$B$47,CntyQuery!$A$220:$EF$229,DN$1) ->  | DO30: =VLOOKUP(DropDownList!$B$47,CntyQuery!$A$220:$EF$229,DO$1) ->  | DP30: =VLOOKUP(DropDownList!$B$47,CntyQuery!$A$220:$EF$229,DP$1) ->  | DQ30: =VLOOKUP(DropDownList!$B$47,CntyQuery!$A$220:$EF$229,DQ$1) ->  | DR30: =VLOOKUP(DropDownList!$B$47,CntyQuery!$A$220:$EF$229,DR$1) ->  | DS30: =VLOOKUP(DropDownList!$B$47,CntyQuery!$A$220:$EF$229,DS$1) ->  | DT30: =VLOOKUP(DropDownList!$B$47,CntyQuery!$A$220:$EF$229,DT$1) ->  | DU30: =VLOOKUP(DropDownList!$B$47,CntyQuery!$A$220:$EF$229,DU$1) ->  | DV30: =VLOOKUP(DropDownList!$B$47,CntyQuery!$A$220:$EF$229,DV$1) ->  | DW30: =VLOOKUP(DropDownList!$B$47,CntyQuery!$A$220:$EF$229,DW$1) ->  | DX30: =VLOOKUP(DropDownList!$B$47,CntyQuery!$A$220:$EF$229,DX$1) ->  | DY30: =VLOOKUP(DropDownList!$B$47,CntyQuery!$A$220:$EF$229,DY$1) ->  | DZ30: =VLOOKUP(DropDownList!$B$47,CntyQuery!$A$220:$EF$229,DZ$1) -> 
M32: =IF((CntyDataLink!$BL$25)="n",NA(),IF(VALUE(CntyDataLink!$BL$25)="",NA(),VALUE(CntyDataLink!$BL$25))) -> 812.28
A33: Census 2000 - Query Name: TownAllQuery3 | B33: 2 | C33: =B33+1 -> 3 | D33: =C33+1 -> 4 | E33: 5 | F33: 6 | G33: 7 | H33: 8 | I33: 9 | J33: 10 | K33: 11 | L33: 12 | M33: 13 | N33: 14 | O33: 15 | P33: 16 | Q33: 17 | R33: 18 | S33: 19 | T33: 20 | U33: 21 | V33: 22 | W33: 23 | X33: 24 | Y33: 25 | Z33: 26 | AA33: 27 | AB33: 28 | AC33: 29 | AD33: 30 | AE33: 31 | AF33: 32 | AG33: 33 | AH33: 34 | AI33: 35 | AJ33: 36 | AK33: 37 | AL33: 38 | AM33: 39 | AN33: 40 | AO33: 41 | AP33: 42 | AQ33: 43 | AR33: 44 | AS33: 45 | AT33: 46 | AU33: 47 | AV33: 48 | AW33: 49 | AX33: 50 | AY33: 51 | AZ33: 52 | BA33: 53 | BB33: 54 | BC33: 55 | BD33: 56 | BE33: 57 | BF33: 58 | BG33: 59 | BH33: 60 | BI33: 61 | BJ33: 62 | BK33: 63 | BL33: 64 | BM33: 65 | BN33: 66 | BO33: 67 | BP33: =BO33+1 -> 68 | BQ33: 69 | BR33: 70 | BS33: 71 | BT33: 72 | BU33: 73 | BV33: 74 | BW33: 75 | BX33: 76 | BY33: 77 | BZ33: 78 | CA33: 79 | CB33: 80 | CC33: 81 | CD33: 82 | CE33: 83 | CF33: 84 | CG33: 85 | CH33: 86 | CI33: 87 | CJ33: 88 | CK33: 89 | CL33: 90 | CM33: 91 | CN33: 92 | CO33: 93 | CP33: 94 | CQ33: 95 | CR33: 96 | CS33: 97 | CT33: 98 | CU33: 99 | CV33: 100 | CW33: 101 | CX33: 102
A34: NAME | B34: COUNTY | C34: LOGRECNO | D34: COUSUB | E34: TRACT | F34: AREALAND | G34: AREAWATR | H34: POP100 | I34: HU100 | J34: 2000Population | K34: PopOfOneRace | L34: PopWhite | M34: PopBlack | N34: PopAmIndian | O34: PopAsian | P34: PopHawaiian | Q34: PopOtherRace | R34: Pop2orMoreRaces | S34: PopHispanicLatino | T34: PopNotHispanicLatino | U34: PopMale | V34: PopMale<15 | W34: PopMale15to24 | X34: PopMale25to34 | Y34: PopMale35to44 | Z34: PopMale45to54 | AA34: PopMale55to64 | AB34: PopMale65to74 | AC34: PopMale75to84 | AD34: PopMale85andOver | AE34: PopFemale | AF34: PopFemale<15 | AG34: PopFemale15to24 | AH34: PopFemale25to34 | AI34: PopFemale35t44 | AJ34: PopFemale45to54 | AK34: PopFemale55to64 | AL34: PopFemale65to74 | AM34: PopFemale75to84 | AN34: PopFemale85andOver | AO34: Households2000 | AP34: PopInHH | AQ34: AvgHHSize | AR34: HHs1Person | AS34: HHs2orMorePerson | AT34: HHsFamily | AU34: HHMarriedCoupleFam | AV34: HHSingleParentFam | AW34: HHsNonFamily | AX34: Families | AY34: PopInFam | AZ34: AvgFamSize | BA34: TotHsUnits | BB34: OccHsUnits | BC34: OwnerOccHU | BD34: RenterOccHU | BE34: VctHsUnits | BF34: VctHUForRent | BG34: VctHUForSale | BH34: VctHUSeasonal | BI34: PopInOccHU | BJ34: PopInOwnOccHU | BK34: PopInRntOccHU | BL34: AvgHHSize2 | BM34: AvgHHSizOwnOcc | BN34: AvgHHSizRntOcc | BO34: OwnOccWhtHsHldr | BP34: OwnOccBlkHsHldr | BQ34: OwnOccAmIHsHldr | BR34: OwnOccAsnHsHldr | BS34: OwnOccPIsHsHldr | BT34: OwnOccORHsHldr | BU34: OwnOcc2RcHsHldr | BV34: RntOccWhtHsHldr | BW34: RntOccBlkHsHldr | BX34: RntOccAmIHsHldr | BY34: RntOccAsnHsHldr | BZ34: RntOccPIsHsHldr | CA34: RntOccORHsHldr | CB34: RntOcc2RcHsHldr | CC34: OwnOccHH15to24 | CD34: OwnOccHH25to34 | CE34: OwnOccHH35to44 | CF34: OwnOccHH45to54 | CG34: OwnOccHH55to64 | CH34: OwnOccHH65to74 | CI34: OwnOccHH75to84 | CJ34: OwnOccHH85Over | CK34: RntOccHH15to24 | CL34: RntOccHH25to34 | CM34: RntOccHH35to44 | CN34: RntOccHH45to54 | CO34: RntOccHH55to64 | CP34: RntOccHH65to74 | CQ34: RntOccHH75to84 | CR34: RntOccHH85Over | CS34: P27TotalPop | CT34: P27PopInHseHlds | CU34: P27PopInGrpQtrs | CV34: Median Age Total | CW34: Median Age (Male) | CX34: Median Age (Female)
A35: =VLOOKUP(DropDownList!$B$47,CntyQryCensus!$A$4:$CW$46,A$1) -> Chester | B35: =VLOOKUP(DropDownList!$B$47,CntyQryCensus!$A$4:$CW$46,B$1) -> 015 | C35: =VLOOKUP(DropDownList!$B$47,CntyQryCensus!$A$4:$CW$46,C$1) -> 0027406 | D35: =VLOOKUP(DropDownList!$B$47,CntyQryCensus!$A$4:$CW$46,D$1) -> 12100 | E35: =VLOOKUP(DropDownList!$B$47,CntyQryCensus!$A$4:$CW$46,E$1) ->  | F35: =VLOOKUP(DropDownList!$B$47,CntyQryCensus!$A$4:$CW$46,F$1) -> 67104539 | G35: =VLOOKUP(DropDownList!$B$47,CntyQryCensus!$A$4:$CW$46,G$1) -> 287507 | H35: =VLOOKUP(DropDownList!$B$47,CntyQryCensus!$A$4:$CW$46,H$1) -> 3792 | I35: =VLOOKUP(DropDownList!$B$47,CntyQryCensus!$A$4:$CW$46,I$1) -> 1247 | J35: =VLOOKUP(DropDownList!$B$47,CntyQryCensus!$A$4:$CW$46,J$1) -> 3792 | K35: =VLOOKUP(DropDownList!$B$47,CntyQryCensus!$A$4:$CW$46,K$1) -> 3759 | L35: =VLOOKUP(DropDownList!$B$47,CntyQryCensus!$A$4:$CW$46,L$1) -> 3715 | M35: =VLOOKUP(DropDownList!$B$47,CntyQryCensus!$A$4:$CW$46,M$1) -> 10 | N35: =VLOOKUP(DropDownList!$B$47,CntyQryCensus!$A$4:$CW$46,N$1) -> 16 | O35: =VLOOKUP(DropDownList!$B$47,CntyQryCensus!$A$4:$CW$46,O$1) -> 12 | P35: =VLOOKUP(DropDownList!$B$47,CntyQryCensus!$A$4:$CW$46,P$1) -> 0 | Q35: =VLOOKUP(DropDownList!$B$47,CntyQryCensus!$A$4:$CW$46,Q$1) -> 6 | R35: =VLOOKUP(DropDownList!$B$47,CntyQryCensus!$A$4:$CW$46,R$1) -> 33 | S35: =VLOOKUP(DropDownList!$B$47,CntyQryCensus!$A$4:$CW$46,S$1) -> 31 | T35: =VLOOKUP(DropDownList!$B$47,CntyQryCensus!$A$4:$CW$46,T$1) -> 3761 | U35: =VLOOKUP(DropDownList!$B$47,CntyQryCensus!$A$4:$CW$46,U$1) -> 1875 | V35: =VLOOKUP(DropDownList!$B$47,CntyQryCensus!$A$4:$CW$46,V$1) -> 503 | W35: =VLOOKUP(DropDownList!$B$47,CntyQryCensus!$A$4:$CW$46,W$1) -> 213 | X35: =VLOOKUP(DropDownList!$B$47,CntyQryCensus!$A$4:$CW$46,X$1) -> 176 | Y35: =VLOOKUP(DropDownList!$B$47,CntyQryCensus!$A$4:$CW$46,Y$1) -> 395 | Z35: =VLOOKUP(DropDownList!$B$47,CntyQryCensus!$A$4:$CW$46,Z$1) -> 319 | AA35: =VLOOKUP(DropDownList!$B$47,CntyQryCensus!$A$4:$CW$46,AA$1) -> 168 | AB35: =VLOOKUP(DropDownList!$B$47,CntyQryCensus!$A$4:$CW$46,AB$1) -> 70 | AC35: =VLOOKUP(DropDownList!$B$47,CntyQryCensus!$A$4:$CW$46,AC$1) -> 24 | AD35: =VLOOKUP(DropDownList!$B$47,CntyQryCensus!$A$4:$CW$46,AD$1) -> 7 | AE35: =VLOOKUP(DropDownList!$B$47,CntyQryCensus!$A$4:$CW$46,AE$1) -> 1917 | AF35: =VLOOKUP(DropDownList!$B$47,CntyQryCensus!$A$4:$CW$46,AF$1) -> 490 | AG35: =VLOOKUP(DropDownList!$B$47,CntyQryCensus!$A$4:$CW$46,AG$1) -> 207 | AH35: =VLOOKUP(DropDownList!$B$47,CntyQryCensus!$A$4:$CW$46,AH$1) -> 251 | AI35: =VLOOKUP(DropDownList!$B$47,CntyQryCensus!$A$4:$CW$46,AI$1) -> 394 | AJ35: =VLOOKUP(DropDownList!$B$47,CntyQryCensus!$A$4:$CW$46,AJ$1) -> 314 | AK35: =VLOOKUP(DropDownList!$B$47,CntyQryCensus!$A$4:$CW$46,AK$1) -> 132 | AL35: =VLOOKUP(DropDownList!$B$47,CntyQryCensus!$A$4:$CW$46,AL$1) -> 76 | AM35: =VLOOKUP(DropDownList!$B$47,CntyQryCensus!$A$4:$CW$46,AM$1) -> 40 | AN35: =VLOOKUP(DropDownList!$B$47,CntyQryCensus!$A$4:$CW$46,AN$1) -> 13 | AO35: =VLOOKUP(DropDownList!$B$47,CntyQryCensus!$A$4:$CW$46,AO$1) -> 1214 | AP35: =VLOOKUP(DropDownList!$B$47,CntyQryCensus!$A$4:$CW$46,AP$1) -> 3756 | AQ35: =VLOOKUP(DropDownList!$B$47,CntyQryCensus!$A$4:$CW$46,AQ$1) -> 3.09 | AR35: =VLOOKUP(DropDownList!$B$47,CntyQryCensus!$A$4:$CW$46,AR$1) -> 143 | AS35: =VLOOKUP(DropDownList!$B$47,CntyQryCensus!$A$4:$CW$46,AS$1) -> 1071 | AT35: =VLOOKUP(DropDownList!$B$47,CntyQryCensus!$A$4:$CW$46,AT$1) -> 1011 | AU35: =VLOOKUP(DropDownList!$B$47,CntyQryCensus!$A$4:$CW$46,AU$1) -> 890 | AV35: =VLOOKUP(DropDownList!$B$47,CntyQryCensus!$A$4:$CW$46,AV$1) -> 121 | AW35: =VLOOKUP(DropDownList!$B$47,CntyQryCensus!$A$4:$CW$46,AW$1) -> 60 | AX35: =VLOOKUP(DropDownList!$B$47,CntyQryCensus!$A$4:$CW$46,AX$1) -> 1011 | AY35: =VLOOKUP(DropDownList!$B$47,CntyQryCensus!$A$4:$CW$46,AY$1) -> 3413 | AZ35: =VLOOKUP(DropDownList!$B$47,CntyQryCensus!$A$4:$CW$46,AZ$1) -> 3.38 | BA35: =VLOOKUP(DropDownList!$B$47,CntyQryCensus!$A$4:$CW$46,BA$1) -> 1247 | BB35: =VLOOKUP(DropDownList!$B$47,CntyQryCensus!$A$4:$CW$46,BB$1) -> 1214 | BC35: =VLOOKUP(DropDownList!$B$47,CntyQryCensus!$A$4:$CW$46,BC$1) -> 1129 | BD35: =VLOOKUP(DropDownList!$B$47,CntyQryCensus!$A$4:$CW$46,BD$1) -> 85 | BE35: =VLOOKUP(DropDownList!$B$47,CntyQryCensus!$A$4:$CW$46,BE$1) -> 33 | BF35: =VLOOKUP(DropDownList!$B$47,CntyQryCensus!$A$4:$CW$46,BF$1) -> 4 | BG35: =VLOOKUP(DropDownList!$B$47,CntyQryCensus!$A$4:$CW$46,BG$1) -> 9 | BH35: =VLOOKUP(DropDownList!$B$47,CntyQryCensus!$A$4:$CW$46,BH$1) -> 11 | BI35: =VLOOKUP(DropDownList!$B$47,CntyQryCensus!$A$4:$CW$46,BI$1) -> 3756 | BJ35: =VLOOKUP(DropDownList!$B$47,CntyQryCensus!$A$4:$CW$46,BJ$1) -> 3532 | BK35: =VLOOKUP(DropDownList!$B$47,CntyQryCensus!$A$4:$CW$46,BK$1) -> 224 | BL35: =VLOOKUP(DropDownList!$B$47,CntyQryCensus!$A$4:$CW$46,BL$1) -> 3.09 | BM35: =VLOOKUP(DropDownList!$B$47,CntyQryCensus!$A$4:$CW$46,BM$1) -> 3.13 | BN35: =VLOOKUP(DropDownList!$B$47,CntyQryCensus!$A$4:$CW$46,BN$1) -> 2.64 | BO35: =VLOOKUP(DropDownList!$B$47,CntyQryCensus!$A$4:$CW$46,BO$1) -> 1109 | BP35: =VLOOKUP(DropDownList!$B$47,CntyQryCensus!$A$4:$CW$46,BP$1) -> 2 | BQ35: =VLOOKUP(DropDownList!$B$47,CntyQryCensus!$A$4:$CW$46,BQ$1) -> 6 | BR35: =VLOOKUP(DropDownList!$B$47,CntyQryCensus!$A$4:$CW$46,BR$1) -> 2 | BS35: =VLOOKUP(DropDownList!$B$47,CntyQryCensus!$A$4:$CW$46,BS$1) -> 0 | BT35: =VLOOKUP(DropDownList!$B$47,CntyQryCensus!$A$4:$CW$46,BT$1) -> 1 | BU35: =VLOOKUP(DropDownList!$B$47,CntyQryCensus!$A$4:$CW$46,BU$1) -> 9 | BV35: =VLOOKUP(DropDownList!$B$47,CntyQryCensus!$A$4:$CW$46,BV$1) -> 85 | BW35: =VLOOKUP(DropDownList!$B$47,CntyQryCensus!$A$4:$CW$46,BW$1) -> 0 | BX35: =VLOOKUP(DropDownList!$B$47,CntyQryCensus!$A$4:$CW$46,BX$1) -> 0 | BY35: =VLOOKUP(DropDownList!$B$47,CntyQryCensus!$A$4:$CW$46,BY$1) -> 0 | BZ35: =VLOOKUP(DropDownList!$B$47,CntyQryCensus!$A$4:$CW$46,BZ$1) -> 0 | CA35: =VLOOKUP(DropDownList!$B$47,CntyQryCensus!$A$4:$CW$46,CA$1) -> 0 | CB35: =VLOOKUP(DropDownList!$B$47,CntyQryCensus!$A$4:$CW$46,CB$1) -> 0 | CC35: =VLOOKUP(DropDownList!$B$47,CntyQryCensus!$A$4:$CW$46,CC$1) -> 2 | CD35: =VLOOKUP(DropDownList!$B$47,CntyQryCensus!$A$4:$CW$46,CD$1) -> 135 | CE35: =VLOOKUP(DropDownList!$B$47,CntyQryCensus!$A$4:$CW$46,CE$1) -> 372 | CF35: =VLOOKUP(DropDownList!$B$47,CntyQryCensus!$A$4:$CW$46,CF$1) -> 321 | CG35: =VLOOKUP(DropDownList!$B$47,CntyQryCensus!$A$4:$CW$46,CG$1) -> 169 | CH35: =VLOOKUP(DropDownList!$B$47,CntyQryCensus!$A$4:$CW$46,CH$1) -> 86 | CI35: =VLOOKUP(DropDownList!$B$47,CntyQryCensus!$A$4:$CW$46,CI$1) -> 35 | CJ35: =VLOOKUP(DropDownList!$B$47,CntyQryCensus!$A$4:$CW$46,CJ$1) -> 9 | CK35: =VLOOKUP(DropDownList!$B$47,CntyQryCensus!$A$4:$CW$46,CK$1) -> 4 | CL35: =VLOOKUP(DropDownList!$B$47,CntyQryCensus!$A$4:$CW$46,CL$1) -> 17 | CM35: =VLOOKUP(DropDownList!$B$47,CntyQryCensus!$A$4:$CW$46,CM$1) -> 30 | CN35: =VLOOKUP(DropDownList!$B$47,CntyQryCensus!$A$4:$CW$46,CN$1) -> 13 | CO35: =VLOOKUP(DropDownList!$B$47,CntyQryCensus!$A$4:$CW$46,CO$1) -> 12 | CP35: =VLOOKUP(DropDownList!$B$47,CntyQryCensus!$A$4:$CW$46,CP$1) -> 2 | CQ35: =VLOOKUP(DropDownList!$B$47,CntyQryCensus!$A$4:$CW$46,CQ$1) -> 3 | CR35: =VLOOKUP(DropDownList!$B$47,CntyQryCensus!$A$4:$CW$46,CR$1) -> 4 | CS35: =VLOOKUP(DropDownList!$B$47,CntyQryCensus!$A$4:$CW$46,CS$1) -> 3792 | CT35: =VLOOKUP(DropDownList!$B$47,CntyQryCensus!$A$4:$CW$46,CT$1) -> 3756 | CU35: =VLOOKUP(DropDownList!$B$47,CntyQryCensus!$A$4:$CW$46,CU$1) -> 36 | CV35: =VLOOKUP(DropDownList!$B$47,CntyQryCensus!$A$4:$CW$46,CV$1) -> 35.7 | CW35: =VLOOKUP(DropDownList!$B$47,CntyQryCensus!$A$4:$CW$46,CW$1) -> 36.2 | CX35: =VLOOKUP(DropDownList!$B$47,CntyQryCensus!$A$4:$CW$46,CX$1) -> 
A38: Census 2000 DemoProfile Sample Data Tables 2&3 - DPTab23TownQry
A39: NAME | B39: COUSUB | C39: AREANAME | D39: PopInSchool | E39: Preschool | F39: Kindergarten | G39: Elementary | H39: HighSchool | I39: College | J39: Pop25andOver | K39: HighSchoolGrad | L39: SomeCollege | M39: AssocDegree | N39: BachelDegree | O39: GradDegree | P39: HSGradorHigher | Q39: CollegeGradorHigher | R39: Pop5to20yrs | S39: Pop5to20wDis | T39: Pop21to64 | U39: Pop21to64wDis | V39: Pop65over | W39: Pop65overwDis | X39: Pop5yrsOver | Y39: SameHUin95 | Z39: DiffHUinUSin95 | AA39: HUinSameCountyin95 | AB39: HUinSameStatein95 | AC39: TotalPop | AD39: NativePop | AE39: NatPopBornUS | AF39: NatPopBornInStatRes | AG39: NatPopBornDiffState | AH39: NatPopBornOutUS | AI39: FornBornPop | AJ39: FornPopEnt90to00 | AK39: FornPopNatCit | AL39: FornPopNotCit | AM39: Households | AN39: HHIncLessThn10k | AO39: HHInc10to15K | AP39: HHInc15to25K | AQ39: HHInc25to35K | AR39: HHInc35to50K | AS39: HHInc50to75K | AT39: HHInc75to100K | AU39: HHInc100to150K | AV39: HHInc150to200K | AW39: HHIncOver200K | AX39: MedianHHInc | AY39: HHwithPubAssistInc | AZ39: MeanPubAssist | BA39: FamilyHH | BB39: FHHIncLessThn10k | BC39: FHHInc10to15K | BD39: FHHInc15to25K | BE39: FHHInc25to35K | BF39: FHHInc35to50K | BG39: FHHInc50to75K | BH39: FHHInc75to100K | BI39: FHHInc100to150K | BJ39: FHHInc150to200K | BK39: FHHIncOver200K | BL39: MedianFHHInc | BM39: PerCapitaInc | BN39: PovStatFamilies | BO39: PovStatFHHwChilUnd18 | BP39: PovStatFHHwChilUnd5 | BQ39: PovStFmalHH | BR39: DP3088 | BS39: DP3089 | BT39: PovStatIndiv | BU39: PovStatIndiv18yrOver | BV39: PovStatIndiv65yrOver | BW39: DP3093 | BX39: DP3094 | BY39: DP3095
A40: =VLOOKUP(DropDownList!$B$47,CntyQryCensus!$A$53:$BY$96,A$1) -> Chester | B40: =VLOOKUP(DropDownList!$B$47,CntyQryCensus!$A$53:$BY$96,B$1) -> 12100 | C40: =VLOOKUP(DropDownList!$B$47,CntyQryCensus!$A$53:$BY$96,C$1) -> Chester town, Rockingham County, New Hampshire | D40: =VLOOKUP(DropDownList!$B$47,CntyQryCensus!$A$53:$BY$96,D$1) -> 1079 | E40: =VLOOKUP(DropDownList!$B$47,CntyQryCensus!$A$53:$BY$96,E$1) -> 86 | F40: =VLOOKUP(DropDownList!$B$47,CntyQryCensus!$A$53:$BY$96,F$1) -> 41 | G40: =VLOOKUP(DropDownList!$B$47,CntyQryCensus!$A$53:$BY$96,G$1) -> 528 | H40: =VLOOKUP(DropDownList!$B$47,CntyQryCensus!$A$53:$BY$96,H$1) -> 237 | I40: =VLOOKUP(DropDownList!$B$47,CntyQryCensus!$A$53:$BY$96,I$1) -> 187 | J40: =VLOOKUP(DropDownList!$B$47,CntyQryCensus!$A$53:$BY$96,J$1) -> 2402 | K40: =VLOOKUP(DropDownList!$B$47,CntyQryCensus!$A$53:$BY$96,K$1) -> 675 | L40: =VLOOKUP(DropDownList!$B$47,CntyQryCensus!$A$53:$BY$96,L$1) -> 559 | M40: =VLOOKUP(DropDownList!$B$47,CntyQryCensus!$A$53:$BY$96,M$1) -> 230 | N40: =VLOOKUP(DropDownList!$B$47,CntyQryCensus!$A$53:$BY$96,N$1) -> 469 | O40: =VLOOKUP(DropDownList!$B$47,CntyQryCensus!$A$53:$BY$96,O$1) -> 278 | P40: =VLOOKUP(DropDownList!$B$47,CntyQryCensus!$A$53:$BY$96,P$1) -> 2211 | Q40: =VLOOKUP(DropDownList!$B$47,CntyQryCensus!$A$53:$BY$96,Q$1) -> 747 | R40: =VLOOKUP(DropDownList!$B$47,CntyQryCensus!$A$53:$BY$96,R$1) -> 985 | S40: =VLOOKUP(DropDownList!$B$47,CntyQryCensus!$A$53:$BY$96,S$1) -> 95 | T40: =VLOOKUP(DropDownList!$B$47,CntyQryCensus!$A$53:$BY$96,T$1) -> 2264 | U40: =VLOOKUP(DropDownList!$B$47,CntyQryCensus!$A$53:$BY$96,U$1) -> 349 | V40: =VLOOKUP(DropDownList!$B$47,CntyQryCensus!$A$53:$BY$96,V$1) -> 229 | W40: =VLOOKUP(DropDownList!$B$47,CntyQryCensus!$A$53:$BY$96,W$1) -> 101 | X40: =VLOOKUP(DropDownList!$B$47,CntyQryCensus!$A$53:$BY$96,X$1) -> 3478 | Y40: =VLOOKUP(DropDownList!$B$47,CntyQryCensus!$A$53:$BY$96,Y$1) -> 2042 | Z40: =VLOOKUP(DropDownList!$B$47,CntyQryCensus!$A$53:$BY$96,Z$1) -> 1432 | AA40: =VLOOKUP(DropDownList!$B$47,CntyQryCensus!$A$53:$BY$96,AA$1) -> 762 | AB40: =VLOOKUP(DropDownList!$B$47,CntyQryCensus!$A$53:$BY$96,AB$1) -> 670 | AC40: =VLOOKUP(DropDownList!$B$47,CntyQryCensus!$A$53:$BY$96,AC$1) -> 3792 | AD40: =VLOOKUP(DropDownList!$B$47,CntyQryCensus!$A$53:$BY$96,AD$1) -> 3699 | AE40: =VLOOKUP(DropDownList!$B$47,CntyQryCensus!$A$53:$BY$96,AE$1) -> 3649 | AF40: =VLOOKUP(DropDownList!$B$47,CntyQryCensus!$A$53:$BY$96,AF$1) -> 1251 | AG40: =VLOOKUP(DropDownList!$B$47,CntyQryCensus!$A$53:$BY$96,AG$1) -> 2398 | AH40: =VLOOKUP(DropDownList!$B$47,CntyQryCensus!$A$53:$BY$96,AH$1) -> 50 | AI40: =VLOOKUP(DropDownList!$B$47,CntyQryCensus!$A$53:$BY$96,AI$1) -> 93 | AJ40: =VLOOKUP(DropDownList!$B$47,CntyQryCensus!$A$53:$BY$96,AJ$1) -> 16 | AK40: =VLOOKUP(DropDownList!$B$47,CntyQryCensus!$A$53:$BY$96,AK$1) -> 63 | AL40: =VLOOKUP(DropDownList!$B$47,CntyQryCensus!$A$53:$BY$96,AL$1) -> 30 | AM40: =VLOOKUP(DropDownList!$B$47,CntyQryCensus!$A$53:$BY$96,AM$1) -> 1212 | AN40: =VLOOKUP(DropDownList!$B$47,CntyQryCensus!$A$53:$BY$96,AN$1) -> 48 | AO40: =VLOOKUP(DropDownList!$B$47,CntyQryCensus!$A$53:$BY$96,AO$1) -> 35 | AP40: =VLOOKUP(DropDownList!$B$47,CntyQryCensus!$A$53:$BY$96,AP$1) -> 72 | AQ40: =VLOOKUP(DropDownList!$B$47,CntyQryCensus!$A$53:$BY$96,AQ$1) -> 87 | AR40: =VLOOKUP(DropDownList!$B$47,CntyQryCensus!$A$53:$BY$96,AR$1) -> 145 | AS40: =VLOOKUP(DropDownList!$B$47,CntyQryCensus!$A$53:$BY$96,AS$1) -> 263 | AT40: =VLOOKUP(DropDownList!$B$47,CntyQryCensus!$A$53:$BY$96,AT$1) -> 267 | AU40: =VLOOKUP(DropDownList!$B$47,CntyQryCensus!$A$53:$BY$96,AU$1) -> 223 | AV40: =VLOOKUP(DropDownList!$B$47,CntyQryCensus!$A$53:$BY$96,AV$1) -> 50 | AW40: =VLOOKUP(DropDownList!$B$47,CntyQryCensus!$A$53:$BY$96,AW$1) -> 22 | AX40: =VLOOKUP(DropDownList!$B$47,CntyQryCensus!$A$53:$BY$96,AX$1) -> 68571 | AY40: =VLOOKUP(DropDownList!$B$47,CntyQryCensus!$A$53:$BY$96,AY$1) -> 17 | AZ40: =VLOOKUP(DropDownList!$B$47,CntyQryCensus!$A$53:$BY$96,AZ$1) -> 3465 | BA40: =VLOOKUP(DropDownList!$B$47,CntyQryCensus!$A$53:$BY$96,BA$1) -> 1014 | BB40: =VLOOKUP(DropDownList!$B$47,CntyQryCensus!$A$53:$BY$96,BB$1) -> 16 | BC40: =VLOOKUP(DropDownList!$B$47,CntyQryCensus!$A$53:$BY$96,BC$1) -> 8 | BD40: =VLOOKUP(DropDownList!$B$47,CntyQryCensus!$A$53:$BY$96,BD$1) -> 58 | BE40: =VLOOKUP(DropDownList!$B$47,CntyQryCensus!$A$53:$BY$96,BE$1) -> 69 | BF40: =VLOOKUP(DropDownList!$B$47,CntyQryCensus!$A$53:$BY$96,BF$1) -> 124 | BG40: =VLOOKUP(DropDownList!$B$47,CntyQryCensus!$A$53:$BY$96,BG$1) -> 231 | BH40: =VLOOKUP(DropDownList!$B$47,CntyQryCensus!$A$53:$BY$96,BH$1) -> 231 | BI40: =VLOOKUP(DropDownList!$B$47,CntyQryCensus!$A$53:$BY$96,BI$1) -> 205 | BJ40: =VLOOKUP(DropDownList!$B$47,CntyQryCensus!$A$53:$BY$96,BJ$1) -> 50 | BK40: =VLOOKUP(DropDownList!$B$47,CntyQryCensus!$A$53:$BY$96,BK$1) -> 22 | BL40: =VLOOKUP(DropDownList!$B$47,CntyQryCensus!$A$53:$BY$96,BL$1) -> 75092 | BM40: =VLOOKUP(DropDownList!$B$47,CntyQryCensus!$A$53:$BY$96,BM$1) -> 23842 | BN40: =VLOOKUP(DropDownList!$B$47,CntyQryCensus!$A$53:$BY$96,BN$1) -> 34 | BO40: =VLOOKUP(DropDownList!$B$47,CntyQryCensus!$A$53:$BY$96,BO$1) -> 30 | BP40: =VLOOKUP(DropDownList!$B$47,CntyQryCensus!$A$53:$BY$96,BP$1) -> 9 | BQ40: =VLOOKUP(DropDownList!$B$47,CntyQryCensus!$A$53:$BY$96,BQ$1) -> 8 | BR40: =VLOOKUP(DropDownList!$B$47,CntyQryCensus!$A$53:$BY$96,BR$1) -> 8 | BS40: =VLOOKUP(DropDownList!$B$47,CntyQryCensus!$A$53:$BY$96,BS$1) -> 0 | BT40: =VLOOKUP(DropDownList!$B$47,CntyQryCensus!$A$53:$BY$96,BT$1) -> 188 | BU40: =VLOOKUP(DropDownList!$B$47,CntyQryCensus!$A$53:$BY$96,BU$1) -> 116 | BV40: =VLOOKUP(DropDownList!$B$47,CntyQryCensus!$A$53:$BY$96,BV$1) -> 12 | BW40: =VLOOKUP(DropDownList!$B$47,CntyQryCensus!$A$53:$BY$96,BW$1) -> 68 | BX40: =VLOOKUP(DropDownList!$B$47,CntyQryCensus!$A$53:$BY$96,BX$1) -> 60 | BY40: =VLOOKUP(DropDownList!$B$47,CntyQryCensus!$A$53:$BY$96,BY$1) -> 66
A43: Census 2000 DemoProfile Sample Data Table 4 - DPTab4TownQry
A44: NAME | B44: COUSUB | C44: TotHousingUnits | D44: 1UnitDet | E44: 1UnitAtt | F44: 2Units | G44: 3to4Units | H44: 5to9Units | I44: 10to19Units | J44: 20orMoreUnits | K44: MobileHomes | L44: BoatRvVan | M44: SingleFamilyUnits | N44: MultiFamUnits | O44: MobileHomeUnits | P44: YearBuilt99to00 | Q44: YearBuilt95to98 | R44: YearBUilt90to94 | S44: YearBuilt80to89 | T44: YearBuilt70to79 | U44: YearBuilt60to69 | V44: YearBuilt40to59 | W44: YearBuilt39orEarlier | X44: Rooms1 | Y44: Rooms2 | Z44: Rooms3 | AA44: Rooms4 | AB44: Rooms5 | AC44: Rooms6 | AD44: Rooms7 | AE44: Rooms8 | AF44: Rooms9orMore | AG44: MedianRooms | AH44: OccHU1 | AI44: YrHHMvdIn99to00 | AJ44: YrHHMvdIn95to98 | AK44: YrHHMvdIn90to94 | AL44: YrHHMvdIn80to89 | AM44: YrHHMvdIn70to79 | AN44: YrHHMvdIn69orBefore | AO44: HeatFuelNatGas | AP44: HeatFuelBotGas | AQ44: HeatFuelElectric | AR44: HeatFuelOil | AS44: HeatFuelCoal | AT44: HeatFuelWood | AU44: HeatFuelSolar | AV44: HeatFuelOther | AW44: HeatFuelNone | AX44: LackCompPlumb | AY44: LackCompKit | AZ44: NoTelephone | BA44: OccHU | BB44: OccPerRm1orLess | BC44: OccPerRm1to1_5 | BD44: OccPerRm1_5orMore | BE44: SpecOwnOccUnits | BF44: Value<50K | BG44: Value50to100K | BH44: Value100to150K | BI44: Value150to200K | BJ44: Value200to300K | BK44: Value300to500K | BL44: Value500Kto1mil | BM44: Value1MilorMore | BN44: MedianValue | BO44: WithMortg | BP44: MnthOwnCst<300 | BQ44: MnthOwnCst300to500 | BR44: MnthOwnCst500to700 | BS44: MnthOwnCst700to1000 | BT44: MnthOwnCst1000to1500 | BU44: MnthOwnCst1500to2000 | BV44: MnthOwnCst2000orMore | BW44: MediMnthOwnCst | BX44: NotMrtg | BY44: NotMrtgMediMnthOwnCst | BZ44: OwnCst%HHInc<15 | CA44: OwnCst%HHInc15to20 | CB44: OwnCst%HHInc20to25 | CC44: OwnCst%HHInc25to30 | CD44: OwnCst%HHInc30to35 | CE44: OwnCst%HHInc35orMor | CF44: NotComputed | CG44: SpecRntOccUnits | CH44: Rnt<200 | CI44: Rnt200to300 | CJ44: Rnt300to500 | CK44: Rnt500to750 | CL44: Rnt750to1000 | CM44: Rnt1000to1500 | CN44: Rnt1500orMore | CO44: NoRent | CP44: MedianRent | CQ44: Rnt%HHInc<15 | CR44: Rnt%HHInc15to20 | CS44: Rnt%HHInc20to25 | CT44: Rnt%HHInc25to30 | CU44: Rnt%HHInc30to35 | CV44: Rnt%HHInc35orMore | CW44: Rnt%NotCompute
A45: =VLOOKUP(DropDownList!$B$47,CntyQryCensus!$A$103:$CX$146,A$1) -> Chester | B45: =VLOOKUP(DropDownList!$B$47,CntyQryCensus!$A$103:$CX$146,B$1) -> 12100 | C45: =VLOOKUP(DropDownList!$B$47,CntyQryCensus!$A$103:$CX$146,C$1) -> 1247 | D45: =VLOOKUP(DropDownList!$B$47,CntyQryCensus!$A$103:$CX$146,D$1) -> 1113 | E45: =VLOOKUP(DropDownList!$B$47,CntyQryCensus!$A$103:$CX$146,E$1) -> 66 | F45: =VLOOKUP(DropDownList!$B$47,CntyQryCensus!$A$103:$CX$146,F$1) -> 24 | G45: =VLOOKUP(DropDownList!$B$47,CntyQryCensus!$A$103:$CX$146,G$1) -> 4 | H45: =VLOOKUP(DropDownList!$B$47,CntyQryCensus!$A$103:$CX$146,H$1) -> 14 | I45: =VLOOKUP(DropDownList!$B$47,CntyQryCensus!$A$103:$CX$146,I$1) -> 0 | J45: =VLOOKUP(DropDownList!$B$47,CntyQryCensus!$A$103:$CX$146,J$1) -> 0 | K45: =VLOOKUP(DropDownList!$B$47,CntyQryCensus!$A$103:$CX$146,K$1) -> 26 | L45: =VLOOKUP(DropDownList!$B$47,CntyQryCensus!$A$103:$CX$146,L$1) -> 0 | M45: =VLOOKUP(DropDownList!$B$47,CntyQryCensus!$A$103:$CX$146,M$1) -> 1113 | N45: =VLOOKUP(DropDownList!$B$47,CntyQryCensus!$A$103:$CX$146,N$1) -> 108 | O45: =VLOOKUP(DropDownList!$B$47,CntyQryCensus!$A$103:$CX$146,O$1) -> 26 | P45: =VLOOKUP(DropDownList!$B$47,CntyQryCensus!$A$103:$CX$146,P$1) -> 77 | Q45: =VLOOKUP(DropDownList!$B$47,CntyQryCensus!$A$103:$CX$146,Q$1) -> 140 | R45: =VLOOKUP(DropDownList!$B$47,CntyQryCensus!$A$103:$CX$146,R$1) -> 167 | S45: =VLOOKUP(DropDownList!$B$47,CntyQryCensus!$A$103:$CX$146,S$1) -> 233 | T45: =VLOOKUP(DropDownList!$B$47,CntyQryCensus!$A$103:$CX$146,T$1) -> 213 | U45: =VLOOKUP(DropDownList!$B$47,CntyQryCensus!$A$103:$CX$146,U$1) -> 82 | V45: =VLOOKUP(DropDownList!$B$47,CntyQryCensus!$A$103:$CX$146,V$1) -> 68 | W45: =VLOOKUP(DropDownList!$B$47,CntyQryCensus!$A$103:$CX$146,W$1) -> 267 | X45: =VLOOKUP(DropDownList!$B$47,CntyQryCensus!$A$103:$CX$146,X$1) -> 0 | Y45: =VLOOKUP(DropDownList!$B$47,CntyQryCensus!$A$103:$CX$146,Y$1) -> 4 | Z45: =VLOOKUP(DropDownList!$B$47,CntyQryCensus!$A$103:$CX$146,Z$1) -> 34 | AA45: =VLOOKUP(DropDownList!$B$47,CntyQryCensus!$A$103:$CX$146,AA$1) -> 67 | AB45: =VLOOKUP(DropDownList!$B$47,CntyQryCensus!$A$103:$CX$146,AB$1) -> 159 | AC45: =VLOOKUP(DropDownList!$B$47,CntyQryCensus!$A$103:$CX$146,AC$1) -> 307 | AD45: =VLOOKUP(DropDownList!$B$47,CntyQryCensus!$A$103:$CX$146,AD$1) -> 265 | AE45: =VLOOKUP(DropDownList!$B$47,CntyQryCensus!$A$103:$CX$146,AE$1) -> 201 | AF45: =VLOOKUP(DropDownList!$B$47,CntyQryCensus!$A$103:$CX$146,AF$1) -> 210 | AG45: =VLOOKUP(DropDownList!$B$47,CntyQryCensus!$A$103:$CX$146,AG$1) -> 6.7 | AH45: =VLOOKUP(DropDownList!$B$47,CntyQryCensus!$A$103:$CX$146,AH$1) -> 1214 | AI45: =VLOOKUP(DropDownList!$B$47,CntyQryCensus!$A$103:$CX$146,AI$1) -> 170 | AJ45: =VLOOKUP(DropDownList!$B$47,CntyQryCensus!$A$103:$CX$146,AJ$1) -> 303 | AK45: =VLOOKUP(DropDownList!$B$47,CntyQryCensus!$A$103:$CX$146,AK$1) -> 228 | AL45: =VLOOKUP(DropDownList!$B$47,CntyQryCensus!$A$103:$CX$146,AL$1) -> 316 | AM45: =VLOOKUP(DropDownList!$B$47,CntyQryCensus!$A$103:$CX$146,AM$1) -> 124 | AN45: =VLOOKUP(DropDownList!$B$47,CntyQryCensus!$A$103:$CX$146,AN$1) -> 73 | AO45: =VLOOKUP(DropDownList!$B$47,CntyQryCensus!$A$103:$CX$146,AO$1) -> 4 | AP45: =VLOOKUP(DropDownList!$B$47,CntyQryCensus!$A$103:$CX$146,AP$1) -> 108 | AQ45: =VLOOKUP(DropDownList!$B$47,CntyQryCensus!$A$103:$CX$146,AQ$1) -> 18 | AR45: =VLOOKUP(DropDownList!$B$47,CntyQryCensus!$A$103:$CX$146,AR$1) -> 998 | AS45: =VLOOKUP(DropDownList!$B$47,CntyQryCensus!$A$103:$CX$146,AS$1) -> 0 | AT45: =VLOOKUP(DropDownList!$B$47,CntyQryCensus!$A$103:$CX$146,AT$1) -> 86 | AU45: =VLOOKUP(DropDownList!$B$47,CntyQryCensus!$A$103:$CX$146,AU$1) -> 0 | AV45: =VLOOKUP(DropDownList!$B$47,CntyQryCensus!$A$103:$CX$146,AV$1) -> 0 | AW45: =VLOOKUP(DropDownList!$B$47,CntyQryCensus!$A$103:$CX$146,AW$1) -> 0 | AX45: =VLOOKUP(DropDownList!$B$47,CntyQryCensus!$A$103:$CX$146,AX$1) -> 3 | AY45: =VLOOKUP(DropDownList!$B$47,CntyQryCensus!$A$103:$CX$146,AY$1) -> 4 | AZ45: =VLOOKUP(DropDownList!$B$47,CntyQryCensus!$A$103:$CX$146,AZ$1) -> 6 | BA45: =VLOOKUP(DropDownList!$B$47,CntyQryCensus!$A$103:$CX$146,BA$1) -> 1214 | BB45: =VLOOKUP(DropDownList!$B$47,CntyQryCensus!$A$103:$CX$146,BB$1) -> 1199 | BC45: =VLOOKUP(DropDownList!$B$47,CntyQryCensus!$A$103:$CX$146,BC$1) -> 15 | BD45: =VLOOKUP(DropDownList!$B$47,CntyQryCensus!$A$103:$CX$146,BD$1) -> 0 | BE45: =VLOOKUP(DropDownList!$B$47,CntyQryCensus!$A$103:$CX$146,BE$1) -> 902 | BF45: =VLOOKUP(DropDownList!$B$47,CntyQryCensus!$A$103:$CX$146,BF$1) -> 4 | BG45: =VLOOKUP(DropDownList!$B$47,CntyQryCensus!$A$103:$CX$146,BG$1) -> 51 | BH45: =VLOOKUP(DropDownList!$B$47,CntyQryCensus!$A$103:$CX$146,BH$1) -> 270 | BI45: =VLOOKUP(DropDownList!$B$47,CntyQryCensus!$A$103:$CX$146,BI$1) -> 277 | BJ45: =VLOOKUP(DropDownList!$B$47,CntyQryCensus!$A$103:$CX$146,BJ$1) -> 246 | BK45: =VLOOKUP(DropDownList!$B$47,CntyQryCensus!$A$103:$CX$146,BK$1) -> 50 | BL45: =VLOOKUP(DropDownList!$B$47,CntyQryCensus!$A$103:$CX$146,BL$1) -> 4 | BM45: =VLOOKUP(DropDownList!$B$47,CntyQryCensus!$A$103:$CX$146,BM$1) -> 0 | BN45: =VLOOKUP(DropDownList!$B$47,CntyQryCensus!$A$103:$CX$146,BN$1) -> 170900 | BO45: =VLOOKUP(DropDownList!$B$47,CntyQryCensus!$A$103:$CX$146,BO$1) -> 782 | BP45: =VLOOKUP(DropDownList!$B$47,CntyQryCensus!$A$103:$CX$146,BP$1) -> 0 | BQ45: =VLOOKUP(DropDownList!$B$47,CntyQryCensus!$A$103:$CX$146,BQ$1) -> 0 | BR45: =VLOOKUP(DropDownList!$B$47,CntyQryCensus!$A$103:$CX$146,BR$1) -> 24 | BS45: =VLOOKUP(DropDownList!$B$47,CntyQryCensus!$A$103:$CX$146,BS$1) -> 111 | BT45: =VLOOKUP(DropDownList!$B$47,CntyQryCensus!$A$103:$CX$146,BT$1) -> 282 | BU45: =VLOOKUP(DropDownList!$B$47,CntyQryCensus!$A$103:$CX$146,BU$1) -> 247 | BV45: =VLOOKUP(DropDownList!$B$47,CntyQryCensus!$A$103:$CX$146,BV$1) -> 118 | BW45: =VLOOKUP(DropDownList!$B$47,CntyQryCensus!$A$103:$CX$146,BW$1) -> 1459 | BX45: =VLOOKUP(DropDownList!$B$47,CntyQryCensus!$A$103:$CX$146,BX$1) -> 120 | BY45: =VLOOKUP(DropDownList!$B$47,CntyQryCensus!$A$103:$CX$146,BY$1) -> 502 | BZ45: =VLOOKUP(DropDownList!$B$47,CntyQryCensus!$A$103:$CX$146,BZ$1) -> 175 | CA45: =VLOOKUP(DropDownList!$B$47,CntyQryCensus!$A$103:$CX$146,CA$1) -> 163 | CB45: =VLOOKUP(DropDownList!$B$47,CntyQryCensus!$A$103:$CX$146,CB$1) -> 174 | CC45: =VLOOKUP(DropDownList!$B$47,CntyQryCensus!$A$103:$CX$146,CC$1) -> 108 | CD45: =VLOOKUP(DropDownList!$B$47,CntyQryCensus!$A$103:$CX$146,CD$1) -> 74 | CE45: =VLOOKUP(DropDownList!$B$47,CntyQryCensus!$A$103:$CX$146,CE$1) -> 201 | CF45: =VLOOKUP(DropDownList!$B$47,CntyQryCensus!$A$103:$CX$146,CF$1) -> 7 | CG45: =VLOOKUP(DropDownList!$B$47,CntyQryCensus!$A$103:$CX$146,CG$1) -> 60 | CH45: =VLOOKUP(DropDownList!$B$47,CntyQryCensus!$A$103:$CX$146,CH$1) -> 0 | CI45: =VLOOKUP(DropDownList!$B$47,CntyQryCensus!$A$103:$CX$146,CI$1) -> 0 | CJ45: =VLOOKUP(DropDownList!$B$47,CntyQryCensus!$A$103:$CX$146,CJ$1) -> 0 | CK45: =VLOOKUP(DropDownList!$B$47,CntyQryCensus!$A$103:$CX$146,CK$1) -> 21 | CL45: =VLOOKUP(DropDownList!$B$47,CntyQryCensus!$A$103:$CX$146,CL$1) -> 10 | CM45: =VLOOKUP(DropDownList!$B$47,CntyQryCensus!$A$103:$CX$146,CM$1) -> 10 | CN45: =VLOOKUP(DropDownList!$B$47,CntyQryCensus!$A$103:$CX$146,CN$1) -> 0 | CO45: =VLOOKUP(DropDownList!$B$47,CntyQryCensus!$A$103:$CX$146,CO$1) -> 19 | CP45: =VLOOKUP(DropDownList!$B$47,CntyQryCensus!$A$103:$CX$146,CP$1) -> 695 | CQ45: =VLOOKUP(DropDownList!$B$47,CntyQryCensus!$A$103:$CX$146,CQ$1) -> 0 | CR45: =VLOOKUP(DropDownList!$B$47,CntyQryCensus!$A$103:$CX$146,CR$1) -> 21 | CS45: =VLOOKUP(DropDownList!$B$47,CntyQryCensus!$A$103:$CX$146,CS$1) -> 0 | CT45: =VLOOKUP(DropDownList!$B$47,CntyQryCensus!$A$103:$CX$146,CT$1) -> 0 | CU45: =VLOOKUP(DropDownList!$B$47,CntyQryCensus!$A$103:$CX$146,CU$1) -> 5 | CV45: =VLOOKUP(DropDownList!$B$47,CntyQryCensus!$A$103:$CX$146,CV$1) -> 15 | CW45: =VLOOKUP(DropDownList!$B$47,CntyQryCensus!$A$103:$CX$146,CW$1) -> 19
A48: Census 2000 SummaryFile3 Sample Data - SF3TownQry1SocialChar
A49: TOWN_NAME | B49: LOGRECNO | C49: COUSUB | D49: P01TotalPopulation | E49: P02SampleCountOfPop | F49: P03Pop100pctCount | G49: P05UrbanPopulation | H49: P05RuralPopulation | I49: P06WhiteAlone | J49: P06BlackOrAfAm | K49: P06AmIndAlone | L49: P06AsianAlone | M49: P06HawaiianOrPI | N49: P06OtherRace | O49: P06TwoPlusRaces | P49: P07NotHispanicOrLatino | Q49: P07HispanicOrLatino | R49: P08MalePop | S49: P08FemalePop | T49: P09PopInHouseholds | U49: P09PopInFamHH | V49: P09PopInNonFamHH | W49: P09PopInGroupQtr | X49: P13TotalHH | Y49: P13FamilyHH | Z49: P13FamHHolder15to24yrs | AA49: P13FamHHolder25to34yrs | AB49: P13FamHHolder35to44yrs | AC49: P13FamHHolder45to54yrs | AD49: P13FamHHolder55to64yrs | AE49: P13FamHHolder65to74yrs | AF49: P13FamHHolder75to84yrs | AG49: P13FamHHolder85yrsOver | AH49: P13NonFamilyHH | AI49: P13NonFamHHolder15to24yrs | AJ49: P13NonFamHHolder25to34yrs | AK49: P13NonFamHHolder35to44yrs | AL49: P13NonFamHHolder45to54yrs | AM49: P13NonFamHHolder55to64yrs | AN49: P13NonFamHHolder65to74yrs | AO49: P13NonFamHHolder75to84yrs | AP49: P13NonFamHHolder85yrsOver | AQ49: P18Pop15yrsOver | AR49: P18MaritalStatNeverMarried | AS49: P18MaritalStatNowMarried | AT49: P18MaritalStatSeparated | AU49: P18MaritalStatWidowed | AV49: P18MaritalStatWidowFemale | AW49: P18MaritalStatDivorced | AX49: P18MaritalStatDivorcedFemale | AY49: P21NativeBornPop | AZ49: P21NatPopBornInState | BA49: P21NatPopBornOtherState | BB49: P021005 | BC49: P021006 | BD49: P021007 | BE49: P021008 | BF49: P21NatPopBornOutUS | BG49: P21ForeignBornPop | BH49: P021014 | BI49: P021015 | BJ49: P24Pop5YrsPlus | BK49: P24ResSameHouseIn95 | BL49: P24ResDiffHouseIn95 | BM49: P24ResDiffHouseInUSIn95 | BN49: P24ResDiffHouseSameCountyIn95 | BO49: P24ResDiffHouseDiffCountyIn95 | BP49: P24ResDiffHouseDiffCntySamStIn95 | BQ49: P24ResDiffHouseDiffCntyDifStIn95 | BR49: P24ResDiffHouseDiffCntyNEStIn95 | BS49: P24ResDiffHouseDiffCntyMWStIn95 | BT49: P24ResDiffHouseDiffCntySoStIn95 | BU49: P24ResDiffHouseDiffCntyWstStIn95 | BV49: P24ResDiffInPR | BW49: P24ResDiffElsewhereIn95 | BX49: P26Workers16yrsOver | BY49: P26WorkedInState | BZ49: P26WorkedInCnty | CA49: P26WorkedOutsideCnty | CB49: P26WorkedOutsideState | CC49: P30Workers16Over | CD49: P30TranspToWrkCar | CE49: P30TranspToWrkPublic | CF49: P30TranspToWrkOther | CG49: P30WrkdAtHome | CH49: P31WrkrsNotWrkAtHom | CI49: P31TravTim<5min | CJ49: P31TravTim5to9Min | CK49: P31TravTim10to14Min | CL49: P31TravTim15to19Min | CM49: P31TravTim20to24Min | CN49: P31TravTim25to29Min | CO49: P31TravTim30to34Min | CP49: P31TravTim35to39Min | CQ49: P31TravTim40to44Min | CR49: P31TravTim45to59Min | CS49: P31TravTim60to89Min | CT49: P31TravTim90MinMore | CU49: P31WorkAtHome | CV49: P36SchEnrlPop3yrOver | CW49: P36NurserSchEnrl | CX49: P36KinderSchEnrl | CY49: P36ElemSchEnrl | CZ49: P36HighSchEnrl | DA49: P36CollGradSchEnrl | DB49: P37Pop25yrsOver | DC49: P37EduAtain<9grd | DD49: P37EduAtainHSnoDip | DE49: P37EduAtainHSgrad | DF49: P37EduAtainCollNoDeg | DG49: P37EduAtainAssocDeg | DH49: P37EduAtainBachDeg | DI49: P37EduAtainGradProfDeg | DJ49: P42NIPop5to15 | DK49: P42NIPop5to15wDisabl | DL49: P42NIPop16to20 | DM49: P42NIPop16to20wDisab | DN49: P42NIPop16to20wDisEmp | DO49: P42NIPop16to21NoDis | DP49: P42NIPop16to21NoDisEmpl | DQ49: P42NIPop21to64 | DR49: P42NIPop21to64wDis | DS49: P42NIPop21to64wDisEmp | DT49: P42NIPop21to64NoDis | DU49: P42NIPop21to64NoDisEmp | DV49: P42NIPop65to74 | DW49: P42NIPop65to74wDis | DX49: P42NIPop75Over | DY49: P42NIPop75OverwDis | DZ49: P43Pop16YrsOver | EA49: P43Pop16OvrInLaborForce | EB49: P43Pop16OvrCivlLabFrc | EC49: P43Pop16OvrCivlLbrFrcEmp | ED49: P48Families | EE49: P48MarriedFam | EF49: P48MarrFamNoWorkers | EG49: P48MarrFam1Worker | EH49: P48MarrFam2Worker | EI49: P48MarrFamHusbWifeWorked | EJ49: P48MarrFamOther | EK49: P48MarrFam3PlusWorker | EL49: P48MarrFam3WorkHsbWif | EM49: P48MarrFam3PlsWrkOther | EN49: P48OtherFam | EO49: P48MaleHHNoWif | EP49: P48MaleHHNoWifNoWorker | EQ49: P48MaleHHNoWif1Worker | ER49: P48MaleHHNoWif2Worker | ES49: P48MaleHHNoWif3PlusWorker | ET49: P48FemaleHHNoHsb | EU49: P48FemaleHHNoHsbNoWorker | EV49: P48FemaleHHNoHsb1Worker | EW49: P48FemaleHHNoHsb2Worker | EX49: P48FemaleHHNoHsb3Worker | EY49: P49EmpCivPop16YrOver | EZ49: P49IndustAgricult | FA49: P49IndustConst | FB49: P49IndustMnftg | FC49: P49IndustWhlslTrd | FD49: P49IndustRtlTrd | FE49: P49IndustTrspWrhsUtlt | FF49: P49IndustInfrm | FG49: P49IndustFinInsRE | FH49: P49IndustPrfsScntfMngmt | FI49: P49IndustEduHlthSocSrv | FJ49: P49IndustArtsEntRec | FK49: P49IndustOthrSrvc | FL49: P49IndustPubAdm | FM49: P50OccupMngmtProfs | FN49: P50OccupService | FO49: P50OccupSalesOff | FP49: P50OccupFarmFishForest | FQ49: P50OccupConstExtrctMaint | FR49: P50OccupPrdctTrnspMatMv
A50: =VLOOKUP(DropDownList!$B$47,CntyQryCensus!$A$156:$FR$198,A$1) -> Chester | B50: =VLOOKUP(DropDownList!$B$47,CntyQryCensus!$A$156:$FR$198,B$1) -> 0003071 | C50: =VLOOKUP(DropDownList!$B$47,CntyQryCensus!$A$156:$FR$198,C$1) -> 12100 | D50: =VLOOKUP(DropDownList!$B$47,CntyQryCensus!$A$156:$FR$198,D$1) -> 3792 | E50: =VLOOKUP(DropDownList!$B$47,CntyQryCensus!$A$156:$FR$198,E$1) -> 906 | F50: =VLOOKUP(DropDownList!$B$47,CntyQryCensus!$A$156:$FR$198,F$1) -> 3792 | G50: =VLOOKUP(DropDownList!$B$47,CntyQryCensus!$A$156:$FR$198,G$1) -> 39 | H50: =VLOOKUP(DropDownList!$B$47,CntyQryCensus!$A$156:$FR$198,H$1) -> 3753 | I50: =VLOOKUP(DropDownList!$B$47,CntyQryCensus!$A$156:$FR$198,I$1) -> 3687 | J50: =VLOOKUP(DropDownList!$B$47,CntyQryCensus!$A$156:$FR$198,J$1) -> 9 | K50: =VLOOKUP(DropDownList!$B$47,CntyQryCensus!$A$156:$FR$198,K$1) -> 20 | L50: =VLOOKUP(DropDownList!$B$47,CntyQryCensus!$A$156:$FR$198,L$1) -> 53 | M50: =VLOOKUP(DropDownList!$B$47,CntyQryCensus!$A$156:$FR$198,M$1) -> 0 | N50: =VLOOKUP(DropDownList!$B$47,CntyQryCensus!$A$156:$FR$198,N$1) -> 0 | O50: =VLOOKUP(DropDownList!$B$47,CntyQryCensus!$A$156:$FR$198,O$1) -> 23 | P50: =VLOOKUP(DropDownList!$B$47,CntyQryCensus!$A$156:$FR$198,P$1) -> 3772 | Q50: =VLOOKUP(DropDownList!$B$47,CntyQryCensus!$A$156:$FR$198,Q$1) -> 20 | R50: =VLOOKUP(DropDownList!$B$47,CntyQryCensus!$A$156:$FR$198,R$1) -> 1869 | S50: =VLOOKUP(DropDownList!$B$47,CntyQryCensus!$A$156:$FR$198,S$1) -> 1923 | T50: =VLOOKUP(DropDownList!$B$47,CntyQryCensus!$A$156:$FR$198,T$1) -> 3756 | U50: =VLOOKUP(DropDownList!$B$47,CntyQryCensus!$A$156:$FR$198,U$1) -> 3490 | V50: =VLOOKUP(DropDownList!$B$47,CntyQryCensus!$A$156:$FR$198,V$1) -> 266 | W50: =VLOOKUP(DropDownList!$B$47,CntyQryCensus!$A$156:$FR$198,W$1) -> 36 | X50: =VLOOKUP(DropDownList!$B$47,CntyQryCensus!$A$156:$FR$198,X$1) -> 1212 | Y50: =VLOOKUP(DropDownList!$B$47,CntyQryCensus!$A$156:$FR$198,Y$1) -> 1014 | Z50: =VLOOKUP(DropDownList!$B$47,CntyQryCensus!$A$156:$FR$198,Z$1) -> 6 | AA50: =VLOOKUP(DropDownList!$B$47,CntyQryCensus!$A$156:$FR$198,AA$1) -> 141 | AB50: =VLOOKUP(DropDownList!$B$47,CntyQryCensus!$A$156:$FR$198,AB$1) -> 346 | AC50: =VLOOKUP(DropDownList!$B$47,CntyQryCensus!$A$156:$FR$198,AC$1) -> 297 | AD50: =VLOOKUP(DropDownList!$B$47,CntyQryCensus!$A$156:$FR$198,AD$1) -> 146 | AE50: =VLOOKUP(DropDownList!$B$47,CntyQryCensus!$A$156:$FR$198,AE$1) -> 51 | AF50: =VLOOKUP(DropDownList!$B$47,CntyQryCensus!$A$156:$FR$198,AF$1) -> 17 | AG50: =VLOOKUP(DropDownList!$B$47,CntyQryCensus!$A$156:$FR$198,AG$1) -> 10 | AH50: =VLOOKUP(DropDownList!$B$47,CntyQryCensus!$A$156:$FR$198,AH$1) -> 198 | AI50: =VLOOKUP(DropDownList!$B$47,CntyQryCensus!$A$156:$FR$198,AI$1) -> 0 | AJ50: =VLOOKUP(DropDownList!$B$47,CntyQryCensus!$A$156:$FR$198,AJ$1) -> 14 | AK50: =VLOOKUP(DropDownList!$B$47,CntyQryCensus!$A$156:$FR$198,AK$1) -> 37 | AL50: =VLOOKUP(DropDownList!$B$47,CntyQryCensus!$A$156:$FR$198,AL$1) -> 48 | AM50: =VLOOKUP(DropDownList!$B$47,CntyQryCensus!$A$156:$FR$198,AM$1) -> 53 | AN50: =VLOOKUP(DropDownList!$B$47,CntyQryCensus!$A$156:$FR$198,AN$1) -> 19 | AO50: =VLOOKUP(DropDownList!$B$47,CntyQryCensus!$A$156:$FR$198,AO$1) -> 23 | AP50: =VLOOKUP(DropDownList!$B$47,CntyQryCensus!$A$156:$FR$198,AP$1) -> 4 | AQ50: =VLOOKUP(DropDownList!$B$47,CntyQryCensus!$A$156:$FR$198,AQ$1) -> 2801 | AR50: =VLOOKUP(DropDownList!$B$47,CntyQryCensus!$A$156:$FR$198,AR$1) -> 555 | AS50: =VLOOKUP(DropDownList!$B$47,CntyQryCensus!$A$156:$FR$198,AS$1) -> 1881 | AT50: =VLOOKUP(DropDownList!$B$47,CntyQryCensus!$A$156:$FR$198,AT$1) -> 22 | AU50: =VLOOKUP(DropDownList!$B$47,CntyQryCensus!$A$156:$FR$198,AU$1) -> 114 | AV50: =VLOOKUP(DropDownList!$B$47,CntyQryCensus!$A$156:$FR$198,AV$1) -> 84 | AW50: =VLOOKUP(DropDownList!$B$47,CntyQryCensus!$A$156:$FR$198,AW$1) -> 229 | AX50: =VLOOKUP(DropDownList!$B$47,CntyQryCensus!$A$156:$FR$198,AX$1) -> 110 | AY50: =VLOOKUP(DropDownList!$B$47,CntyQryCensus!$A$156:$FR$198,AY$1) -> 3699 | AZ50: =VLOOKUP(DropDownList!$B$47,CntyQryCensus!$A$156:$FR$198,AZ$1) -> 1251 | BA50: =VLOOKUP(DropDownList!$B$47,CntyQryCensus!$A$156:$FR$198,BA$1) -> 2398 | BB50: =VLOOKUP(DropDownList!$B$47,CntyQryCensus!$A$156:$FR$198,BB$1) -> 2114 | BC50: =VLOOKUP(DropDownList!$B$47,CntyQryCensus!$A$156:$FR$198,BC$1) -> 107 | BD50: =VLOOKUP(DropDownList!$B$47,CntyQryCensus!$A$156:$FR$198,BD$1) -> 104 | BE50: =VLOOKUP(DropDownList!$B$47,CntyQryCensus!$A$156:$FR$198,BE$1) -> 73 | BF50: =VLOOKUP(DropDownList!$B$47,CntyQryCensus!$A$156:$FR$198,BF$1) -> 50 | BG50: =VLOOKUP(DropDownList!$B$47,CntyQryCensus!$A$156:$FR$198,BG$1) -> 93 | BH50: =VLOOKUP(DropDownList!$B$47,CntyQryCensus!$A$156:$FR$198,BH$1) -> 63 | BI50: =VLOOKUP(DropDownList!$B$47,CntyQryCensus!$A$156:$FR$198,BI$1) -> 30 | BJ50: =VLOOKUP(DropDownList!$B$47,CntyQryCensus!$A$156:$FR$198,BJ$1) -> 3478 | BK50: =VLOOKUP(DropDownList!$B$47,CntyQryCensus!$A$156:$FR$198,BK$1) -> 2042 | BL50: =VLOOKUP(DropDownList!$B$47,CntyQryCensus!$A$156:$FR$198,BL$1) -> 1436 | BM50: =VLOOKUP(DropDownList!$B$47,CntyQryCensus!$A$156:$FR$198,BM$1) -> 1432 | BN50: =VLOOKUP(DropDownList!$B$47,CntyQryCensus!$A$156:$FR$198,BN$1) -> 762 | BO50: =VLOOKUP(DropDownList!$B$47,CntyQryCensus!$A$156:$FR$198,BO$1) -> 670 | BP50: =VLOOKUP(DropDownList!$B$47,CntyQryCensus!$A$156:$FR$198,BP$1) -> 255 | BQ50: =VLOOKUP(DropDownList!$B$47,CntyQryCensus!$A$156:$FR$198,BQ$1) -> 415 | BR50: =VLOOKUP(DropDownList!$B$47,CntyQryCensus!$A$156:$FR$198,BR$1) -> 320 | BS50: =VLOOKUP(DropDownList!$B$47,CntyQryCensus!$A$156:$FR$198,BS$1) -> 29 | BT50: =VLOOKUP(DropDownList!$B$47,CntyQryCensus!$A$156:$FR$198,BT$1) -> 34 | BU50: =VLOOKUP(DropDownList!$B$47,CntyQryCensus!$A$156:$FR$198,BU$1) -> 32 | BV50: =VLOOKUP(DropDownList!$B$47,CntyQryCensus!$A$156:$FR$198,BV$1) -> 0 | BW50: =VLOOKUP(DropDownList!$B$47,CntyQryCensus!$A$156:$FR$198,BW$1) -> 4 | BX50: =VLOOKUP(DropDownList!$B$47,CntyQryCensus!$A$156:$FR$198,BX$1) -> 2013 | BY50: =VLOOKUP(DropDownList!$B$47,CntyQryCensus!$A$156:$FR$198,BY$1) -> 1600 | BZ50: =VLOOKUP(DropDownList!$B$47,CntyQryCensus!$A$156:$FR$198,BZ$1) -> 1029 | CA50: =VLOOKUP(DropDownList!$B$47,CntyQryCensus!$A$156:$FR$198,CA$1) -> 571 | CB50: =VLOOKUP(DropDownList!$B$47,CntyQryCensus!$A$156:$FR$198,CB$1) -> 413 | CC50: =VLOOKUP(DropDownList!$B$47,CntyQryCensus!$A$156:$FR$198,CC$1) -> 2013 | CD50: =VLOOKUP(DropDownList!$B$47,CntyQryCensus!$A$156:$FR$198,CD$1) -> 1831 | CE50: =VLOOKUP(DropDownList!$B$47,CntyQryCensus!$A$156:$FR$198,CE$1) -> 25 | CF50: =VLOOKUP(DropDownList!$B$47,CntyQryCensus!$A$156:$FR$198,CF$1) -> 103 | CG50: =VLOOKUP(DropDownList!$B$47,CntyQryCensus!$A$156:$FR$198,CG$1) -> 144 | CH50: =VLOOKUP(DropDownList!$B$47,CntyQryCensus!$A$156:$FR$198,CH$1) -> 1869 | CI50: =VLOOKUP(DropDownList!$B$47,CntyQryCensus!$A$156:$FR$198,CI$1) -> 37 | CJ50: =VLOOKUP(DropDownList!$B$47,CntyQryCensus!$A$156:$FR$198,CJ$1) -> 83 | CK50: =VLOOKUP(DropDownList!$B$47,CntyQryCensus!$A$156:$FR$198,CK$1) -> 76 | CL50: =VLOOKUP(DropDownList!$B$47,CntyQryCensus!$A$156:$FR$198,CL$1) -> 195 | CM50: =VLOOKUP(DropDownList!$B$47,CntyQryCensus!$A$156:$FR$198,CM$1) -> 228 | CN50: =VLOOKUP(DropDownList!$B$47,CntyQryCensus!$A$156:$FR$198,CN$1) -> 141 | CO50: =VLOOKUP(DropDownList!$B$47,CntyQryCensus!$A$156:$FR$198,CO$1) -> 438 | CP50: =VLOOKUP(DropDownList!$B$47,CntyQryCensus!$A$156:$FR$198,CP$1) -> 84 | CQ50: =VLOOKUP(DropDownList!$B$47,CntyQryCensus!$A$156:$FR$198,CQ$1) -> 123 | CR50: =VLOOKUP(DropDownList!$B$47,CntyQryCensus!$A$156:$FR$198,CR$1) -> 211 | CS50: =VLOOKUP(DropDownList!$B$47,CntyQryCensus!$A$156:$FR$198,CS$1) -> 222 | CT50: =VLOOKUP(DropDownList!$B$47,CntyQryCensus!$A$156:$FR$198,CT$1) -> 31 | CU50: =VLOOKUP(DropDownList!$B$47,CntyQryCensus!$A$156:$FR$198,CU$1) -> 144 | CV50: =VLOOKUP(DropDownList!$B$47,CntyQryCensus!$A$156:$FR$198,CV$1) -> 3589 | CW50: =VLOOKUP(DropDownList!$B$47,CntyQryCensus!$A$156:$FR$198,CW$1) -> 86 | CX50: =VLOOKUP(DropDownList!$B$47,CntyQryCensus!$A$156:$FR$198,CX$1) -> 41 | CY50: =VLOOKUP(DropDownList!$B$47,CntyQryCensus!$A$156:$FR$198,CY$1) -> 528 | CZ50: =VLOOKUP(DropDownList!$B$47,CntyQryCensus!$A$156:$FR$198,CZ$1) -> 237 | DA50: =VLOOKUP(DropDownList!$B$47,CntyQryCensus!$A$156:$FR$198,DA$1) -> 187 | DB50: =VLOOKUP(DropDownList!$B$47,CntyQryCensus!$A$156:$FR$198,DB$1) -> 2402 | DC50: =VLOOKUP(DropDownList!$B$47,CntyQryCensus!$A$156:$FR$198,DC$1) -> 37 | DD50: =VLOOKUP(DropDownList!$B$47,CntyQryCensus!$A$156:$FR$198,DD$1) -> 154 | DE50: =VLOOKUP(DropDownList!$B$47,CntyQryCensus!$A$156:$FR$198,DE$1) -> 675 | DF50: =VLOOKUP(DropDownList!$B$47,CntyQryCensus!$A$156:$FR$198,DF$1) -> 559 | DG50: =VLOOKUP(DropDownList!$B$47,CntyQryCensus!$A$156:$FR$198,DG$1) -> 230 | DH50: =VLOOKUP(DropDownList!$B$47,CntyQryCensus!$A$156:$FR$198,DH$1) -> 469 | DI50: =VLOOKUP(DropDownList!$B$47,CntyQryCensus!$A$156:$FR$198,DI$1) -> 278 | DJ50: =VLOOKUP(DropDownList!$B$47,CntyQryCensus!$A$156:$FR$198,DJ$1) -> 727 | DK50: =VLOOKUP(DropDownList!$B$47,CntyQryCensus!$A$156:$FR$198,DK$1) -> 57 | DL50: =VLOOKUP(DropDownList!$B$47,CntyQryCensus!$A$156:$FR$198,DL$1) -> 258 | DM50: =VLOOKUP(DropDownList!$B$47,CntyQryCensus!$A$156:$FR$198,DM$1) -> 38 | DN50: =VLOOKUP(DropDownList!$B$47,CntyQryCensus!$A$156:$FR$198,DN$1) -> 19 | DO50: =VLOOKUP(DropDownList!$B$47,CntyQryCensus!$A$156:$FR$198,DO$1) -> 220 | DP50: =VLOOKUP(DropDownList!$B$47,CntyQryCensus!$A$156:$FR$198,DP$1) -> 122 | DQ50: =VLOOKUP(DropDownList!$B$47,CntyQryCensus!$A$156:$FR$198,DQ$1) -> 2264 | DR50: =VLOOKUP(DropDownList!$B$47,CntyQryCensus!$A$156:$FR$198,DR$1) -> 349 | DS50: =VLOOKUP(DropDownList!$B$47,CntyQryCensus!$A$156:$FR$198,DS$1) -> 265 | DT50: =VLOOKUP(DropDownList!$B$47,CntyQryCensus!$A$156:$FR$198,DT$1) -> 1915 | DU50: =VLOOKUP(DropDownList!$B$47,CntyQryCensus!$A$156:$FR$198,DU$1) -> 1617 | DV50: =VLOOKUP(DropDownList!$B$47,CntyQryCensus!$A$156:$FR$198,DV$1) -> 144 | DW50: =VLOOKUP(DropDownList!$B$47,CntyQryCensus!$A$156:$FR$198,DW$1) -> 52 | DX50: =VLOOKUP(DropDownList!$B$47,CntyQryCensus!$A$156:$FR$198,DX$1) -> 85 | DY50: =VLOOKUP(DropDownList!$B$47,CntyQryCensus!$A$156:$FR$198,DY$1) -> 49 | DZ50: =VLOOKUP(DropDownList!$B$47,CntyQryCensus!$A$156:$FR$198,DZ$1) -> 2751 | EA50: =VLOOKUP(DropDownList!$B$47,CntyQryCensus!$A$156:$FR$198,EA$1) -> 2145 | EB50: =VLOOKUP(DropDownList!$B$47,CntyQryCensus!$A$156:$FR$198,EB$1) -> 2145 | EC50: =VLOOKUP(DropDownList!$B$47,CntyQryCensus!$A$156:$FR$198,EC$1) -> 2054 | ED50: =VLOOKUP(DropDownList!$B$47,CntyQryCensus!$A$156:$FR$198,ED$1) -> 1014 | EE50: =VLOOKUP(DropDownList!$B$47,CntyQryCensus!$A$156:$FR$198,EE$1) -> 886 | EF50: =VLOOKUP(DropDownList!$B$47,CntyQryCensus!$A$156:$FR$198,EF$1) -> 41 | EG50: =VLOOKUP(DropDownList!$B$47,CntyQryCensus!$A$156:$FR$198,EG$1) -> 182 | EH50: =VLOOKUP(DropDownList!$B$47,CntyQryCensus!$A$156:$FR$198,EH$1) -> 499 | EI50: =VLOOKUP(DropDownList!$B$47,CntyQryCensus!$A$156:$FR$198,EI$1) -> 469 | EJ50: =VLOOKUP(DropDownList!$B$47,CntyQryCensus!$A$156:$FR$198,EJ$1) -> 30 | EK50: =VLOOKUP(DropDownList!$B$47,CntyQryCensus!$A$156:$FR$198,EK$1) -> 164 | EL50: =VLOOKUP(DropDownList!$B$47,CntyQryCensus!$A$156:$FR$198,EL$1) -> 153 | EM50: =VLOOKUP(DropDownList!$B$47,CntyQryCensus!$A$156:$FR$198,EM$1) -> 11 | EN50: =VLOOKUP(DropDownList!$B$47,CntyQryCensus!$A$156:$FR$198,EN$1) -> 128 | EO50: =VLOOKUP(DropDownList!$B$47,CntyQryCensus!$A$156:$FR$198,EO$1) -> 37 | EP50: =VLOOKUP(DropDownList!$B$47,CntyQryCensus!$A$156:$FR$198,EP$1) -> 0 | EQ50: =VLOOKUP(DropDownList!$B$47,CntyQryCensus!$A$156:$FR$198,EQ$1) -> 23 | ER50: =VLOOKUP(DropDownList!$B$47,CntyQryCensus!$A$156:$FR$198,ER$1) -> 8 | ES50: =VLOOKUP(DropDownList!$B$47,CntyQryCensus!$A$156:$FR$198,ES$1) -> 6 | ET50: =VLOOKUP(DropDownList!$B$47,CntyQryCensus!$A$156:$FR$198,ET$1) -> 91 | EU50: =VLOOKUP(DropDownList!$B$47,CntyQryCensus!$A$156:$FR$198,EU$1) -> 22 | EV50: =VLOOKUP(DropDownList!$B$47,CntyQryCensus!$A$156:$FR$198,EV$1) -> 38 | EW50: =VLOOKUP(DropDownList!$B$47,CntyQryCensus!$A$156:$FR$198,EW$1) -> 28 | EX50: =VLOOKUP(DropDownList!$B$47,CntyQryCensus!$A$156:$FR$198,EX$1) -> 3 | EY50: =VLOOKUP(DropDownList!$B$47,CntyQryCensus!$A$156:$FR$198,EY$1) -> 2054 | EZ50: =VLOOKUP(DropDownList!$B$47,CntyQryCensus!$A$156:$FR$198,EZ$1) -> 20 | FA50: =VLOOKUP(DropDownList!$B$47,CntyQryCensus!$A$156:$FR$198,FA$1) -> 190 | FB50: =VLOOKUP(DropDownList!$B$47,CntyQryCensus!$A$156:$FR$198,FB$1) -> 398 | FC50: =VLOOKUP(DropDownList!$B$47,CntyQryCensus!$A$156:$FR$198,FC$1) -> 67 | FD50: =VLOOKUP(DropDownList!$B$47,CntyQryCensus!$A$156:$FR$198,FD$1) -> 230 | FE50: =VLOOKUP(DropDownList!$B$47,CntyQryCensus!$A$156:$FR$198,FE$1) -> 135 | FF50: =VLOOKUP(DropDownList!$B$47,CntyQryCensus!$A$156:$FR$198,FF$1) -> 38 | FG50: =VLOOKUP(DropDownList!$B$47,CntyQryCensus!$A$156:$FR$198,FG$1) -> 148 | FH50: =VLOOKUP(DropDownList!$B$47,CntyQryCensus!$A$156:$FR$198,FH$1) -> 236 | FI50: =VLOOKUP(DropDownList!$B$47,CntyQryCensus!$A$156:$FR$198,FI$1) -> 373 | FJ50: =VLOOKUP(DropDownList!$B$47,CntyQryCensus!$A$156:$FR$198,FJ$1) -> 78 | FK50: =VLOOKUP(DropDownList!$B$47,CntyQryCensus!$A$156:$FR$198,FK$1) -> 85 | FL50: =VLOOKUP(DropDownList!$B$47,CntyQryCensus!$A$156:$FR$198,FL$1) -> 56 | FM50: =VLOOKUP(DropDownList!$B$47,CntyQryCensus!$A$156:$FR$198,FM$1) -> 831 | FN50: =VLOOKUP(DropDownList!$B$47,CntyQryCensus!$A$156:$FR$198,FN$1) -> 192 | FO50: =VLOOKUP(DropDownList!$B$47,CntyQryCensus!$A$156:$FR$198,FO$1) -> 549 | FP50: =VLOOKUP(DropDownList!$B$47,CntyQryCensus!$A$156:$FR$198,FP$1) -> 9 | FQ50: =VLOOKUP(DropDownList!$B$47,CntyQryCensus!$A$156:$FR$198,FQ$1) -> 219 | FR50: =VLOOKUP(DropDownList!$B$47,CntyQryCensus!$A$156:$FR$198,FR$1) -> 254
A53: Census 2000 SummaryFile3 Sample Data - SF3TownQry2aIncomeChar
A54: NAME | B54: LOGRECNO | C54: COUNTY | D54: TotalPop | E54: P52Households1 | F54: P52HHInc<10K | G54: P52HHInc10to15K | H54: P52HHInc15to20K | I54: P52HHInc20to25K | J54: P52HHInc25to30K | K54: P52HHInc30to35K | L54: P52HHInc35to40K | M54: P52HHInc40to45K | N54: P52HHInc45to50K | O54: P52HHInc50to60K | P54: P52HHInc60to75K | Q54: P52HHInc75to100K | R54: P52HHInc100to125K | S54: P52HHInc125to150K | T54: P52HHInc150to200K | U54: P52HHInc>200K | V54: P53MedianHHInc | W54: P54AggregHHInc | X54: P55Households2 | Y54: P55HHUnder25yrs | Z54: P55HH<25HHInc<10K | AA54: P55HH<25HHInc10to15K | AB54: P55HH<25HHInc15to20K | AC54: P55HH<25HHInc20to25K | AD54: P55HH<25HHInc25to30K | AE54: P55HH<25HHInc30to35K | AF54: P55HH<25HHInc35to40K | AG54: P55HH<25HHInc40to45K | AH54: P55HH<25HHInc45to50K | AI54: P55HH<25HHInc50to60K | AJ54: P55HH<25HHInc60to75K | AK54: P55HH<25HHInc75to100K | AL54: P55HH<25HHInc100to125K | AM54: P55HH<25HHInc125to150K | AN54: P55HH<25HHInc150to200K | AO54: P55HH<25HHInc>200K | AP54: P55HH25to34yrs | AQ54: P55HH25to34HHInc<10K | AR54: P55HH25to34HHInc10to15K | AS54: P55HH25to34HHInc15to20K | AT54: P55HH25to34HHInc20to25K | AU54: P55HH25to34HHInc25to30K | AV54: P55HH25to34HHInc30to35K | AW54: P55HH25to34HHInc35to40K | AX54: P55HH25to34HHInc40to45K | AY54: P55HH25to34HHInc45to50K | AZ54: P55HH25to34HHInc50to60K | BA54: P55HH25to34HHInc60to75K | BB54: P55HH25to34HHInc75to100K | BC54: P55HH25to34HHInc100to125K | BD54: P55HH25to34HHInc125to150K | BE54: P55HH25to34HHInc150to200K | BF54: P55HH25to34HHInc>200K | BG54: P55HH35to44yrs | BH54: P55HH35to44HHInc<10K | BI54: P55HH35to44HHInc10to15K | BJ54: P55HH35to44HHInc15to20K | BK54: P55HH35to44HHInc20to25K | BL54: P55HH35to44HHInc25to30K | BM54: P55HH35to44HHInc30to35K | BN54: P55HH35to44HHInc35to40K | BO54: P55HH35to44HHInc40to45K | BP54: P55HH35to44HHInc45to50K | BQ54: P55HH35to44HHInc50to60K | BR54: P55HH35to44HHInc60to75K | BS54: P55HH35to44HHInc75to100K | BT54: P55HH35to44HHInc100to125K | BU54: P55HH35to44HHInc125to150K | BV54: P55HH35to44HHInc150to200K | BW54: P55HH35to44HHInc>200K | BX54: P55HH45to54yrs | BY54: P55HH45to55HHInc<10K | BZ54: P55HH45to55HHInc10to15K | CA54: P55HH45to55HHInc15to20K | CB54: P55HH45to55HHInc20to25K | CC54: P55HH45to55HHInc25to30K | CD54: P55HH45to55HHInc30to35K | CE54: P55HH45to55HHInc35to40K | CF54: P55HH45to55HHInc40to45K | CG54: P55HH45to55HHInc45to50K | CH54: P55HH45to55HHInc50to60K | CI54: P55HH45to55HHInc60to75K | CJ54: P55HH45to55HHInc75to100K | CK54: P55HH45to55HHInc100to125K | CL54: P55HH45to55HHInc125to150K | CM54: P55HH45to55HHInc150to200K | CN54: P55HH45to55HHInc>200K | CO54: P55HH55to64yrs | CP54: P55HH55to64HHInc<10K | CQ54: P55HH55to64HHInc10to15K | CR54: P55HH55to64HHInc15to20K | CS54: P55HH55to64HHInc20to25K | CT54: P55HH55to64HHInc25to30K | CU54: P55HH55to64HHInc30to35K | CV54: P55HH55to64HHInc35to40K | CW54: P55HH55to64HHInc40to45K | CX54: P55HH55to64HHInc45to50K | CY54: P55HH55to64HHInc50to60K | CZ54: P55HH55to64HHInc60to75K | DA54: P55HH55to64HHInc75to100K | DB54: P55HH55to64HHInc100to125K | DC54: P55HH55to64HHInc125to150K | DD54: P55HH55to64HHInc150to200K | DE54: P55HH55to64HHInc>200K | DF54: P55HH65to74yrs | DG54: P55HH65to74HHInc<10K | DH54: P55HH65to74HHInc10to15K | DI54: P55HH65to74HHInc15to20K | DJ54: P55HH65to74HHInc20to25K | DK54: P55HH65to74HHInc25to30K | DL54: P55HH65to74HHInc30to35K | DM54: P55HH65to74HHInc35to40K | DN54: P55HH65to74HHInc40to45K | DO54: P55HH65to74HHInc45to50K | DP54: P55HH65to74HHInc50to60K | DQ54: P55HH65to74HHInc60to75K | DR54: P55HH65to74HHInc75to100K | DS54: P55HH65to74HHInc100to125K | DT54: P55HH65to74HHInc125to150K | DU54: P55HH65to74HHInc150to200K | DV54: P55HH65to74HHInc>200K | DW54: P55HH>75yrs | DX54: P55HH>75HHInc<10K | DY54: P55HH>75HHInc10to15K | DZ54: P55HH>75HHInc15to20K | EA54: P55HH>75HHInc20to25K | EB54: P55HH>75HHInc25to30K | EC54: P55HH>75HHInc30to35K | ED54: P55HH>75HHInc35to40K | EE54: P55HH>75HHInc40to45K | EF54: P55HH>75HHInc45to50K | EG54: P55HH>75HHInc50to60K | EH54: P55HH>75HHInc60to75K | EI54: P55HH>75HHInc75to100K | EJ54: P55HH>75HHInc100to125K | EK54: P55HH>75HHInc125to150K | EL54: P55HH>75HHInc150to200K | EM54: P55HH>75HHInc>200K | EN54: P56MedHHInc | EO54: P56MedHHIncHH<25y | EP54: P56MedHHIncHH25to34y | EQ54: P56MedHHIncHH35to44y | ER54: P56MedHHIncHH45to54y | ES54: P56MedHHIncHH55to64y | ET54: P56MedHHIncHH65to74y | EU54: P56MedHHIncHH>75y | EV54: P58Households3 | EW54: P58HHwithEarnings | EX54: P58HHNoEarnings | EY54: P59HHwWageSalInc | EZ54: P59HHNoWageSalInc | FA54: P60HHwSelfEmpInc | FB54: P60HHNoSelfEmpInc | FC54: P61HHwIndDivInc | FD54: P61HHNoIndDivInc | FE54: P62HHwSocSecInc | FF54: P62HHNoSocSecInc | FG54: P63HHwSSI | FH54: P63HHNoSSI | FI54: P64HHwPubAssInc | FJ54: P64HHNoPubAssInc | FK54: P65HHwRetInc | FL54: P65HHNoRetInc | FM54: P66HHwOtherTypInc | FN54: P66HHNoOtherTypInc | FO54: P67AggregEarnings | FP54: P68AggregWageSalInc | FQ54: P69AggregSelfEmpInc | FR54: P70AggregIntDivInc | FS54: P71AggregSocSecInc | FT54: P72AggregSSIInc | FU54: P73AggregPublicAssInc | FV54: P74AggregRetireInc | FW54: P76Families1 | FX54: P76FamInc<10K | FY54: P76FamInc10to15K | FZ54: P76FamInc15to20K | GA54: P76FamInc20to25K | GB54: P76FamInc25to30K | GC54: P76FamInc30to35K | GD54: P76FamInc35to40K | GE54: P76FamInc40to45K | GF54: P76FamInc45to50K | GG54: P76FamInc50to60K | GH54: P76FamInc60to75K | GI54: P76FamInc75to100K | GJ54: P76FamInc100to125K | GK54: P76FamInc125to150K | GL54: P76FamInc150to200K | GM54: P76FamInc>200K | GN54: P77MedFamInc | GO54: P78AggregFamInc | GP54: P79NonFamHH | GQ54: P79NonFamHHwInc<10K | GR54: P79NonFamHHwInc10to15K | GS54: P79NonFamHHwInc15to20K | GT54: P79NonFamHHwInc20to25K | GU54: P79NonFamHHwInc25to30K | GV54: P79NonFamHHwInc30to35K | GW54: P79NonFamHHwInc35to40K | GX54: P79NonFamHHwInc40to45K | GY54: P79NonFamHHwInc45to50K | GZ54: P79NonFamHHwInc50to60K | HA54: P79NonFamHHwInc60to75K | HB54: P79NonFamHHwInc75to100K | HC54: P79NonFamHHwInc100to125K | HD54: P79NonFamHHwInc125to150K | HE54: P79NonFamHHwInc150to200K | HF54: P79NonFamHHwInc200KorMore | HG54: P80MedNonFamInc | HH54: P82PerCapitaInc
A55: =VLOOKUP(DropDownList!$B$47,CntyQryCensus!$A$206:$HH$248,A$1) -> Chester | B55: =VLOOKUP(DropDownList!$B$47,CntyQryCensus!$A$206:$HH$248,B$1) -> 0003071 | C55: =VLOOKUP(DropDownList!$B$47,CntyQryCensus!$A$206:$HH$248,C$1) -> 12100 | D55: =VLOOKUP(DropDownList!$B$47,CntyQryCensus!$A$206:$HH$248,D$1) -> 3792 | E55: =VLOOKUP(DropDownList!$B$47,CntyQryCensus!$A$206:$HH$248,E$1) -> 1212 | F55: =VLOOKUP(DropDownList!$B$47,CntyQryCensus!$A$206:$HH$248,F$1) -> 48 | G55: =VLOOKUP(DropDownList!$B$47,CntyQryCensus!$A$206:$HH$248,G$1) -> 35 | H55: =VLOOKUP(DropDownList!$B$47,CntyQryCensus!$A$206:$HH$248,H$1) -> 27 | I55: =VLOOKUP(DropDownList!$B$47,CntyQryCensus!$A$206:$HH$248,I$1) -> 45 | J55: =VLOOKUP(DropDownList!$B$47,CntyQryCensus!$A$206:$HH$248,J$1) -> 40 | K55: =VLOOKUP(DropDownList!$B$47,CntyQryCensus!$A$206:$HH$248,K$1) -> 47 | L55: =VLOOKUP(DropDownList!$B$47,CntyQryCensus!$A$206:$HH$248,L$1) -> 26 | M55: =VLOOKUP(DropDownList!$B$47,CntyQryCensus!$A$206:$HH$248,M$1) -> 69 | N55: =VLOOKUP(DropDownList!$B$47,CntyQryCensus!$A$206:$HH$248,N$1) -> 50 | O55: =VLOOKUP(DropDownList!$B$47,CntyQryCensus!$A$206:$HH$248,O$1) -> 122 | P55: =VLOOKUP(DropDownList!$B$47,CntyQryCensus!$A$206:$HH$248,P$1) -> 141 | Q55: =VLOOKUP(DropDownList!$B$47,CntyQryCensus!$A$206:$HH$248,Q$1) -> 267 | R55: =VLOOKUP(DropDownList!$B$47,CntyQryCensus!$A$206:$HH$248,R$1) -> 184 | S55: =VLOOKUP(DropDownList!$B$47,CntyQryCensus!$A$206:$HH$248,S$1) -> 39 | T55: =VLOOKUP(DropDownList!$B$47,CntyQryCensus!$A$206:$HH$248,T$1) -> 50 | U55: =VLOOKUP(DropDownList!$B$47,CntyQryCensus!$A$206:$HH$248,U$1) -> 22 | V55: =VLOOKUP(DropDownList!$B$47,CntyQryCensus!$A$206:$HH$248,V$1) -> 68571 | W55: =VLOOKUP(DropDownList!$B$47,CntyQryCensus!$A$206:$HH$248,W$1) -> 89475800 | X55: =VLOOKUP(DropDownList!$B$47,CntyQryCensus!$A$206:$HH$248,X$1) -> 1212 | Y55: =VLOOKUP(DropDownList!$B$47,CntyQryCensus!$A$206:$HH$248,Y$1) -> 6 | Z55: =VLOOKUP(DropDownList!$B$47,CntyQryCensus!$A$206:$HH$248,Z$1) -> 0 | AA55: =VLOOKUP(DropDownList!$B$47,CntyQryCensus!$A$206:$HH$248,AA$1) -> 0 | AB55: =VLOOKUP(DropDownList!$B$47,CntyQryCensus!$A$206:$HH$248,AB$1) -> 0 | AC55: =VLOOKUP(DropDownList!$B$47,CntyQryCensus!$A$206:$HH$248,AC$1) -> 0 | AD55: =VLOOKUP(DropDownList!$B$47,CntyQryCensus!$A$206:$HH$248,AD$1) -> 0 | AE55: =VLOOKUP(DropDownList!$B$47,CntyQryCensus!$A$206:$HH$248,AE$1) -> 0 | AF55: =VLOOKUP(DropDownList!$B$47,CntyQryCensus!$A$206:$HH$248,AF$1) -> 0 | AG55: =VLOOKUP(DropDownList!$B$47,CntyQryCensus!$A$206:$HH$248,AG$1) -> 0 | AH55: =VLOOKUP(DropDownList!$B$47,CntyQryCensus!$A$206:$HH$248,AH$1) -> 0 | AI55: =VLOOKUP(DropDownList!$B$47,CntyQryCensus!$A$206:$HH$248,AI$1) -> 0 | AJ55: =VLOOKUP(DropDownList!$B$47,CntyQryCensus!$A$206:$HH$248,AJ$1) -> 0 | AK55: =VLOOKUP(DropDownList!$B$47,CntyQryCensus!$A$206:$HH$248,AK$1) -> 6 | AL55: =VLOOKUP(DropDownList!$B$47,CntyQryCensus!$A$206:$HH$248,AL$1) -> 0 | AM55: =VLOOKUP(DropDownList!$B$47,CntyQryCensus!$A$206:$HH$248,AM$1) -> 0 | AN55: =VLOOKUP(DropDownList!$B$47,CntyQryCensus!$A$206:$HH$248,AN$1) -> 0 | AO55: =VLOOKUP(DropDownList!$B$47,CntyQryCensus!$A$206:$HH$248,AO$1) -> 0 | AP55: =VLOOKUP(DropDownList!$B$47,CntyQryCensus!$A$206:$HH$248,AP$1) -> 155 | AQ55: =VLOOKUP(DropDownList!$B$47,CntyQryCensus!$A$206:$HH$248,AQ$1) -> 12 | AR55: =VLOOKUP(DropDownList!$B$47,CntyQryCensus!$A$206:$HH$248,AR$1) -> 0 | AS55: =VLOOKUP(DropDownList!$B$47,CntyQryCensus!$A$206:$HH$248,AS$1) -> 9 | AT55: =VLOOKUP(DropDownList!$B$47,CntyQryCensus!$A$206:$HH$248,AT$1) -> 0 | AU55: =VLOOKUP(DropDownList!$B$47,CntyQryCensus!$A$206:$HH$248,AU$1) -> 4 | AV55: =VLOOKUP(DropDownList!$B$47,CntyQryCensus!$A$206:$HH$248,AV$1) -> 4 | AW55: =VLOOKUP(DropDownList!$B$47,CntyQryCensus!$A$206:$HH$248,AW$1) -> 0 | AX55: =VLOOKUP(DropDownList!$B$47,CntyQryCensus!$A$206:$HH$248,AX$1) -> 19 | AY55: =VLOOKUP(DropDownList!$B$47,CntyQryCensus!$A$206:$HH$248,AY$1) -> 14 | AZ55: =VLOOKUP(DropDownList!$B$47,CntyQryCensus!$A$206:$HH$248,AZ$1) -> 5 | BA55: =VLOOKUP(DropDownList!$B$47,CntyQryCensus!$A$206:$HH$248,BA$1) -> 25 | BB55: =VLOOKUP(DropDownList!$B$47,CntyQryCensus!$A$206:$HH$248,BB$1) -> 27 | BC55: =VLOOKUP(DropDownList!$B$47,CntyQryCensus!$A$206:$HH$248,BC$1) -> 36 | BD55: =VLOOKUP(DropDownList!$B$47,CntyQryCensus!$A$206:$HH$248,BD$1) -> 0 | BE55: =VLOOKUP(DropDownList!$B$47,CntyQryCensus!$A$206:$HH$248,BE$1) -> 0 | BF55: =VLOOKUP(DropDownList!$B$47,CntyQryCensus!$A$206:$HH$248,BF$1) -> 0 | BG55: =VLOOKUP(DropDownList!$B$47,CntyQryCensus!$A$206:$HH$248,BG$1) -> 383 | BH55: =VLOOKUP(DropDownList!$B$47,CntyQryCensus!$A$206:$HH$248,BH$1) -> 11 | BI55: =VLOOKUP(DropDownList!$B$47,CntyQryCensus!$A$206:$HH$248,BI$1) -> 0 | BJ55: =VLOOKUP(DropDownList!$B$47,CntyQryCensus!$A$206:$HH$248,BJ$1) -> 5 | BK55: =VLOOKUP(DropDownList!$B$47,CntyQryCensus!$A$206:$HH$248,BK$1) -> 7 | BL55: =VLOOKUP(DropDownList!$B$47,CntyQryCensus!$A$206:$HH$248,BL$1) -> 11 | BM55: =VLOOKUP(DropDownList!$B$47,CntyQryCensus!$A$206:$HH$248,BM$1) -> 27 | BN55: =VLOOKUP(DropDownList!$B$47,CntyQryCensus!$A$206:$HH$248,BN$1) -> 11 | BO55: =VLOOKUP(DropDownList!$B$47,CntyQryCensus!$A$206:$HH$248,BO$1) -> 19 | BP55: =VLOOKUP(DropDownList!$B$47,CntyQryCensus!$A$206:$HH$248,BP$1) -> 8 | BQ55: =VLOOKUP(DropDownList!$B$47,CntyQryCensus!$A$206:$HH$248,BQ$1) -> 45 | BR55: =VLOOKUP(DropDownList!$B$47,CntyQryCensus!$A$206:$HH$248,BR$1) -> 55 | BS55: =VLOOKUP(DropDownList!$B$47,CntyQryCensus!$A$206:$HH$248,BS$1) -> 86 | BT55: =VLOOKUP(DropDownList!$B$47,CntyQryCensus!$A$206:$HH$248,BT$1) -> 53 | BU55: =VLOOKUP(DropDownList!$B$47,CntyQryCensus!$A$206:$HH$248,BU$1) -> 10 | BV55: =VLOOKUP(DropDownList!$B$47,CntyQryCensus!$A$206:$HH$248,BV$1) -> 21 | BW55: =VLOOKUP(DropDownList!$B$47,CntyQryCensus!$A$206:$HH$248,BW$1) -> 14 | BX55: =VLOOKUP(DropDownList!$B$47,CntyQryCensus!$A$206:$HH$248,BX$1) -> 345 | BY55: =VLOOKUP(DropDownList!$B$47,CntyQryCensus!$A$206:$HH$248,BY$1) -> 4 | BZ55: =VLOOKUP(DropDownList!$B$47,CntyQryCensus!$A$206:$HH$248,BZ$1) -> 7 | CA55: =VLOOKUP(DropDownList!$B$47,CntyQryCensus!$A$206:$HH$248,CA$1) -> 5 | CB55: =VLOOKUP(DropDownList!$B$47,CntyQryCensus!$A$206:$HH$248,CB$1) -> 12 | CC55: =VLOOKUP(DropDownList!$B$47,CntyQryCensus!$A$206:$HH$248,CC$1) -> 4 | CD55: =VLOOKUP(DropDownList!$B$47,CntyQryCensus!$A$206:$HH$248,CD$1) -> 8 | CE55: =VLOOKUP(DropDownList!$B$47,CntyQryCensus!$A$206:$HH$248,CE$1) -> 7 | CF55: =VLOOKUP(DropDownList!$B$47,CntyQryCensus!$A$206:$HH$248,CF$1) -> 16 | CG55: =VLOOKUP(DropDownList!$B$47,CntyQryCensus!$A$206:$HH$248,CG$1) -> 15 | CH55: =VLOOKUP(DropDownList!$B$47,CntyQryCensus!$A$206:$HH$248,CH$1) -> 33 | CI55: =VLOOKUP(DropDownList!$B$47,CntyQryCensus!$A$206:$HH$248,CI$1) -> 33 | CJ55: =VLOOKUP(DropDownList!$B$47,CntyQryCensus!$A$206:$HH$248,CJ$1) -> 80 | CK55: =VLOOKUP(DropDownList!$B$47,CntyQryCensus!$A$206:$HH$248,CK$1) -> 73 | CL55: =VLOOKUP(DropDownList!$B$47,CntyQryCensus!$A$206:$HH$248,CL$1) -> 22 | CM55: =VLOOKUP(DropDownList!$B$47,CntyQryCensus!$A$206:$HH$248,CM$1) -> 18 | CN55: =VLOOKUP(DropDownList!$B$47,CntyQryCensus!$A$206:$HH$248,CN$1) -> 8 | CO55: =VLOOKUP(DropDownList!$B$47,CntyQryCensus!$A$206:$HH$248,CO$1) -> 199 | CP55: =VLOOKUP(DropDownList!$B$47,CntyQryCensus!$A$206:$HH$248,CP$1) -> 9 | CQ55: =VLOOKUP(DropDownList!$B$47,CntyQryCensus!$A$206:$HH$248,CQ$1) -> 13 | CR55: =VLOOKUP(DropDownList!$B$47,CntyQryCensus!$A$206:$HH$248,CR$1) -> 8 | CS55: =VLOOKUP(DropDownList!$B$47,CntyQryCensus!$A$206:$HH$248,CS$1) -> 9 | CT55: =VLOOKUP(DropDownList!$B$47,CntyQryCensus!$A$206:$HH$248,CT$1) -> 4 | CU55: =VLOOKUP(DropDownList!$B$47,CntyQryCensus!$A$206:$HH$248,CU$1) -> 4 | CV55: =VLOOKUP(DropDownList!$B$47,CntyQryCensus!$A$206:$HH$248,CV$1) -> 0 | CW55: =VLOOKUP(DropDownList!$B$47,CntyQryCensus!$A$206:$HH$248,CW$1) -> 11 | CX55: =VLOOKUP(DropDownList!$B$47,CntyQryCensus!$A$206:$HH$248,CX$1) -> 8 | CY55: =VLOOKUP(DropDownList!$B$47,CntyQryCensus!$A$206:$HH$248,CY$1) -> 31 | CZ55: =VLOOKUP(DropDownList!$B$47,CntyQryCensus!$A$206:$HH$248,CZ$1) -> 28 | DA55: =VLOOKUP(DropDownList!$B$47,CntyQryCensus!$A$206:$HH$248,DA$1) -> 46 | DB55: =VLOOKUP(DropDownList!$B$47,CntyQryCensus!$A$206:$HH$248,DB$1) -> 10 | DC55: =VLOOKUP(DropDownList!$B$47,CntyQryCensus!$A$206:$HH$248,DC$1) -> 7 | DD55: =VLOOKUP(DropDownList!$B$47,CntyQryCensus!$A$206:$HH$248,DD$1) -> 11 | DE55: =VLOOKUP(DropDownList!$B$47,CntyQryCensus!$A$206:$HH$248,DE$1) -> 0 | DF55: =VLOOKUP(DropDownList!$B$47,CntyQryCensus!$A$206:$HH$248,DF$1) -> 70 | DG55: =VLOOKUP(DropDownList!$B$47,CntyQryCensus!$A$206:$HH$248,DG$1) -> 0 | DH55: =VLOOKUP(DropDownList!$B$47,CntyQryCensus!$A$206:$HH$248,DH$1) -> 7 | DI55: =VLOOKUP(DropDownList!$B$47,CntyQryCensus!$A$206:$HH$248,DI$1) -> 0 | DJ55: =VLOOKUP(DropDownList!$B$47,CntyQryCensus!$A$206:$HH$248,DJ$1) -> 8 | DK55: =VLOOKUP(DropDownList!$B$47,CntyQryCensus!$A$206:$HH$248,DK$1) -> 11 | DL55: =VLOOKUP(DropDownList!$B$47,CntyQryCensus!$A$206:$HH$248,DL$1) -> 4 | DM55: =VLOOKUP(DropDownList!$B$47,CntyQryCensus!$A$206:$HH$248,DM$1) -> 4 | DN55: =VLOOKUP(DropDownList!$B$47,CntyQryCensus!$A$206:$HH$248,DN$1) -> 0 | DO55: =VLOOKUP(DropDownList!$B$47,CntyQryCensus!$A$206:$HH$248,DO$1) -> 5 | DP55: =VLOOKUP(DropDownList!$B$47,CntyQryCensus!$A$206:$HH$248,DP$1) -> 8 | DQ55: =VLOOKUP(DropDownList!$B$47,CntyQryCensus!$A$206:$HH$248,DQ$1) -> 0 | DR55: =VLOOKUP(DropDownList!$B$47,CntyQryCensus!$A$206:$HH$248,DR$1) -> 11 | DS55: =VLOOKUP(DropDownList!$B$47,CntyQryCensus!$A$206:$HH$248,DS$1) -> 12 | DT55: =VLOOKUP(DropDownList!$B$47,CntyQryCensus!$A$206:$HH$248,DT$1) -> 0 | DU55: =VLOOKUP(DropDownList!$B$47,CntyQryCensus!$A$206:$HH$248,DU$1) -> 0 | DV55: =VLOOKUP(DropDownList!$B$47,CntyQryCensus!$A$206:$HH$248,DV$1) -> 0 | DW55: =VLOOKUP(DropDownList!$B$47,CntyQryCensus!$A$206:$HH$248,DW$1) -> 54 | DX55: =VLOOKUP(DropDownList!$B$47,CntyQryCensus!$A$206:$HH$248,DX$1) -> 12 | DY55: =VLOOKUP(DropDownList!$B$47,CntyQryCensus!$A$206:$HH$248,DY$1) -> 8 | DZ55: =VLOOKUP(DropDownList!$B$47,CntyQryCensus!$A$206:$HH$248,DZ$1) -> 0 | EA55: =VLOOKUP(DropDownList!$B$47,CntyQryCensus!$A$206:$HH$248,EA$1) -> 9 | EB55: =VLOOKUP(DropDownList!$B$47,CntyQryCensus!$A$206:$HH$248,EB$1) -> 6 | EC55: =VLOOKUP(DropDownList!$B$47,CntyQryCensus!$A$206:$HH$248,EC$1) -> 0 | ED55: =VLOOKUP(DropDownList!$B$47,CntyQryCensus!$A$206:$HH$248,ED$1) -> 4 | EE55: =VLOOKUP(DropDownList!$B$47,CntyQryCensus!$A$206:$HH$248,EE$1) -> 4 | EF55: =VLOOKUP(DropDownList!$B$47,CntyQryCensus!$A$206:$HH$248,EF$1) -> 0 | EG55: =VLOOKUP(DropDownList!$B$47,CntyQryCensus!$A$206:$HH$248,EG$1) -> 0 | EH55: =VLOOKUP(DropDownList!$B$47,CntyQryCensus!$A$206:$HH$248,EH$1) -> 0 | EI55: =VLOOKUP(DropDownList!$B$47,CntyQryCensus!$A$206:$HH$248,EI$1) -> 11 | EJ55: =VLOOKUP(DropDownList!$B$47,CntyQryCensus!$A$206:$HH$248,EJ$1) -> 0 | EK55: =VLOOKUP(DropDownList!$B$47,CntyQryCensus!$A$206:$HH$248,EK$1) -> 0 | EL55: =VLOOKUP(DropDownList!$B$47,CntyQryCensus!$A$206:$HH$248,EL$1) -> 0 | EM55: =VLOOKUP(DropDownList!$B$47,CntyQryCensus!$A$206:$HH$248,EM$1) -> 0 | EN55: =VLOOKUP(DropDownList!$B$47,CntyQryCensus!$A$206:$HH$248,EN$1) -> 68571 | EO55: =VLOOKUP(DropDownList!$B$47,CntyQryCensus!$A$206:$HH$248,EO$1) -> 80488 | EP55: =VLOOKUP(DropDownList!$B$47,CntyQryCensus!$A$206:$HH$248,EP$1) -> 67625 | EQ55: =VLOOKUP(DropDownList!$B$47,CntyQryCensus!$A$206:$HH$248,EQ$1) -> 70156 | ER55: =VLOOKUP(DropDownList!$B$47,CntyQryCensus!$A$206:$HH$248,ER$1) -> 81681 | ES55: =VLOOKUP(DropDownList!$B$47,CntyQryCensus!$A$206:$HH$248,ES$1) -> 60347 | ET55: =VLOOKUP(DropDownList!$B$47,CntyQryCensus!$A$206:$HH$248,ET$1) -> 48000 | EU55: =VLOOKUP(DropDownList!$B$47,CntyQryCensus!$A$206:$HH$248,EU$1) -> 23750 | EV55: =VLOOKUP(DropDownList!$B$47,CntyQryCensus!$A$206:$HH$248,EV$1) -> 1212 | EW55: =VLOOKUP(DropDownList!$B$47,CntyQryCensus!$A$206:$HH$248,EW$1) -> 1099 | EX55: =VLOOKUP(DropDownList!$B$47,CntyQryCensus!$A$206:$HH$248,EX$1) -> 113 | EY55: =VLOOKUP(DropDownList!$B$47,CntyQryCensus!$A$206:$HH$248,EY$1) -> 1069 | EZ55: =VLOOKUP(DropDownList!$B$47,CntyQryCensus!$A$206:$HH$248,EZ$1) -> 143 | FA55: =VLOOKUP(DropDownList!$B$47,CntyQryCensus!$A$206:$HH$248,FA$1) -> 192 | FB55: =VLOOKUP(DropDownList!$B$47,CntyQryCensus!$A$206:$HH$248,FB$1) -> 1020 | FC55: =VLOOKUP(DropDownList!$B$47,CntyQryCensus!$A$206:$HH$248,FC$1) -> 634 | FD55: =VLOOKUP(DropDownList!$B$47,CntyQryCensus!$A$206:$HH$248,FD$1) -> 578 | FE55: =VLOOKUP(DropDownList!$B$47,CntyQryCensus!$A$206:$HH$248,FE$1) -> 205 | FF55: =VLOOKUP(DropDownList!$B$47,CntyQryCensus!$A$206:$HH$248,FF$1) -> 1007 | FG55: =VLOOKUP(DropDownList!$B$47,CntyQryCensus!$A$206:$HH$248,FG$1) -> 43 | FH55: =VLOOKUP(DropDownList!$B$47,CntyQryCensus!$A$206:$HH$248,FH$1) -> 1169 | FI55: =VLOOKUP(DropDownList!$B$47,CntyQryCensus!$A$206:$HH$248,FI$1) -> 17 | FJ55: =VLOOKUP(DropDownList!$B$47,CntyQryCensus!$A$206:$HH$248,FJ$1) -> 1195 | FK55: =VLOOKUP(DropDownList!$B$47,CntyQryCensus!$A$206:$HH$248,FK$1) -> 175 | FL55: =VLOOKUP(DropDownList!$B$47,CntyQryCensus!$A$206:$HH$248,FL$1) -> 1037 | FM55: =VLOOKUP(DropDownList!$B$47,CntyQryCensus!$A$206:$HH$248,FM$1) -> 133 | FN55: =VLOOKUP(DropDownList!$B$47,CntyQryCensus!$A$206:$HH$248,FN$1) -> 1079 | FO55: =VLOOKUP(DropDownList!$B$47,CntyQryCensus!$A$206:$HH$248,FO$1) -> 79546400 | FP55: =VLOOKUP(DropDownList!$B$47,CntyQryCensus!$A$206:$HH$248,FP$1) -> 72460100 | FQ55: =VLOOKUP(DropDownList!$B$47,CntyQryCensus!$A$206:$HH$248,FQ$1) -> 7086200 | FR55: =VLOOKUP(DropDownList!$B$47,CntyQryCensus!$A$206:$HH$248,FR$1) -> 3310500 | FS55: =VLOOKUP(DropDownList!$B$47,CntyQryCensus!$A$206:$HH$248,FS$1) -> 2317200 | FT55: =VLOOKUP(DropDownList!$B$47,CntyQryCensus!$A$206:$HH$248,FT$1) -> 433000 | FU55: =VLOOKUP(DropDownList!$B$47,CntyQryCensus!$A$206:$HH$248,FU$1) -> 58900 | FV55: =VLOOKUP(DropDownList!$B$47,CntyQryCensus!$A$206:$HH$248,FV$1) -> 3059100 | FW55: =VLOOKUP(DropDownList!$B$47,CntyQryCensus!$A$206:$HH$248,FW$1) -> 1014 | FX55: =VLOOKUP(DropDownList!$B$47,CntyQryCensus!$A$206:$HH$248,FX$1) -> 16 | FY55: =VLOOKUP(DropDownList!$B$47,CntyQryCensus!$A$206:$HH$248,FY$1) -> 8 | FZ55: =VLOOKUP(DropDownList!$B$47,CntyQryCensus!$A$206:$HH$248,FZ$1) -> 28 | GA55: =VLOOKUP(DropDownList!$B$47,CntyQryCensus!$A$206:$HH$248,GA$1) -> 30 | GB55: =VLOOKUP(DropDownList!$B$47,CntyQryCensus!$A$206:$HH$248,GB$1) -> 29 | GC55: =VLOOKUP(DropDownList!$B$47,CntyQryCensus!$A$206:$HH$248,GC$1) -> 40 | GD55: =VLOOKUP(DropDownList!$B$47,CntyQryCensus!$A$206:$HH$248,GD$1) -> 19 | GE55: =VLOOKUP(DropDownList!$B$47,CntyQryCensus!$A$206:$HH$248,GE$1) -> 69 | GF55: =VLOOKUP(DropDownList!$B$47,CntyQryCensus!$A$206:$HH$248,GF$1) -> 36 | GG55: =VLOOKUP(DropDownList!$B$47,CntyQryCensus!$A$206:$HH$248,GG$1) -> 107 | GH55: =VLOOKUP(DropDownList!$B$47,CntyQryCensus!$A$206:$HH$248,GH$1) -> 124 | GI55: =VLOOKUP(DropDownList!$B$47,CntyQryCensus!$A$206:$HH$248,GI$1) -> 231 | GJ55: =VLOOKUP(DropDownList!$B$47,CntyQryCensus!$A$206:$HH$248,GJ$1) -> 166 | GK55: =VLOOKUP(DropDownList!$B$47,CntyQryCensus!$A$206:$HH$248,GK$1) -> 39 | GL55: =VLOOKUP(DropDownList!$B$47,CntyQryCensus!$A$206:$HH$248,GL$1) -> 50 | GM55: =VLOOKUP(DropDownList!$B$47,CntyQryCensus!$A$206:$HH$248,GM$1) -> 22 | GN55: =VLOOKUP(DropDownList!$B$47,CntyQryCensus!$A$206:$HH$248,GN$1) -> 75092 | GO55: =VLOOKUP(DropDownList!$B$47,CntyQryCensus!$A$206:$HH$248,GO$1) -> 80414800 | GP55: =VLOOKUP(DropDownList!$B$47,CntyQryCensus!$A$206:$HH$248,GP$1) -> 198 | GQ55: =VLOOKUP(DropDownList!$B$47,CntyQryCensus!$A$206:$HH$248,GQ$1) -> 32 | GR55: =VLOOKUP(DropDownList!$B$47,CntyQryCensus!$A$206:$HH$248,GR$1) -> 27 | GS55: =VLOOKUP(DropDownList!$B$47,CntyQryCensus!$A$206:$HH$248,GS$1) -> 5 | GT55: =VLOOKUP(DropDownList!$B$47,CntyQryCensus!$A$206:$HH$248,GT$1) -> 15 | GU55: =VLOOKUP(DropDownList!$B$47,CntyQryCensus!$A$206:$HH$248,GU$1) -> 11 | GV55: =VLOOKUP(DropDownList!$B$47,CntyQryCensus!$A$206:$HH$248,GV$1) -> 7 | GW55: =VLOOKUP(DropDownList!$B$47,CntyQryCensus!$A$206:$HH$248,GW$1) -> 7 | GX55: =VLOOKUP(DropDownList!$B$47,CntyQryCensus!$A$206:$HH$248,GX$1) -> 7 | GY55: =VLOOKUP(DropDownList!$B$47,CntyQryCensus!$A$206:$HH$248,GY$1) -> 10 | GZ55: =VLOOKUP(DropDownList!$B$47,CntyQryCensus!$A$206:$HH$248,GZ$1) -> 19 | HA55: =VLOOKUP(DropDownList!$B$47,CntyQryCensus!$A$206:$HH$248,HA$1) -> 19 | HB55: =VLOOKUP(DropDownList!$B$47,CntyQryCensus!$A$206:$HH$248,HB$1) -> 30 | HC55: =VLOOKUP(DropDownList!$B$47,CntyQryCensus!$A$206:$HH$248,HC$1) -> 9 | HD55: =VLOOKUP(DropDownList!$B$47,CntyQryCensus!$A$206:$HH$248,HD$1) -> 0 | HE55: =VLOOKUP(DropDownList!$B$47,CntyQryCensus!$A$206:$HH$248,HE$1) -> 0 | HF55: =VLOOKUP(DropDownList!$B$47,CntyQryCensus!$A$206:$HH$248,HF$1) -> 0 | HG55: =VLOOKUP(DropDownList!$B$47,CntyQryCensus!$A$206:$HH$248,HG$1) -> 35714 | HH55: =VLOOKUP(DropDownList!$B$47,CntyQryCensus!$A$206:$HH$248,HH$1) -> 23842
A58: Census 2000 SummaryFile3 Sample Data - SF3TownQry2bPovertyChar
A59: NAME | B59: LOGRECNO | C59: COUNTY | D59: TotalPop | E59: P52Households1 | F59: P82PerCapitaInc | G59: P87PopForPovStatus | H59: P87PopWIncBelowPovStatus | I59: P87PopUnder5yrBelowPoverty | J59: P87Pop5yrBelowPoverty | K59: P87Pop5to11yrBelowPoverty | L59: P87Pop12to17yrBelowPoverty | M59: P87Pop18to64yrBelowPoverty | N59: P87Pop65to74yrBelowPoverty | O59: P87PopOver75yrBelowPoverty | P59: P87PopWIncAbovePovStatus | Q59: P87PopUnder5yrAbovePoverty | R59: P87Pop5yrAbovePoverty | S59: P87Pop5to11yrAbovePoverty | T59: P87Pop12to17yrAbovePoverty | U59: P87Pop18to64yrAbovePoverty | V59: P87Pop65to74yrAbovePoverty | W59: P87PopOver75yrAbovePoverty | X59: P90Families | Y59: P90FamWIncBelowPov | Z59: P90MarCupFamWIncBelowPov | AA59: P90MCFamWRltdChld<18WIncBelowPov | AB59: P90MCFamWRltdChld<5WIncBelowPov | AC59: P90MaleHhlrWIncBelowPov | AD59: P90MaleHhlrWRltdChld<18yrWIncBelowPov | AE59: P90MaleHhlrWRltdChld<5yrWIncBelowPov | AF59: P90FemaleHhlrWIncBelowPov | AG59: P90FemaleHhlrWRltdChld<18yWIncBelowPov | AH59: P90FemaleHhlrWRltdChld<5yWIncBelowPov | AI59: P90FamWIncAbovePov | AJ59: P90MarCupFamWIncAbovePov | AK59: P90MCFamWRltdChld<18WIncAbovePov | AL59: P90MCFamWRltdChld<5WIncAbovePov | AM59: P90MaleHhlrWIncAbovePov | AN59: P90MaleHhlrWRltdChld<18yrWIncAbovePov | AO59: P90MaleHhlrWRltdChld<5yrWIncAbovePov | AP59: P90FemaleHhlrWIncAbovePov | AQ59: P90FemaleHhlrWRltdChld<18yWIncAbovePov | AR59: P90FemaleHhlrWRltdChld<5yWIncAbovePov | AS59: P92Households | AT59: P92HHwIncBelowPov | AU59: P92FamHHwIncBelowPov | AV59: P92MCFamHHwIncBelowPov | AW59: P92MaleFamHHwIncBelowPov | AX59: P92FemaleFamHHwIncBelowPov | AY59: P92NonFamHHwIncBelowPov | AZ59: P92NonFamMaleHHwIncBelowPov | BA59: P92NonFamFemaleHHwIncBelowPov | BB59: P92HHwIncAbovePov | BC59: P92FamHHwIncAbovePov | BD59: P92MCFamHHwIncAbovePov | BE59: P92MaleFamHHwIncAbovePov | BF59: P92FemaleFamHHwIncAbovePov | BG59: P92NonFamHHwIncAbovePov | BH59: P92NonFamMaleHHwIncAbovePov | BI59: P92NonFamFemaleHHwIncAbovePov
A60: =VLOOKUP(DropDownList!$B$47,CntyQryCensus!$A$256:$BI$298,A$1) -> Chester | B60: =VLOOKUP(DropDownList!$B$47,CntyQryCensus!$A$256:$BI$298,B$1) -> 0003071 | C60: =VLOOKUP(DropDownList!$B$47,CntyQryCensus!$A$256:$BI$298,C$1) -> 12100 | D60: =VLOOKUP(DropDownList!$B$47,CntyQryCensus!$A$256:$BI$298,D$1) -> 3792 | E60: =VLOOKUP(DropDownList!$B$47,CntyQryCensus!$A$256:$BI$298,E$1) -> 1212 | F60: =VLOOKUP(DropDownList!$B$47,CntyQryCensus!$A$256:$BI$298,F$1) -> 23842 | G60: =VLOOKUP(DropDownList!$B$47,CntyQryCensus!$A$256:$BI$298,G$1) -> 3745 | H60: =VLOOKUP(DropDownList!$B$47,CntyQryCensus!$A$256:$BI$298,H$1) -> 188 | I60: =VLOOKUP(DropDownList!$B$47,CntyQryCensus!$A$256:$BI$298,I$1) -> 8 | J60: =VLOOKUP(DropDownList!$B$47,CntyQryCensus!$A$256:$BI$298,J$1) -> 4 | K60: =VLOOKUP(DropDownList!$B$47,CntyQryCensus!$A$256:$BI$298,K$1) -> 27 | L60: =VLOOKUP(DropDownList!$B$47,CntyQryCensus!$A$256:$BI$298,L$1) -> 33 | M60: =VLOOKUP(DropDownList!$B$47,CntyQryCensus!$A$256:$BI$298,M$1) -> 104 | N60: =VLOOKUP(DropDownList!$B$47,CntyQryCensus!$A$256:$BI$298,N$1) -> 0 | O60: =VLOOKUP(DropDownList!$B$47,CntyQryCensus!$A$256:$BI$298,O$1) -> 12 | P60: =VLOOKUP(DropDownList!$B$47,CntyQryCensus!$A$256:$BI$298,P$1) -> 3557 | Q60: =VLOOKUP(DropDownList!$B$47,CntyQryCensus!$A$256:$BI$298,Q$1) -> 302 | R60: =VLOOKUP(DropDownList!$B$47,CntyQryCensus!$A$256:$BI$298,R$1) -> 82 | S60: =VLOOKUP(DropDownList!$B$47,CntyQryCensus!$A$256:$BI$298,S$1) -> 383 | T60: =VLOOKUP(DropDownList!$B$47,CntyQryCensus!$A$256:$BI$298,T$1) -> 320 | U60: =VLOOKUP(DropDownList!$B$47,CntyQryCensus!$A$256:$BI$298,U$1) -> 2253 | V60: =VLOOKUP(DropDownList!$B$47,CntyQryCensus!$A$256:$BI$298,V$1) -> 144 | W60: =VLOOKUP(DropDownList!$B$47,CntyQryCensus!$A$256:$BI$298,W$1) -> 73 | X60: =VLOOKUP(DropDownList!$B$47,CntyQryCensus!$A$256:$BI$298,X$1) -> 1014 | Y60: =VLOOKUP(DropDownList!$B$47,CntyQryCensus!$A$256:$BI$298,Y$1) -> 34 | Z60: =VLOOKUP(DropDownList!$B$47,CntyQryCensus!$A$256:$BI$298,Z$1) -> 22 | AA60: =VLOOKUP(DropDownList!$B$47,CntyQryCensus!$A$256:$BI$298,AA$1) -> 18 | AB60: =VLOOKUP(DropDownList!$B$47,CntyQryCensus!$A$256:$BI$298,AB$1) -> 0 | AC60: =VLOOKUP(DropDownList!$B$47,CntyQryCensus!$A$256:$BI$298,AC$1) -> 4 | AD60: =VLOOKUP(DropDownList!$B$47,CntyQryCensus!$A$256:$BI$298,AD$1) -> 4 | AE60: =VLOOKUP(DropDownList!$B$47,CntyQryCensus!$A$256:$BI$298,AE$1) -> 0 | AF60: =VLOOKUP(DropDownList!$B$47,CntyQryCensus!$A$256:$BI$298,AF$1) -> 8 | AG60: =VLOOKUP(DropDownList!$B$47,CntyQryCensus!$A$256:$BI$298,AG$1) -> 8 | AH60: =VLOOKUP(DropDownList!$B$47,CntyQryCensus!$A$256:$BI$298,AH$1) -> 0 | AI60: =VLOOKUP(DropDownList!$B$47,CntyQryCensus!$A$256:$BI$298,AI$1) -> 980 | AJ60: =VLOOKUP(DropDownList!$B$47,CntyQryCensus!$A$256:$BI$298,AJ$1) -> 864 | AK60: =VLOOKUP(DropDownList!$B$47,CntyQryCensus!$A$256:$BI$298,AK$1) -> 497 | AL60: =VLOOKUP(DropDownList!$B$47,CntyQryCensus!$A$256:$BI$298,AL$1) -> 104 | AM60: =VLOOKUP(DropDownList!$B$47,CntyQryCensus!$A$256:$BI$298,AM$1) -> 33 | AN60: =VLOOKUP(DropDownList!$B$47,CntyQryCensus!$A$256:$BI$298,AN$1) -> 22 | AO60: =VLOOKUP(DropDownList!$B$47,CntyQryCensus!$A$256:$BI$298,AO$1) -> 6 | AP60: =VLOOKUP(DropDownList!$B$47,CntyQryCensus!$A$256:$BI$298,AP$1) -> 83 | AQ60: =VLOOKUP(DropDownList!$B$47,CntyQryCensus!$A$256:$BI$298,AQ$1) -> 54 | AR60: =VLOOKUP(DropDownList!$B$47,CntyQryCensus!$A$256:$BI$298,AR$1) -> 7 | AS60: =VLOOKUP(DropDownList!$B$47,CntyQryCensus!$A$256:$BI$298,AS$1) -> 1212 | AT60: =VLOOKUP(DropDownList!$B$47,CntyQryCensus!$A$256:$BI$298,AT$1) -> 66 | AU60: =VLOOKUP(DropDownList!$B$47,CntyQryCensus!$A$256:$BI$298,AU$1) -> 34 | AV60: =VLOOKUP(DropDownList!$B$47,CntyQryCensus!$A$256:$BI$298,AV$1) -> 22 | AW60: =VLOOKUP(DropDownList!$B$47,CntyQryCensus!$A$256:$BI$298,AW$1) -> 4 | AX60: =VLOOKUP(DropDownList!$B$47,CntyQryCensus!$A$256:$BI$298,AX$1) -> 8 | AY60: =VLOOKUP(DropDownList!$B$47,CntyQryCensus!$A$256:$BI$298,AY$1) -> 32 | AZ60: =VLOOKUP(DropDownList!$B$47,CntyQryCensus!$A$256:$BI$298,AZ$1) -> 15 | BA60: =VLOOKUP(DropDownList!$B$47,CntyQryCensus!$A$256:$BI$298,BA$1) -> 17 | BB60: =VLOOKUP(DropDownList!$B$47,CntyQryCensus!$A$256:$BI$298,BB$1) -> 1146 | BC60: =VLOOKUP(DropDownList!$B$47,CntyQryCensus!$A$256:$BI$298,BC$1) -> 980 | BD60: =VLOOKUP(DropDownList!$B$47,CntyQryCensus!$A$256:$BI$298,BD$1) -> 864 | BE60: =VLOOKUP(DropDownList!$B$47,CntyQryCensus!$A$256:$BI$298,BE$1) -> 33 | BF60: =VLOOKUP(DropDownList!$B$47,CntyQryCensus!$A$256:$BI$298,BF$1) -> 83 | BG60: =VLOOKUP(DropDownList!$B$47,CntyQryCensus!$A$256:$BI$298,BG$1) -> 166 | BH60: =VLOOKUP(DropDownList!$B$47,CntyQryCensus!$A$256:$BI$298,BH$1) -> 87 | BI60: =VLOOKUP(DropDownList!$B$47,CntyQryCensus!$A$256:$BI$298,BI$1) -> 79
S61: =SUM(R60:T60) -> 785
A63: Census 2000 SummaryFile3 Sample Data - SF3TownQry7HousingA
A64: NAME | B64: LOGRECNO | C64: COUNTY | D64: TotalPop | E64: H1HousingUnitsTotal | F64: H2SampleHU | G64: H2SampleOccHU | H64: H2SampleVacHU | I64: H3HU100pctCount | J64: H5HUTotal | K64: H5HUUrban | L64: H5HUUrbanInUrbanAreas | M64: H5HUUrbanInUrbanClusters | N64: H5HURural | O64: H5HURuralFarm | P64: H5HURuralNonFarm | Q64: H7HUOcc | R64: H7HUOwnrOcc | S64: H7HURentrOcc | T64: H8HUVacant | U64: H8HUVacantForRent | V64: H8HUVacantForSale | W64: H8HUVacRentedorSold | X64: H8HUVacSeasonal | Y64: H8HUVacForMigrantWrkrs | Z64: H8HUOtherVacant | AA64: H14OccHUa | AB64: H14OwnerOccHU | AC64: H14OwnOccHuHh15to24 | AD64: H14OwnOccHuHh25to34 | AE64: H14OwnOccHuHh35to44 | AF64: H14OwnOccHuHh45to54 | AG64: H14OwnOccHuHh55to59 | AH64: H14OwnOccHuHh60to64 | AI64: H14OwnOccHuHh65to74 | AJ64: H14OwnOccHuHh75to84 | AK64: H14OwnOccHuHh85Over | AL64: H14RenterOccHU1 | AM64: H14RntrOccHuHh15to24 | AN64: H14RntrOccHuHh25to34 | AO64: H14RntrOccHuHh35to44 | AP64: H14RntrOccHuHh45to54 | AQ64: H14RntrOccHuHh55to59 | AR64: H14RntrOccHuHh60to64 | AS64: H14RntrOccHuHh65to74 | AT64: H14RntrOccHuHh75to84 | AU64: H14RntrOccHuHh85Over | AV64: H15PopInOccHU | AW64: H15PopInOwnOccHU1 | AX64: H15PopInRentOccHU1 | AY64: H17OccupHUb | AZ64: H17OwnOccHU2 | BA64: H17OwnOccHU1PersonHH | BB64: H17OwnOccHU2PersonHH | BC64: H17OwnOccHU3PersonHH | BD64: H17OwnOccHU4PersonHH | BE64: H17OwnOccHU5PersonHH | BF64: H17OwnOccHU6PersonHH | BG64: H17OwnOccHU7PlusPersonHH | BH64: H17RentOccHU2 | BI64: H17RntOccHU1PersonHH | BJ64: H17RntOccHU2PersonHH | BK64: H17RntOccHU3PersonHH | BL64: H17RntOccHU4PersonHH | BM64: H17RntOccHU5PersonHH | BN64: H17RntOccHU6PersonHH | BO64: H17RntOccHU7PlusPersonHH | BP64: H18AvgHHSize | BQ64: H18AvgHHSizeOwnOcc | BR64: H18AvgHHSizeRentOcc | BS64: H23TotHU | BT64: H23HU1Room | BU64: H23HU2Room | BV64: H23HU3Room | BW64: H23HU4Room | BX64: H23HU5Room | BY64: H23HU6Room | BZ64: H23HU7Room | CA64: H23HU8Room | CB64: H23HU9orMoreRoom | CC64: H24MedianNumRooms | CD64: H25AggregNumRooms | CE64: H30TotalHU | CF64: H30Det1HU | CG64: H30Att1HU | CH64: H30Units2 | CI64: H30Units3or4 | CJ64: H30Units5to9 | CK64: H30Units10to19 | CL64: H30Units20to49 | CM64: H30Units50orMore | CN64: H30UnitsMobileHome | CO64: H30UnitsBoatRv | CP64: H32OccHUcTotal | CQ64: H32OwnerOccHU3 | CR64: H32OwnOccHU1Det | CS64: H32OwnOccHU1Att | CT64: H32OwnOccHU2Unit | CU64: H32OwnOccHU3to4Unit | CV64: H32OwnOccHU5to9Unit | CW64: H32OwnOccHU10to19Unit | CX64: H32OwnOccHU20to49Unit | CY64: H32OwnOccHU50plusUnit | CZ64: H32OwnOccHUMobHom | DA64: H32OwnOccHUBoatRVOth | DB64: H32RentrOccHU3 | DC64: H32RntrOccHU1Det | DD64: H32RntrOccHU1Att | DE64: H32RntrOccHU2Unit | DF64: H32RntrOccHU3to4Unit | DG64: H32RntrOccHU5to9Unit | DH64: H32RntrOccHU10to19Unit | DI64: H32RntrOccHU20to49Unit | DJ64: H32RntrOccHU50PlusUnit | DK64: H32RntrOccHUMobHom | DL64: H32RntrOccHUBoatRVOth | DM64: H33TotPopInOccHU | DN64: H33PopInOwnOccHU2 | DO64: H33PopInOOHU1Det | DP64: H33PopInOOHU1Att | DQ64: H33PopInOOHU2unit | DR64: H33PopInOOHU3to4Unit | DS64: H33PopInOOHU5to9Unit | DT64: H33PopInOOHU10to19Unit | DU64: H33PopInOOHU20to49Unit | DV64: H33PopInOOHU50PlusUnit | DW64: H33PopInOOHUMobilHome | DX64: H33PopInOOHUOtherUnit | DY64: H33PopInRentOccHU2 | DZ64: H33PopInROHU1Det | EA64: H33PopInROHU1Att | EB64: H33PopInROHU2Unit | EC64: H33PopInROHU3to4Unit | ED64: H33PopInROHU5to9Unit | EE64: H33PopInROHU10to19Unit | EF64: H33PopInROHU20to49Unit | EG64: H33PopInROHU50PlusUnit | EH64: H33PopInROHUMobilHome | EI64: H33PopInROHUOtherUnit | EJ64: H36OccHousingUnitsdTotal | EK64: H36OwnerOccHU4 | EL64: H36OOHUBuilt99to0300 | EM64: H36OOHUBuilt95to98 | EN64: H36OOHUBuilt90to94 | EO64: H36OOHUBuilt80to89 | EP64: H36OOHUBuilt70to79 | EQ64: H36OOHUBuilt60to69 | ER64: H36OOHUBuilt50to59 | ES64: H36OOHUBuilt40to49 | ET64: H36OOHUBuilt39Earlier | EU64: H36RentOccHU4 | EV64: H36ROHUBuilt99to0300 | EW64: H36ROHUBuilt95to98 | EX64: H36ROHUBuilt90to94 | EY64: H36ROHUBuilt80to89 | EZ64: H36ROHUBuilt70to79 | FA64: H36ROHUBuilt60to69 | FB64: H36ROHUBuilt50to59 | FC64: H36ROHUBuilt40to49 | FD64: H36ROHUBuilt39Earlier | FE64: H40OccupHousUnitse | FF64: H40HeatFuelUtilGas | FG64: H40HeatFuelBotGas | FH64: H40HeatFuelElect | FI64: H40HeatFuelOilKero | FJ64: H40HeatFuelCoal | FK64: H40HeatFuelWood | FL64: H40HeatFuelSolar | FM64: H40HeatFuelOther | FN64: H40HeatFuelNone | FO64: H41TotalHU | FP64: H41HUNoBdrm | FQ64: H41HU1Bdrm | FR64: H41HU2Bdrm | FS64: H41HU3Bdrm | FT64: H41HU4Bdrm | FU64: H41HU5MoreBdrm | FV64: H42OccuHousUnitf | FW64: H42OwnerOccHU5 | FX64: H42OOHUNoBdrm | FY64: H42OOHU1Bdrm | FZ64: H42OOHU2Bdrm | GA64: H42OOHU3Bdrm | GB64: H42OOHU4Bdrm | GC64: H42OOHU5PlusBdrm | GD64: H42RentOccHU5 | GE64: H42ROHUNoBdrm | GF64: H42ROHU1Bdrm | GG64: H42ROHU2Bdrm | GH64: H42ROHU3Bdrm | GI64: H42ROHU4Bdrm | GJ64: H42ROHU5PlusBdrm | GK64: H48OccupHousUnitsg | GL64: H48OwnerOccHU6 | GM64: H48OOHUwCompltPlumFacil | GN64: H48OOHULackCompltPlumFacil | GO64: H48RentOccHU6 | GP64: H48ROHUwCompltPlumFacil | GQ64: H48ROHULackCompltPlumFacil | GR64: H51OccupHousUnitf | GS64: H51OwnerOccHU7 | GT64: H51OOHUwCompleteKitFacil | GU64: H51OOHULackCompleteKitFacil | GV64: H51RenterOccHU7 | GW64: H51ROHUwCompleteKitFacil | GX64: H51ROHULackCompleteKitFacil
A65: =VLOOKUP(DropDownList!$B47,CntyQryCensus!$A$306:$GX$348,A$1) -> Chester | B65: =VLOOKUP(DropDownList!$B47,CntyQryCensus!$A$306:$GX$348,B$1) -> 0003071 | C65: =VLOOKUP(DropDownList!$B47,CntyQryCensus!$A$306:$GX$348,C$1) -> 12100 | D65: =VLOOKUP(DropDownList!$B47,CntyQryCensus!$A$306:$GX$348,D$1) -> 3792 | E65: =VLOOKUP(DropDownList!$B47,CntyQryCensus!$A$306:$GX$348,E$1) -> 1247 | F65: =VLOOKUP(DropDownList!$B47,CntyQryCensus!$A$306:$GX$348,F$1) -> 298 | G65: =VLOOKUP(DropDownList!$B47,CntyQryCensus!$A$306:$GX$348,G$1) -> 291 | H65: =VLOOKUP(DropDownList!$B47,CntyQryCensus!$A$306:$GX$348,H$1) -> 7 | I65: =VLOOKUP(DropDownList!$B47,CntyQryCensus!$A$306:$GX$348,I$1) -> 1247 | J65: =VLOOKUP(DropDownList!$B47,CntyQryCensus!$A$306:$GX$348,J$1) -> 1247 | K65: =VLOOKUP(DropDownList!$B47,CntyQryCensus!$A$306:$GX$348,K$1) -> 18 | L65: =VLOOKUP(DropDownList!$B47,CntyQryCensus!$A$306:$GX$348,L$1) -> 18 | M65: =VLOOKUP(DropDownList!$B47,CntyQryCensus!$A$306:$GX$348,M$1) -> 0 | N65: =VLOOKUP(DropDownList!$B47,CntyQryCensus!$A$306:$GX$348,N$1) -> 1229 | O65: =VLOOKUP(DropDownList!$B47,CntyQryCensus!$A$306:$GX$348,O$1) -> 12 | P65: =VLOOKUP(DropDownList!$B47,CntyQryCensus!$A$306:$GX$348,P$1) -> 1217 | Q65: =VLOOKUP(DropDownList!$B47,CntyQryCensus!$A$306:$GX$348,Q$1) -> 1214 | R65: =VLOOKUP(DropDownList!$B47,CntyQryCensus!$A$306:$GX$348,R$1) -> 1129 | S65: =VLOOKUP(DropDownList!$B47,CntyQryCensus!$A$306:$GX$348,S$1) -> 85 | T65: =VLOOKUP(DropDownList!$B47,CntyQryCensus!$A$306:$GX$348,T$1) -> 33 | U65: =VLOOKUP(DropDownList!$B47,CntyQryCensus!$A$306:$GX$348,U$1) -> 16 | V65: =VLOOKUP(DropDownList!$B47,CntyQryCensus!$A$306:$GX$348,V$1) -> 3 | W65: =VLOOKUP(DropDownList!$B47,CntyQryCensus!$A$306:$GX$348,W$1) -> 0 | X65: =VLOOKUP(DropDownList!$B47,CntyQryCensus!$A$306:$GX$348,X$1) -> 10 | Y65: =VLOOKUP(DropDownList!$B47,CntyQryCensus!$A$306:$GX$348,Y$1) -> 0 | Z65: =VLOOKUP(DropDownList!$B47,CntyQryCensus!$A$306:$GX$348,Z$1) -> 4 | AA65: =VLOOKUP(DropDownList!$B47,CntyQryCensus!$A$306:$GX$348,AA$1) -> 1214 | AB65: =VLOOKUP(DropDownList!$B47,CntyQryCensus!$A$306:$GX$348,AB$1) -> 1129 | AC65: =VLOOKUP(DropDownList!$B47,CntyQryCensus!$A$306:$GX$348,AC$1) -> 4 | AD65: =VLOOKUP(DropDownList!$B47,CntyQryCensus!$A$306:$GX$348,AD$1) -> 113 | AE65: =VLOOKUP(DropDownList!$B47,CntyQryCensus!$A$306:$GX$348,AE$1) -> 395 | AF65: =VLOOKUP(DropDownList!$B47,CntyQryCensus!$A$306:$GX$348,AF$1) -> 326 | AG65: =VLOOKUP(DropDownList!$B47,CntyQryCensus!$A$306:$GX$348,AG$1) -> 92 | AH65: =VLOOKUP(DropDownList!$B47,CntyQryCensus!$A$306:$GX$348,AH$1) -> 83 | AI65: =VLOOKUP(DropDownList!$B47,CntyQryCensus!$A$306:$GX$348,AI$1) -> 72 | AJ65: =VLOOKUP(DropDownList!$B47,CntyQryCensus!$A$306:$GX$348,AJ$1) -> 36 | AK65: =VLOOKUP(DropDownList!$B47,CntyQryCensus!$A$306:$GX$348,AK$1) -> 8 | AL65: =VLOOKUP(DropDownList!$B47,CntyQryCensus!$A$306:$GX$348,AL$1) -> 85 | AM65: =VLOOKUP(DropDownList!$B47,CntyQryCensus!$A$306:$GX$348,AM$1) -> 0 | AN65: =VLOOKUP(DropDownList!$B47,CntyQryCensus!$A$306:$GX$348,AN$1) -> 21 | AO65: =VLOOKUP(DropDownList!$B47,CntyQryCensus!$A$306:$GX$348,AO$1) -> 35 | AP65: =VLOOKUP(DropDownList!$B47,CntyQryCensus!$A$306:$GX$348,AP$1) -> 11 | AQ65: =VLOOKUP(DropDownList!$B47,CntyQryCensus!$A$306:$GX$348,AQ$1) -> 0 | AR65: =VLOOKUP(DropDownList!$B47,CntyQryCensus!$A$306:$GX$348,AR$1) -> 5 | AS65: =VLOOKUP(DropDownList!$B47,CntyQryCensus!$A$306:$GX$348,AS$1) -> 4 | AT65: =VLOOKUP(DropDownList!$B47,CntyQryCensus!$A$306:$GX$348,AT$1) -> 5 | AU65: =VLOOKUP(DropDownList!$B47,CntyQryCensus!$A$306:$GX$348,AU$1) -> 4 | AV65: =VLOOKUP(DropDownList!$B47,CntyQryCensus!$A$306:$GX$348,AV$1) -> 3756 | AW65: =VLOOKUP(DropDownList!$B47,CntyQryCensus!$A$306:$GX$348,AW$1) -> 3557 | AX65: =VLOOKUP(DropDownList!$B47,CntyQryCensus!$A$306:$GX$348,AX$1) -> 199 | AY65: =VLOOKUP(DropDownList!$B47,CntyQryCensus!$A$306:$GX$348,AY$1) -> 1214 | AZ65: =VLOOKUP(DropDownList!$B47,CntyQryCensus!$A$306:$GX$348,AZ$1) -> 1129 | BA65: =VLOOKUP(DropDownList!$B47,CntyQryCensus!$A$306:$GX$348,BA$1) -> 120 | BB65: =VLOOKUP(DropDownList!$B47,CntyQryCensus!$A$306:$GX$348,BB$1) -> 355 | BC65: =VLOOKUP(DropDownList!$B47,CntyQryCensus!$A$306:$GX$348,BC$1) -> 230 | BD65: =VLOOKUP(DropDownList!$B47,CntyQryCensus!$A$306:$GX$348,BD$1) -> 240 | BE65: =VLOOKUP(DropDownList!$B47,CntyQryCensus!$A$306:$GX$348,BE$1) -> 113 | BF65: =VLOOKUP(DropDownList!$B47,CntyQryCensus!$A$306:$GX$348,BF$1) -> 51 | BG65: =VLOOKUP(DropDownList!$B47,CntyQryCensus!$A$306:$GX$348,BG$1) -> 20 | BH65: =VLOOKUP(DropDownList!$B47,CntyQryCensus!$A$306:$GX$348,BH$1) -> 85 | BI65: =VLOOKUP(DropDownList!$B47,CntyQryCensus!$A$306:$GX$348,BI$1) -> 24 | BJ65: =VLOOKUP(DropDownList!$B47,CntyQryCensus!$A$306:$GX$348,BJ$1) -> 5 | BK65: =VLOOKUP(DropDownList!$B47,CntyQryCensus!$A$306:$GX$348,BK$1) -> 26 | BL65: =VLOOKUP(DropDownList!$B47,CntyQryCensus!$A$306:$GX$348,BL$1) -> 21 | BM65: =VLOOKUP(DropDownList!$B47,CntyQryCensus!$A$306:$GX$348,BM$1) -> 9 | BN65: =VLOOKUP(DropDownList!$B47,CntyQryCensus!$A$306:$GX$348,BN$1) -> 0 | BO65: =VLOOKUP(DropDownList!$B47,CntyQryCensus!$A$306:$GX$348,BO$1) -> 0 | BP65: =VLOOKUP(DropDownList!$B47,CntyQryCensus!$A$306:$GX$348,BP$1) -> 3 | BQ65: =VLOOKUP(DropDownList!$B47,CntyQryCensus!$A$306:$GX$348,BQ$1) -> 3 | BR65: =VLOOKUP(DropDownList!$B47,CntyQryCensus!$A$306:$GX$348,BR$1) -> 2 | BS65: =VLOOKUP(DropDownList!$B47,CntyQryCensus!$A$306:$GX$348,BS$1) -> 1247 | BT65: =VLOOKUP(DropDownList!$B47,CntyQryCensus!$A$306:$GX$348,BT$1) -> 0 | BU65: =VLOOKUP(DropDownList!$B47,CntyQryCensus!$A$306:$GX$348,BU$1) -> 4 | BV65: =VLOOKUP(DropDownList!$B47,CntyQryCensus!$A$306:$GX$348,BV$1) -> 34 | BW65: =VLOOKUP(DropDownList!$B47,CntyQryCensus!$A$306:$GX$348,BW$1) -> 67 | BX65: =VLOOKUP(DropDownList!$B47,CntyQryCensus!$A$306:$GX$348,BX$1) -> 159 | BY65: =VLOOKUP(DropDownList!$B47,CntyQryCensus!$A$306:$GX$348,BY$1) -> 307 | BZ65: =VLOOKUP(DropDownList!$B47,CntyQryCensus!$A$306:$GX$348,BZ$1) -> 265 | CA65: =VLOOKUP(DropDownList!$B47,CntyQryCensus!$A$306:$GX$348,CA$1) -> 201 | CB65: =VLOOKUP(DropDownList!$B47,CntyQryCensus!$A$306:$GX$348,CB$1) -> 210 | CC65: =VLOOKUP(DropDownList!$B47,CntyQryCensus!$A$306:$GX$348,CC$1) -> 7 | CD65: =VLOOKUP(DropDownList!$B47,CntyQryCensus!$A$306:$GX$348,CD$1) -> 8578 | CE65: =VLOOKUP(DropDownList!$B47,CntyQryCensus!$A$306:$GX$348,CE$1) -> 1247 | CF65: =VLOOKUP(DropDownList!$B47,CntyQryCensus!$A$306:$GX$348,CF$1) -> 1113 | CG65: =VLOOKUP(DropDownList!$B47,CntyQryCensus!$A$306:$GX$348,CG$1) -> 66 | CH65: =VLOOKUP(DropDownList!$B47,CntyQryCensus!$A$306:$GX$348,CH$1) -> 24 | CI65: =VLOOKUP(DropDownList!$B47,CntyQryCensus!$A$306:$GX$348,CI$1) -> 4 | CJ65: =VLOOKUP(DropDownList!$B47,CntyQryCensus!$A$306:$GX$348,CJ$1) -> 14 | CK65: =VLOOKUP(DropDownList!$B47,CntyQryCensus!$A$306:$GX$348,CK$1) -> 0 | CL65: =VLOOKUP(DropDownList!$B47,CntyQryCensus!$A$306:$GX$348,CL$1) -> 0 | CM65: =VLOOKUP(DropDownList!$B47,CntyQryCensus!$A$306:$GX$348,CM$1) -> 0 | CN65: =VLOOKUP(DropDownList!$B47,CntyQryCensus!$A$306:$GX$348,CN$1) -> 26 | CO65: =VLOOKUP(DropDownList!$B47,CntyQryCensus!$A$306:$GX$348,CO$1) -> 0 | CP65: =VLOOKUP(DropDownList!$B47,CntyQryCensus!$A$306:$GX$348,CP$1) -> 1214 | CQ65: =VLOOKUP(DropDownList!$B47,CntyQryCensus!$A$306:$GX$348,CQ$1) -> 1129 | CR65: =VLOOKUP(DropDownList!$B47,CntyQryCensus!$A$306:$GX$348,CR$1) -> 1043 | CS65: =VLOOKUP(DropDownList!$B47,CntyQryCensus!$A$306:$GX$348,CS$1) -> 56 | CT65: =VLOOKUP(DropDownList!$B47,CntyQryCensus!$A$306:$GX$348,CT$1) -> 10 | CU65: =VLOOKUP(DropDownList!$B47,CntyQryCensus!$A$306:$GX$348,CU$1) -> 4 | CV65: =VLOOKUP(DropDownList!$B47,CntyQryCensus!$A$306:$GX$348,CV$1) -> 0 | CW65: =VLOOKUP(DropDownList!$B47,CntyQryCensus!$A$306:$GX$348,CW$1) -> 0 | CX65: =VLOOKUP(DropDownList!$B47,CntyQryCensus!$A$306:$GX$348,CX$1) -> 0 | CY65: =VLOOKUP(DropDownList!$B47,CntyQryCensus!$A$306:$GX$348,CY$1) -> 0 | CZ65: =VLOOKUP(DropDownList!$B47,CntyQryCensus!$A$306:$GX$348,CZ$1) -> 16 | DA65: =VLOOKUP(DropDownList!$B47,CntyQryCensus!$A$306:$GX$348,DA$1) -> 0 | DB65: =VLOOKUP(DropDownList!$B47,CntyQryCensus!$A$306:$GX$348,DB$1) -> 85 | DC65: =VLOOKUP(DropDownList!$B47,CntyQryCensus!$A$306:$GX$348,DC$1) -> 44 | DD65: =VLOOKUP(DropDownList!$B47,CntyQryCensus!$A$306:$GX$348,DD$1) -> 10 | DE65: =VLOOKUP(DropDownList!$B47,CntyQryCensus!$A$306:$GX$348,DE$1) -> 10 | DF65: =VLOOKUP(DropDownList!$B47,CntyQryCensus!$A$306:$GX$348,DF$1) -> 0 | DG65: =VLOOKUP(DropDownList!$B47,CntyQryCensus!$A$306:$GX$348,DG$1) -> 11 | DH65: =VLOOKUP(DropDownList!$B47,CntyQryCensus!$A$306:$GX$348,DH$1) -> 0 | DI65: =VLOOKUP(DropDownList!$B47,CntyQryCensus!$A$306:$GX$348,DI$1) -> 0 | DJ65: =VLOOKUP(DropDownList!$B47,CntyQryCensus!$A$306:$GX$348,DJ$1) -> 0 | DK65: =VLOOKUP(DropDownList!$B47,CntyQryCensus!$A$306:$GX$348,DK$1) -> 10 | DL65: =VLOOKUP(DropDownList!$B47,CntyQryCensus!$A$306:$GX$348,DL$1) -> 0 | DM65: =VLOOKUP(DropDownList!$B47,CntyQryCensus!$A$306:$GX$348,DM$1) -> 3756 | DN65: =VLOOKUP(DropDownList!$B47,CntyQryCensus!$A$306:$GX$348,DN$1) -> 3557 | DO65: =VLOOKUP(DropDownList!$B47,CntyQryCensus!$A$306:$GX$348,DO$1) -> 3377 | DP65: =VLOOKUP(DropDownList!$B47,CntyQryCensus!$A$306:$GX$348,DP$1) -> 119 | DQ65: =VLOOKUP(DropDownList!$B47,CntyQryCensus!$A$306:$GX$348,DQ$1) -> 22 | DR65: =VLOOKUP(DropDownList!$B47,CntyQryCensus!$A$306:$GX$348,DR$1) -> 4 | DS65: =VLOOKUP(DropDownList!$B47,CntyQryCensus!$A$306:$GX$348,DS$1) -> 0 | DT65: =VLOOKUP(DropDownList!$B47,CntyQryCensus!$A$306:$GX$348,DT$1) -> 0 | DU65: =VLOOKUP(DropDownList!$B47,CntyQryCensus!$A$306:$GX$348,DU$1) -> 0 | DV65: =VLOOKUP(DropDownList!$B47,CntyQryCensus!$A$306:$GX$348,DV$1) -> 0 | DW65: =VLOOKUP(DropDownList!$B47,CntyQryCensus!$A$306:$GX$348,DW$1) -> 35 | DX65: =VLOOKUP(DropDownList!$B47,CntyQryCensus!$A$306:$GX$348,DX$1) -> 0 | DY65: =VLOOKUP(DropDownList!$B47,CntyQryCensus!$A$306:$GX$348,DY$1) -> 199 | DZ65: =VLOOKUP(DropDownList!$B47,CntyQryCensus!$A$306:$GX$348,DZ$1) -> 117 | EA65: =VLOOKUP(DropDownList!$B47,CntyQryCensus!$A$306:$GX$348,EA$1) -> 24 | EB65: =VLOOKUP(DropDownList!$B47,CntyQryCensus!$A$306:$GX$348,EB$1) -> 19 | EC65: =VLOOKUP(DropDownList!$B47,CntyQryCensus!$A$306:$GX$348,EC$1) -> 0 | ED65: =VLOOKUP(DropDownList!$B47,CntyQryCensus!$A$306:$GX$348,ED$1) -> 25 | EE65: =VLOOKUP(DropDownList!$B47,CntyQryCensus!$A$306:$GX$348,EE$1) -> 0 | EF65: =VLOOKUP(DropDownList!$B47,CntyQryCensus!$A$306:$GX$348,EF$1) -> 0 | EG65: =VLOOKUP(DropDownList!$B47,CntyQryCensus!$A$306:$GX$348,EG$1) -> 0 | EH65: =VLOOKUP(DropDownList!$B47,CntyQryCensus!$A$306:$GX$348,EH$1) -> 14 | EI65: =VLOOKUP(DropDownList!$B47,CntyQryCensus!$A$306:$GX$348,EI$1) -> 0 | EJ65: =VLOOKUP(DropDownList!$B47,CntyQryCensus!$A$306:$GX$348,EJ$1) -> 1214 | EK65: =VLOOKUP(DropDownList!$B47,CntyQryCensus!$A$306:$GX$348,EK$1) -> 1129 | EL65: =VLOOKUP(DropDownList!$B47,CntyQryCensus!$A$306:$GX$348,EL$1) -> 77 | EM65: =VLOOKUP(DropDownList!$B47,CntyQryCensus!$A$306:$GX$348,EM$1) -> 140 | EN65: =VLOOKUP(DropDownList!$B47,CntyQryCensus!$A$306:$GX$348,EN$1) -> 157 | EO65: =VLOOKUP(DropDownList!$B47,CntyQryCensus!$A$306:$GX$348,EO$1) -> 225 | EP65: =VLOOKUP(DropDownList!$B47,CntyQryCensus!$A$306:$GX$348,EP$1) -> 156 | EQ65: =VLOOKUP(DropDownList!$B47,CntyQryCensus!$A$306:$GX$348,EQ$1) -> 82 | ER65: =VLOOKUP(DropDownList!$B47,CntyQryCensus!$A$306:$GX$348,ER$1) -> 46 | ES65: =VLOOKUP(DropDownList!$B47,CntyQryCensus!$A$306:$GX$348,ES$1) -> 9 | ET65: =VLOOKUP(DropDownList!$B47,CntyQryCensus!$A$306:$GX$348,ET$1) -> 237 | EU65: =VLOOKUP(DropDownList!$B47,CntyQryCensus!$A$306:$GX$348,EU$1) -> 85 | EV65: =VLOOKUP(DropDownList!$B47,CntyQryCensus!$A$306:$GX$348,EV$1) -> 0 | EW65: =VLOOKUP(DropDownList!$B47,CntyQryCensus!$A$306:$GX$348,EW$1) -> 0 | EX65: =VLOOKUP(DropDownList!$B47,CntyQryCensus!$A$306:$GX$348,EX$1) -> 10 | EY65: =VLOOKUP(DropDownList!$B47,CntyQryCensus!$A$306:$GX$348,EY$1) -> 5 | EZ65: =VLOOKUP(DropDownList!$B47,CntyQryCensus!$A$306:$GX$348,EZ$1) -> 37 | FA65: =VLOOKUP(DropDownList!$B47,CntyQryCensus!$A$306:$GX$348,FA$1) -> 0 | FB65: =VLOOKUP(DropDownList!$B47,CntyQryCensus!$A$306:$GX$348,FB$1) -> 10 | FC65: =VLOOKUP(DropDownList!$B47,CntyQryCensus!$A$306:$GX$348,FC$1) -> 0 | FD65: =VLOOKUP(DropDownList!$B47,CntyQryCensus!$A$306:$GX$348,FD$1) -> 23 | FE65: =VLOOKUP(DropDownList!$B47,CntyQryCensus!$A$306:$GX$348,FE$1) -> 1214 | FF65: =VLOOKUP(DropDownList!$B47,CntyQryCensus!$A$306:$GX$348,FF$1) -> 4 | FG65: =VLOOKUP(DropDownList!$B47,CntyQryCensus!$A$306:$GX$348,FG$1) -> 108 | FH65: =VLOOKUP(DropDownList!$B47,CntyQryCensus!$A$306:$GX$348,FH$1) -> 18 | FI65: =VLOOKUP(DropDownList!$B47,CntyQryCensus!$A$306:$GX$348,FI$1) -> 998 | FJ65: =VLOOKUP(DropDownList!$B47,CntyQryCensus!$A$306:$GX$348,FJ$1) -> 0 | FK65: =VLOOKUP(DropDownList!$B47,CntyQryCensus!$A$306:$GX$348,FK$1) -> 86 | FL65: =VLOOKUP(DropDownList!$B47,CntyQryCensus!$A$306:$GX$348,FL$1) -> 0 | FM65: =VLOOKUP(DropDownList!$B47,CntyQryCensus!$A$306:$GX$348,FM$1) -> 0 | FN65: =VLOOKUP(DropDownList!$B47,CntyQryCensus!$A$306:$GX$348,FN$1) -> 0 | FO65: =VLOOKUP(DropDownList!$B47,CntyQryCensus!$A$306:$GX$348,FO$1) -> 1247 | FP65: =VLOOKUP(DropDownList!$B47,CntyQryCensus!$A$306:$GX$348,FP$1) -> 0 | FQ65: =VLOOKUP(DropDownList!$B47,CntyQryCensus!$A$306:$GX$348,FQ$1) -> 30 | FR65: =VLOOKUP(DropDownList!$B47,CntyQryCensus!$A$306:$GX$348,FR$1) -> 190 | FS65: =VLOOKUP(DropDownList!$B47,CntyQryCensus!$A$306:$GX$348,FS$1) -> 691 | FT65: =VLOOKUP(DropDownList!$B47,CntyQryCensus!$A$306:$GX$348,FT$1) -> 273 | FU65: =VLOOKUP(DropDownList!$B47,CntyQryCensus!$A$306:$GX$348,FU$1) -> 63 | FV65: =VLOOKUP(DropDownList!$B47,CntyQryCensus!$A$306:$GX$348,FV$1) -> 1214 | FW65: =VLOOKUP(DropDownList!$B47,CntyQryCensus!$A$306:$GX$348,FW$1) -> 1129 | FX65: =VLOOKUP(DropDownList!$B47,CntyQryCensus!$A$306:$GX$348,FX$1) -> 0 | FY65: =VLOOKUP(DropDownList!$B47,CntyQryCensus!$A$306:$GX$348,FY$1) -> 20 | FZ65: =VLOOKUP(DropDownList!$B47,CntyQryCensus!$A$306:$GX$348,FZ$1) -> 137 | GA65: =VLOOKUP(DropDownList!$B47,CntyQryCensus!$A$306:$GX$348,GA$1) -> 659 | GB65: =VLOOKUP(DropDownList!$B47,CntyQryCensus!$A$306:$GX$348,GB$1) -> 254 | GC65: =VLOOKUP(DropDownList!$B47,CntyQryCensus!$A$306:$GX$348,GC$1) -> 59 | GD65: =VLOOKUP(DropDownList!$B47,CntyQryCensus!$A$306:$GX$348,GD$1) -> 85 | GE65: =VLOOKUP(DropDownList!$B47,CntyQryCensus!$A$306:$GX$348,GE$1) -> 0 | GF65: =VLOOKUP(DropDownList!$B47,CntyQryCensus!$A$306:$GX$348,GF$1) -> 4 | GG65: =VLOOKUP(DropDownList!$B47,CntyQryCensus!$A$306:$GX$348,GG$1) -> 46 | GH65: =VLOOKUP(DropDownList!$B47,CntyQryCensus!$A$306:$GX$348,GH$1) -> 25 | GI65: =VLOOKUP(DropDownList!$B47,CntyQryCensus!$A$306:$GX$348,GI$1) -> 6 | GJ65: =VLOOKUP(DropDownList!$B47,CntyQryCensus!$A$306:$GX$348,GJ$1) -> 4 | GK65: =VLOOKUP(DropDownList!$B47,CntyQryCensus!$A$306:$GX$348,GK$1) -> 1214 | GL65: =VLOOKUP(DropDownList!$B47,CntyQryCensus!$A$306:$GX$348,GL$1) -> 1129 | GM65: =VLOOKUP(DropDownList!$B47,CntyQryCensus!$A$306:$GX$348,GM$1) -> 1126 | GN65: =VLOOKUP(DropDownList!$B47,CntyQryCensus!$A$306:$GX$348,GN$1) -> 3 | GO65: =VLOOKUP(DropDownList!$B47,CntyQryCensus!$A$306:$GX$348,GO$1) -> 85 | GP65: =VLOOKUP(DropDownList!$B47,CntyQryCensus!$A$306:$GX$348,GP$1) -> 85 | GQ65: =VLOOKUP(DropDownList!$B47,CntyQryCensus!$A$306:$GX$348,GQ$1) -> 0 | GR65: =VLOOKUP(DropDownList!$B47,CntyQryCensus!$A$306:$GX$348,GR$1) -> 1214 | GS65: =VLOOKUP(DropDownList!$B47,CntyQryCensus!$A$306:$GX$348,GS$1) -> 1129 | GT65: =VLOOKUP(DropDownList!$B47,CntyQryCensus!$A$306:$GX$348,GT$1) -> 1129 | GU65: =VLOOKUP(DropDownList!$B47,CntyQryCensus!$A$306:$GX$348,GU$1) -> 0 | GV65: =VLOOKUP(DropDownList!$B47,CntyQryCensus!$A$306:$GX$348,GV$1) -> 85 | GW65: =VLOOKUP(DropDownList!$B47,CntyQryCensus!$A$306:$GX$348,GW$1) -> 81 | GX65: =VLOOKUP(DropDownList!$B47,CntyQryCensus!$A$306:$GX$348,GX$1) -> 4
A68: Census 2000 SummaryFile3 Sample Data - SF3TownQry8HousingCostA
A69: NAME | B69: LOGRECNO | C69: COUNTY | D69: TotalPop | E69: H62RntrOccHU | F69: H62RntrOccHUwRent | G69: H62ROHUGRent<100 | H69: H62ROHUGRent100to149 | I69: H62ROHUGRent150to199 | J69: H62ROHUGRent200to249 | K69: H62ROHUGRent250to299 | L69: H62ROHUGRent300to349 | M69: H62ROHUGRent350to399 | N69: H62ROHUGRent400to449 | O69: H62ROHUGRent450to499 | P69: H62ROHUGRent500to549 | Q69: H62ROHUGRent550to599 | R69: H62ROHUGRent600to649 | S69: H62ROHUGRent650to699 | T69: H62ROHUGRent700to749 | U69: H62ROHUGRent750to799 | V69: H62ROHUGRent800to899 | W69: H62ROHUGRent900to999 | X69: H62ROHUGRent1000to1249 | Y69: H62ROHUGRent1250to1499 | Z69: H62ROHUGRent1500to1999 | AA69: H62ROHUGRent2000> | AB69: H62ROHUNoGRent | AC69: H63MedianGrossRnt | AD69: H69RenterOccHsU | AE69: H69GRnt<10PctHHInc | AF69: H69GRnt10to15PctHHInc | AG69: H69GRnt15to20PctHHInc | AH69: H69GRnt20to25PctHHInc | AI69: H69GRnt25to30PctHHInc | AJ69: H69GRnt30to35PctHHInc | AK69: H69GRnt35to40PctHHInc | AL69: H69GRnt40to50PctHHInc | AM69: H69GRnt>50PctHHInc | AN69: H69GRntPctNotcomputed | AO69: H73RenterOccHU | AP69: H73ROHUHhInc<10k | AQ69: H73ROHUHhInc<10kRnt<20pct | AR69: H73ROHUHhInc<10kRnt20to25pct | AS69: H73ROHUHhInc<10kRnt25to30pct | AT69: H73ROHUHhInc<10kRnt30to35pct | AU69: H73ROHUHhInc<10kRnt>35pct | AV69: H73ROHUHhInc<10kPctNotComput | AW69: H73ROHUHhInc10to20k | AX69: H73ROHUHhInc10to20kRnt<20pct | AY69: H73ROHUHhInc10to20kRnt20to25pct | AZ69: H73ROHUHhInc10to20kRnt25to30pct | BA69: H73ROHUHhInc10to20kRnt30to35pct | BB69: H73ROHUHhInc10to20kRnt>35pct | BC69: H73ROHUHhInc10to20kRntPctNC | BD69: H73ROHUHhInc20to35k | BE69: H73ROHUHhInc20to35kRnt<20pct | BF69: H73ROHUHhInc20to35kRnt20to25pct | BG69: H73ROHUHhInc20to35kRnt25to30pct | BH69: H73ROHUHhInc20to35kRnt30to35pct | BI69: H73ROHUHhInc20to35kRnt>35pct | BJ69: H73ROHUHhInc20to35kRntPctNC | BK69: H73ROHUHhInc35to40k | BL69: H73ROHUHhInc35to40kRnt<20pct | BM69: H73ROHUHhInc35to40kRnt20to25pct | BN69: H73ROHUHhInc35to40kRnt25to30pct | BO69: H73ROHUHhInc35to40kRnt30to35pct | BP69: H73ROHUHhInc35to40kRnt>35pct | BQ69: H73ROHUHhInc35to40kRntPctNC | BR69: H73ROHUHhInc50to75k | BS69: H73ROHUHhInc50to75kRnt<20pct | BT69: H73ROHUHhInc50to75kRnt20to25pct | BU69: H73ROHUHhInc50to75kRnt25to30pct | BV69: H73ROHUHhInc50to75kRnt30to35pct | BW69: H73ROHUHhInc50to75kRnt>35pct | BX69: H73ROHUHhInc50to75kRntPctNC | BY69: H73ROHUHhInc75to100k | BZ69: H73ROHUHhInc75to100kRnt<20pct | CA69: H73ROHUHhInc75to100kRnt20to25pct | CB69: H73ROHUHhInc75to100kRnt25to30pct | CC69: H73ROHUHhInc75to100kRnt30to35pct | CD69: H73ROHUHhInc75to100kRnt>35pct | CE69: H73ROHUHhInc75to100kRntPctNC | CF69: H73ROHUHhInc>100k | CG69: H73ROHUHhInc>100kRnt<20pct | CH69: H73ROHUHhInc>100kRnt20to25pct | CI69: H73ROHUHhInc>100kRnt25to30pct | CJ69: H73ROHUHhInc>100kRnt30to35pct | CK69: H73ROHUHhInc>100kRnt>35pct | CL69: H73ROHUHhInc>100kRntPctNC | CM69: H73ROHUHhInc>100kRntPctNC
A70: =VLOOKUP(DropDownList!$B$47,CntyQryCensus!$A$357:$CM$399,A$1) -> Chester | B70: =VLOOKUP(DropDownList!$B$47,CntyQryCensus!$A$357:$CM$399,B$1) -> 0003071 | C70: =VLOOKUP(DropDownList!$B$47,CntyQryCensus!$A$357:$CM$399,C$1) -> 12100 | D70: =VLOOKUP(DropDownList!$B$47,CntyQryCensus!$A$357:$CM$399,D$1) -> 3792 | E70: =VLOOKUP(DropDownList!$B$47,CntyQryCensus!$A$357:$CM$399,E$1) -> 60 | F70: =VLOOKUP(DropDownList!$B$47,CntyQryCensus!$A$357:$CM$399,F$1) -> 41 | G70: =VLOOKUP(DropDownList!$B$47,CntyQryCensus!$A$357:$CM$399,G$1) -> 0 | H70: =VLOOKUP(DropDownList!$B$47,CntyQryCensus!$A$357:$CM$399,H$1) -> 0 | I70: =VLOOKUP(DropDownList!$B$47,CntyQryCensus!$A$357:$CM$399,I$1) -> 0 | J70: =VLOOKUP(DropDownList!$B$47,CntyQryCensus!$A$357:$CM$399,J$1) -> 0 | K70: =VLOOKUP(DropDownList!$B$47,CntyQryCensus!$A$357:$CM$399,K$1) -> 0 | L70: =VLOOKUP(DropDownList!$B$47,CntyQryCensus!$A$357:$CM$399,L$1) -> 0 | M70: =VLOOKUP(DropDownList!$B$47,CntyQryCensus!$A$357:$CM$399,M$1) -> 0 | N70: =VLOOKUP(DropDownList!$B$47,CntyQryCensus!$A$357:$CM$399,N$1) -> 0 | O70: =VLOOKUP(DropDownList!$B$47,CntyQryCensus!$A$357:$CM$399,O$1) -> 0 | P70: =VLOOKUP(DropDownList!$B$47,CntyQryCensus!$A$357:$CM$399,P$1) -> 0 | Q70: =VLOOKUP(DropDownList!$B$47,CntyQryCensus!$A$357:$CM$399,Q$1) -> 5 | R70: =VLOOKUP(DropDownList!$B$47,CntyQryCensus!$A$357:$CM$399,R$1) -> 11 | S70: =VLOOKUP(DropDownList!$B$47,CntyQryCensus!$A$357:$CM$399,S$1) -> 5 | T70: =VLOOKUP(DropDownList!$B$47,CntyQryCensus!$A$357:$CM$399,T$1) -> 0 | U70: =VLOOKUP(DropDownList!$B$47,CntyQryCensus!$A$357:$CM$399,U$1) -> 0 | V70: =VLOOKUP(DropDownList!$B$47,CntyQryCensus!$A$357:$CM$399,V$1) -> 5 | W70: =VLOOKUP(DropDownList!$B$47,CntyQryCensus!$A$357:$CM$399,W$1) -> 5 | X70: =VLOOKUP(DropDownList!$B$47,CntyQryCensus!$A$357:$CM$399,X$1) -> 10 | Y70: =VLOOKUP(DropDownList!$B$47,CntyQryCensus!$A$357:$CM$399,Y$1) -> 0 | Z70: =VLOOKUP(DropDownList!$B$47,CntyQryCensus!$A$357:$CM$399,Z$1) -> 0 | AA70: =VLOOKUP(DropDownList!$B$47,CntyQryCensus!$A$357:$CM$399,AA$1) -> 0 | AB70: =VLOOKUP(DropDownList!$B$47,CntyQryCensus!$A$357:$CM$399,AB$1) -> 19 | AC70: =VLOOKUP(DropDownList!$B$47,CntyQryCensus!$A$357:$CM$399,AC$1) -> 695 | AD70: =VLOOKUP(DropDownList!$B$47,CntyQryCensus!$A$357:$CM$399,AD$1) -> 60 | AE70: =VLOOKUP(DropDownList!$B$47,CntyQryCensus!$A$357:$CM$399,AE$1) -> 0 | AF70: =VLOOKUP(DropDownList!$B$47,CntyQryCensus!$A$357:$CM$399,AF$1) -> 0 | AG70: =VLOOKUP(DropDownList!$B$47,CntyQryCensus!$A$357:$CM$399,AG$1) -> 21 | AH70: =VLOOKUP(DropDownList!$B$47,CntyQryCensus!$A$357:$CM$399,AH$1) -> 0 | AI70: =VLOOKUP(DropDownList!$B$47,CntyQryCensus!$A$357:$CM$399,AI$1) -> 0 | AJ70: =VLOOKUP(DropDownList!$B$47,CntyQryCensus!$A$357:$CM$399,AJ$1) -> 5 | AK70: =VLOOKUP(DropDownList!$B$47,CntyQryCensus!$A$357:$CM$399,AK$1) -> 0 | AL70: =VLOOKUP(DropDownList!$B$47,CntyQryCensus!$A$357:$CM$399,AL$1) -> 5 | AM70: =VLOOKUP(DropDownList!$B$47,CntyQryCensus!$A$357:$CM$399,AM$1) -> 10 | AN70: =VLOOKUP(DropDownList!$B$47,CntyQryCensus!$A$357:$CM$399,AN$1) -> 19 | AO70: =VLOOKUP(DropDownList!$B$47,CntyQryCensus!$A$357:$CM$399,AO$1) -> 60 | AP70: =VLOOKUP(DropDownList!$B$47,CntyQryCensus!$A$357:$CM$399,AP$1) -> 10 | AQ70: =VLOOKUP(DropDownList!$B$47,CntyQryCensus!$A$357:$CM$399,AQ$1) -> 0 | AR70: =VLOOKUP(DropDownList!$B$47,CntyQryCensus!$A$357:$CM$399,AR$1) -> 0 | AS70: =VLOOKUP(DropDownList!$B$47,CntyQryCensus!$A$357:$CM$399,AS$1) -> 0 | AT70: =VLOOKUP(DropDownList!$B$47,CntyQryCensus!$A$357:$CM$399,AT$1) -> 0 | AU70: =VLOOKUP(DropDownList!$B$47,CntyQryCensus!$A$357:$CM$399,AU$1) -> 5 | AV70: =VLOOKUP(DropDownList!$B$47,CntyQryCensus!$A$357:$CM$399,AV$1) -> 5 | AW70: =VLOOKUP(DropDownList!$B$47,CntyQryCensus!$A$357:$CM$399,AW$1) -> 9 | AX70: =VLOOKUP(DropDownList!$B$47,CntyQryCensus!$A$357:$CM$399,AX$1) -> 0 | AY70: =VLOOKUP(DropDownList!$B$47,CntyQryCensus!$A$357:$CM$399,AY$1) -> 0 | AZ70: =VLOOKUP(DropDownList!$B$47,CntyQryCensus!$A$357:$CM$399,AZ$1) -> 0 | BA70: =VLOOKUP(DropDownList!$B$47,CntyQryCensus!$A$357:$CM$399,BA$1) -> 0 | BB70: =VLOOKUP(DropDownList!$B$47,CntyQryCensus!$A$357:$CM$399,BB$1) -> 0 | BC70: =VLOOKUP(DropDownList!$B$47,CntyQryCensus!$A$357:$CM$399,BC$1) -> 9 | BD70: =VLOOKUP(DropDownList!$B$47,CntyQryCensus!$A$357:$CM$399,BD$1) -> 15 | BE70: =VLOOKUP(DropDownList!$B$47,CntyQryCensus!$A$357:$CM$399,BE$1) -> 0 | BF70: =VLOOKUP(DropDownList!$B$47,CntyQryCensus!$A$357:$CM$399,BF$1) -> 0 | BG70: =VLOOKUP(DropDownList!$B$47,CntyQryCensus!$A$357:$CM$399,BG$1) -> 0 | BH70: =VLOOKUP(DropDownList!$B$47,CntyQryCensus!$A$357:$CM$399,BH$1) -> 5 | BI70: =VLOOKUP(DropDownList!$B$47,CntyQryCensus!$A$357:$CM$399,BI$1) -> 10 | BJ70: =VLOOKUP(DropDownList!$B$47,CntyQryCensus!$A$357:$CM$399,BJ$1) -> 0 | BK70: =VLOOKUP(DropDownList!$B$47,CntyQryCensus!$A$357:$CM$399,BK$1) -> 16 | BL70: =VLOOKUP(DropDownList!$B$47,CntyQryCensus!$A$357:$CM$399,BL$1) -> 16 | BM70: =VLOOKUP(DropDownList!$B$47,CntyQryCensus!$A$357:$CM$399,BM$1) -> 0 | BN70: =VLOOKUP(DropDownList!$B$47,CntyQryCensus!$A$357:$CM$399,BN$1) -> 0 | BO70: =VLOOKUP(DropDownList!$B$47,CntyQryCensus!$A$357:$CM$399,BO$1) -> 0 | BP70: =VLOOKUP(DropDownList!$B$47,CntyQryCensus!$A$357:$CM$399,BP$1) -> 0 | BQ70: =VLOOKUP(DropDownList!$B$47,CntyQryCensus!$A$357:$CM$399,BQ$1) -> 0 | BR70: =VLOOKUP(DropDownList!$B$47,CntyQryCensus!$A$357:$CM$399,BR$1) -> 10 | BS70: =VLOOKUP(DropDownList!$B$47,CntyQryCensus!$A$357:$CM$399,BS$1) -> 5 | BT70: =VLOOKUP(DropDownList!$B$47,CntyQryCensus!$A$357:$CM$399,BT$1) -> 0 | BU70: =VLOOKUP(DropDownList!$B$47,CntyQryCensus!$A$357:$CM$399,BU$1) -> 0 | BV70: =VLOOKUP(DropDownList!$B$47,CntyQryCensus!$A$357:$CM$399,BV$1) -> 0 | BW70: =VLOOKUP(DropDownList!$B$47,CntyQryCensus!$A$357:$CM$399,BW$1) -> 0 | BX70: =VLOOKUP(DropDownList!$B$47,CntyQryCensus!$A$357:$CM$399,BX$1) -> 5 | BY70: =VLOOKUP(DropDownList!$B$47,CntyQryCensus!$A$357:$CM$399,BY$1) -> 0 | BZ70: =VLOOKUP(DropDownList!$B$47,CntyQryCensus!$A$357:$CM$399,BZ$1) -> 0 | CA70: =VLOOKUP(DropDownList!$B$47,CntyQryCensus!$A$357:$CM$399,CA$1) -> 0 | CB70: =VLOOKUP(DropDownList!$B$47,CntyQryCensus!$A$357:$CM$399,CB$1) -> 0 | CC70: =VLOOKUP(DropDownList!$B$47,CntyQryCensus!$A$357:$CM$399,CC$1) -> 0 | CD70: =VLOOKUP(DropDownList!$B$47,CntyQryCensus!$A$357:$CM$399,CD$1) -> 0 | CE70: =VLOOKUP(DropDownList!$B$47,CntyQryCensus!$A$357:$CM$399,CE$1) -> 0 | CF70: =VLOOKUP(DropDownList!$B$47,CntyQryCensus!$A$357:$CM$399,CF$1) -> 0 | CG70: =VLOOKUP(DropDownList!$B$47,CntyQryCensus!$A$357:$CM$399,CG$1) -> 0 | CH70: =VLOOKUP(DropDownList!$B$47,CntyQryCensus!$A$357:$CM$399,CH$1) -> 0 | CI70: =VLOOKUP(DropDownList!$B$47,CntyQryCensus!$A$357:$CM$399,CI$1) -> 0 | CJ70: =VLOOKUP(DropDownList!$B$47,CntyQryCensus!$A$357:$CM$399,CJ$1) -> 0 | CK70: =VLOOKUP(DropDownList!$B$47,CntyQryCensus!$A$357:$CM$399,CK$1) -> 0 | CL70: =VLOOKUP(DropDownList!$B$47,CntyQryCensus!$A$357:$CM$399,CL$1) -> 0 | CM70: =VLOOKUP(DropDownList!$B$47,CntyQryCensus!$A$357:$CM$399,CM$1) -> 0
A73: Census 2000 SummaryFile3 Sample Data - SF3TownQry8HousingCostB
A74: NAME | B74: LOGRECNO | C74: COUNTY | D74: TotalPop | E74: H74SpecOwnerOccHU | F74: H74OOHU<10k | G74: H74OOHU10to15k | H74: H74OOHU15to20k | I74: H74OOHU20to25k | J74: H74OOHU25to30k | K74: H74OOHU30to35k | L74: H74OOHU35to40k | M74: H74OOHU40to50k | N74: H74OOHU50to60k | O74: H74OOHU60to70k | P74: H74OOHU70to80k | Q74: H74OOHU80to90k | R74: H74OOHU90to100k | S74: H74OOHU100to125k | T74: H74OOHU125to150k | U74: H74OOHU150to175k | V74: H74OOHU175to200k | W74: H74OOHU200to250k | X74: H74OOHU250to300k | Y74: H74OOHU300to400k | Z74: H74OOHU400to500k | AA74: H74OOHU500to750k | AB74: H74OOHU750to1000k | AC74: H74OOHU1000kmore | AD74: H76OOHUMedianVal | AE74: H84OwnerOccHU | AF74: H84AllOOHU<10k | AG74: H84AllOOHU10to15k | AH74: H84AllOOHU15to20k | AI74: H84AllOOHU20to25k | AJ74: H84AllOOHU25to30k | AK74: H84AllOOHU30to35k | AL74: H84AllOOHU35to40k | AM74: H84AllOOHU40to50k | AN74: H84AllOOHU50to60k | AO74: H84AllOOHU60to70k | AP74: H84AllOOHU70to80k | AQ74: H84AllOOHU80to90k | AR74: H84AllOOHU90to100k | AS74: H84AllOOHU100to125k | AT74: H84AllOOHU125to150k | AU74: H84AllOOHU150to175k | AV74: H84AllOOHU175to200k | AW74: H84AllOOHU200to250k | AX74: H84AllOOHU250to300k | AY74: H84AllOOHU300to400k | AZ74: H84AllOOHU400to500k | BA74: H84AllOOHU500to750k | BB74: H84AllOOHU750to1000k | BC74: H84AllOOHU1000kmore | BD74: H85OOHUMedVal | BE74: H90SOOHU | BF74: H90HUwMorgt | BG74: H90HUwMtgHC<200 | BH74: H90HUwMtgHC200to300 | BI74: H90HUwMtgHC300to400 | BJ74: H90HUwMtgHC400to500 | BK74: H90HUwMtgHC500to600 | BL74: H90HUwMtgHC600to700 | BM74: H90HUwMtgHC700to800 | BN74: H90HUwMtgHC800to900 | BO74: H90HUwMtgHC900to1000 | BP74: H90HUwMtgHC1000to1250 | BQ74: H90HUwMtgHC1250to1500 | BR74: H90HUwMtgHC1500to2000 | BS74: H90HUwMtgHC2000to2500 | BT74: H90HUwMtgHC2500to3000 | BU74: H90HUwMtgHC3000orMore | BV74: H90HUwOutMorgt | BW74: H90HUwOutMtgHC<100 | BX74: H90HUwOutMtgHC100to150 | BY74: H90HUwOutMtgHC150to200 | BZ74: H90HUwOutMtgHC200to250 | CA74: H90HUwOutMtgHC250to300 | CB74: H90HUwOutMtgHC300to350 | CC74: H90HUwOutMtgHC350to400 | CD74: H90HUwOutMtgHC400to500 | CE74: H90HUwOutMtgHC500to600 | CF74: H90HUwOutMtgHC600to700 | CG74: H90HUwOutMtgHC700to800 | CH74: H90HUwOutMtgHC800to900 | CI74: H90HUwOutMtgHC900to1000 | CJ74: H90HUwOutMtgHC1000orMore | CK74: H91MedianOCHUwMtg | CL74: H91MedianOCHUwOutMtg | CM74: H94SpecOOHU | CN74: H94HUwMortg | CO74: H94HUwMtgHC<10pct | CP74: H94HUwMtgHC10to15pct | CQ74: H94HUwMtgHC15to20pct | CR74: H94HUwMtgHC20to25pct | CS74: H94HUwMtgHC25to30pct | CT74: H94HUwMtgHC30to35pct | CU74: H94HUwMtgHC35to40pct | CV74: H94HUwMtgHC40to50pct | CW74: H94HUwMtgHC50pctOrMore | CX74: H94HUwMtgHCpctNotComp | CY74: H94HUWOutMortg | CZ74: H94HUWOutMortgHC<10pct | DA74: H94HUWOutMortgHC10to15pct | DB74: H94HUWOutMortgHC15to20pct | DC74: H94HUWOutMortgHC20to25pct | DD74: H94HUWOutMortgHC25to30pct | DE74: H94HUWOutMortgHC30to35pct | DF74: H94HUWOutMortgHC35to40pct | DG74: H94HUWOutMortgHC40to50pct | DH74: H94HUWOutMortgHC50pctOrMore | DI74: H94HUWOutMortgHCpctNotComp | DJ74: H97SpecifOwnOccHU | DK74: H97SOOHUInc<10k | DL74: H97SOOHUInc<10kHC<20pct | DM74: H97SOOHUInc<10kHC20to25pct | DN74: H97SOOHUInc<10kHC25to30pct | DO74: H97SOOHUInc<10kHC30to35pct | DP74: H97SOOHUInc<10kHC>35pct | DQ74: H97SOOHUInc<10kHCpctNotComput | DR74: H97SOOHUInc10to20k | DS74: H97SOOHUInc10to20kHC<20pct | DT74: H97SOOHUInc10to20kHC20to25pct | DU74: H97SOOHUInc10to20kHC25to30pct | DV74: H97SOOHUInc10to20kHC30to35pct | DW74: H97SOOHUInc10to20kHC>35pct | DX74: H97SOOHUInc10to20kHCpctNotComput | DY74: H97SOOHUInc20to35k | DZ74: H97SOOHUInc20to35kRC<20pct | EA74: H97SOOHUInc20to35kRC20to25pct | EB74: H97SOOHUInc20to35kRC25to30pct | EC74: H97SOOHUInc20to35kRC30to35pct | ED74: H97SOOHUInc20to35kRC>35pct | EE74: H97SOOHUInc20to35kRCpctNotComput | EF74: H97SOOHUInc35to50k | EG74: H97SOOHUInc35to50kRC<20pct | EH74: H97SOOHUInc35to50kRC20to25pct | EI74: H97SOOHUInc35to50kRC25to30pct | EJ74: H97SOOHUInc35to50kRC30to35pct | EK74: H97SOOHUInc35to50kRC>35pct | EL74: H97SOOHUInc35to50kRCpctNotCompute | EM74: H97SOOHUInc50to75k | EN74: H97SOOHUInc50to75kRC<20pct | EO74: H97SOOHUInc50to75kRC20to25pct | EP74: H97SOOHUInc50to75kRC25to30pct | EQ74: H97SOOHUInc50to75kRC30to35pct | ER74: H97SOOHUInc50to75kRC>35pct | ES74: H97SOOHUInc50to75kRCpctNotComput | ET74: H97SOOHUInc75to100k | EU74: H97SOOHUInc75to100kRC<20pct | EV74: H97SOOHUInc75to100kRC20to25pct | EW74: H97SOOHUInc75to100kRC25to30pct | EX74: H97SOOHUInc75to100kRC30to35pct | EY74: H97SOOHUInc75to100kRC>35pct | EZ74: H97SOOHUInc75to100kRCpctNotCompute | FA74: H97SOOHUInc100to150k | FB74: H97SOOHUInc100to150kRC<20pct | FC74: H97SOOHUInc100to150kRC20to25pct | FD74: H97SOOHUInc100to150kRC25to30pct | FE74: H97SOOHUInc100to150kRC30to35pct | FF74: H97SOOHUInc100to150kRC>35pct | FG74: H97SOOHUInc100to150kRCpctNotCompute | FH74: H97SOOHUInc>150k | FI74: H97SOOHUInc>150kRC<20pct | FJ74: H97SOOHUInc>150kRC20to25pct | FK74: H97SOOHUInc>150kRC25to30pct | FL74: H97SOOHUInc>150kRC30to35pct | FM74: H97SOOHUInc>150kRC>35pct | FN74: H97SOOHUInc>150kRCpctNotCompute
A75: =VLOOKUP(DropDownList!$B$47,CntyQryCensus!$A$408:$FN$450,A$1) -> Chester | B75: =VLOOKUP(DropDownList!$B$47,CntyQryCensus!$A$408:$FN$450,B$1) -> 0003071 | C75: =VLOOKUP(DropDownList!$B$47,CntyQryCensus!$A$408:$FN$450,C$1) -> 12100 | D75: =VLOOKUP(DropDownList!$B$47,CntyQryCensus!$A$408:$FN$450,D$1) -> 3792 | E75: =VLOOKUP(DropDownList!$B$47,CntyQryCensus!$A$408:$FN$450,E$1) -> 902 | F75: =VLOOKUP(DropDownList!$B$47,CntyQryCensus!$A$408:$FN$450,F$1) -> 4 | G75: =VLOOKUP(DropDownList!$B$47,CntyQryCensus!$A$408:$FN$450,G$1) -> 0 | H75: =VLOOKUP(DropDownList!$B$47,CntyQryCensus!$A$408:$FN$450,H$1) -> 0 | I75: =VLOOKUP(DropDownList!$B$47,CntyQryCensus!$A$408:$FN$450,I$1) -> 0 | J75: =VLOOKUP(DropDownList!$B$47,CntyQryCensus!$A$408:$FN$450,J$1) -> 0 | K75: =VLOOKUP(DropDownList!$B$47,CntyQryCensus!$A$408:$FN$450,K$1) -> 0 | L75: =VLOOKUP(DropDownList!$B$47,CntyQryCensus!$A$408:$FN$450,L$1) -> 0 | M75: =VLOOKUP(DropDownList!$B$47,CntyQryCensus!$A$408:$FN$450,M$1) -> 0 | N75: =VLOOKUP(DropDownList!$B$47,CntyQryCensus!$A$408:$FN$450,N$1) -> 0 | O75: =VLOOKUP(DropDownList!$B$47,CntyQryCensus!$A$408:$FN$450,O$1) -> 4 | P75: =VLOOKUP(DropDownList!$B$47,CntyQryCensus!$A$408:$FN$450,P$1) -> 13 | Q75: =VLOOKUP(DropDownList!$B$47,CntyQryCensus!$A$408:$FN$450,Q$1) -> 9 | R75: =VLOOKUP(DropDownList!$B$47,CntyQryCensus!$A$408:$FN$450,R$1) -> 25 | S75: =VLOOKUP(DropDownList!$B$47,CntyQryCensus!$A$408:$FN$450,S$1) -> 71 | T75: =VLOOKUP(DropDownList!$B$47,CntyQryCensus!$A$408:$FN$450,T$1) -> 199 | U75: =VLOOKUP(DropDownList!$B$47,CntyQryCensus!$A$408:$FN$450,U$1) -> 151 | V75: =VLOOKUP(DropDownList!$B$47,CntyQryCensus!$A$408:$FN$450,V$1) -> 126 | W75: =VLOOKUP(DropDownList!$B$47,CntyQryCensus!$A$408:$FN$450,W$1) -> 174 | X75: =VLOOKUP(DropDownList!$B$47,CntyQryCensus!$A$408:$FN$450,X$1) -> 72 | Y75: =VLOOKUP(DropDownList!$B$47,CntyQryCensus!$A$408:$FN$450,Y$1) -> 27 | Z75: =VLOOKUP(DropDownList!$B$47,CntyQryCensus!$A$408:$FN$450,Z$1) -> 23 | AA75: =VLOOKUP(DropDownList!$B$47,CntyQryCensus!$A$408:$FN$450,AA$1) -> 4 | AB75: =VLOOKUP(DropDownList!$B$47,CntyQryCensus!$A$408:$FN$450,AB$1) -> 0 | AC75: =VLOOKUP(DropDownList!$B$47,CntyQryCensus!$A$408:$FN$450,AC$1) -> 0 | AD75: =VLOOKUP(DropDownList!$B$47,CntyQryCensus!$A$408:$FN$450,AD$1) -> 170900 | AE75: =VLOOKUP(DropDownList!$B$47,CntyQryCensus!$A$408:$FN$450,AE$1) -> 1129 | AF75: =VLOOKUP(DropDownList!$B$47,CntyQryCensus!$A$408:$FN$450,AF$1) -> 4 | AG75: =VLOOKUP(DropDownList!$B$47,CntyQryCensus!$A$408:$FN$450,AG$1) -> 0 | AH75: =VLOOKUP(DropDownList!$B$47,CntyQryCensus!$A$408:$FN$450,AH$1) -> 4 | AI75: =VLOOKUP(DropDownList!$B$47,CntyQryCensus!$A$408:$FN$450,AI$1) -> 0 | AJ75: =VLOOKUP(DropDownList!$B$47,CntyQryCensus!$A$408:$FN$450,AJ$1) -> 4 | AK75: =VLOOKUP(DropDownList!$B$47,CntyQryCensus!$A$408:$FN$450,AK$1) -> 0 | AL75: =VLOOKUP(DropDownList!$B$47,CntyQryCensus!$A$408:$FN$450,AL$1) -> 0 | AM75: =VLOOKUP(DropDownList!$B$47,CntyQryCensus!$A$408:$FN$450,AM$1) -> 0 | AN75: =VLOOKUP(DropDownList!$B$47,CntyQryCensus!$A$408:$FN$450,AN$1) -> 0 | AO75: =VLOOKUP(DropDownList!$B$47,CntyQryCensus!$A$408:$FN$450,AO$1) -> 8 | AP75: =VLOOKUP(DropDownList!$B$47,CntyQryCensus!$A$408:$FN$450,AP$1) -> 13 | AQ75: =VLOOKUP(DropDownList!$B$47,CntyQryCensus!$A$408:$FN$450,AQ$1) -> 13 | AR75: =VLOOKUP(DropDownList!$B$47,CntyQryCensus!$A$408:$FN$450,AR$1) -> 25 | AS75: =VLOOKUP(DropDownList!$B$47,CntyQryCensus!$A$408:$FN$450,AS$1) -> 91 | AT75: =VLOOKUP(DropDownList!$B$47,CntyQryCensus!$A$408:$FN$450,AT$1) -> 215 | AU75: =VLOOKUP(DropDownList!$B$47,CntyQryCensus!$A$408:$FN$450,AU$1) -> 191 | AV75: =VLOOKUP(DropDownList!$B$47,CntyQryCensus!$A$408:$FN$450,AV$1) -> 149 | AW75: =VLOOKUP(DropDownList!$B$47,CntyQryCensus!$A$408:$FN$450,AW$1) -> 224 | AX75: =VLOOKUP(DropDownList!$B$47,CntyQryCensus!$A$408:$FN$450,AX$1) -> 88 | AY75: =VLOOKUP(DropDownList!$B$47,CntyQryCensus!$A$408:$FN$450,AY$1) -> 35 | AZ75: =VLOOKUP(DropDownList!$B$47,CntyQryCensus!$A$408:$FN$450,AZ$1) -> 45 | BA75: =VLOOKUP(DropDownList!$B$47,CntyQryCensus!$A$408:$FN$450,BA$1) -> 20 | BB75: =VLOOKUP(DropDownList!$B$47,CntyQryCensus!$A$408:$FN$450,BB$1) -> 0 | BC75: =VLOOKUP(DropDownList!$B$47,CntyQryCensus!$A$408:$FN$450,BC$1) -> 0 | BD75: =VLOOKUP(DropDownList!$B$47,CntyQryCensus!$A$408:$FN$450,BD$1) -> 174500 | BE75: =VLOOKUP(DropDownList!$B$47,CntyQryCensus!$A$408:$FN$450,BE$1) -> 902 | BF75: =VLOOKUP(DropDownList!$B$47,CntyQryCensus!$A$408:$FN$450,BF$1) -> 782 | BG75: =VLOOKUP(DropDownList!$B$47,CntyQryCensus!$A$408:$FN$450,BG$1) -> 0 | BH75: =VLOOKUP(DropDownList!$B$47,CntyQryCensus!$A$408:$FN$450,BH$1) -> 0 | BI75: =VLOOKUP(DropDownList!$B$47,CntyQryCensus!$A$408:$FN$450,BI$1) -> 0 | BJ75: =VLOOKUP(DropDownList!$B$47,CntyQryCensus!$A$408:$FN$450,BJ$1) -> 0 | BK75: =VLOOKUP(DropDownList!$B$47,CntyQryCensus!$A$408:$FN$450,BK$1) -> 4 | BL75: =VLOOKUP(DropDownList!$B$47,CntyQryCensus!$A$408:$FN$450,BL$1) -> 20 | BM75: =VLOOKUP(DropDownList!$B$47,CntyQryCensus!$A$408:$FN$450,BM$1) -> 31 | BN75: =VLOOKUP(DropDownList!$B$47,CntyQryCensus!$A$408:$FN$450,BN$1) -> 12 | BO75: =VLOOKUP(DropDownList!$B$47,CntyQryCensus!$A$408:$FN$450,BO$1) -> 68 | BP75: =VLOOKUP(DropDownList!$B$47,CntyQryCensus!$A$408:$FN$450,BP$1) -> 124 | BQ75: =VLOOKUP(DropDownList!$B$47,CntyQryCensus!$A$408:$FN$450,BQ$1) -> 158 | BR75: =VLOOKUP(DropDownList!$B$47,CntyQryCensus!$A$408:$FN$450,BR$1) -> 247 | BS75: =VLOOKUP(DropDownList!$B$47,CntyQryCensus!$A$408:$FN$450,BS$1) -> 76 | BT75: =VLOOKUP(DropDownList!$B$47,CntyQryCensus!$A$408:$FN$450,BT$1) -> 20 | BU75: =VLOOKUP(DropDownList!$B$47,CntyQryCensus!$A$408:$FN$450,BU$1) -> 22 | BV75: =VLOOKUP(DropDownList!$B$47,CntyQryCensus!$A$408:$FN$450,BV$1) -> 120 | BW75: =VLOOKUP(DropDownList!$B$47,CntyQryCensus!$A$408:$FN$450,BW$1) -> 0 | BX75: =VLOOKUP(DropDownList!$B$47,CntyQryCensus!$A$408:$FN$450,BX$1) -> 0 | BY75: =VLOOKUP(DropDownList!$B$47,CntyQryCensus!$A$408:$FN$450,BY$1) -> 4 | BZ75: =VLOOKUP(DropDownList!$B$47,CntyQryCensus!$A$408:$FN$450,BZ$1) -> 0 | CA75: =VLOOKUP(DropDownList!$B$47,CntyQryCensus!$A$408:$FN$450,CA$1) -> 8 | CB75: =VLOOKUP(DropDownList!$B$47,CntyQryCensus!$A$408:$FN$450,CB$1) -> 5 | CC75: =VLOOKUP(DropDownList!$B$47,CntyQryCensus!$A$408:$FN$450,CC$1) -> 8 | CD75: =VLOOKUP(DropDownList!$B$47,CntyQryCensus!$A$408:$FN$450,CD$1) -> 34 | CE75: =VLOOKUP(DropDownList!$B$47,CntyQryCensus!$A$408:$FN$450,CE$1) -> 26 | CF75: =VLOOKUP(DropDownList!$B$47,CntyQryCensus!$A$408:$FN$450,CF$1) -> 30 | CG75: =VLOOKUP(DropDownList!$B$47,CntyQryCensus!$A$408:$FN$450,CG$1) -> 5 | CH75: =VLOOKUP(DropDownList!$B$47,CntyQryCensus!$A$408:$FN$450,CH$1) -> 0 | CI75: =VLOOKUP(DropDownList!$B$47,CntyQryCensus!$A$408:$FN$450,CI$1) -> 0 | CJ75: =VLOOKUP(DropDownList!$B$47,CntyQryCensus!$A$408:$FN$450,CJ$1) -> 0 | CK75: =VLOOKUP(DropDownList!$B$47,CntyQryCensus!$A$408:$FN$450,CK$1) -> 1459 | CL75: =VLOOKUP(DropDownList!$B$47,CntyQryCensus!$A$408:$FN$450,CL$1) -> 504 | CM75: =VLOOKUP(DropDownList!$B$47,CntyQryCensus!$A$408:$FN$450,CM$1) -> 902 | CN75: =VLOOKUP(DropDownList!$B$47,CntyQryCensus!$A$408:$FN$450,CN$1) -> 782 | CO75: =VLOOKUP(DropDownList!$B$47,CntyQryCensus!$A$408:$FN$450,CO$1) -> 14 | CP75: =VLOOKUP(DropDownList!$B$47,CntyQryCensus!$A$408:$FN$450,CP$1) -> 101 | CQ75: =VLOOKUP(DropDownList!$B$47,CntyQryCensus!$A$408:$FN$450,CQ$1) -> 140 | CR75: =VLOOKUP(DropDownList!$B$47,CntyQryCensus!$A$408:$FN$450,CR$1) -> 166 | CS75: =VLOOKUP(DropDownList!$B$47,CntyQryCensus!$A$408:$FN$450,CS$1) -> 104 | CT75: =VLOOKUP(DropDownList!$B$47,CntyQryCensus!$A$408:$FN$450,CT$1) -> 65 | CU75: =VLOOKUP(DropDownList!$B$47,CntyQryCensus!$A$408:$FN$450,CU$1) -> 45 | CV75: =VLOOKUP(DropDownList!$B$47,CntyQryCensus!$A$408:$FN$450,CV$1) -> 24 | CW75: =VLOOKUP(DropDownList!$B$47,CntyQryCensus!$A$408:$FN$450,CW$1) -> 116 | CX75: =VLOOKUP(DropDownList!$B$47,CntyQryCensus!$A$408:$FN$450,CX$1) -> 7 | CY75: =VLOOKUP(DropDownList!$B$47,CntyQryCensus!$A$408:$FN$450,CY$1) -> 120 | CZ75: =VLOOKUP(DropDownList!$B$47,CntyQryCensus!$A$408:$FN$450,CZ$1) -> 52 | DA75: =VLOOKUP(DropDownList!$B$47,CntyQryCensus!$A$408:$FN$450,DA$1) -> 8 | DB75: =VLOOKUP(DropDownList!$B$47,CntyQryCensus!$A$408:$FN$450,DB$1) -> 23 | DC75: =VLOOKUP(DropDownList!$B$47,CntyQryCensus!$A$408:$FN$450,DC$1) -> 8 | DD75: =VLOOKUP(DropDownList!$B$47,CntyQryCensus!$A$408:$FN$450,DD$1) -> 4 | DE75: =VLOOKUP(DropDownList!$B$47,CntyQryCensus!$A$408:$FN$450,DE$1) -> 9 | DF75: =VLOOKUP(DropDownList!$B$47,CntyQryCensus!$A$408:$FN$450,DF$1) -> 0 | DG75: =VLOOKUP(DropDownList!$B$47,CntyQryCensus!$A$408:$FN$450,DG$1) -> 4 | DH75: =VLOOKUP(DropDownList!$B$47,CntyQryCensus!$A$408:$FN$450,DH$1) -> 12 | DI75: =VLOOKUP(DropDownList!$B$47,CntyQryCensus!$A$408:$FN$450,DI$1) -> 0 | DJ75: =VLOOKUP(DropDownList!$B$47,CntyQryCensus!$A$408:$FN$450,DJ$1) -> 902 | DK75: =VLOOKUP(DropDownList!$B$47,CntyQryCensus!$A$408:$FN$450,DK$1) -> 26 | DL75: =VLOOKUP(DropDownList!$B$47,CntyQryCensus!$A$408:$FN$450,DL$1) -> 0 | DM75: =VLOOKUP(DropDownList!$B$47,CntyQryCensus!$A$408:$FN$450,DM$1) -> 0 | DN75: =VLOOKUP(DropDownList!$B$47,CntyQryCensus!$A$408:$FN$450,DN$1) -> 0 | DO75: =VLOOKUP(DropDownList!$B$47,CntyQryCensus!$A$408:$FN$450,DO$1) -> 0 | DP75: =VLOOKUP(DropDownList!$B$47,CntyQryCensus!$A$408:$FN$450,DP$1) -> 19 | DQ75: =VLOOKUP(DropDownList!$B$47,CntyQryCensus!$A$408:$FN$450,DQ$1) -> 7 | DR75: =VLOOKUP(DropDownList!$B$47,CntyQryCensus!$A$408:$FN$450,DR$1) -> 40 | DS75: =VLOOKUP(DropDownList!$B$47,CntyQryCensus!$A$408:$FN$450,DS$1) -> 0 | DT75: =VLOOKUP(DropDownList!$B$47,CntyQryCensus!$A$408:$FN$450,DT$1) -> 0 | DU75: =VLOOKUP(DropDownList!$B$47,CntyQryCensus!$A$408:$FN$450,DU$1) -> 0 | DV75: =VLOOKUP(DropDownList!$B$47,CntyQryCensus!$A$408:$FN$450,DV$1) -> 9 | DW75: =VLOOKUP(DropDownList!$B$47,CntyQryCensus!$A$408:$FN$450,DW$1) -> 31 | DX75: =VLOOKUP(DropDownList!$B$47,CntyQryCensus!$A$408:$FN$450,DX$1) -> 0 | DY75: =VLOOKUP(DropDownList!$B$47,CntyQryCensus!$A$408:$FN$450,DY$1) -> 86 | DZ75: =VLOOKUP(DropDownList!$B$47,CntyQryCensus!$A$408:$FN$450,DZ$1) -> 9 | EA75: =VLOOKUP(DropDownList!$B$47,CntyQryCensus!$A$408:$FN$450,EA$1) -> 8 | EB75: =VLOOKUP(DropDownList!$B$47,CntyQryCensus!$A$408:$FN$450,EB$1) -> 4 | EC75: =VLOOKUP(DropDownList!$B$47,CntyQryCensus!$A$408:$FN$450,EC$1) -> 4 | ED75: =VLOOKUP(DropDownList!$B$47,CntyQryCensus!$A$408:$FN$450,ED$1) -> 61 | EE75: =VLOOKUP(DropDownList!$B$47,CntyQryCensus!$A$408:$FN$450,EE$1) -> 0 | EF75: =VLOOKUP(DropDownList!$B$47,CntyQryCensus!$A$408:$FN$450,EF$1) -> 109 | EG75: =VLOOKUP(DropDownList!$B$47,CntyQryCensus!$A$408:$FN$450,EG$1) -> 21 | EH75: =VLOOKUP(DropDownList!$B$47,CntyQryCensus!$A$408:$FN$450,EH$1) -> 13 | EI75: =VLOOKUP(DropDownList!$B$47,CntyQryCensus!$A$408:$FN$450,EI$1) -> 25 | EJ75: =VLOOKUP(DropDownList!$B$47,CntyQryCensus!$A$408:$FN$450,EJ$1) -> 12 | EK75: =VLOOKUP(DropDownList!$B$47,CntyQryCensus!$A$408:$FN$450,EK$1) -> 38 | EL75: =VLOOKUP(DropDownList!$B$47,CntyQryCensus!$A$408:$FN$450,EL$1) -> 0 | EM75: =VLOOKUP(DropDownList!$B$47,CntyQryCensus!$A$408:$FN$450,EM$1) -> 211 | EN75: =VLOOKUP(DropDownList!$B$47,CntyQryCensus!$A$408:$FN$450,EN$1) -> 52 | EO75: =VLOOKUP(DropDownList!$B$47,CntyQryCensus!$A$408:$FN$450,EO$1) -> 36 | EP75: =VLOOKUP(DropDownList!$B$47,CntyQryCensus!$A$408:$FN$450,EP$1) -> 46 | EQ75: =VLOOKUP(DropDownList!$B$47,CntyQryCensus!$A$408:$FN$450,EQ$1) -> 29 | ER75: =VLOOKUP(DropDownList!$B$47,CntyQryCensus!$A$408:$FN$450,ER$1) -> 48 | ES75: =VLOOKUP(DropDownList!$B$47,CntyQryCensus!$A$408:$FN$450,ES$1) -> 0 | ET75: =VLOOKUP(DropDownList!$B$47,CntyQryCensus!$A$408:$FN$450,ET$1) -> 201 | EU75: =VLOOKUP(DropDownList!$B$47,CntyQryCensus!$A$408:$FN$450,EU$1) -> 87 | EV75: =VLOOKUP(DropDownList!$B$47,CntyQryCensus!$A$408:$FN$450,EV$1) -> 76 | EW75: =VLOOKUP(DropDownList!$B$47,CntyQryCensus!$A$408:$FN$450,EW$1) -> 25 | EX75: =VLOOKUP(DropDownList!$B$47,CntyQryCensus!$A$408:$FN$450,EX$1) -> 9 | EY75: =VLOOKUP(DropDownList!$B$47,CntyQryCensus!$A$408:$FN$450,EY$1) -> 4 | EZ75: =VLOOKUP(DropDownList!$B$47,CntyQryCensus!$A$408:$FN$450,EZ$1) -> 0 | FA75: =VLOOKUP(DropDownList!$B$47,CntyQryCensus!$A$408:$FN$450,FA$1) -> 178 | FB75: =VLOOKUP(DropDownList!$B$47,CntyQryCensus!$A$408:$FN$450,FB$1) -> 125 | FC75: =VLOOKUP(DropDownList!$B$47,CntyQryCensus!$A$408:$FN$450,FC$1) -> 34 | FD75: =VLOOKUP(DropDownList!$B$47,CntyQryCensus!$A$408:$FN$450,FD$1) -> 8 | FE75: =VLOOKUP(DropDownList!$B$47,CntyQryCensus!$A$408:$FN$450,FE$1) -> 11 | FF75: =VLOOKUP(DropDownList!$B$47,CntyQryCensus!$A$408:$FN$450,FF$1) -> 0 | FG75: =VLOOKUP(DropDownList!$B$47,CntyQryCensus!$A$408:$FN$450,FG$1) -> 0 | FH75: =VLOOKUP(DropDownList!$B$47,CntyQryCensus!$A$408:$FN$450,FH$1) -> 51 | FI75: =VLOOKUP(DropDownList!$B$47,CntyQryCensus!$A$408:$FN$450,FI$1) -> 44 | FJ75: =VLOOKUP(DropDownList!$B$47,CntyQryCensus!$A$408:$FN$450,FJ$1) -> 7 | FK75: =VLOOKUP(DropDownList!$B$47,CntyQryCensus!$A$408:$FN$450,FK$1) -> 0 | FL75: =VLOOKUP(DropDownList!$B$47,CntyQryCensus!$A$408:$FN$450,FL$1) -> 0 | FM75: =VLOOKUP(DropDownList!$B$47,CntyQryCensus!$A$408:$FN$450,FM$1) -> 0 | FN75: =VLOOKUP(DropDownList!$B$47,CntyQryCensus!$A$408:$FN$450,FN$1) -> 0
A78: Census 2000 SummaryFile3 Sample Data - SF3TownQry9HHIncomeByTenure
A79: NAME | B79: LOGRECNO | C79: COUNTY | D79: TotalPop | E79: HCT11OccHU | F79: HCT11OwnOccHU | G79: HCT11OOHUInc<5K | H79: HCT11OOHUInc5to10K | I79: HCT11OOHUInc10to15K | J79: HCT11OOHUInc15to20K | K79: HCT11OOHUInc20to25K | L79: HCT11OOHUInc25to35K | M79: HCT11OOHUInc35to50K | N79: HCT11OOHUInc50to75K | O79: HCT11OOHUInc75to100K | P79: HCT11OOHUInc100to150K | Q79: HCT11OOHUInc>150K | R79: HCT11RentOccHU | S79: HCT11ROHUInc<5K | T79: HCT11ROHUInc5to10K | U79: HCT11ROHUInc10to15K | V79: HCT11ROHUInc15to20K | W79: HCT11ROHUInc20to25K | X79: HCT11ROHUInc25to35K | Y79: HCT11ROHUInc35to50K | Z79: HCT11ROHUInc50to75K | AA79: HCT11ROHUInc75to100K | AB79: HCT11ROHUInc100to150K | AC79: HCT11ROHUInc>150K | AD79: HCT12MedHHInc | AE79: HCT12MedOwnOccHHInc | AF79: HCT12MedRentOccHHInc | AG79: Summary Level
A80: =VLOOKUP(DropDownList!$B$47,CntyQryCensus!$A$459:$AG$501,A$1) -> Chester | B80: =VLOOKUP(DropDownList!$B$47,CntyQryCensus!$A$459:$AG$501,B$1) -> 0003071 | C80: =VLOOKUP(DropDownList!$B$47,CntyQryCensus!$A$459:$AG$501,C$1) -> 12100 | D80: =VLOOKUP(DropDownList!$B$47,CntyQryCensus!$A$459:$AG$501,D$1) -> Chester town | E80: =VLOOKUP(DropDownList!$B$47,CntyQryCensus!$A$459:$AG$501,E$1) -> 015 | F80: =VLOOKUP(DropDownList!$B$47,CntyQryCensus!$A$459:$AG$501,F$1) -> 3792 | G80: =VLOOKUP(DropDownList!$B$47,CntyQryCensus!$A$459:$AG$501,G$1) -> 1214 | H80: =VLOOKUP(DropDownList!$B$47,CntyQryCensus!$A$459:$AG$501,H$1) -> 1129 | I80: =VLOOKUP(DropDownList!$B$47,CntyQryCensus!$A$459:$AG$501,I$1) -> 27 | J80: =VLOOKUP(DropDownList!$B$47,CntyQryCensus!$A$459:$AG$501,J$1) -> 11 | K80: =VLOOKUP(DropDownList!$B$47,CntyQryCensus!$A$459:$AG$501,K$1) -> 28 | L80: =VLOOKUP(DropDownList!$B$47,CntyQryCensus!$A$459:$AG$501,L$1) -> 20 | M80: =VLOOKUP(DropDownList!$B$47,CntyQryCensus!$A$459:$AG$501,M$1) -> 37 | N80: =VLOOKUP(DropDownList!$B$47,CntyQryCensus!$A$459:$AG$501,N$1) -> 78 | O80: =VLOOKUP(DropDownList!$B$47,CntyQryCensus!$A$459:$AG$501,O$1) -> 125 | P80: =VLOOKUP(DropDownList!$B$47,CntyQryCensus!$A$459:$AG$501,P$1) -> 252 | Q80: =VLOOKUP(DropDownList!$B$47,CntyQryCensus!$A$459:$AG$501,Q$1) -> 260 | R80: =VLOOKUP(DropDownList!$B$47,CntyQryCensus!$A$459:$AG$501,R$1) -> 219 | S80: =VLOOKUP(DropDownList!$B$47,CntyQryCensus!$A$459:$AG$501,S$1) -> 72 | T80: =VLOOKUP(DropDownList!$B$47,CntyQryCensus!$A$459:$AG$501,T$1) -> 85 | U80: =VLOOKUP(DropDownList!$B$47,CntyQryCensus!$A$459:$AG$501,U$1) -> 5 | V80: =VLOOKUP(DropDownList!$B$47,CntyQryCensus!$A$459:$AG$501,V$1) -> 5 | W80: =VLOOKUP(DropDownList!$B$47,CntyQryCensus!$A$459:$AG$501,W$1) -> 9 | X80: =VLOOKUP(DropDownList!$B$47,CntyQryCensus!$A$459:$AG$501,X$1) -> 5 | Y80: =VLOOKUP(DropDownList!$B$47,CntyQryCensus!$A$459:$AG$501,Y$1) -> 10 | Z80: =VLOOKUP(DropDownList!$B$47,CntyQryCensus!$A$459:$AG$501,Z$1) -> 14 | AA80: =VLOOKUP(DropDownList!$B$47,CntyQryCensus!$A$459:$AG$501,AA$1) -> 21 | AB80: =VLOOKUP(DropDownList!$B$47,CntyQryCensus!$A$459:$AG$501,AB$1) -> 10 | AC80: =VLOOKUP(DropDownList!$B$47,CntyQryCensus!$A$459:$AG$501,AC$1) -> 6 | AD80: =VLOOKUP(DropDownList!$B$47,CntyQryCensus!$A$459:$AG$501,AD$1) -> 0 | AE80: =VLOOKUP(DropDownList!$B$47,CntyQryCensus!$A$459:$AG$501,AE$1) -> 0 | AF80: =VLOOKUP(DropDownList!$B$47,CntyQryCensus!$A$459:$AG$501,AF$1) -> 67727 | AG80: =VLOOKUP(DropDownList!$B$47,CntyQryCensus!$A$459:$AG$501,AG$1) -> 71375
A86: =A80 -> Chester
A94: Census 2000 SummaryFile3 Sample Data - SF3TownQry10Disabil
A95: NAME | B95: LOGRECNO | C95: COUNTY | D95: TotalPop | E95: PCT026001-NonInstPop5yrs+ | F95: PCT026002-MaleNonInstPop5yrs+ | G95: PCT026003 | H95: PCT026004 | I95: PCT026005 | J95: PCT026006 | K95: PCT026007 | L95: PCT026008 | M95: PCT026009 | N95: PCT026010 | O95: PCT026011 | P95: PCT026012 | Q95: PCT026013 | R95: PCT026014 | S95: PCT026015 | T95: PCT026016 | U95: PCT026017 | V95: PCT026018 | W95: PCT026019 | X95: PCT026020 | Y95: PCT026021 | Z95: PCT026022 | AA95: PCT026023 | AB95: PCT026024 | AC95: PCT026025 | AD95: PCT026026 | AE95: PCT026027 | AF95: PCT026028 | AG95: PCT026029 | AH95: PCT026030 | AI95: PCT026031 | AJ95: PCT026032 | AK95: PCT026033 | AL95: PCT026034 | AM95: PCT026035 | AN95: PCT026036 | AO95: PCT026037 | AP95: PCT026038 | AQ95: PCT026039 | AR95: PCT026040 | AS95: PCT026041 | AT95: PCT026042 | AU95: PCT026043 | AV95: PCT026044 | AW95: PCT026045 | AX95: PCT026046 | AY95: PCT026047 | AZ95: PCT026048 | BA95: PCT026049 | BB95: PCT026050 | BC95: PCT026051 | BD95: PCT026052 | BE95: PCT026053 | BF95: PCT026054 | BG95: PCT026055 | BH95: PCT026056 | BI95: PCT026057 | BJ95: PCT026058 | BK95: PCT026059 | BL95: PCT026060 | BM95: PCT026061 | BN95: PCT026062 | BO95: PCT026063 | BP95: PCT026064 | BQ95: PCT026065 | BR95: PCT026066 | BS95: PCT026067 | BT95: PCT026068 | BU95: PCT026069 | BV95: PCT026070 | BW95: PCT026071 | BX95: PCT026072 | BY95: PCT026073 | BZ95: PCT026074 | CA95: PCT026075 | CB95: PCT026076 | CC95: PCT026077 | CD95: PCT026078 | CE95: PCT026079 | CF95: PCT026080 | CG95: PCT026081 | CH95: PCT026082 | CI95: PCT026083 | CJ95: PCT026084 | CK95: PCT026085 | CL95: PCT026086 | CM95: PCT026087 | CN95: PCT026088 | CO95: PCT026089 | CP95: PCT026090 | CQ95: PCT026091 | CR95: PCT026092 | CS95: PCT026093 | CT95: PCT026094 | CU95: PCT026095 | CV95: PCT026096 | CW95: PCT026097 | CX95: PCT026098 | CY95: PCT026099 | CZ95: PCT026100 | DA95: PCT026101
A96: =VLOOKUP(DropDownList!$B$47,CntyQryCensus!$A$54:$DA$90,A$1) -> Chester | B96: =VLOOKUP(DropDownList!$B$47,CntyQryCensus!$A$510:$DA$552,B$1) -> 0003071 | C96: =VLOOKUP(DropDownList!$B$47,CntyQryCensus!$A$510:$DA$552,C$1) -> 12100 | D96: =VLOOKUP(DropDownList!$B$47,CntyQryCensus!$A$510:$DA$552,D$1) -> 3792 | E96: =VLOOKUP(DropDownList!$B$47,CntyQryCensus!$A$510:$DA$552,E$1) -> 3478 | F96: =VLOOKUP(DropDownList!$B$47,CntyQryCensus!$A$510:$DA$552,F$1) -> 1726 | G96: =VLOOKUP(DropDownList!$B$47,CntyQryCensus!$A$510:$DA$552,G$1) -> 380 | H96: =VLOOKUP(DropDownList!$B$47,CntyQryCensus!$A$510:$DA$552,H$1) -> 32 | I96: =VLOOKUP(DropDownList!$B$47,CntyQryCensus!$A$510:$DA$552,I$1) -> 13 | J96: =VLOOKUP(DropDownList!$B$47,CntyQryCensus!$A$510:$DA$552,J$1) -> 0 | K96: =VLOOKUP(DropDownList!$B$47,CntyQryCensus!$A$510:$DA$552,K$1) -> 19 | L96: =VLOOKUP(DropDownList!$B$47,CntyQryCensus!$A$510:$DA$552,L$1) -> 0 | M96: =VLOOKUP(DropDownList!$B$47,CntyQryCensus!$A$510:$DA$552,M$1) -> 5 | N96: =VLOOKUP(DropDownList!$B$47,CntyQryCensus!$A$510:$DA$552,N$1) -> 0 | O96: =VLOOKUP(DropDownList!$B$47,CntyQryCensus!$A$510:$DA$552,O$1) -> 5 | P96: =VLOOKUP(DropDownList!$B$47,CntyQryCensus!$A$510:$DA$552,P$1) -> 343 | Q96: =VLOOKUP(DropDownList!$B$47,CntyQryCensus!$A$510:$DA$552,Q$1) -> 131 | R96: =VLOOKUP(DropDownList!$B$47,CntyQryCensus!$A$510:$DA$552,R$1) -> 28 | S96: =VLOOKUP(DropDownList!$B$47,CntyQryCensus!$A$510:$DA$552,S$1) -> 0 | T96: =VLOOKUP(DropDownList!$B$47,CntyQryCensus!$A$510:$DA$552,T$1) -> 0 | U96: =VLOOKUP(DropDownList!$B$47,CntyQryCensus!$A$510:$DA$552,U$1) -> 13 | V96: =VLOOKUP(DropDownList!$B$47,CntyQryCensus!$A$510:$DA$552,V$1) -> 0 | W96: =VLOOKUP(DropDownList!$B$47,CntyQryCensus!$A$510:$DA$552,W$1) -> 0 | X96: =VLOOKUP(DropDownList!$B$47,CntyQryCensus!$A$510:$DA$552,X$1) -> 15 | Y96: =VLOOKUP(DropDownList!$B$47,CntyQryCensus!$A$510:$DA$552,Y$1) -> 0 | Z96: =VLOOKUP(DropDownList!$B$47,CntyQryCensus!$A$510:$DA$552,Z$1) -> 0 | AA96: =VLOOKUP(DropDownList!$B$47,CntyQryCensus!$A$510:$DA$552,AA$1) -> 0 | AB96: =VLOOKUP(DropDownList!$B$47,CntyQryCensus!$A$510:$DA$552,AB$1) -> 0 | AC96: =VLOOKUP(DropDownList!$B$47,CntyQryCensus!$A$510:$DA$552,AC$1) -> 0 | AD96: =VLOOKUP(DropDownList!$B$47,CntyQryCensus!$A$510:$DA$552,AD$1) -> 103 | AE96: =VLOOKUP(DropDownList!$B$47,CntyQryCensus!$A$510:$DA$552,AE$1) -> 1113 | AF96: =VLOOKUP(DropDownList!$B$47,CntyQryCensus!$A$510:$DA$552,AF$1) -> 158 | AG96: =VLOOKUP(DropDownList!$B$47,CntyQryCensus!$A$510:$DA$552,AG$1) -> 9 | AH96: =VLOOKUP(DropDownList!$B$47,CntyQryCensus!$A$510:$DA$552,AH$1) -> 30 | AI96: =VLOOKUP(DropDownList!$B$47,CntyQryCensus!$A$510:$DA$552,AI$1) -> 14 | AJ96: =VLOOKUP(DropDownList!$B$47,CntyQryCensus!$A$510:$DA$552,AJ$1) -> 0 | AK96: =VLOOKUP(DropDownList!$B$47,CntyQryCensus!$A$510:$DA$552,AK$1) -> 0 | AL96: =VLOOKUP(DropDownList!$B$47,CntyQryCensus!$A$510:$DA$552,AL$1) -> 105 | AM96: =VLOOKUP(DropDownList!$B$47,CntyQryCensus!$A$510:$DA$552,AM$1) -> 52 | AN96: =VLOOKUP(DropDownList!$B$47,CntyQryCensus!$A$510:$DA$552,AN$1) -> 18 | AO96: =VLOOKUP(DropDownList!$B$47,CntyQryCensus!$A$510:$DA$552,AO$1) -> 34 | AP96: =VLOOKUP(DropDownList!$B$47,CntyQryCensus!$A$510:$DA$552,AP$1) -> 8 | AQ96: =VLOOKUP(DropDownList!$B$47,CntyQryCensus!$A$510:$DA$552,AQ$1) -> 26 | AR96: =VLOOKUP(DropDownList!$B$47,CntyQryCensus!$A$510:$DA$552,AR$1) -> 903 | AS96: =VLOOKUP(DropDownList!$B$47,CntyQryCensus!$A$510:$DA$552,AS$1) -> 102 | AT96: =VLOOKUP(DropDownList!$B$47,CntyQryCensus!$A$510:$DA$552,AT$1) -> 30 | AU96: =VLOOKUP(DropDownList!$B$47,CntyQryCensus!$A$510:$DA$552,AU$1) -> 12 | AV96: =VLOOKUP(DropDownList!$B$47,CntyQryCensus!$A$510:$DA$552,AV$1) -> 18 | AW96: =VLOOKUP(DropDownList!$B$47,CntyQryCensus!$A$510:$DA$552,AW$1) -> 0 | AX96: =VLOOKUP(DropDownList!$B$47,CntyQryCensus!$A$510:$DA$552,AX$1) -> 0 | AY96: =VLOOKUP(DropDownList!$B$47,CntyQryCensus!$A$510:$DA$552,AY$1) -> 0 | AZ96: =VLOOKUP(DropDownList!$B$47,CntyQryCensus!$A$510:$DA$552,AZ$1) -> 12 | BA96: =VLOOKUP(DropDownList!$B$47,CntyQryCensus!$A$510:$DA$552,BA$1) -> 0 | BB96: =VLOOKUP(DropDownList!$B$47,CntyQryCensus!$A$510:$DA$552,BB$1) -> 12 | BC96: =VLOOKUP(DropDownList!$B$47,CntyQryCensus!$A$510:$DA$552,BC$1) -> 60 | BD96: =VLOOKUP(DropDownList!$B$47,CntyQryCensus!$A$510:$DA$552,BD$1) -> 1752 | BE96: =VLOOKUP(DropDownList!$B$47,CntyQryCensus!$A$510:$DA$552,BE$1) -> 347 | BF96: =VLOOKUP(DropDownList!$B$47,CntyQryCensus!$A$510:$DA$552,BF$1) -> 20 | BG96: =VLOOKUP(DropDownList!$B$47,CntyQryCensus!$A$510:$DA$552,BG$1) -> 0 | BH96: =VLOOKUP(DropDownList!$B$47,CntyQryCensus!$A$510:$DA$552,BH$1) -> 0 | BI96: =VLOOKUP(DropDownList!$B$47,CntyQryCensus!$A$510:$DA$552,BI$1) -> 20 | BJ96: =VLOOKUP(DropDownList!$B$47,CntyQryCensus!$A$510:$DA$552,BJ$1) -> 0 | BK96: =VLOOKUP(DropDownList!$B$47,CntyQryCensus!$A$510:$DA$552,BK$1) -> 0 | BL96: =VLOOKUP(DropDownList!$B$47,CntyQryCensus!$A$510:$DA$552,BL$1) -> 0 | BM96: =VLOOKUP(DropDownList!$B$47,CntyQryCensus!$A$510:$DA$552,BM$1) -> 0 | BN96: =VLOOKUP(DropDownList!$B$47,CntyQryCensus!$A$510:$DA$552,BN$1) -> 327 | BO96: =VLOOKUP(DropDownList!$B$47,CntyQryCensus!$A$510:$DA$552,BO$1) -> 127 | BP96: =VLOOKUP(DropDownList!$B$47,CntyQryCensus!$A$510:$DA$552,BP$1) -> 10 | BQ96: =VLOOKUP(DropDownList!$B$47,CntyQryCensus!$A$510:$DA$552,BQ$1) -> 0 | BR96: =VLOOKUP(DropDownList!$B$47,CntyQryCensus!$A$510:$DA$552,BR$1) -> 0 | BS96: =VLOOKUP(DropDownList!$B$47,CntyQryCensus!$A$510:$DA$552,BS$1) -> 6 | BT96: =VLOOKUP(DropDownList!$B$47,CntyQryCensus!$A$510:$DA$552,BT$1) -> 0 | BU96: =VLOOKUP(DropDownList!$B$47,CntyQryCensus!$A$510:$DA$552,BU$1) -> 0 | BV96: =VLOOKUP(DropDownList!$B$47,CntyQryCensus!$A$510:$DA$552,BV$1) -> 4 | BW96: =VLOOKUP(DropDownList!$B$47,CntyQryCensus!$A$510:$DA$552,BW$1) -> 0 | BX96: =VLOOKUP(DropDownList!$B$47,CntyQryCensus!$A$510:$DA$552,BX$1) -> 0 | BY96: =VLOOKUP(DropDownList!$B$47,CntyQryCensus!$A$510:$DA$552,BY$1) -> 0 | BZ96: =VLOOKUP(DropDownList!$B$47,CntyQryCensus!$A$510:$DA$552,BZ$1) -> 0 | CA96: =VLOOKUP(DropDownList!$B$47,CntyQryCensus!$A$510:$DA$552,CA$1) -> 0 | CB96: =VLOOKUP(DropDownList!$B$47,CntyQryCensus!$A$510:$DA$552,CB$1) -> 117 | CC96: =VLOOKUP(DropDownList!$B$47,CntyQryCensus!$A$510:$DA$552,CC$1) -> 1151 | CD96: =VLOOKUP(DropDownList!$B$47,CntyQryCensus!$A$510:$DA$552,CD$1) -> 99 | CE96: =VLOOKUP(DropDownList!$B$47,CntyQryCensus!$A$510:$DA$552,CE$1) -> 0 | CF96: =VLOOKUP(DropDownList!$B$47,CntyQryCensus!$A$510:$DA$552,CF$1) -> 18 | CG96: =VLOOKUP(DropDownList!$B$47,CntyQryCensus!$A$510:$DA$552,CG$1) -> 6 | CH96: =VLOOKUP(DropDownList!$B$47,CntyQryCensus!$A$510:$DA$552,CH$1) -> 0 | CI96: =VLOOKUP(DropDownList!$B$47,CntyQryCensus!$A$510:$DA$552,CI$1) -> 0 | CJ96: =VLOOKUP(DropDownList!$B$47,CntyQryCensus!$A$510:$DA$552,CJ$1) -> 75 | CK96: =VLOOKUP(DropDownList!$B$47,CntyQryCensus!$A$510:$DA$552,CK$1) -> 40 | CL96: =VLOOKUP(DropDownList!$B$47,CntyQryCensus!$A$510:$DA$552,CL$1) -> 9 | CM96: =VLOOKUP(DropDownList!$B$47,CntyQryCensus!$A$510:$DA$552,CM$1) -> 31 | CN96: =VLOOKUP(DropDownList!$B$47,CntyQryCensus!$A$510:$DA$552,CN$1) -> 4 | CO96: =VLOOKUP(DropDownList!$B$47,CntyQryCensus!$A$510:$DA$552,CO$1) -> 27 | CP96: =VLOOKUP(DropDownList!$B$47,CntyQryCensus!$A$510:$DA$552,CP$1) -> 1012 | CQ96: =VLOOKUP(DropDownList!$B$47,CntyQryCensus!$A$510:$DA$552,CQ$1) -> 127 | CR96: =VLOOKUP(DropDownList!$B$47,CntyQryCensus!$A$510:$DA$552,CR$1) -> 12 | CS96: =VLOOKUP(DropDownList!$B$47,CntyQryCensus!$A$510:$DA$552,CS$1) -> 0 | CT96: =VLOOKUP(DropDownList!$B$47,CntyQryCensus!$A$510:$DA$552,CT$1) -> 8 | CU96: =VLOOKUP(DropDownList!$B$47,CntyQryCensus!$A$510:$DA$552,CU$1) -> 0 | CV96: =VLOOKUP(DropDownList!$B$47,CntyQryCensus!$A$510:$DA$552,CV$1) -> 0 | CW96: =VLOOKUP(DropDownList!$B$47,CntyQryCensus!$A$510:$DA$552,CW$1) -> 4 | CX96: =VLOOKUP(DropDownList!$B$47,CntyQryCensus!$A$510:$DA$552,CX$1) -> 47 | CY96: =VLOOKUP(DropDownList!$B$47,CntyQryCensus!$A$510:$DA$552,CY$1) -> 26 | CZ96: =VLOOKUP(DropDownList!$B$47,CntyQryCensus!$A$510:$DA$552,CZ$1) -> 21 | DA96: =VLOOKUP(DropDownList!$B$47,CntyQryCensus!$A$510:$DA$552,DA$1) -> 68
A105: ACS | B105: 2 | C105: =B105+1 -> 3 | D105: =C105+1 -> 4 | E105: 5 | F105: 6 | G105: 7 | H105: 8 | I105: 9 | J105: 10 | K105: 11 | L105: =K105+1 -> 12 | M105: 13 | N105: 14 | O105: 15 | P105: =O105+1 -> 16 | Q105: 17 | R105: 18 | S105: 19 | T105: 20 | U105: 21 | V105: 22 | W105: 23 | X105: 24 | Y105: 25 | Z105: 26 | AA105: 27 | AB105: 28 | AC105: 29 | AD105: 30 | AE105: 31 | AF105: 32 | AG105: 33 | AH105: 34 | AI105: 35 | AJ105: 36 | AK105: 37 | AL105: 38 | AM105: 39 | AN105: 40 | AO105: 41 | AP105: 42 | AQ105: 43 | AR105: 44 | AS105: 45 | AT105: 46 | AU105: 47 | AV105: 48 | AW105: 49 | AX105: 50 | AY105: 51 | AZ105: 52 | BA105: 53 | BB105: 54 | BC105: 55 | BD105: 56 | BE105: 57 | BF105: 58 | BG105: 59 | BH105: 60 | BI105: 61 | BJ105: 62 | BK105: 63 | BL105: 64 | BM105: 65 | BN105: 66 | BO105: 67 | BP105: =BO105+1 -> 68 | BQ105: 69 | BR105: 70 | BS105: 71 | BT105: 72 | BU105: 73 | BV105: 74 | BW105: 75 | BX105: 76 | BY105: 77 | BZ105: 78 | CA105: 79 | CB105: 80 | CC105: 81 | CD105: 82 | CE105: 83 | CF105: 84 | CG105: 85 | CH105: 86 | CI105: 87 | CJ105: 88 | CK105: 89 | CL105: 90 | CM105: 91 | CN105: 92 | CO105: 93 | CP105: 94 | CQ105: 95 | CR105: 96 | CS105: 97 | CT105: 98 | CU105: 99 | CV105: 100 | CW105: 101 | CX105: 102 | CY105: 103 | CZ105: 104 | DA105: 105 | DB105: 106 | DC105: 107 | DD105: 108 | DE105: 109 | DF105: 110 | DG105: 111 | DH105: 112 | DI105: 113 | DJ105: 114 | DK105: 115 | DL105: 116 | DM105: 117 | DN105: 118 | DO105: 119 | DP105: 120 | DQ105: 121 | DR105: 122 | DS105: 123 | DT105: 124 | DU105: 125
A106: Househould Data (Housing Unit Type)
A107: NAME | B107: TotalHU | C107: ="MOE "&B107 -> MOE TotalHU | D107: TotalOccHU | E107: ="MOE "&D107 -> MOE TotalOccHU | F107: TotalOwnerOccUn | G107: ="MOE "&F107 -> MOE TotalOwnerOccUn | H107: TotalRenterOccn | I107: ="MOE "&H107 -> MOE TotalRenterOccn | J107: TotalVacantUntis | K107: ="MOE "&J107 -> MOE TotalVacantUntis | L107: VacantUnitsForRent | M107: ="MOE "&L107 -> MOE VacantUnitsForRent | N107: VacantUnitRentedNotOcc | O107: ="MOE "&N107 -> MOE VacantUnitRentedNotOcc | P107: VacantUnitForSale | Q107: ="MOE "&P107 -> MOE VacantUnitForSale | R107: VacantUnitSoldNotOcc | S107: ="MOE "&R107 -> MOE VacantUnitSoldNotOcc | T107: VacantUnitSeasonalRec | U107: ="MOE "&T107 -> MOE VacantUnitSeasonalRec | V107: TotalPopInHousingUnits | W107: ="MOE "&V107 -> MOE TotalPopInHousingUnits | X107: OwnerOccPopHousingUnits | Y107: ="MOE "&X107 -> MOE OwnerOccPopHousingUnits | Z107: RenterOccPopHousingUnits | AA107: ="MOE "&Z107 -> MOE RenterOccPopHousingUnits | AB107: TotalUntis | AC107: ="MOE "&AB107 -> MOE TotalUntis | AD107: TotalOwnerOccUnits | AE107: ="MOE "&AD107 -> MOE TotalOwnerOccUnits | AF107: SigFamOwnerOcc | AG107: ="MOE "&AF107 -> MOE SigFamOwnerOcc | AH107: MultiFamOwnerOcc | AI107: ="MOE "&AH107 -> MOE MultiFamOwnerOcc | AJ107: MobileOwnerOcc | AK107: ="MOE "&AJ107 -> MOE MobileOwnerOcc | AL107: TotalRenterOccUnits | AM107: ="MOE "&AL107 -> MOE TotalRenterOccUnits | AN107: SigFamRenterOcc | AO107: ="MOE "&AN107 -> MOE SigFamRenterOcc | AP107: MultiFamRenterOcc | AQ107: ="MOE "&AP107 -> MOE MultiFamRenterOcc | AR107: MobileRenterOcc | AS107: ="MOE "&AR107 -> MOE MobileRenterOcc | AT107: TotalSigFamilyUnits | AU107: ="MOE "&AT107 -> MOE TotalSigFamilyUnits | AV107: TotalMultiFamilyUnits | AW107: ="MOE "&AV107 -> MOE TotalMultiFamilyUnits | AX107: TotalMobileUnits | AY107: ="MOE "&AX107 -> MOE TotalMobileUnits | AZ107: YrHouseBuilt2014Later | BA107: ="MOE "&AZ107 -> MOE YrHouseBuilt2014Later | BB107: YrHouseBuilt2010-2013 | BC107: ="MOE "&BB107 -> MOE YrHouseBuilt2010-2013 | BD107: YrHouseBuilt2000-2009 | BE107: ="MOE "&BD107 -> MOE YrHouseBuilt2000-2009 | BF107: YrHouseBuilt1990-1999 | BG107: ="MOE "&BF107 -> MOE YrHouseBuilt1990-1999 | BH107: YrHouseBuilt1980-1989 | BI107: ="MOE "&BH107 -> MOE YrHouseBuilt1980-1989 | BJ107: YrHouseBuilt1970-1979 | BK107: ="MOE "&BJ107 -> MOE YrHouseBuilt1970-1979 | BL107: YrHouseBuilt1960-1969 | BM107: ="MOE "&BL107 -> MOE YrHouseBuilt1960-1969 | BN107: YrHouseBuilt1950-1959 | BO107: ="MOE "&BN107 -> MOE YrHouseBuilt1950-1959 | BP107: YrHouseBuilt1940-1949 | BQ107: ="MOE "&BP107 -> MOE YrHouseBuilt1940-1949 | BR107: YrHouseBuilt1939orEarlier | BS107: ="MOE "&BR107 -> MOE YrHouseBuilt1939orEarlier | BT107: NoBedrooms | BU107: ="MOE "&BT107 -> MOE NoBedrooms | BV107: 1Bedroom | BW107: ="MOE "&BV107 -> MOE 1Bedroom | BX107: 2Bedroom | BY107: ="MOE "&BX107 -> MOE 2Bedroom | BZ107: 3Bedroom | CA107: ="MOE "&BZ107 -> MOE 3Bedroom | CB107: 4+Bedroom | CC107: ="MOE "&CB107 -> MOE 4+Bedroom
A108: =VLOOKUP(DropDownList!$B$47,CntyQryCensus!$A$510:$DA$546,A$1) -> Chester | B108: 3807 | C108: 274 | D108: 3675 | E108: 239 | F108: 2918 | G108: 291 | H108: 757 | I108: 197 | J108: 132 | K108: 112 | L108: 0 | M108: 17 | N108: 0 | O108: 17 | P108: 0 | Q108: 17 | R108: 0 | S108: 17 | T108: 100 | U108: 101 | V108: 8934 | W108: 30 | X108: 7441 | Y108: 458 | Z108: 1493 | AA108: 457 | AB108: 3675 | AC108: 239 | AD108: 2918 | AE108: 291 | AF108: 2244 | AG108: 266 | AH108: 263 | AI108: 102.8202315 | AJ108: 411 | AK108: 195.739623 | AL108: 757 | AM108: 197 | AN108: 108 | AO108: 91 | AP108: 649 | AQ108: 214.9255685 | AR108: 0 | AS108: 24.04163056 | AT108: 2436 | AU108: 295 | AV108: 912 | AW108: 235.9237165 | AX108: 459 | AY108: 214.6741717 | AZ108: 0 | BA108: 17 | BB108: 256 | BC108: 126 | BD108: 560 | BE108: 151 | BF108: 455 | BG108: 121 | BH108: 1020 | BI108: 241 | BJ108: 537 | BK108: 168 | BL108: 310 | BM108: 110 | BN108: 175 | BO108: 74 | BP108: 240 | BQ108: 220 | BR108: 254 | BS108: 120 | BT108: 8 | BU108: 12 | BV108: 556 | BW108: 158 | BX108: 1356 | BY108: 276 | BZ108: 1156 | CA108: 261 | CB108: 731 | CC108: 153.8440769
A110: Disability Data
A111: NAME | B111: TotalPop | C111: ="MOE "&B111 -> MOE TotalPop | D111: PopUnder 5 years: | E111: ="MOE "&D111 -> MOE PopUnder 5 years: | F111: =D$111&"-WithDisability" -> PopUnder 5 years:-WithDisability | G111: ="MOE "&F111 -> MOE PopUnder 5 years:-WithDisability | H111: =D111&"-NoDisability" -> PopUnder 5 years:-NoDisability | I111: ="MOE "&H111 -> MOE PopUnder 5 years:-NoDisability | J111: PopUnder 5 to 17years: | K111: ="MOE "&J111 -> MOE PopUnder 5 to 17years: | L111: =J$111&"-WithDisability" -> PopUnder 5 to 17years:-WithDisability | M111: ="MOE "&L111 -> MOE PopUnder 5 to 17years:-WithDisability | N111: =J111&"-NoDisability" -> PopUnder 5 to 17years:-NoDisability | O111: ="MOE "&N111 -> MOE PopUnder 5 to 17years:-NoDisability | P111: PopUnder 18 to 34 years: | Q111: ="MOE "&P111 -> MOE PopUnder 18 to 34 years: | R111: =P$111&"-WithDisability" -> PopUnder 18 to 34 years:-WithDisability | S111: ="MOE "&R111 -> MOE PopUnder 18 to 34 years:-WithDisability | T111: =P111&"-NoDisability" -> PopUnder 18 to 34 years:-NoDisability | U111: ="MOE "&T111 -> MOE PopUnder 18 to 34 years:-NoDisability | V111: Pop 35 years to 64: | W111: ="MOE "&V111 -> MOE Pop 35 years to 64: | X111: =$V$111&"-WithDisability" -> Pop 35 years to 64:-WithDisability | Y111: ="MOE "&X111 -> MOE Pop 35 years to 64:-WithDisability | Z111: =$V$111&"-NoDisability" -> Pop 35 years to 64:-NoDisability | AA111: ="MOE "&Z111 -> MOE Pop 35 years to 64:-NoDisability | AB111: Pop 65 years to 74: | AC111: ="MOE "&AB111 -> MOE Pop 65 years to 74: | AD111: =$AB$111&"-WithDisability" -> Pop 65 years to 74:-WithDisability | AE111: ="MOE "&AD111 -> MOE Pop 65 years to 74:-WithDisability | AF111: =$AB$111&"-NoDisability" -> Pop 65 years to 74:-NoDisability | AG111: ="MOE "&AF111 -> MOE Pop 65 years to 74:-NoDisability | AH111: Pop 75 and older: | AI111: ="MOE "&AH111 -> MOE Pop 75 and older: | AJ111: =$AH$111&"-WithDisability" -> Pop 75 and older:-WithDisability | AK111: ="MOE "&AJ111 -> MOE Pop 75 and older:-WithDisability | AL111: =$AH$111&"-NoDisability" -> Pop 75 and older:-NoDisability | AM111: ="MOE "&AL111 -> MOE Pop 75 and older:-NoDisability | AN111: TotalPopUnder5_HearingDisability | AO111: ="MOE "&AN111 -> MOE TotalPopUnder5_HearingDisability | AP111: TotalPopUnder5_HearingDisability | AQ111: ="MOE "&AP111 -> MOE TotalPopUnder5_HearingDisability | AR111: TotalPop18To34_HearingDisability | AS111: ="MOE "&AR111 -> MOE TotalPop18To34_HearingDisability | AT111: TotalPop35To64_HearingDisability | AU111: ="MOE "&AT111 -> MOE TotalPop35To64_HearingDisability | AV111: TotalPop65To74_HearingDisability | AW111: ="MOE "&AV111 -> MOE TotalPop65To74_HearingDisability | AX111: TotalPop75andOlder_HearingDisability | AY111: ="MOE "&AX111 -> MOE TotalPop75andOlder_HearingDisability | AZ111: TotalPopUnder5_VisionDisability | BA111: ="MOE "&AZ111 -> MOE TotalPopUnder5_VisionDisability | BB111: TotalPop5To17_VisionDisability | BC111: ="MOE "&BB111 -> MOE TotalPop5To17_VisionDisability | BD111: TotalPop18To34_VisionDisability | BE111: ="MOE "&BD111 -> MOE TotalPop18To34_VisionDisability | BF111: TotalPop35To64_VisionDisability | BG111: ="MOE "&BF111 -> MOE TotalPop35To64_VisionDisability | BH111: TotalPop65To74_VisionDisability | BI111: ="MOE "&BH111 -> MOE TotalPop65To74_VisionDisability | BJ111: TotalPop75andOlder_VisionDisability | BK111: ="MOE "&BJ111 -> MOE TotalPop75andOlder_VisionDisability | BL111: TotalPop5To17_CongnitiveDisability | BM111: ="MOE "&BL111 -> MOE TotalPop5To17_CongnitiveDisability | BN111: TotalPop18To34_CongnitiveDisability | BO111: ="MOE "&BN111 -> MOE TotalPop18To34_CongnitiveDisability | BP111: TotalPop35To64_CongnitiveDisability | BQ111: ="MOE "&BP111 -> MOE TotalPop35To64_CongnitiveDisability | BR111: TotalPop65To74_CongnitiveDisability | BS111: ="MOE "&BR111 -> MOE TotalPop65To74_CongnitiveDisability | BT111: TotalPop75andOlder_CongnitiveDisability | BU111: ="MOE "&BT111 -> MOE TotalPop75andOlder_CongnitiveDisability | BV111: TotalPop5To17_AmbulatoryDisability | BW111: ="MOE "&BV111 -> MOE TotalPop5To17_AmbulatoryDisability | BX111: TotalPop18To34_AmbulatoryDisability | BY111: ="MOE "&BX111 -> MOE TotalPop18To34_AmbulatoryDisability | BZ111: TotalPop35To64_AmbulatoryDisability | CA111: ="MOE "&BZ111 -> MOE TotalPop35To64_AmbulatoryDisability | CB111: TotalPop65To74_AmbulatoryDisability | CC111: ="MOE "&CB111 -> MOE TotalPop65To74_AmbulatoryDisability | CD111: TotalPop75andOlder_AmbulatoryDisability | CE111: ="MOE "&CD111 -> MOE TotalPop75andOlder_AmbulatoryDisability | CF111: TotalPop5To17_SelfCareDisability | CG111: ="MOE "&CF111 -> MOE TotalPop5To17_SelfCareDisability | CH111: TotalPop18To34_SelfCareDisability | CI111: ="MOE "&CH111 -> MOE TotalPop18To34_SelfCareDisability | CJ111: TotalPop35To64_SelfCareDisability | CK111: ="MOE "&CJ111 -> MOE TotalPop35To64_SelfCareDisability | CL111: TotalPop65To74_SelfCareDisability | CM111: ="MOE "&CL111 -> MOE TotalPop65To74_SelfCareDisability | CN111: TotalPop75andOlder_SelfCareDisability | CO111: ="MOE "&CN111 -> MOE TotalPop75andOlder_SelfCareDisability | CP111: TotalPop18To34_IndependantLivingDisability | CQ111: ="MOE "&CP111 -> MOE TotalPop18To34_IndependantLivingDisability | CR111: TotalPop35To64_IndependantLivingDisability | CS111: ="MOE "&CR111 -> MOE TotalPop35To64_IndependantLivingDisability | CT111: TotalPop65To74_IndependantLivingDisability | CU111: ="MOE "&CT111 -> MOE TotalPop65To74_IndependantLivingDisability | CV111: TotalPop75andOlder_IndependantLivingDisability | CW111: ="MOE "&CV111 -> MOE TotalPop75andOlder_IndependantLivingDisability | CX111: TotalUnder5_HearingorVisionDisability | CY111: ="MOE "&CX111 -> MOE TotalUnder5_HearingorVisionDisability | CZ111: TotalUnder5_HearingandVisionDisability | DA111: ="MOE "&CZ111 -> MOE TotalUnder5_HearingandVisionDisability | DB111: 5to17YearWIthOneDisability | DC111: ="MOE "&DB111 -> MOE 5to17YearWIthOneDisability | DD111: 5to17YearWIthTwoOrMoreDisability | DE111: ="MOE "&DD111 -> MOE 5to17YearWIthTwoOrMoreDisability | DF111: 18to34YearWIthOneDisability | DG111: ="MOE "&DF111 -> MOE 18to34YearWIthOneDisability | DH111: 18to34YearWIthTwoOrMoreDisability | DI111: ="MOE "&DH111 -> MOE 18to34YearWIthTwoOrMoreDisability | DJ111: 35to64YearWIthOneDisability | DK111: ="MOE "&DJ111 -> MOE 35to64YearWIthOneDisability | DL111: 35to64YearWIthTwoOrMoreDisability | DM111: ="MOE "&DL111 -> MOE 35to64YearWIthTwoOrMoreDisability | DN111: 65to74YearWIthOneDisability | DO111: ="MOE "&DN111 -> MOE 65to74YearWIthOneDisability | DP111: 65to74YearWIthTwoOrMoreDisability | DQ111: ="MOE "&DP111 -> MOE 65to74YearWIthTwoOrMoreDisability | DR111: 75AndOlderWIthOneDisability | DS111: ="MOE "&DR111 -> MOE 75AndOlderWIthOneDisability | DT111: 75AndOlderWIthTwoOrMoreDisability | DU111: ="MOE "&DT111 -> MOE 75AndOlderWIthTwoOrMoreDisability
